Workbook

Sheet Read Me First
B1: Freefincal Stock Analyzer Version 2.0
A2: To use this sheet
A3: 1 | B3: Open an account with morningstar.in
A4: 2 | B4: Enter an stock in the search at the top of the page
A5: 3 | B5: Go to 'Financial and Key ratios'
A6: 4 | B6: Click the 'export' option
A7: 5 | B7: A .csv file will either open or be saved to your computer
A8: 6 | B8: In this file, go to 'MorningStar data'
A9: 7 | B9: Select Columns A to L and hit delete
A10: 9 | B10: Go to the .csv file. Select Columns A to L and 'copy'
A11: 10 | B11: Come back to 'MorningStar data', select Cell A1 and paste
A12: 11 | B12: The file is read to use. If you want to have separate files for each stock, you can rename this file suitably
A13: 12 | B13: Please enter the current stock price before going ahead | C13: 1756.9 | D13: Use price adjusted for splits and dividends
A14: 13 | B14: Caution: Please do not use the results from this sheet unless you have read, understood and verified | D14: I am assuming the adusted price is better
B15: the formula and method used in the analysis and valuation sheets | D15: for valuations. Do correct me if I am wrong
A16: 14 | B16: This sheet is not a turn-key solution for stock analysis. It is meant to be academic in nature.
A17: 15 | B17: Comment and suggestions are welcome

Sheet MorningStar Data
A1: Growth Profitability and Financial Ratios for Colgate-Palmolive (India) Ltd
A2: Financials
B3: 2005-03 | C3: 2006-03 | D3: 2007-03 | E3: 2008-03 | F3: 2009-03 | G3: 2010-03 | H3: 2011-03 | I3: 2012-03 | J3: 2013-03 | K3: 2014-03 | L3: TTM
A4: Revenue INR Mil | B4: 9675 | C4: 11259 | D4: 12956 | E4: 14739 | F4: 16952 | G4: 19625 | H4: 22206 | I4: 26932 | J4: 31638 | K4: 35788 | L4: 37758
A5: Gross Margin % | B5: 51.3 | C5: 56.1 | D5: 55.8 | E5: 59.4 | F5: 59.8 | G5: 61.2 | H5: 60.7 | I5: 59.4 | J5: 61.2 | K5: 60.1 | L5: 61.5
A6: Operating Income INR Mil | B6: 1774 | C6: 1907 | D6: 1955 | E6: 3059 | F6: 3485 | G6: 5004 | H6: 5199 | I6: 6191 | J6: 6630 | K6: 7280 | L6: 7012
A7: Operating Margin % | B7: 18.3 | C7: 16.9 | D7: 15.1 | E7: 20.8 | F7: 20.6 | G7: 25.5 | H7: 23.4 | I7: 23 | J7: 21 | K7: 20.3 | L7: 18.6
A8: Net Income INR Mil | B8: 1124 | C8: 1400 | D8: 1484 | E8: 2358 | F8: 2858 | G8: 4356 | H8: 4026 | I8: 4465 | J8: 4968 | K8: 5399 | L8: 5096
A9: Earnings Per Share INR | B9: 8.27 | C9: 10.3 | D9: 10.91 | E9: 17.34 | F9: 21.01 | G9: 31.92 | H9: 29.6 | I9: 32.83 | J9: 36.53 | K9: 39.7 | L9: 37.48
A10: Dividends INR | F10: 16 | G10: 21 | H10: 27 | I10: 25 | J10: 28 | K10: 27 | L10: 35
A11: Payout Ratio % | F11: 76.1 | G11: 65.8 | H11: 91.2 | I11: 76.1 | J11: 76.6 | K11: 68 | L11: 93.4
A12: Shares Mil | B12: 136 | C12: 136 | D12: 136 | E12: 136 | F12: 136 | G12: 136 | H12: 136 | I12: 136 | J12: 136 | K12: 136
A13: Book Value Per Share INR | E13: 12.6 | F13: 16.1 | G13: 23.98 | H13: 28.24 | I13: 32.02 | J13: 36 | K13: 44.11 | L13: 54.19
A14: Operating Cash Flow INR Mil | B14: 1219 | C14: 1878 | D14: 1577 | E14: 2914 | F14: 3497 | G14: 4040 | H14: 3854 | I14: 4028 | J14: 6149 | K14: 4574 | L14: 4574
A15: Cap Spending INR Mil | B15: -809 | C15: -502 | D15: -385 | E15: -452 | F15: -371 | G15: -358 | H15: -411 | I15: -1022 | J15: -1547 | K15: -3236 | L15: -3236
A16: Free Cash Flow INR Mil | B16: 410 | C16: 1376 | D16: 1192 | E16: 2462 | F16: 3125 | G16: 3682 | H16: 3443 | I16: 3006 | J16: 4602 | K16: 1337 | L16: 1337
A17: Free Cash Flow Per Share INR | E17: 18.1 | F17: 22.98 | G17: 27.07 | H17: 25.32 | I17: 22.11 | J17: 33.84 | K17: 9.83
A18: Working Capital INR Mil | B18: -565 | C18: -412 | D18: -652 | E18: -1578 | F18: -835 | G18: 369 | H18: 612 | I18: 603 | J18: 116 | K18: -1915
A20: Key Ratios -> Profitability
A21: Margins % of Sales | B21: 2005-03 | C21: 2006-03 | D21: 2007-03 | E21: 2008-03 | F21: 2009-03 | G21: 2010-03 | H21: 2011-03 | I21: 2012-03 | J21: 2013-03 | K21: 2014-03 | L21: TTM
A22: Revenue | B22: 100 | C22: 100 | D22: 100 | E22: 100 | F22: 100 | G22: 100 | H22: 100 | I22: 100 | J22: 100 | K22: 100 | L22: 100
A23: COGS | B23: 48.7 | C23: 43.9 | D23: 44.2 | E23: 40.59 | F23: 40.17 | G23: 38.8 | H23: 39.27 | I23: 40.57 | J23: 38.81 | K23: 39.92 | L23: 38.47
A24: Gross Margin | B24: 51.3 | C24: 56.1 | D24: 55.8 | E24: 59.41 | F24: 59.83 | G24: 61.2 | H24: 60.73 | I24: 59.43 | J24: 61.19 | K24: 60.08 | L24: 61.53
A25: SG&A | I25: 26.04 | L25: 1.09
A26: R&D
A27: Other | B27: 36.27 | C27: 41.58 | D27: 45.8 | E27: 43.89 | F27: 44.79 | G27: 40.57 | H27: 42.13 | I27: 10.4 | J27: 41.81 | K27: 41.14 | L27: 42.84
A28: Operating Margin | B28: 18.33 | C28: 16.94 | D28: 15.09 | E28: 20.76 | F28: 20.56 | G28: 25.5 | H28: 23.42 | I28: 22.99 | J28: 20.96 | K28: 20.34 | L28: 18.57
A29: Net Int Inc & Other | F29: -24.12 | I29: -1.14
A30: EBT Margin | B30: 18.33 | C30: 16.94 | D30: 15.09 | E30: 20.76 | F30: -3.56 | G30: 25.5 | H30: 23.42 | I30: 21.85 | J30: 20.96 | K30: 20.34 | L30: 18.57
A32: Profitability | B32: 2005-03 | C32: 2006-03 | D32: 2007-03 | E32: 2008-03 | F32: 2009-03 | G32: 2010-03 | H32: 2011-03 | I32: 2012-03 | J32: 2013-03 | K32: 2014-03 | L32: TTM
A33: Tax Rate % | B33: 36.61 | C33: 26.58 | D33: 24.08 | E33: 22.64 | G33: 12.95 | H33: 22.57 | I33: 24.12 | J33: 25.08 | K33: 25.84 | L33: 27.32
A34: Net Margin % | B34: 11.62 | C34: 12.44 | D34: 11.45 | E34: 16.06 | F34: 16.86 | G34: 22.12 | H34: 18.13 | I34: 16.58 | J34: 15.7 | K34: 15.09 | L34: 13.5
A35: Asset Turnover (Average) | B35: 1.68 | C35: 1.84 | D35: 1.93 | E35: 2.05 | F35: 2.21 | G35: 2.32 | H35: 2.32 | I35: 2.5 | J35: 2.6 | K35: 2.56 | L35: 2.31
A36: Return on Assets % | B36: 19.54 | C36: 22.9 | D36: 22.05 | E36: 32.94 | F36: 37.2 | G36: 51.31 | H36: 42.11 | I36: 41.4 | J36: 40.78 | K36: 38.62 | L36: 31.21
A37: Financial Leverage (Average) | B37: 2.28 | C37: 2.27 | D37: 2.54 | E37: 4.26 | F37: 3.69 | G37: 2.68 | H37: 2.68 | I37: 2.59 | J37: 2.67 | K37: 2.48 | L37: 2.35
A38: Return on Equity % | B38: 44.15 | C38: 52.09 | D38: 53.08 | E38: 105.24 | F38: 146.41 | G38: 158.07 | H38: 112.72 | I38: 108.97 | J38: 107.41 | K38: 99.11 | L38: 67
A39: Return on Invested Capital % | B39: 42.27 | C39: 50.81 | D39: 52.28 | E39: 103.19 | F39: 142.98 | G39: 155.45 | H39: 112 | I39: 109.25 | J39: 107.41 | K39: 99.11 | L39: 67
A40: Interest Coverage | I40: 389.94
A42: Key Ratios -> Growth
B43: 2005-03 | C43: 2006-03 | D43: 2007-03 | E43: 2008-03 | F43: 2009-03 | G43: 2010-03 | H43: 2011-03 | I43: 2012-03 | J43: 2013-03 | K43: 2014-03 | L43: Latest Qtr
A44: Revenue %
A45: Year over Year | B45: 2.67 | C45: 16.38 | D45: 15.07 | E45: 13.76 | F45: 15.02 | G45: 15.76 | H45: 13.15 | I45: 21.29 | J45: 17.47 | K45: 13.12 | L45: 11.08
A46: 3-Year Average | D46: 11.2 | E46: 15.06 | F46: 14.61 | G46: 14.84 | H46: 14.64 | I46: 16.69 | J46: 17.26 | K46: 17.24
A47: 5-Year Average | F47: 12.46 | G47: 15.2 | H47: 14.55 | I47: 15.76 | J47: 16.51 | K47: 16.12
A48: 10-Year Average | K48: 14.28
A49: Operating Income %
A50: Year over Year | B50: 11.95 | C50: 7.53 | D50: 2.48 | E50: 56.53 | F50: 13.92 | G50: 43.57 | H50: 3.91 | I50: 19.07 | J50: 7.09 | K50: 9.79 | L50: 21
A51: 3-Year Average | D51: 7.25 | E51: 19.93 | F51: 22.26 | G51: 36.8 | H51: 19.34 | I51: 21.11 | J51: 9.84 | K51: 11.87
A52: 5-Year Average | F52: 17.08 | G52: 23.05 | H52: 22.21 | I52: 25.94 | J52: 16.73 | K52: 15.87
A53: 10-Year Average | K53: 16.47
A54: Net Income %
A55: Year over Year | B55: 0.04 | C55: 24.56 | D55: 5.97 | E55: 58.87 | F55: 21.22 | G55: 52.43 | H55: -7.58 | I55: 10.9 | J55: 11.26 | K55: 8.68
A56: 3-Year Average | D56: 9.71 | E56: 28 | F56: 26.84 | G56: 43.18 | H56: 19.53 | I56: 16.03 | J56: 4.48 | K56: 10.28
A57: 5-Year Average | F57: 20.52 | G57: 31.11 | H57: 23.52 | I57: 24.64 | J57: 16.07 | K57: 13.57
A58: 10-Year Average | K58: 16.99
A59: EPS %
A60: Year over Year | B60: 0.12 | C60: 24.55 | D60: 5.92 | E60: 58.94 | F60: 21.16 | G60: 51.93 | H60: -7.27 | I60: 10.91 | J60: 11.27 | K60: 8.68 | L60: 18.39
A61: 3-Year Average | D61: 9.72 | E61: 27.99 | F61: 26.82 | G61: 43.03 | H61: 19.51 | I61: 16.04 | J61: 4.6 | K61: 10.28
A62: 5-Year Average | F62: 20.53 | G62: 31.01 | H62: 23.51 | I62: 24.65 | J62: 16.07 | K62: 13.57
A63: 10-Year Average | K63: 17
A65: Key Ratios -> Cash Flow
A66: Cash Flow Ratios | B66: 2005-03 | C66: 2006-03 | D66: 2007-03 | E66: 2008-03 | F66: 2009-03 | G66: 2010-03 | H66: 2011-03 | I66: 2012-03 | J66: 2013-03 | K66: 2014-03 | L66: TTM
A67: Operating Cash Flow Growth % YOY | B67: 52.18 | C67: 54 | D67: -16.03 | E67: 84.77 | F67: 20.01 | G67: 15.54 | H67: -4.6 | I67: 4.52 | J67: 52.64 | K67: -25.62
A68: Free Cash Flow Growth % YOY | B68: -42.44 | C68: 235.53 | D68: -13.37 | E68: 106.47 | F68: 26.96 | G68: 17.8 | H68: -6.48 | I68: -12.69 | J68: 53.08 | K68: -70.94
A69: Cap Ex as a % of Sales | B69: 8.36 | C69: 4.45 | D69: 2.97 | E69: 3.07 | F69: 2.19 | G69: 1.83 | H69: 1.85 | I69: 3.8 | J69: 4.89 | K69: 9.04 | L69: 8.57
A70: Free Cash Flow/Sales % | B70: 4.24 | C70: 12.22 | D70: 9.2 | E70: 16.7 | F70: 18.44 | G70: 18.76 | H70: 15.51 | I70: 11.16 | J70: 14.55 | K70: 3.74 | L70: 3.54
A71: Free Cash Flow/Net Income | B71: 0.36 | C71: 0.98 | D71: 0.8 | E71: 1.04 | F71: 1.09 | G71: 0.85 | H71: 0.86 | I71: 0.67 | J71: 0.93 | K71: 0.25 | L71: 0.26
A73: Key Ratios -> Financial Health
A74: Balance Sheet Items (in %) | B74: 2005-03 | C74: 2006-03 | D74: 2007-03 | E74: 2008-03 | F74: 2009-03 | G74: 2010-03 | H74: 2011-03 | I74: 2012-03 | J74: 2013-03 | K74: 2014-03 | L74: Latest Qtr
A75: Cash & Short-Term Investments | B75: 27.46 | C75: 35.15 | D75: 37.6 | E75: 40.75 | F75: 48.62 | G75: 52.02 | H75: 48.71 | I75: 27.43 | J75: 33.58 | K75: 19.27 | L75: 20.47
A76: Accounts Receivable | B76: 3.03 | C76: 1.18 | D76: 1.33 | E76: 1.29 | F76: 1.38 | G76: 1.1 | H76: 4.18 | I76: 7.73 | J76: 6.21 | K76: 3.68 | L76: 3.42
A77: Inventory | B77: 13.41 | C77: 11.88 | D77: 11.35 | E77: 11.83 | F77: 11.18 | G77: 12.59 | H77: 14.96 | I77: 19.27 | J77: 14.18 | K77: 15.16 | L77: 14.51
A78: Other Current Assets | B78: 0.94 | C78: 0.66 | D78: 0.55 | E78: 0.36 | F78: 0.77 | G78: 0.61 | H78: 0.71 | I78: 9.64 | J78: 6.71 | K78: 7.01 | L78: 8.87
A79: Total Current Assets | B79: 44.84 | C79: 48.87 | D79: 50.83 | E79: 54.22 | F79: 61.95 | G79: 66.33 | H79: 68.57 | I79: 64.07 | J79: 60.69 | K79: 45.13 | L79: 47.28
A80: Net PP&E | B80: 28.04 | C80: 27.18 | D80: 27.14 | E80: 32.95 | F80: 31.85 | G80: 29.47 | H80: 24.83 | I80: 28.67 | J80: 29.28 | K80: 46.85
A81: Intangibles
A82: Other Long-Term Assets | B82: 27.12 | C82: 23.95 | D82: 22.03 | E82: 12.82 | F82: 6.2 | G82: 4.2 | H82: 6.6 | I82: 7.27 | J82: 10.03 | K82: 8.03 | L82: 52.72
A83: Total Assets | B83: 100 | C83: 100 | D83: 100 | E83: 100 | F83: 100 | G83: 100 | H83: 100 | I83: 100 | J83: 100 | K83: 100 | L83: 100
A84: Accounts Payable | B84: 28.96 | C84: 33.71 | D84: 32.88 | E84: 41.79 | F84: 44.54 | G84: 41.57 | H84: 41.01 | I84: 32.67 | J84: 35.71 | K84: 34.25 | L84: 33.67
A85: Short-Term Debt
A86: Taxes Payable
A87: Accrued Liabilities
A88: Other Short-Term Liabilities | B88: 25.53 | C88: 21.62 | D88: 27.17 | E88: 33.64 | F88: 27.41 | G88: 20.58 | H88: 21.6 | I88: 26.06 | J88: 24.09 | K88: 23.73 | L88: 21.16
A89: Total Current Liabilities | B89: 54.49 | C89: 55.33 | D89: 60.05 | E89: 75.44 | F89: 71.95 | G89: 62.16 | H89: 62.61 | I89: 58.73 | J89: 59.8 | K89: 57.99 | L89: 54.83
A90: Long-Term Debt | B90: 1.57 | C90: 0.68 | D90: 0.6 | E90: 0.64 | F90: 0.58 | G90: 0.52
A91: Other Long-Term Liabilities | E91: 0.56 | F91: 0.46 | I91: 2.73 | J91: 2.74 | K91: 1.72 | L91: 2.58
A92: Total Liabilities | B92: 56.06 | C92: 56.01 | D92: 60.66 | E92: 76.63 | F92: 72.99 | G92: 62.67 | H92: 62.62 | I92: 61.46 | J92: 62.53 | K92: 59.71 | L92: 57.4
A93: Total Stockholders' Equity | B93: 43.94 | C93: 43.99 | D93: 39.34 | E93: 23.37 | F93: 27.01 | G93: 37.33 | H93: 37.38 | I93: 38.54 | J93: 37.47 | K93: 40.29 | L93: 42.6
A94: Total Liabilities & Equity | B94: 100 | C94: 100 | D94: 100 | E94: 100 | F94: 100 | G94: 100 | H94: 100 | I94: 100 | J94: 100 | K94: 100 | L94: 100
A96: Liquidity/Financial Health | B96: 2005-03 | C96: 2006-03 | D96: 2007-03 | E96: 2008-03 | F96: 2009-03 | G96: 2010-03 | H96: 2011-03 | I96: 2012-03 | J96: 2013-03 | K96: 2014-03 | L96: Latest Qtr
A97: Current Ratio | B97: 0.82 | C97: 0.88 | D97: 0.85 | E97: 0.71 | F97: 0.86 | G97: 1.07 | H97: 1.1 | I97: 1.09 | J97: 1.01 | K97: 0.78 | L97: 0.86
A98: Quick Ratio | B98: 0.56 | C98: 0.66 | D98: 0.65 | E98: 0.55 | F98: 0.69 | G98: 0.85 | H98: 0.84 | I98: 0.6 | J98: 0.77 | K98: 0.51 | L98: 0.59
A99: Financial Leverage | B99: 2.28 | C99: 2.27 | D99: 2.54 | E99: 4.26 | F99: 3.69 | G99: 2.68 | H99: 2.68 | I99: 2.59 | J99: 2.67 | K99: 2.48 | L99: 2.35
A100: Debt/Equity | B100: 0.04 | C100: 0.02 | D100: 0.02 | E100: 0.03 | F100: 0.02 | G100: 0.01
A102: Key Ratios -> Efficiency Ratios
A103: Efficiency | B103: 2005-03 | C103: 2006-03 | D103: 2007-03 | E103: 2008-03 | F103: 2009-03 | G103: 2010-03 | H103: 2011-03 | I103: 2012-03 | J103: 2013-03 | K103: 2014-03 | L103: TTM
A104: Days Sales Outstanding | B104: 9.6 | C104: 4.09 | D104: 2.38 | E104: 2.33 | F104: 2.21 | G104: 1.94 | H104: 4.33 | I104: 8.82 | J104: 9.72 | K104: 6.93 | L104: 6.19
A105: Days Inventory | B105: 55.9 | C105: 56.95 | D105: 49.77 | E105: 50.82 | F105: 47.3 | G105: 48.31 | H105: 55.48 | I105: 62.03 | J105: 59.89 | K105: 52.5 | L105: 59.79
A106: Payables Period | B106: 129.05 | C106: 141.98 | D106: 142.71 | E106: 164.48 | F106: 178.96 | G106: 174.71 | H106: 165.15 | I106: 132.01 | J106: 124.19 | K106: 124.74 | L106: 134.38
A107: Cash Conversion Cycle | B107: -63.55 | C107: -80.93 | D107: -90.56 | E107: -111.33 | F107: -129.45 | G107: -124.46 | H107: -105.35 | I107: -61.15 | J107: -54.58 | K107: -65.3 | L107: -68.4
A108: Receivables Turnover | B108: 38.01 | C108: 89.18 | D108: 153.15 | E108: 156.84 | F108: 165.22 | G108: 187.77 | H108: 84.22 | I108: 41.36 | J108: 37.56 | K108: 52.65 | L108: 58.98
A109: Inventory Turnover | B109: 6.53 | C109: 6.41 | D109: 7.33 | E109: 7.18 | F109: 7.72 | G109: 7.56 | H109: 6.58 | I109: 5.88 | J109: 6.09 | K109: 6.95 | L109: 6.1
A110: Fixed Assets Turnover | B110: 6.9 | C110: 6.67 | D110: 7.09 | E110: 6.82 | F110: 6.82 | G110: 7.58 | H110: 8.61 | I110: 9.31 | J110: 8.96 | K110: 6.63
A111: Asset Turnover | B111: 1.68 | C111: 1.84 | D111: 1.93 | E111: 2.05 | F111: 2.21 | G111: 2.32 | H111: 2.32 | I111: 2.5 | J111: 2.6 | K111: 2.56 | L111: 2.31

Sheet Analysis
B1: =L1+1 -> 11 | C1: 1 | D1: =C1+1 -> 2 | E1: =D1+1 -> 3 | F1: 4 | G1: 5 | H1: 6 | I1: 7 | J1: 8 | K1: 9 | L1: 10
B2: =LEFT('MorningStar Data'!L3,4) -> TTM | C2: =LEFT('MorningStar Data'!B3,4) -> 2005 | D2: =LEFT('MorningStar Data'!C3,4) -> 2006 | E2: =LEFT('MorningStar Data'!D3,4) -> 2007 | F2: =LEFT('MorningStar Data'!E3,4) -> 2008 | G2: =LEFT('MorningStar Data'!F3,4) -> 2009 | H2: =LEFT('MorningStar Data'!G3,4) -> 2010 | I2: =LEFT('MorningStar Data'!H3,4) -> 2011 | J2: =LEFT('MorningStar Data'!I3,4) -> 2012 | K2: =LEFT('MorningStar Data'!J3,4) -> 2013 | L2: =LEFT('MorningStar Data'!K3,4) -> 2014 | M2: Average | N2: Std Dev | O2: Inconsistency measure* | P2: Geometric average*
A3: Tax Rate % | B3: =IF(INDEX('MorningStar Data'!$A$1:$M$150,MATCH(Analysis!$A$3,'MorningStar Data'!$A$1:$A$150,0),B1+1)/100=0,"",INDEX('MorningStar Data'!$A$1:$M$150,MATCH(Analysis!$A$3,'MorningStar Data'!$A$1:$A$150,0),B1+1)/100) -> 0.2732 | C3: =IF(INDEX('MorningStar Data'!$A$1:$M$150,MATCH(Analysis!$A$3,'MorningStar Data'!$A$1:$A$150,0),C1+1)/100=0,"",INDEX('MorningStar Data'!$A$1:$M$150,MATCH(Analysis!$A$3,'MorningStar Data'!$A$1:$A$150,0),C1+1)/100) -> 0.3661 | D3: =IF(INDEX('MorningStar Data'!$A$1:$M$150,MATCH(Analysis!$A$3,'MorningStar Data'!$A$1:$A$150,0),D1+1)/100=0,"",INDEX('MorningStar Data'!$A$1:$M$150,MATCH(Analysis!$A$3,'MorningStar Data'!$A$1:$A$150,0),D1+1)/100) -> 0.2658 | E3: =IF(INDEX('MorningStar Data'!$A$1:$M$150,MATCH(Analysis!$A$3,'MorningStar Data'!$A$1:$A$150,0),E1+1)/100=0,"",INDEX('MorningStar Data'!$A$1:$M$150,MATCH(Analysis!$A$3,'MorningStar Data'!$A$1:$A$150,0),E1+1)/100) -> 0.2408 | F3: =IF(INDEX('MorningStar Data'!$A$1:$M$150,MATCH(Analysis!$A$3,'MorningStar Data'!$A$1:$A$150,0),F1+1)/100=0,"",INDEX('MorningStar Data'!$A$1:$M$150,MATCH(Analysis!$A$3,'MorningStar Data'!$A$1:$A$150,0),F1+1)/100) -> 0.2264 | G3: =IF(INDEX('MorningStar Data'!$A$1:$M$150,MATCH(Analysis!$A$3,'MorningStar Data'!$A$1:$A$150,0),G1+1)/100=0,"",INDEX('MorningStar Data'!$A$1:$M$150,MATCH(Analysis!$A$3,'MorningStar Data'!$A$1:$A$150,0),G1+1)/100) ->  | H3: =IF(INDEX('MorningStar Data'!$A$1:$M$150,MATCH(Analysis!$A$3,'MorningStar Data'!$A$1:$A$150,0),H1+1)/100=0,"",INDEX('MorningStar Data'!$A$1:$M$150,MATCH(Analysis!$A$3,'MorningStar Data'!$A$1:$A$150,0),H1+1)/100) -> 0.1295 | I3: =IF(INDEX('MorningStar Data'!$A$1:$M$150,MATCH(Analysis!$A$3,'MorningStar Data'!$A$1:$A$150,0),I1+1)/100=0,"",INDEX('MorningStar Data'!$A$1:$M$150,MATCH(Analysis!$A$3,'MorningStar Data'!$A$1:$A$150,0),I1+1)/100) -> 0.2257 | J3: =IF(INDEX('MorningStar Data'!$A$1:$M$150,MATCH(Analysis!$A$3,'MorningStar Data'!$A$1:$A$150,0),J1+1)/100=0,"",INDEX('MorningStar Data'!$A$1:$M$150,MATCH(Analysis!$A$3,'MorningStar Data'!$A$1:$A$150,0),J1+1)/100) -> 0.2412 | K3: =IF(INDEX('MorningStar Data'!$A$1:$M$150,MATCH(Analysis!$A$3,'MorningStar Data'!$A$1:$A$150,0),K1+1)/100=0,"",INDEX('MorningStar Data'!$A$1:$M$150,MATCH(Analysis!$A$3,'MorningStar Data'!$A$1:$A$150,0),K1+1)/100) -> 0.2508 | L3: =IF(INDEX('MorningStar Data'!$A$1:$M$150,MATCH(Analysis!$A$3,'MorningStar Data'!$A$1:$A$150,0),L1+1)/100=0,"",INDEX('MorningStar Data'!$A$1:$M$150,MATCH(Analysis!$A$3,'MorningStar Data'!$A$1:$A$150,0),L1+1)/100) -> 0.2584 | M3: =AVERAGE(C3:L3) -> 0.2449666667 | N3: =STDEV(C3:L3) -> 0.06062365462 | O3: =(M3-P3)/M3 -> 0.1148577965 | P3: =((1+IF(C3="",0,C3))*(1+IF(D3="",0,D3))*(1+IF(E3="",0,E3))*(1+IF(F3="",0,F3))*(1+IF(G3="",0,G3))*(1+IF(H3="",0,H3))*(1+IF(I3="",0,I3))*(1+IF(J3="",0,J3))*(1+IF(K3="",0,K3))*(1+IF(L3="",0,L3)))^(1/10)-1 -> 0.2168303351
A4: Gross Margin % | B4: =IF(INDEX('MorningStar Data'!$A$1:$M$150,MATCH(Analysis!$A$4,'MorningStar Data'!$A$1:$A$150,0),B1+1)/100=0,"",INDEX('MorningStar Data'!$A$1:$M$150,MATCH(Analysis!$A$4,'MorningStar Data'!$A$1:$A$150,0),B1+1)/100) -> 0.615 | C4: =IF(INDEX('MorningStar Data'!$A$1:$M$150,MATCH(Analysis!$A$4,'MorningStar Data'!$A$1:$A$150,0),C1+1)/100=0,"",INDEX('MorningStar Data'!$A$1:$M$150,MATCH(Analysis!$A$4,'MorningStar Data'!$A$1:$A$150,0),C1+1)/100) -> 0.513 | D4: =IF(INDEX('MorningStar Data'!$A$1:$M$150,MATCH(Analysis!$A$4,'MorningStar Data'!$A$1:$A$150,0),D1+1)/100=0,"",INDEX('MorningStar Data'!$A$1:$M$150,MATCH(Analysis!$A$4,'MorningStar Data'!$A$1:$A$150,0),D1+1)/100) -> 0.561 | E4: =IF(INDEX('MorningStar Data'!$A$1:$M$150,MATCH(Analysis!$A$4,'MorningStar Data'!$A$1:$A$150,0),E1+1)/100=0,"",INDEX('MorningStar Data'!$A$1:$M$150,MATCH(Analysis!$A$4,'MorningStar Data'!$A$1:$A$150,0),E1+1)/100) -> 0.558 | F4: =IF(INDEX('MorningStar Data'!$A$1:$M$150,MATCH(Analysis!$A$4,'MorningStar Data'!$A$1:$A$150,0),F1+1)/100=0,"",INDEX('MorningStar Data'!$A$1:$M$150,MATCH(Analysis!$A$4,'MorningStar Data'!$A$1:$A$150,0),F1+1)/100) -> 0.594 | G4: =IF(INDEX('MorningStar Data'!$A$1:$M$150,MATCH(Analysis!$A$4,'MorningStar Data'!$A$1:$A$150,0),G1+1)/100=0,"",INDEX('MorningStar Data'!$A$1:$M$150,MATCH(Analysis!$A$4,'MorningStar Data'!$A$1:$A$150,0),G1+1)/100) -> 0.598 | H4: =IF(INDEX('MorningStar Data'!$A$1:$M$150,MATCH(Analysis!$A$4,'MorningStar Data'!$A$1:$A$150,0),H1+1)/100=0,"",INDEX('MorningStar Data'!$A$1:$M$150,MATCH(Analysis!$A$4,'MorningStar Data'!$A$1:$A$150,0),H1+1)/100) -> 0.612 | I4: =IF(INDEX('MorningStar Data'!$A$1:$M$150,MATCH(Analysis!$A$4,'MorningStar Data'!$A$1:$A$150,0),I1+1)/100=0,"",INDEX('MorningStar Data'!$A$1:$M$150,MATCH(Analysis!$A$4,'MorningStar Data'!$A$1:$A$150,0),I1+1)/100) -> 0.607 | J4: =IF(INDEX('MorningStar Data'!$A$1:$M$150,MATCH(Analysis!$A$4,'MorningStar Data'!$A$1:$A$150,0),J1+1)/100=0,"",INDEX('MorningStar Data'!$A$1:$M$150,MATCH(Analysis!$A$4,'MorningStar Data'!$A$1:$A$150,0),J1+1)/100) -> 0.594 | K4: =IF(INDEX('MorningStar Data'!$A$1:$M$150,MATCH(Analysis!$A$4,'MorningStar Data'!$A$1:$A$150,0),K1+1)/100=0,"",INDEX('MorningStar Data'!$A$1:$M$150,MATCH(Analysis!$A$4,'MorningStar Data'!$A$1:$A$150,0),K1+1)/100) -> 0.612 | L4: =IF(INDEX('MorningStar Data'!$A$1:$M$150,MATCH(Analysis!$A$4,'MorningStar Data'!$A$1:$A$150,0),L1+1)/100=0,"",INDEX('MorningStar Data'!$A$1:$M$150,MATCH(Analysis!$A$4,'MorningStar Data'!$A$1:$A$150,0),L1+1)/100) -> 0.601 | M4: =AVERAGE(C4:L4) -> 0.585 | N4: =STDEV(C4:L4) -> 0.03165438358 | O4: =(M4-P4)/M4 -> 0.0004944836728 | P4: =((1+IF(C4="",0,C4))*(1+IF(D4="",0,D4))*(1+IF(E4="",0,E4))*(1+IF(F4="",0,F4))*(1+IF(G4="",0,G4))*(1+IF(H4="",0,H4))*(1+IF(I4="",0,I4))*(1+IF(J4="",0,J4))*(1+IF(K4="",0,K4))*(1+IF(L4="",0,L4)))^(1/10)-1 -> 0.5847107271
A5: EBT Margin | B5: =IF(INDEX('MorningStar Data'!$A$1:$M$150,MATCH(Analysis!$A$5,'MorningStar Data'!$A$1:$A$150,0),B1+1)/100=0,"",INDEX('MorningStar Data'!$A$1:$M$150,MATCH(Analysis!$A$5,'MorningStar Data'!$A$1:$A$150,0),B1+1)/100) -> 0.1857 | C5: =IF(INDEX('MorningStar Data'!$A$1:$M$150,MATCH(Analysis!$A$5,'MorningStar Data'!$A$1:$A$150,0),C1+1)/100=0,"",INDEX('MorningStar Data'!$A$1:$M$150,MATCH(Analysis!$A$5,'MorningStar Data'!$A$1:$A$150,0),C1+1)/100) -> 0.1833 | D5: =IF(INDEX('MorningStar Data'!$A$1:$M$150,MATCH(Analysis!$A$5,'MorningStar Data'!$A$1:$A$150,0),D1+1)/100=0,"",INDEX('MorningStar Data'!$A$1:$M$150,MATCH(Analysis!$A$5,'MorningStar Data'!$A$1:$A$150,0),D1+1)/100) -> 0.1694 | E5: =IF(INDEX('MorningStar Data'!$A$1:$M$150,MATCH(Analysis!$A$5,'MorningStar Data'!$A$1:$A$150,0),E1+1)/100=0,"",INDEX('MorningStar Data'!$A$1:$M$150,MATCH(Analysis!$A$5,'MorningStar Data'!$A$1:$A$150,0),E1+1)/100) -> 0.1509 | F5: =IF(INDEX('MorningStar Data'!$A$1:$M$150,MATCH(Analysis!$A$5,'MorningStar Data'!$A$1:$A$150,0),F1+1)/100=0,"",INDEX('MorningStar Data'!$A$1:$M$150,MATCH(Analysis!$A$5,'MorningStar Data'!$A$1:$A$150,0),F1+1)/100) -> 0.2076 | G5: =IF(INDEX('MorningStar Data'!$A$1:$M$150,MATCH(Analysis!$A$5,'MorningStar Data'!$A$1:$A$150,0),G1+1)/100=0,"",INDEX('MorningStar Data'!$A$1:$M$150,MATCH(Analysis!$A$5,'MorningStar Data'!$A$1:$A$150,0),G1+1)/100) -> -0.0356 | H5: =IF(INDEX('MorningStar Data'!$A$1:$M$150,MATCH(Analysis!$A$5,'MorningStar Data'!$A$1:$A$150,0),H1+1)/100=0,"",INDEX('MorningStar Data'!$A$1:$M$150,MATCH(Analysis!$A$5,'MorningStar Data'!$A$1:$A$150,0),H1+1)/100) -> 0.255 | I5: =IF(INDEX('MorningStar Data'!$A$1:$M$150,MATCH(Analysis!$A$5,'MorningStar Data'!$A$1:$A$150,0),I1+1)/100=0,"",INDEX('MorningStar Data'!$A$1:$M$150,MATCH(Analysis!$A$5,'MorningStar Data'!$A$1:$A$150,0),I1+1)/100) -> 0.2342 | J5: =IF(INDEX('MorningStar Data'!$A$1:$M$150,MATCH(Analysis!$A$5,'MorningStar Data'!$A$1:$A$150,0),J1+1)/100=0,"",INDEX('MorningStar Data'!$A$1:$M$150,MATCH(Analysis!$A$5,'MorningStar Data'!$A$1:$A$150,0),J1+1)/100) -> 0.2185 | K5: =IF(INDEX('MorningStar Data'!$A$1:$M$150,MATCH(Analysis!$A$5,'MorningStar Data'!$A$1:$A$150,0),K1+1)/100=0,"",INDEX('MorningStar Data'!$A$1:$M$150,MATCH(Analysis!$A$5,'MorningStar Data'!$A$1:$A$150,0),K1+1)/100) -> 0.2096 | L5: =IF(INDEX('MorningStar Data'!$A$1:$M$150,MATCH(Analysis!$A$5,'MorningStar Data'!$A$1:$A$150,0),L1+1)/100=0,"",INDEX('MorningStar Data'!$A$1:$M$150,MATCH(Analysis!$A$5,'MorningStar Data'!$A$1:$A$150,0),L1+1)/100) -> 0.2034 | M5: =AVERAGE(C5:L5) -> 0.17963 | N5: =STDEV(C5:L5) -> 0.08143328626 | O5: =(M5-P5)/M5 -> 0.01551952149 | P5: =((1+IF(C5="",0,C5))*(1+IF(D5="",0,D5))*(1+IF(E5="",0,E5))*(1+IF(F5="",0,F5))*(1+IF(G5="",0,G5))*(1+IF(H5="",0,H5))*(1+IF(I5="",0,I5))*(1+IF(J5="",0,J5))*(1+IF(K5="",0,K5))*(1+IF(L5="",0,L5)))^(1/10)-1 -> 0.1768422284
A6: Operating Margin % | B6: =IF(INDEX('MorningStar Data'!$A$1:$M$150,MATCH(Analysis!$A$6,'MorningStar Data'!$A$1:$A$150,0),B1+1)/100=0,"",INDEX('MorningStar Data'!$A$1:$M$150,MATCH(Analysis!$A$6,'MorningStar Data'!$A$1:$A$150,0),B1+1)/100) -> 0.186 | C6: =IF(INDEX('MorningStar Data'!$A$1:$M$150,MATCH(Analysis!$A$6,'MorningStar Data'!$A$1:$A$150,0),C1+1)/100=0,"",INDEX('MorningStar Data'!$A$1:$M$150,MATCH(Analysis!$A$6,'MorningStar Data'!$A$1:$A$150,0),C1+1)/100) -> 0.183 | D6: =IF(INDEX('MorningStar Data'!$A$1:$M$150,MATCH(Analysis!$A$6,'MorningStar Data'!$A$1:$A$150,0),D1+1)/100=0,"",INDEX('MorningStar Data'!$A$1:$M$150,MATCH(Analysis!$A$6,'MorningStar Data'!$A$1:$A$150,0),D1+1)/100) -> 0.169 | E6: =IF(INDEX('MorningStar Data'!$A$1:$M$150,MATCH(Analysis!$A$6,'MorningStar Data'!$A$1:$A$150,0),E1+1)/100=0,"",INDEX('MorningStar Data'!$A$1:$M$150,MATCH(Analysis!$A$6,'MorningStar Data'!$A$1:$A$150,0),E1+1)/100) -> 0.151 | F6: =IF(INDEX('MorningStar Data'!$A$1:$M$150,MATCH(Analysis!$A$6,'MorningStar Data'!$A$1:$A$150,0),F1+1)/100=0,"",INDEX('MorningStar Data'!$A$1:$M$150,MATCH(Analysis!$A$6,'MorningStar Data'!$A$1:$A$150,0),F1+1)/100) -> 0.208 | G6: =IF(INDEX('MorningStar Data'!$A$1:$M$150,MATCH(Analysis!$A$6,'MorningStar Data'!$A$1:$A$150,0),G1+1)/100=0,"",INDEX('MorningStar Data'!$A$1:$M$150,MATCH(Analysis!$A$6,'MorningStar Data'!$A$1:$A$150,0),G1+1)/100) -> 0.206 | H6: =IF(INDEX('MorningStar Data'!$A$1:$M$150,MATCH(Analysis!$A$6,'MorningStar Data'!$A$1:$A$150,0),H1+1)/100=0,"",INDEX('MorningStar Data'!$A$1:$M$150,MATCH(Analysis!$A$6,'MorningStar Data'!$A$1:$A$150,0),H1+1)/100) -> 0.255 | I6: =IF(INDEX('MorningStar Data'!$A$1:$M$150,MATCH(Analysis!$A$6,'MorningStar Data'!$A$1:$A$150,0),I1+1)/100=0,"",INDEX('MorningStar Data'!$A$1:$M$150,MATCH(Analysis!$A$6,'MorningStar Data'!$A$1:$A$150,0),I1+1)/100) -> 0.234 | J6: =IF(INDEX('MorningStar Data'!$A$1:$M$150,MATCH(Analysis!$A$6,'MorningStar Data'!$A$1:$A$150,0),J1+1)/100=0,"",INDEX('MorningStar Data'!$A$1:$M$150,MATCH(Analysis!$A$6,'MorningStar Data'!$A$1:$A$150,0),J1+1)/100) -> 0.23 | K6: =IF(INDEX('MorningStar Data'!$A$1:$M$150,MATCH(Analysis!$A$6,'MorningStar Data'!$A$1:$A$150,0),K1+1)/100=0,"",INDEX('MorningStar Data'!$A$1:$M$150,MATCH(Analysis!$A$6,'MorningStar Data'!$A$1:$A$150,0),K1+1)/100) -> 0.21 | L6: =IF(INDEX('MorningStar Data'!$A$1:$M$150,MATCH(Analysis!$A$6,'MorningStar Data'!$A$1:$A$150,0),L1+1)/100=0,"",INDEX('MorningStar Data'!$A$1:$M$150,MATCH(Analysis!$A$6,'MorningStar Data'!$A$1:$A$150,0),L1+1)/100) -> 0.203 | M6: 0.2049 | N6: 0.03109287164 | O6: =(M6-P6)/M6 -> 0.001768391042 | P6: =((1+IF(C6="",0,C6))*(1+IF(D6="",0,D6))*(1+IF(E6="",0,E6))*(1+IF(F6="",0,F6))*(1+IF(G6="",0,G6))*(1+IF(H6="",0,H6))*(1+IF(I6="",0,I6))*(1+IF(J6="",0,J6))*(1+IF(K6="",0,K6))*(1+IF(L6="",0,L6)))^(1/10)-1 -> 0.2045376567
A7: Return on Equity % | B7: =IF(INDEX('MorningStar Data'!$A$1:$M$150,MATCH(Analysis!$A$7,'MorningStar Data'!$A$1:$A$150,0),B1+1)/100=0,"",INDEX('MorningStar Data'!$A$1:$M$150,MATCH(Analysis!$A$7,'MorningStar Data'!$A$1:$A$150,0),B1+1)/100) -> 0.67 | C7: =IF(INDEX('MorningStar Data'!$A$1:$M$150,MATCH(Analysis!$A$7,'MorningStar Data'!$A$1:$A$150,0),C1+1)/100=0,"",INDEX('MorningStar Data'!$A$1:$M$150,MATCH(Analysis!$A$7,'MorningStar Data'!$A$1:$A$150,0),C1+1)/100) -> 0.4415 | D7: =IF(INDEX('MorningStar Data'!$A$1:$M$150,MATCH(Analysis!$A$7,'MorningStar Data'!$A$1:$A$150,0),D1+1)/100=0,"",INDEX('MorningStar Data'!$A$1:$M$150,MATCH(Analysis!$A$7,'MorningStar Data'!$A$1:$A$150,0),D1+1)/100) -> 0.5209 | E7: =IF(INDEX('MorningStar Data'!$A$1:$M$150,MATCH(Analysis!$A$7,'MorningStar Data'!$A$1:$A$150,0),E1+1)/100=0,"",INDEX('MorningStar Data'!$A$1:$M$150,MATCH(Analysis!$A$7,'MorningStar Data'!$A$1:$A$150,0),E1+1)/100) -> 0.5308 | F7: =IF(INDEX('MorningStar Data'!$A$1:$M$150,MATCH(Analysis!$A$7,'MorningStar Data'!$A$1:$A$150,0),F1+1)/100=0,"",INDEX('MorningStar Data'!$A$1:$M$150,MATCH(Analysis!$A$7,'MorningStar Data'!$A$1:$A$150,0),F1+1)/100) -> 1.0524 | G7: =IF(INDEX('MorningStar Data'!$A$1:$M$150,MATCH(Analysis!$A$7,'MorningStar Data'!$A$1:$A$150,0),G1+1)/100=0,"",INDEX('MorningStar Data'!$A$1:$M$150,MATCH(Analysis!$A$7,'MorningStar Data'!$A$1:$A$150,0),G1+1)/100) -> 1.4641 | H7: =IF(INDEX('MorningStar Data'!$A$1:$M$150,MATCH(Analysis!$A$7,'MorningStar Data'!$A$1:$A$150,0),H1+1)/100=0,"",INDEX('MorningStar Data'!$A$1:$M$150,MATCH(Analysis!$A$7,'MorningStar Data'!$A$1:$A$150,0),H1+1)/100) -> 1.5807 | I7: =IF(INDEX('MorningStar Data'!$A$1:$M$150,MATCH(Analysis!$A$7,'MorningStar Data'!$A$1:$A$150,0),I1+1)/100=0,"",INDEX('MorningStar Data'!$A$1:$M$150,MATCH(Analysis!$A$7,'MorningStar Data'!$A$1:$A$150,0),I1+1)/100) -> 1.1272 | J7: =IF(INDEX('MorningStar Data'!$A$1:$M$150,MATCH(Analysis!$A$7,'MorningStar Data'!$A$1:$A$150,0),J1+1)/100=0,"",INDEX('MorningStar Data'!$A$1:$M$150,MATCH(Analysis!$A$7,'MorningStar Data'!$A$1:$A$150,0),J1+1)/100) -> 1.0897 | K7: =IF(INDEX('MorningStar Data'!$A$1:$M$150,MATCH(Analysis!$A$7,'MorningStar Data'!$A$1:$A$150,0),K1+1)/100=0,"",INDEX('MorningStar Data'!$A$1:$M$150,MATCH(Analysis!$A$7,'MorningStar Data'!$A$1:$A$150,0),K1+1)/100) -> 1.0741 | L7: =IF(INDEX('MorningStar Data'!$A$1:$M$150,MATCH(Analysis!$A$7,'MorningStar Data'!$A$1:$A$150,0),L1+1)/100=0,"",INDEX('MorningStar Data'!$A$1:$M$150,MATCH(Analysis!$A$7,'MorningStar Data'!$A$1:$A$150,0),L1+1)/100) -> 0.9911 | M7: 0.98725 | N7: 0.3865984257 | O7: =(M7-P7)/M7 -> 0.03547371734 | P7: =((1+IF(C7="",0,C7))*(1+IF(D7="",0,D7))*(1+IF(E7="",0,E7))*(1+IF(F7="",0,F7))*(1+IF(G7="",0,G7))*(1+IF(H7="",0,H7))*(1+IF(I7="",0,I7))*(1+IF(J7="",0,J7))*(1+IF(K7="",0,K7))*(1+IF(L7="",0,L7)))^(1/10)-1 -> 0.9522285726
A8: 1Y rolling growth growth in RoE | D8: =(D7/C7)-1 -> 0.1798414496 | E8: 0.01900556729 | F8: 0.9826676714 | G8: 0.3912010642 | H8: 0.0796393689 | I8: -0.2868982097 | J8: -0.03326827537 | K8: -0.01431586675 | L8: -0.07727399683
A9: 3Y rolling growth RoE | E9: =(E7/C7)^(1/3)-1 -> 0.06332673999 | F9: =(F7/D7)^(1/3)-1 -> 0.264179744 | G9: =(G7/E7)^(1/3)-1 -> 0.4024259595 | H9: =(H7/F7)^(1/3)-1 -> 0.1452216193 | I9: =(I7/G7)^(1/3)-1 -> -0.08347690468 | J9: =(J7/H7)^(1/3)-1 -> -0.1166099583 | K9: =(K7/I7)^(1/3)-1 -> -0.01595586142 | L9: =(L7/J7)^(1/3)-1 -> -0.0311195896
A10: 5Y rolling growth RoE | G10: =(G7/C7)^(1/5)-1 -> 0.270948657 | H10: =(H7/D7)^(1/5)-1 -> 0.2485876047 | I10: =(I7/E7)^(1/5)-1 -> 0.1625563514 | J10: =(J7/F7)^(1/5)-1 -> 0.006990149601 | K10: =(K7/G7)^(1/5)-1 -> -0.06007154989 | L10: =(L7/H7)^(1/5)-1 -> -0.08913586003
A11: 7Y rolling growth RoE | I11: =(I7/C7)^(1/7)-1 -> 0.1432807629 | J11: =(J7/D7)^(1/7)-1 -> 0.1112025456 | K11: =(K7/E7)^(1/7)-1 -> 0.1059373953 | L11: =(L7/F7)^(1/7)-1 -> -0.008536655729
A12: Return on Invested Capital % | B12: =IF(INDEX('MorningStar Data'!$A$1:$M$150,MATCH(Analysis!$A$12,'MorningStar Data'!$A$1:$A$150,0),B1+1)/100=0,"",INDEX('MorningStar Data'!$A$1:$M$150,MATCH(Analysis!$A$12,'MorningStar Data'!$A$1:$A$150,0),B1+1)/100) -> 0.67 | C12: =IF(INDEX('MorningStar Data'!$A$1:$M$150,MATCH(Analysis!$A$12,'MorningStar Data'!$A$1:$A$150,0),C1+1)/100=0,"",INDEX('MorningStar Data'!$A$1:$M$150,MATCH(Analysis!$A$12,'MorningStar Data'!$A$1:$A$150,0),C1+1)/100) -> 0.4227 | D12: =IF(INDEX('MorningStar Data'!$A$1:$M$150,MATCH(Analysis!$A$12,'MorningStar Data'!$A$1:$A$150,0),D1+1)/100=0,"",INDEX('MorningStar Data'!$A$1:$M$150,MATCH(Analysis!$A$12,'MorningStar Data'!$A$1:$A$150,0),D1+1)/100) -> 0.5081 | E12: =IF(INDEX('MorningStar Data'!$A$1:$M$150,MATCH(Analysis!$A$12,'MorningStar Data'!$A$1:$A$150,0),E1+1)/100=0,"",INDEX('MorningStar Data'!$A$1:$M$150,MATCH(Analysis!$A$12,'MorningStar Data'!$A$1:$A$150,0),E1+1)/100) -> 0.5228 | F12: =IF(INDEX('MorningStar Data'!$A$1:$M$150,MATCH(Analysis!$A$12,'MorningStar Data'!$A$1:$A$150,0),F1+1)/100=0,"",INDEX('MorningStar Data'!$A$1:$M$150,MATCH(Analysis!$A$12,'MorningStar Data'!$A$1:$A$150,0),F1+1)/100) -> 1.0319 | G12: =IF(INDEX('MorningStar Data'!$A$1:$M$150,MATCH(Analysis!$A$12,'MorningStar Data'!$A$1:$A$150,0),G1+1)/100=0,"",INDEX('MorningStar Data'!$A$1:$M$150,MATCH(Analysis!$A$12,'MorningStar Data'!$A$1:$A$150,0),G1+1)/100) -> 1.4298 | H12: =IF(INDEX('MorningStar Data'!$A$1:$M$150,MATCH(Analysis!$A$12,'MorningStar Data'!$A$1:$A$150,0),H1+1)/100=0,"",INDEX('MorningStar Data'!$A$1:$M$150,MATCH(Analysis!$A$12,'MorningStar Data'!$A$1:$A$150,0),H1+1)/100) -> 1.5545 | I12: =IF(INDEX('MorningStar Data'!$A$1:$M$150,MATCH(Analysis!$A$12,'MorningStar Data'!$A$1:$A$150,0),I1+1)/100=0,"",INDEX('MorningStar Data'!$A$1:$M$150,MATCH(Analysis!$A$12,'MorningStar Data'!$A$1:$A$150,0),I1+1)/100) -> 1.12 | J12: =IF(INDEX('MorningStar Data'!$A$1:$M$150,MATCH(Analysis!$A$12,'MorningStar Data'!$A$1:$A$150,0),J1+1)/100=0,"",INDEX('MorningStar Data'!$A$1:$M$150,MATCH(Analysis!$A$12,'MorningStar Data'!$A$1:$A$150,0),J1+1)/100) -> 1.0925 | K12: =IF(INDEX('MorningStar Data'!$A$1:$M$150,MATCH(Analysis!$A$12,'MorningStar Data'!$A$1:$A$150,0),K1+1)/100=0,"",INDEX('MorningStar Data'!$A$1:$M$150,MATCH(Analysis!$A$12,'MorningStar Data'!$A$1:$A$150,0),K1+1)/100) -> 1.0741 | L12: =IF(INDEX('MorningStar Data'!$A$1:$M$150,MATCH(Analysis!$A$12,'MorningStar Data'!$A$1:$A$150,0),L1+1)/100=0,"",INDEX('MorningStar Data'!$A$1:$M$150,MATCH(Analysis!$A$12,'MorningStar Data'!$A$1:$A$150,0),L1+1)/100) -> 0.9911 | M12: =AVERAGE(C12:L12) -> 0.97475 | N12: =STDEV(C12:L12) -> 0.3827281143 | O12: =(M12-P12)/M12 -> 0.03570887206 | P12: =((1+IF(C12="",0,C12))*(1+IF(D12="",0,D12))*(1+IF(E12="",0,E12))*(1+IF(F12="",0,F12))*(1+IF(G12="",0,G12))*(1+IF(H12="",0,H12))*(1+IF(I12="",0,I12))*(1+IF(J12="",0,J12))*(1+IF(K12="",0,K12))*(1+IF(L12="",0,L12)))^(1/10)-1 -> 0.939942777
A13: 1Y rolling growth growth in RoIC | D13: =(D12/C12)-1 -> 0.2020345399 | E13: 0.02893131273 | F13: 0.9737949503 | G13: 0.3855993798 | H13: 0.0872149951 | I13: -0.2795110968 | J13: -0.02455357143 | K13: -0.01684210526 | L13: -0.07727399683
A14: 3Y rolling growth ROIC | E14: =(E12/C12)^(1/3)-1 -> 0.07341528958 | F14: =(F12/D12)^(1/3)-1 -> 0.2663763923 | G14: =(G12/E12)^(1/3)-1 -> 0.3984488021 | H14: =(H12/F12)^(1/3)-1 -> 0.1463512388 | I14: =(I12/G12)^(1/3)-1 -> -0.07817692182 | J14: =(J12/H12)^(1/3)-1 -> -0.1109144066 | K14: =(K12/I12)^(1/3)-1 -> -0.01385169791 | L14: =(L12/J12)^(1/3)-1 -> -0.03194802166
A15: 5Y rolling growth ROIC | G15: =(G12/C12)^(1/5)-1 -> 0.2759939317 | H15: =(H12/D12)^(1/5)-1 -> 0.2506284565 | I15: =(I12/E12)^(1/5)-1 -> 0.1645992035 | J15: =(J12/F12)^(1/5)-1 -> 0.01147875806 | K15: =(K12/G12)^(1/5)-1 -> -0.05560455273 | L15: =(L12/H12)^(1/5)-1 -> -0.08608595847
A16: 7Y rolling growth ROIC | I16: =(I12/C12)^(1/7)-1 -> 0.149357438 | J16: =(J12/D12)^(1/7)-1 -> 0.1155679686 | K16: =(K12/E12)^(1/7)-1 -> 0.1083393026 | L16: =(L12/F12)^(1/7)-1 -> -0.00574651166
A17: Return on Assets % | B17: =IF(INDEX('MorningStar Data'!$A$1:$M$150,MATCH(Analysis!$A$17,'MorningStar Data'!$A$1:$A$150,0),B1+1)/100=0,"",INDEX('MorningStar Data'!$A$1:$M$150,MATCH(Analysis!$A$17,'MorningStar Data'!$A$1:$A$150,0),B1+1)/100) -> 0.3121 | C17: =IF(INDEX('MorningStar Data'!$A$1:$M$150,MATCH(Analysis!$A$17,'MorningStar Data'!$A$1:$A$150,0),C1+1)/100=0,"",INDEX('MorningStar Data'!$A$1:$M$150,MATCH(Analysis!$A$17,'MorningStar Data'!$A$1:$A$150,0),C1+1)/100) -> 0.1954 | D17: =IF(INDEX('MorningStar Data'!$A$1:$M$150,MATCH(Analysis!$A$17,'MorningStar Data'!$A$1:$A$150,0),D1+1)/100=0,"",INDEX('MorningStar Data'!$A$1:$M$150,MATCH(Analysis!$A$17,'MorningStar Data'!$A$1:$A$150,0),D1+1)/100) -> 0.229 | E17: =IF(INDEX('MorningStar Data'!$A$1:$M$150,MATCH(Analysis!$A$17,'MorningStar Data'!$A$1:$A$150,0),E1+1)/100=0,"",INDEX('MorningStar Data'!$A$1:$M$150,MATCH(Analysis!$A$17,'MorningStar Data'!$A$1:$A$150,0),E1+1)/100) -> 0.2205 | F17: =IF(INDEX('MorningStar Data'!$A$1:$M$150,MATCH(Analysis!$A$17,'MorningStar Data'!$A$1:$A$150,0),F1+1)/100=0,"",INDEX('MorningStar Data'!$A$1:$M$150,MATCH(Analysis!$A$17,'MorningStar Data'!$A$1:$A$150,0),F1+1)/100) -> 0.3294 | G17: =IF(INDEX('MorningStar Data'!$A$1:$M$150,MATCH(Analysis!$A$17,'MorningStar Data'!$A$1:$A$150,0),G1+1)/100=0,"",INDEX('MorningStar Data'!$A$1:$M$150,MATCH(Analysis!$A$17,'MorningStar Data'!$A$1:$A$150,0),G1+1)/100) -> 0.372 | H17: =IF(INDEX('MorningStar Data'!$A$1:$M$150,MATCH(Analysis!$A$17,'MorningStar Data'!$A$1:$A$150,0),H1+1)/100=0,"",INDEX('MorningStar Data'!$A$1:$M$150,MATCH(Analysis!$A$17,'MorningStar Data'!$A$1:$A$150,0),H1+1)/100) -> 0.5131 | I17: =IF(INDEX('MorningStar Data'!$A$1:$M$150,MATCH(Analysis!$A$17,'MorningStar Data'!$A$1:$A$150,0),I1+1)/100=0,"",INDEX('MorningStar Data'!$A$1:$M$150,MATCH(Analysis!$A$17,'MorningStar Data'!$A$1:$A$150,0),I1+1)/100) -> 0.4211 | J17: =IF(INDEX('MorningStar Data'!$A$1:$M$150,MATCH(Analysis!$A$17,'MorningStar Data'!$A$1:$A$150,0),J1+1)/100=0,"",INDEX('MorningStar Data'!$A$1:$M$150,MATCH(Analysis!$A$17,'MorningStar Data'!$A$1:$A$150,0),J1+1)/100) -> 0.414 | K17: =IF(INDEX('MorningStar Data'!$A$1:$M$150,MATCH(Analysis!$A$17,'MorningStar Data'!$A$1:$A$150,0),K1+1)/100=0,"",INDEX('MorningStar Data'!$A$1:$M$150,MATCH(Analysis!$A$17,'MorningStar Data'!$A$1:$A$150,0),K1+1)/100) -> 0.4078 | L17: =IF(INDEX('MorningStar Data'!$A$1:$M$150,MATCH(Analysis!$A$17,'MorningStar Data'!$A$1:$A$150,0),L1+1)/100=0,"",INDEX('MorningStar Data'!$A$1:$M$150,MATCH(Analysis!$A$17,'MorningStar Data'!$A$1:$A$150,0),L1+1)/100) -> 0.3862 | M17: =AVERAGE(C17:L17) -> 0.34885 | N17: =STDEV(C17:L17) -> 0.1036080461 | O17: =(M17-P17)/M17 -> 0.01041619877 | P17: =((1+IF(C17="",0,C17))*(1+IF(D17="",0,D17))*(1+IF(E17="",0,E17))*(1+IF(F17="",0,F17))*(1+IF(G17="",0,G17))*(1+IF(H17="",0,H17))*(1+IF(I17="",0,I17))*(1+IF(J17="",0,J17))*(1+IF(K17="",0,K17))*(1+IF(L17="",0,L17)))^(1/10)-1 -> 0.3452163091
B18: =B2 -> TTM | C18: =C2 -> 2005 | D18: 2006 | E18: 2007 | F18: 2008 | G18: 2009 | H18: 2010 | I18: 2011 | J18: 2012 | K18: 2013 | L18: 2014 | M18: Average | N18: Std Dev | O18: Inconsistency measure* | P18: Geometric average*
A19: Shares Mil | B19: =IF(INDEX('MorningStar Data'!$A$1:$M$150,MATCH(Analysis!$A$19,'MorningStar Data'!$A$1:$A$150,0),B1+1)=0,"",INDEX('MorningStar Data'!$A$1:$M$150,MATCH(Analysis!$A$19,'MorningStar Data'!$A$1:$A$150,0),B1+1)) ->  | C19: =IF(INDEX('MorningStar Data'!$A$1:$M$150,MATCH(Analysis!$A$19,'MorningStar Data'!$A$1:$A$150,0),C1+1)=0,"",INDEX('MorningStar Data'!$A$1:$M$150,MATCH(Analysis!$A$19,'MorningStar Data'!$A$1:$A$150,0),C1+1)) -> 136 | D19: =IF(INDEX('MorningStar Data'!$A$1:$M$150,MATCH(Analysis!$A$19,'MorningStar Data'!$A$1:$A$150,0),D1+1)=0,"",INDEX('MorningStar Data'!$A$1:$M$150,MATCH(Analysis!$A$19,'MorningStar Data'!$A$1:$A$150,0),D1+1)) -> 136 | E19: =IF(INDEX('MorningStar Data'!$A$1:$M$150,MATCH(Analysis!$A$19,'MorningStar Data'!$A$1:$A$150,0),E1+1)=0,"",INDEX('MorningStar Data'!$A$1:$M$150,MATCH(Analysis!$A$19,'MorningStar Data'!$A$1:$A$150,0),E1+1)) -> 136 | F19: =IF(INDEX('MorningStar Data'!$A$1:$M$150,MATCH(Analysis!$A$19,'MorningStar Data'!$A$1:$A$150,0),F1+1)=0,"",INDEX('MorningStar Data'!$A$1:$M$150,MATCH(Analysis!$A$19,'MorningStar Data'!$A$1:$A$150,0),F1+1)) -> 136 | G19: =IF(INDEX('MorningStar Data'!$A$1:$M$150,MATCH(Analysis!$A$19,'MorningStar Data'!$A$1:$A$150,0),G1+1)=0,"",INDEX('MorningStar Data'!$A$1:$M$150,MATCH(Analysis!$A$19,'MorningStar Data'!$A$1:$A$150,0),G1+1)) -> 136 | H19: =IF(INDEX('MorningStar Data'!$A$1:$M$150,MATCH(Analysis!$A$19,'MorningStar Data'!$A$1:$A$150,0),H1+1)=0,"",INDEX('MorningStar Data'!$A$1:$M$150,MATCH(Analysis!$A$19,'MorningStar Data'!$A$1:$A$150,0),H1+1)) -> 136 | I19: =IF(INDEX('MorningStar Data'!$A$1:$M$150,MATCH(Analysis!$A$19,'MorningStar Data'!$A$1:$A$150,0),I1+1)=0,"",INDEX('MorningStar Data'!$A$1:$M$150,MATCH(Analysis!$A$19,'MorningStar Data'!$A$1:$A$150,0),I1+1)) -> 136 | J19: =IF(INDEX('MorningStar Data'!$A$1:$M$150,MATCH(Analysis!$A$19,'MorningStar Data'!$A$1:$A$150,0),J1+1)=0,"",INDEX('MorningStar Data'!$A$1:$M$150,MATCH(Analysis!$A$19,'MorningStar Data'!$A$1:$A$150,0),J1+1)) -> 136 | K19: =IF(INDEX('MorningStar Data'!$A$1:$M$150,MATCH(Analysis!$A$19,'MorningStar Data'!$A$1:$A$150,0),K1+1)=0,"",INDEX('MorningStar Data'!$A$1:$M$150,MATCH(Analysis!$A$19,'MorningStar Data'!$A$1:$A$150,0),K1+1)) -> 136 | L19: =IF(INDEX('MorningStar Data'!$A$1:$M$150,MATCH(Analysis!$A$19,'MorningStar Data'!$A$1:$A$150,0),L1+1)=0,"",INDEX('MorningStar Data'!$A$1:$M$150,MATCH(Analysis!$A$19,'MorningStar Data'!$A$1:$A$150,0),L1+1)) -> 136
A20: =INDEX('MorningStar Data'!A1:A250,MATCH("Net Income"& "*",'MorningStar Data'!A1:A250,0),1) -> Net Income INR Mil | B20: =IF(INDEX('MorningStar Data'!$A$1:$M$150,MATCH(Analysis!$A$20,'MorningStar Data'!$A$1:$A$150,0),B1+1)=0,"",INDEX('MorningStar Data'!$A$1:$M$150,MATCH(Analysis!$A$20,'MorningStar Data'!$A$1:$A$150,0),B1+1)) -> 5096 | C20: =IF(INDEX('MorningStar Data'!$A$1:$M$150,MATCH(Analysis!$A$20,'MorningStar Data'!$A$1:$A$150,0),C1+1)=0,"",INDEX('MorningStar Data'!$A$1:$M$150,MATCH(Analysis!$A$20,'MorningStar Data'!$A$1:$A$150,0),C1+1)) -> 1124 | D20: =IF(INDEX('MorningStar Data'!$A$1:$M$150,MATCH(Analysis!$A$20,'MorningStar Data'!$A$1:$A$150,0),D1+1)=0,"",INDEX('MorningStar Data'!$A$1:$M$150,MATCH(Analysis!$A$20,'MorningStar Data'!$A$1:$A$150,0),D1+1)) -> 1400 | E20: =IF(INDEX('MorningStar Data'!$A$1:$M$150,MATCH(Analysis!$A$20,'MorningStar Data'!$A$1:$A$150,0),E1+1)=0,"",INDEX('MorningStar Data'!$A$1:$M$150,MATCH(Analysis!$A$20,'MorningStar Data'!$A$1:$A$150,0),E1+1)) -> 1484 | F20: =IF(INDEX('MorningStar Data'!$A$1:$M$150,MATCH(Analysis!$A$20,'MorningStar Data'!$A$1:$A$150,0),F1+1)=0,"",INDEX('MorningStar Data'!$A$1:$M$150,MATCH(Analysis!$A$20,'MorningStar Data'!$A$1:$A$150,0),F1+1)) -> 2358 | G20: =IF(INDEX('MorningStar Data'!$A$1:$M$150,MATCH(Analysis!$A$20,'MorningStar Data'!$A$1:$A$150,0),G1+1)=0,"",INDEX('MorningStar Data'!$A$1:$M$150,MATCH(Analysis!$A$20,'MorningStar Data'!$A$1:$A$150,0),G1+1)) -> 2858 | H20: =IF(INDEX('MorningStar Data'!$A$1:$M$150,MATCH(Analysis!$A$20,'MorningStar Data'!$A$1:$A$150,0),H1+1)=0,"",INDEX('MorningStar Data'!$A$1:$M$150,MATCH(Analysis!$A$20,'MorningStar Data'!$A$1:$A$150,0),H1+1)) -> 4356 | I20: =IF(INDEX('MorningStar Data'!$A$1:$M$150,MATCH(Analysis!$A$20,'MorningStar Data'!$A$1:$A$150,0),I1+1)=0,"",INDEX('MorningStar Data'!$A$1:$M$150,MATCH(Analysis!$A$20,'MorningStar Data'!$A$1:$A$150,0),I1+1)) -> 4026 | J20: =IF(INDEX('MorningStar Data'!$A$1:$M$150,MATCH(Analysis!$A$20,'MorningStar Data'!$A$1:$A$150,0),J1+1)=0,"",INDEX('MorningStar Data'!$A$1:$M$150,MATCH(Analysis!$A$20,'MorningStar Data'!$A$1:$A$150,0),J1+1)) -> 4465 | K20: =IF(INDEX('MorningStar Data'!$A$1:$M$150,MATCH(Analysis!$A$20,'MorningStar Data'!$A$1:$A$150,0),K1+1)=0,"",INDEX('MorningStar Data'!$A$1:$M$150,MATCH(Analysis!$A$20,'MorningStar Data'!$A$1:$A$150,0),K1+1)) -> 4968 | L20: =IF(INDEX('MorningStar Data'!$A$1:$M$150,MATCH(Analysis!$A$20,'MorningStar Data'!$A$1:$A$150,0),L1+1)=0,"",INDEX('MorningStar Data'!$A$1:$M$150,MATCH(Analysis!$A$20,'MorningStar Data'!$A$1:$A$150,0),L1+1)) -> 5399 | M20: 3243.8 | N20: 1594.484856 | O20: =(M20-P20)/M20 -> 0.1272425979 | P20: =((1+IF(C20="",0,C20))*(1+IF(D20="",0,D20))*(1+IF(E20="",0,E20))*(1+IF(F20="",0,F20))*(1+IF(G20="",0,G20))*(1+IF(H20="",0,H20))*(1+IF(I20="",0,I20))*(1+IF(J20="",0,J20))*(1+IF(K20="",0,K20))*(1+IF(L20="",0,L20)))^(1/10)-1 -> 2831.050461
A21: =INDEX('MorningStar Data'!A1:A250,MATCH("Earnings Per Share"& "*",'MorningStar Data'!A1:A250,0),1) -> Earnings Per Share INR | B21: =IF(INDEX('MorningStar Data'!$A$1:$M$150,MATCH(Analysis!$A$21,'MorningStar Data'!$A$1:$A$150,0),B1+1)=0,"",INDEX('MorningStar Data'!$A$1:$M$150,MATCH(Analysis!$A$21,'MorningStar Data'!$A$1:$A$150,0),B1+1)) -> 37.48 | C21: =IF(INDEX('MorningStar Data'!$A$1:$M$150,MATCH(Analysis!$A$21,'MorningStar Data'!$A$1:$A$150,0),C1+1)=0,"",INDEX('MorningStar Data'!$A$1:$M$150,MATCH(Analysis!$A$21,'MorningStar Data'!$A$1:$A$150,0),C1+1)) -> 8.27 | D21: =IF(INDEX('MorningStar Data'!$A$1:$M$150,MATCH(Analysis!$A$21,'MorningStar Data'!$A$1:$A$150,0),D1+1)=0,"",INDEX('MorningStar Data'!$A$1:$M$150,MATCH(Analysis!$A$21,'MorningStar Data'!$A$1:$A$150,0),D1+1)) -> 10.3 | E21: =IF(INDEX('MorningStar Data'!$A$1:$M$150,MATCH(Analysis!$A$21,'MorningStar Data'!$A$1:$A$150,0),E1+1)=0,"",INDEX('MorningStar Data'!$A$1:$M$150,MATCH(Analysis!$A$21,'MorningStar Data'!$A$1:$A$150,0),E1+1)) -> 10.91 | F21: =IF(INDEX('MorningStar Data'!$A$1:$M$150,MATCH(Analysis!$A$21,'MorningStar Data'!$A$1:$A$150,0),F1+1)=0,"",INDEX('MorningStar Data'!$A$1:$M$150,MATCH(Analysis!$A$21,'MorningStar Data'!$A$1:$A$150,0),F1+1)) -> 17.34 | G21: =IF(INDEX('MorningStar Data'!$A$1:$M$150,MATCH(Analysis!$A$21,'MorningStar Data'!$A$1:$A$150,0),G1+1)=0,"",INDEX('MorningStar Data'!$A$1:$M$150,MATCH(Analysis!$A$21,'MorningStar Data'!$A$1:$A$150,0),G1+1)) -> 21.01 | H21: =IF(INDEX('MorningStar Data'!$A$1:$M$150,MATCH(Analysis!$A$21,'MorningStar Data'!$A$1:$A$150,0),H1+1)=0,"",INDEX('MorningStar Data'!$A$1:$M$150,MATCH(Analysis!$A$21,'MorningStar Data'!$A$1:$A$150,0),H1+1)) -> 31.92 | I21: =IF(INDEX('MorningStar Data'!$A$1:$M$150,MATCH(Analysis!$A$21,'MorningStar Data'!$A$1:$A$150,0),I1+1)=0,"",INDEX('MorningStar Data'!$A$1:$M$150,MATCH(Analysis!$A$21,'MorningStar Data'!$A$1:$A$150,0),I1+1)) -> 29.6 | J21: =IF(INDEX('MorningStar Data'!$A$1:$M$150,MATCH(Analysis!$A$21,'MorningStar Data'!$A$1:$A$150,0),J1+1)=0,"",INDEX('MorningStar Data'!$A$1:$M$150,MATCH(Analysis!$A$21,'MorningStar Data'!$A$1:$A$150,0),J1+1)) -> 32.83 | K21: =IF(INDEX('MorningStar Data'!$A$1:$M$150,MATCH(Analysis!$A$21,'MorningStar Data'!$A$1:$A$150,0),K1+1)=0,"",INDEX('MorningStar Data'!$A$1:$M$150,MATCH(Analysis!$A$21,'MorningStar Data'!$A$1:$A$150,0),K1+1)) -> 36.53 | L21: =IF(INDEX('MorningStar Data'!$A$1:$M$150,MATCH(Analysis!$A$21,'MorningStar Data'!$A$1:$A$150,0),L1+1)=0,"",INDEX('MorningStar Data'!$A$1:$M$150,MATCH(Analysis!$A$21,'MorningStar Data'!$A$1:$A$150,0),L1+1)) -> 39.7 | M21: =AVERAGE(C21:L21) -> 23.841 | N21: =STDEV(C21:L21) -> 11.71447391 | O21: 0.1203708202 | P21: 20.97123928
A22: =INDEX('MorningStar Data'!A1:A250,MATCH("Dividends"& "*",'MorningStar Data'!A1:A250,0),1) -> Dividends INR | B22: =IF(INDEX('MorningStar Data'!$A$1:$M$150,MATCH(Analysis!$A$22,'MorningStar Data'!$A$1:$A$150,0),B1+1)=0,"",INDEX('MorningStar Data'!$A$1:$M$150,MATCH(Analysis!$A$22,'MorningStar Data'!$A$1:$A$150,0),B1+1)) -> 35 | C22: =IF(INDEX('MorningStar Data'!$A$1:$M$150,MATCH(Analysis!$A$22,'MorningStar Data'!$A$1:$A$150,0),C1+1)=0,"",INDEX('MorningStar Data'!$A$1:$M$150,MATCH(Analysis!$A$22,'MorningStar Data'!$A$1:$A$150,0),C1+1)) ->  | D22: =IF(INDEX('MorningStar Data'!$A$1:$M$150,MATCH(Analysis!$A$22,'MorningStar Data'!$A$1:$A$150,0),D1+1)=0,"",INDEX('MorningStar Data'!$A$1:$M$150,MATCH(Analysis!$A$22,'MorningStar Data'!$A$1:$A$150,0),D1+1)) ->  | E22: =IF(INDEX('MorningStar Data'!$A$1:$M$150,MATCH(Analysis!$A$22,'MorningStar Data'!$A$1:$A$150,0),E1+1)=0,"",INDEX('MorningStar Data'!$A$1:$M$150,MATCH(Analysis!$A$22,'MorningStar Data'!$A$1:$A$150,0),E1+1)) ->  | F22: =IF(INDEX('MorningStar Data'!$A$1:$M$150,MATCH(Analysis!$A$22,'MorningStar Data'!$A$1:$A$150,0),F1+1)=0,"",INDEX('MorningStar Data'!$A$1:$M$150,MATCH(Analysis!$A$22,'MorningStar Data'!$A$1:$A$150,0),F1+1)) ->  | G22: =IF(INDEX('MorningStar Data'!$A$1:$M$150,MATCH(Analysis!$A$22,'MorningStar Data'!$A$1:$A$150,0),G1+1)=0,"",INDEX('MorningStar Data'!$A$1:$M$150,MATCH(Analysis!$A$22,'MorningStar Data'!$A$1:$A$150,0),G1+1)) -> 16 | H22: =IF(INDEX('MorningStar Data'!$A$1:$M$150,MATCH(Analysis!$A$22,'MorningStar Data'!$A$1:$A$150,0),H1+1)=0,"",INDEX('MorningStar Data'!$A$1:$M$150,MATCH(Analysis!$A$22,'MorningStar Data'!$A$1:$A$150,0),H1+1)) -> 21 | I22: =IF(INDEX('MorningStar Data'!$A$1:$M$150,MATCH(Analysis!$A$22,'MorningStar Data'!$A$1:$A$150,0),I1+1)=0,"",INDEX('MorningStar Data'!$A$1:$M$150,MATCH(Analysis!$A$22,'MorningStar Data'!$A$1:$A$150,0),I1+1)) -> 27 | J22: =IF(INDEX('MorningStar Data'!$A$1:$M$150,MATCH(Analysis!$A$22,'MorningStar Data'!$A$1:$A$150,0),J1+1)=0,"",INDEX('MorningStar Data'!$A$1:$M$150,MATCH(Analysis!$A$22,'MorningStar Data'!$A$1:$A$150,0),J1+1)) -> 25 | K22: =IF(INDEX('MorningStar Data'!$A$1:$M$150,MATCH(Analysis!$A$22,'MorningStar Data'!$A$1:$A$150,0),K1+1)=0,"",INDEX('MorningStar Data'!$A$1:$M$150,MATCH(Analysis!$A$22,'MorningStar Data'!$A$1:$A$150,0),K1+1)) -> 28 | L22: =IF(INDEX('MorningStar Data'!$A$1:$M$150,MATCH(Analysis!$A$22,'MorningStar Data'!$A$1:$A$150,0),L1+1)=0,"",INDEX('MorningStar Data'!$A$1:$M$150,MATCH(Analysis!$A$22,'MorningStar Data'!$A$1:$A$150,0),L1+1)) -> 27 | M22: 24 | N22: 4.647580015 | O22: 0.7570602683 | P22: 5.83055356
A23: Payout Ratio % | B23: =IF(INDEX('MorningStar Data'!$A$1:$M$150,MATCH(Analysis!$A$23,'MorningStar Data'!$A$1:$A$150,0),B1+1)=0,"",INDEX('MorningStar Data'!$A$1:$M$150,MATCH(Analysis!$A$23,'MorningStar Data'!$A$1:$A$150,0),B1+1)/100) -> 0.934 | C23: =IF(INDEX('MorningStar Data'!$A$1:$M$150,MATCH(Analysis!$A$23,'MorningStar Data'!$A$1:$A$150,0),C1+1)=0,"",INDEX('MorningStar Data'!$A$1:$M$150,MATCH(Analysis!$A$23,'MorningStar Data'!$A$1:$A$150,0),C1+1)/100) ->  | D23: =IF(INDEX('MorningStar Data'!$A$1:$M$150,MATCH(Analysis!$A$23,'MorningStar Data'!$A$1:$A$150,0),D1+1)=0,"",INDEX('MorningStar Data'!$A$1:$M$150,MATCH(Analysis!$A$23,'MorningStar Data'!$A$1:$A$150,0),D1+1)/100) ->  | E23: =IF(INDEX('MorningStar Data'!$A$1:$M$150,MATCH(Analysis!$A$23,'MorningStar Data'!$A$1:$A$150,0),E1+1)=0,"",INDEX('MorningStar Data'!$A$1:$M$150,MATCH(Analysis!$A$23,'MorningStar Data'!$A$1:$A$150,0),E1+1)/100) ->  | F23: =IF(INDEX('MorningStar Data'!$A$1:$M$150,MATCH(Analysis!$A$23,'MorningStar Data'!$A$1:$A$150,0),F1+1)=0,"",INDEX('MorningStar Data'!$A$1:$M$150,MATCH(Analysis!$A$23,'MorningStar Data'!$A$1:$A$150,0),F1+1)/100) ->  | G23: =IF(INDEX('MorningStar Data'!$A$1:$M$150,MATCH(Analysis!$A$23,'MorningStar Data'!$A$1:$A$150,0),G1+1)=0,"",INDEX('MorningStar Data'!$A$1:$M$150,MATCH(Analysis!$A$23,'MorningStar Data'!$A$1:$A$150,0),G1+1)/100) -> 0.761 | H23: =IF(INDEX('MorningStar Data'!$A$1:$M$150,MATCH(Analysis!$A$23,'MorningStar Data'!$A$1:$A$150,0),H1+1)=0,"",INDEX('MorningStar Data'!$A$1:$M$150,MATCH(Analysis!$A$23,'MorningStar Data'!$A$1:$A$150,0),H1+1)/100) -> 0.658 | I23: =IF(INDEX('MorningStar Data'!$A$1:$M$150,MATCH(Analysis!$A$23,'MorningStar Data'!$A$1:$A$150,0),I1+1)=0,"",INDEX('MorningStar Data'!$A$1:$M$150,MATCH(Analysis!$A$23,'MorningStar Data'!$A$1:$A$150,0),I1+1)/100) -> 0.912 | J23: =IF(INDEX('MorningStar Data'!$A$1:$M$150,MATCH(Analysis!$A$23,'MorningStar Data'!$A$1:$A$150,0),J1+1)=0,"",INDEX('MorningStar Data'!$A$1:$M$150,MATCH(Analysis!$A$23,'MorningStar Data'!$A$1:$A$150,0),J1+1)/100) -> 0.761 | K23: =IF(INDEX('MorningStar Data'!$A$1:$M$150,MATCH(Analysis!$A$23,'MorningStar Data'!$A$1:$A$150,0),K1+1)=0,"",INDEX('MorningStar Data'!$A$1:$M$150,MATCH(Analysis!$A$23,'MorningStar Data'!$A$1:$A$150,0),K1+1)/100) -> 0.766 | L23: =IF(INDEX('MorningStar Data'!$A$1:$M$150,MATCH(Analysis!$A$23,'MorningStar Data'!$A$1:$A$150,0),L1+1)=0,"",INDEX('MorningStar Data'!$A$1:$M$150,MATCH(Analysis!$A$23,'MorningStar Data'!$A$1:$A$150,0),L1+1)/100) -> 0.68 | M23: =AVERAGE(C23:L23) -> 0.7563333333 | N23: =STDEV(C23:L23) -> 0.08929203025 | O23: 0.4695930555 | P23: 0.4011644524
A24: Diluted Earnings Per Share* | C24: =IF(ISERROR(C20/C19),"",IF(C20/C19=0,"",C20/C19)) -> 8.264705882 | D24: =IF(ISERROR(D20/D19),"",IF(D20/D19=0,"",D20/D19)) -> 10.29411765 | E24: 10.91176471 | F24: 17.33823529 | G24: 21.01470588 | H24: 32.02941176 | I24: 29.60294118 | J24: 32.83088235 | K24: 36.52941176 | L24: 39.69852941 | M24: 23.85147059 | N24: 11.72415335 | O24: 0.1205209181 | P24: 20.97686946
A25: 1Y rolling growth growth in Diluted EPS | D25: =(D24/C24)-1 -> 0.2455516014 | E25: 0.06 | F25: 0.5889487871 | G25: 0.2120441052 | H25: 0.5241427572 | I25: -0.07575757576 | J25: 0.109041232 | K25: 0.1126539754 | L25: 0.08675523349 | M25: =AVERAGE(C25:L25) -> 0.2070422351 | N25: =STDEV(C25:L25) -> 0.2186586382 | O25: 0.1793169312 | P25: 0.1699160569
A26: 3Y rolling growth diluted EPS | E26: =(E24/C24)^(1/3)-1 -> 0.097040169 | F26: =(F24/D24)^(1/3)-1 -> 0.1897944033 | G26: 0.2441596369 | H26: 0.2270097775 | I26: 0.120995447 | J26: 0.008272364895 | K26: 0.07259542169 | L26: 0.06536221108
A27: 5Y rolling growth diluted EPS | G27: =(G24/C24)^(1/5)-1 -> 0.2052001655 | H27: =(H24/D24)^(1/5)-1 -> 0.2548504394 | I27: 0.2209221532 | J27: 0.1362019557 | K27: 0.1169246418 | L27: 0.04386681474
A28: 7Y rolling growth diluted EPS | I28: =(I24/C24)^(1/7)-1 -> 0.1999363465 | J28: =(J24/D24)^(1/7)-1 -> 0.1802016132 | K28: 0.1884035903 | L28: 0.1256299673
A29: Book Value Per Share INR | B29: =IF(INDEX('MorningStar Data'!$A$1:$M$150,MATCH(Analysis!$A$29,'MorningStar Data'!$A$1:$A$150,0),B1+1)=0,"",INDEX('MorningStar Data'!$A$1:$M$150,MATCH(Analysis!$A$29,'MorningStar Data'!$A$1:$A$150,0),B1+1)) -> 54.19 | C29: =IF(INDEX('MorningStar Data'!$A$1:$M$150,MATCH(Analysis!$A$29,'MorningStar Data'!$A$1:$A$150,0),C1+1)=0,"",INDEX('MorningStar Data'!$A$1:$M$150,MATCH(Analysis!$A$29,'MorningStar Data'!$A$1:$A$150,0),C1+1)) ->  | D29: =IF(INDEX('MorningStar Data'!$A$1:$M$150,MATCH(Analysis!$A$29,'MorningStar Data'!$A$1:$A$150,0),D1+1)=0,"",INDEX('MorningStar Data'!$A$1:$M$150,MATCH(Analysis!$A$29,'MorningStar Data'!$A$1:$A$150,0),D1+1)) ->  | E29: =IF(INDEX('MorningStar Data'!$A$1:$M$150,MATCH(Analysis!$A$29,'MorningStar Data'!$A$1:$A$150,0),E1+1)=0,"",INDEX('MorningStar Data'!$A$1:$M$150,MATCH(Analysis!$A$29,'MorningStar Data'!$A$1:$A$150,0),E1+1)) ->  | F29: =IF(INDEX('MorningStar Data'!$A$1:$M$150,MATCH(Analysis!$A$29,'MorningStar Data'!$A$1:$A$150,0),F1+1)=0,"",INDEX('MorningStar Data'!$A$1:$M$150,MATCH(Analysis!$A$29,'MorningStar Data'!$A$1:$A$150,0),F1+1)) -> 12.6 | G29: =IF(INDEX('MorningStar Data'!$A$1:$M$150,MATCH(Analysis!$A$29,'MorningStar Data'!$A$1:$A$150,0),G1+1)=0,"",INDEX('MorningStar Data'!$A$1:$M$150,MATCH(Analysis!$A$29,'MorningStar Data'!$A$1:$A$150,0),G1+1)) -> 16.1 | H29: =IF(INDEX('MorningStar Data'!$A$1:$M$150,MATCH(Analysis!$A$29,'MorningStar Data'!$A$1:$A$150,0),H1+1)=0,"",INDEX('MorningStar Data'!$A$1:$M$150,MATCH(Analysis!$A$29,'MorningStar Data'!$A$1:$A$150,0),H1+1)) -> 23.98 | I29: =IF(INDEX('MorningStar Data'!$A$1:$M$150,MATCH(Analysis!$A$29,'MorningStar Data'!$A$1:$A$150,0),I1+1)=0,"",INDEX('MorningStar Data'!$A$1:$M$150,MATCH(Analysis!$A$29,'MorningStar Data'!$A$1:$A$150,0),I1+1)) -> 28.24 | J29: =IF(INDEX('MorningStar Data'!$A$1:$M$150,MATCH(Analysis!$A$29,'MorningStar Data'!$A$1:$A$150,0),J1+1)=0,"",INDEX('MorningStar Data'!$A$1:$M$150,MATCH(Analysis!$A$29,'MorningStar Data'!$A$1:$A$150,0),J1+1)) -> 32.02 | K29: =IF(INDEX('MorningStar Data'!$A$1:$M$150,MATCH(Analysis!$A$29,'MorningStar Data'!$A$1:$A$150,0),K1+1)=0,"",INDEX('MorningStar Data'!$A$1:$M$150,MATCH(Analysis!$A$29,'MorningStar Data'!$A$1:$A$150,0),K1+1)) -> 36 | L29: =IF(INDEX('MorningStar Data'!$A$1:$M$150,MATCH(Analysis!$A$29,'MorningStar Data'!$A$1:$A$150,0),L1+1)=0,"",INDEX('MorningStar Data'!$A$1:$M$150,MATCH(Analysis!$A$29,'MorningStar Data'!$A$1:$A$150,0),L1+1)) -> 44.11 | M29: 27.57857143 | N29: 11.05619951 | O29: =(M29-P29)/M29 -> 0.6760433073 | P29: =((1+IF(C29="",0,C29))*(1+IF(D29="",0,D29))*(1+IF(E29="",0,E29))*(1+IF(F29="",0,F29))*(1+IF(G29="",0,G29))*(1+IF(H29="",0,H29))*(1+IF(I29="",0,I29))*(1+IF(J29="",0,J29))*(1+IF(K29="",0,K29))*(1+IF(L29="",0,L29)))^(1/10)-1 -> 8.934262789
A30: 1Y rolling growth growth in BV per share | D30: =IF(ISERROR((D29/C29)-1),"",(D29/C29)-1) ->  | G30: 0.2777777778 | H30: 0.4894409938 | I30: 0.17764804 | J30: 0.1338526912 | K30: 0.1242973142 | L30: 0.2252777778 | M30: =AVERAGE(C30:L30) -> 0.2380490991 | N30: =STDEV(C30:L30) -> 0.1359293987 | O30: =(M30-P30)/M30 -> 0.4392447541 | P30: =((1+IF(C30="",0,C30))*(1+IF(D30="",0,D30))*(1+IF(E30="",0,E30))*(1+IF(F30="",0,F30))*(1+IF(G30="",0,G30))*(1+IF(H30="",0,H30))*(1+IF(I30="",0,I30))*(1+IF(J30="",0,J30))*(1+IF(K30="",0,K30))*(1+IF(L30="",0,L30)))^(1/10)-1 -> 0.1334872811
A31: 3Y rolling growth diluted BV per share | E31: =(E29/C29)^(1/3)-1 ->  | F31: =(F29/D29)^(1/3)-1 ->  | G31: =(G29/E29)^(1/3)-1 ->  | H31: =(H29/F29)^(1/3)-1 -> 0.2392517605 | I31: =(I29/G29)^(1/3)-1 -> 0.205997124 | J31: =(J29/H29)^(1/3)-1 -> 0.1011776367 | K31: =(K29/I29)^(1/3)-1 -> 0.08429120757 | L31: =(L29/J29)^(1/3)-1 -> 0.1126841716
A32: 5Y rolling growth diluted BV per share | G32: =(G29/C29)^(1/5)-1 ->  | H32: =(H29/D29)^(1/5)-1 ->  | I32: =(I29/E29)^(1/5)-1 ->  | J32: =(J29/F29)^(1/5)-1 -> 0.2050641219 | K32: =(K29/G29)^(1/5)-1 -> 0.1746144115 | L32: =(L29/H29)^(1/5)-1 -> 0.1296335328
A33: 7Y rolling growth diluted BV per share | I33: =(I29/C29)^(1/7)-1 ->  | J33: =(J29/D29)^(1/7)-1 ->  | K33: =(K29/E29)^(1/7)-1 ->  | L33: =(L29/F29)^(1/7)-1 -> 0.1960189843
B34: =B18 -> TTM | C34: 2005 | D34: 2006 | E34: 2007 | F34: 2008 | G34: 2009 | H34: 2010 | I34: 2011 | J34: 2012 | K34: 2013 | L34: 2014 | M34: Average | N34: Std Dev | O34: Inconsistency measure* | P34: =P18 -> Geometric average*
A35: EBT Margin | B35: =IF(INDEX('MorningStar Data'!$A$1:$M$150,MATCH(Analysis!$A$35,'MorningStar Data'!$A$1:$A$150,0),B1+1)=0,"",INDEX('MorningStar Data'!$A$1:$M$150,MATCH(Analysis!$A$35,'MorningStar Data'!$A$1:$A$150,0),B1+1)) -> 18.57 | C35: =IF(INDEX('MorningStar Data'!$A$1:$M$150,MATCH(Analysis!$A$35,'MorningStar Data'!$A$1:$A$150,0),C1+1)=0,"",INDEX('MorningStar Data'!$A$1:$M$150,MATCH(Analysis!$A$35,'MorningStar Data'!$A$1:$A$150,0),C1+1)) -> 18.33 | D35: =IF(INDEX('MorningStar Data'!$A$1:$M$150,MATCH(Analysis!$A$35,'MorningStar Data'!$A$1:$A$150,0),D1+1)=0,"",INDEX('MorningStar Data'!$A$1:$M$150,MATCH(Analysis!$A$35,'MorningStar Data'!$A$1:$A$150,0),D1+1)) -> 16.94 | E35: =IF(INDEX('MorningStar Data'!$A$1:$M$150,MATCH(Analysis!$A$35,'MorningStar Data'!$A$1:$A$150,0),E1+1)=0,"",INDEX('MorningStar Data'!$A$1:$M$150,MATCH(Analysis!$A$35,'MorningStar Data'!$A$1:$A$150,0),E1+1)) -> 15.09 | F35: =IF(INDEX('MorningStar Data'!$A$1:$M$150,MATCH(Analysis!$A$35,'MorningStar Data'!$A$1:$A$150,0),F1+1)=0,"",INDEX('MorningStar Data'!$A$1:$M$150,MATCH(Analysis!$A$35,'MorningStar Data'!$A$1:$A$150,0),F1+1)) -> 20.76 | G35: =IF(INDEX('MorningStar Data'!$A$1:$M$150,MATCH(Analysis!$A$35,'MorningStar Data'!$A$1:$A$150,0),G1+1)=0,"",INDEX('MorningStar Data'!$A$1:$M$150,MATCH(Analysis!$A$35,'MorningStar Data'!$A$1:$A$150,0),G1+1)) -> -3.56 | H35: =IF(INDEX('MorningStar Data'!$A$1:$M$150,MATCH(Analysis!$A$35,'MorningStar Data'!$A$1:$A$150,0),H1+1)=0,"",INDEX('MorningStar Data'!$A$1:$M$150,MATCH(Analysis!$A$35,'MorningStar Data'!$A$1:$A$150,0),H1+1)) -> 25.5 | I35: =IF(INDEX('MorningStar Data'!$A$1:$M$150,MATCH(Analysis!$A$35,'MorningStar Data'!$A$1:$A$150,0),I1+1)=0,"",INDEX('MorningStar Data'!$A$1:$M$150,MATCH(Analysis!$A$35,'MorningStar Data'!$A$1:$A$150,0),I1+1)) -> 23.42 | J35: =IF(INDEX('MorningStar Data'!$A$1:$M$150,MATCH(Analysis!$A$35,'MorningStar Data'!$A$1:$A$150,0),J1+1)=0,"",INDEX('MorningStar Data'!$A$1:$M$150,MATCH(Analysis!$A$35,'MorningStar Data'!$A$1:$A$150,0),J1+1)) -> 21.85 | K35: =IF(INDEX('MorningStar Data'!$A$1:$M$150,MATCH(Analysis!$A$35,'MorningStar Data'!$A$1:$A$150,0),K1+1)=0,"",INDEX('MorningStar Data'!$A$1:$M$150,MATCH(Analysis!$A$35,'MorningStar Data'!$A$1:$A$150,0),K1+1)) -> 20.96 | L35: =IF(INDEX('MorningStar Data'!$A$1:$M$150,MATCH(Analysis!$A$35,'MorningStar Data'!$A$1:$A$150,0),L1+1)=0,"",INDEX('MorningStar Data'!$A$1:$M$150,MATCH(Analysis!$A$35,'MorningStar Data'!$A$1:$A$150,0),L1+1)) -> 20.34 | M35: =AVERAGE(C35:L35) -> 17.963 | N35: =STDEV(C35:L35) -> 8.143328626 | O35: =(M35-P35)/M35 ->  | P35: =((1+IF(C35="",0,C35))*(1+IF(D35="",0,D35))*(1+IF(E35="",0,E35))*(1+IF(F35="",0,F35))*(1+IF(G35="",0,G35))*(1+IF(H35="",0,H35))*(1+IF(I35="",0,I35))*(1+IF(J35="",0,J35))*(1+IF(K35="",0,K35))*(1+IF(L35="",0,L35)))^(1/10)-1 -> 
A36: 1Y rolling growth growth in EBT margin | D36: =(D35/C35)-1 -> -0.07583196945 | E36: -0.1092089728 | F36: 0.3757455268 | G36: -1.171483622 | H36: -8.162921348 | I36: -0.08156862745 | J36: -0.06703672075 | K36: -0.04073226545 | L36: -0.02958015267
A37: 3Y rolling growth EBT margin | E37: =(E35/C35)^(1/3)-1 -> -0.06277846665 | F37: =(F35/D35)^(1/3)-1 -> 0.07013355277 | G37: =(G35/E35)^(1/3)-1 -> -1.617902927 | H37: =(H35/F35)^(1/3)-1 -> 0.07095431193 | I37: =(I35/G35)^(1/3)-1 -> -2.873752812 | J37: =(J35/H35)^(1/3)-1 -> -0.05018923618 | K37: =(K35/I35)^(1/3)-1 -> -0.03631567296 | L37: =(L35/J35)^(1/3)-1 -> -0.02358786312
A38: 5Y rolling growth EBT margin | G38: =(G35/C35)^(1/5)-1 -> -1.720539023 | H38: =(H35/D35)^(1/5)-1 -> 0.08523890597 | I38: =(I35/E35)^(1/5)-1 -> 0.09189161319 | J38: =(J35/F35)^(1/5)-1 -> 0.01028712502 | K38: =(K35/G35)^(1/5)-1 -> -2.425569044 | L38: =(L35/H35)^(1/5)-1 -> -0.04421072351
A39: 7Y rolling growth EBT margin | I39: =(I35/C35)^(1/7)-1 -> 0.0356272979 | J39: =(J35/D35)^(1/7)-1 -> 0.03702958864 | K39: =(K35/E35)^(1/7)-1 -> 0.04805966065 | L39: =(L35/F35)^(1/7)-1 -> -0.00291555117
A40: Debt/Equity | B40: =IF(INDEX('MorningStar Data'!$A$1:$M$150,MATCH(Analysis!$A$40,'MorningStar Data'!$A$1:$A$150,0),B1+1)=0,"",INDEX('MorningStar Data'!$A$1:$M$150,MATCH(Analysis!$A$40,'MorningStar Data'!$A$1:$A$150,0),B1+1)) ->  | C40: =IF(INDEX('MorningStar Data'!$A$1:$M$150,MATCH(Analysis!$A$40,'MorningStar Data'!$A$1:$A$150,0),C1+1)=0,"",INDEX('MorningStar Data'!$A$1:$M$150,MATCH(Analysis!$A$40,'MorningStar Data'!$A$1:$A$150,0),C1+1)) -> 0.04 | D40: =IF(INDEX('MorningStar Data'!$A$1:$M$150,MATCH(Analysis!$A$40,'MorningStar Data'!$A$1:$A$150,0),D1+1)=0,"",INDEX('MorningStar Data'!$A$1:$M$150,MATCH(Analysis!$A$40,'MorningStar Data'!$A$1:$A$150,0),D1+1)) -> 0.02 | E40: =IF(INDEX('MorningStar Data'!$A$1:$M$150,MATCH(Analysis!$A$40,'MorningStar Data'!$A$1:$A$150,0),E1+1)=0,"",INDEX('MorningStar Data'!$A$1:$M$150,MATCH(Analysis!$A$40,'MorningStar Data'!$A$1:$A$150,0),E1+1)) -> 0.02 | F40: =IF(INDEX('MorningStar Data'!$A$1:$M$150,MATCH(Analysis!$A$40,'MorningStar Data'!$A$1:$A$150,0),F1+1)=0,"",INDEX('MorningStar Data'!$A$1:$M$150,MATCH(Analysis!$A$40,'MorningStar Data'!$A$1:$A$150,0),F1+1)) -> 0.03 | G40: =IF(INDEX('MorningStar Data'!$A$1:$M$150,MATCH(Analysis!$A$40,'MorningStar Data'!$A$1:$A$150,0),G1+1)=0,"",INDEX('MorningStar Data'!$A$1:$M$150,MATCH(Analysis!$A$40,'MorningStar Data'!$A$1:$A$150,0),G1+1)) -> 0.02 | H40: =IF(INDEX('MorningStar Data'!$A$1:$M$150,MATCH(Analysis!$A$40,'MorningStar Data'!$A$1:$A$150,0),H1+1)=0,"",INDEX('MorningStar Data'!$A$1:$M$150,MATCH(Analysis!$A$40,'MorningStar Data'!$A$1:$A$150,0),H1+1)) -> 0.01 | I40: =IF(INDEX('MorningStar Data'!$A$1:$M$150,MATCH(Analysis!$A$40,'MorningStar Data'!$A$1:$A$150,0),I1+1)=0,"",INDEX('MorningStar Data'!$A$1:$M$150,MATCH(Analysis!$A$40,'MorningStar Data'!$A$1:$A$150,0),I1+1)) ->  | J40: =IF(INDEX('MorningStar Data'!$A$1:$M$150,MATCH(Analysis!$A$40,'MorningStar Data'!$A$1:$A$150,0),J1+1)=0,"",INDEX('MorningStar Data'!$A$1:$M$150,MATCH(Analysis!$A$40,'MorningStar Data'!$A$1:$A$150,0),J1+1)) ->  | K40: =IF(INDEX('MorningStar Data'!$A$1:$M$150,MATCH(Analysis!$A$40,'MorningStar Data'!$A$1:$A$150,0),K1+1)=0,"",INDEX('MorningStar Data'!$A$1:$M$150,MATCH(Analysis!$A$40,'MorningStar Data'!$A$1:$A$150,0),K1+1)) ->  | L40: =IF(INDEX('MorningStar Data'!$A$1:$M$150,MATCH(Analysis!$A$40,'MorningStar Data'!$A$1:$A$150,0),L1+1)=0,"",INDEX('MorningStar Data'!$A$1:$M$150,MATCH(Analysis!$A$40,'MorningStar Data'!$A$1:$A$150,0),L1+1)) ->  | M40: 0.02333333333 | N40: 0.01032795559 | O40: =(M40-P40)/M40 -> 0.4038732649 | P40: =((1+IF(C40="",0,C40))*(1+IF(D40="",0,D40))*(1+IF(E40="",0,E40))*(1+IF(F40="",0,F40))*(1+IF(G40="",0,G40))*(1+IF(H40="",0,H40))*(1+IF(I40="",0,I40))*(1+IF(J40="",0,J40))*(1+IF(K40="",0,K40))*(1+IF(L40="",0,L40)))^(1/10)-1 -> 0.01390962382
A41: =INDEX('MorningStar Data'!A1:A250,MATCH("Free Cash Flow"& "*",'MorningStar Data'!A1:A250,0),1) -> Free Cash Flow INR Mil | B41: =IF(INDEX('MorningStar Data'!$A$1:$M$150,MATCH(Analysis!$A$41,'MorningStar Data'!$A$1:$A$150,0),B1+1)=0,"",INDEX('MorningStar Data'!$A$1:$M$150,MATCH(Analysis!$A$41,'MorningStar Data'!$A$1:$A$150,0),B1+1)) -> 1337 | C41: =IF(INDEX('MorningStar Data'!$A$1:$M$150,MATCH(Analysis!$A$41,'MorningStar Data'!$A$1:$A$150,0),C1+1)=0,"",INDEX('MorningStar Data'!$A$1:$M$150,MATCH(Analysis!$A$41,'MorningStar Data'!$A$1:$A$150,0),C1+1)) -> 410 | D41: =IF(INDEX('MorningStar Data'!$A$1:$M$150,MATCH(Analysis!$A$41,'MorningStar Data'!$A$1:$A$150,0),D1+1)=0,"",INDEX('MorningStar Data'!$A$1:$M$150,MATCH(Analysis!$A$41,'MorningStar Data'!$A$1:$A$150,0),D1+1)) -> 1376 | E41: =IF(INDEX('MorningStar Data'!$A$1:$M$150,MATCH(Analysis!$A$41,'MorningStar Data'!$A$1:$A$150,0),E1+1)=0,"",INDEX('MorningStar Data'!$A$1:$M$150,MATCH(Analysis!$A$41,'MorningStar Data'!$A$1:$A$150,0),E1+1)) -> 1192 | F41: =IF(INDEX('MorningStar Data'!$A$1:$M$150,MATCH(Analysis!$A$41,'MorningStar Data'!$A$1:$A$150,0),F1+1)=0,"",INDEX('MorningStar Data'!$A$1:$M$150,MATCH(Analysis!$A$41,'MorningStar Data'!$A$1:$A$150,0),F1+1)) -> 2462 | G41: =IF(INDEX('MorningStar Data'!$A$1:$M$150,MATCH(Analysis!$A$41,'MorningStar Data'!$A$1:$A$150,0),G1+1)=0,"",INDEX('MorningStar Data'!$A$1:$M$150,MATCH(Analysis!$A$41,'MorningStar Data'!$A$1:$A$150,0),G1+1)) -> 3125 | H41: =IF(INDEX('MorningStar Data'!$A$1:$M$150,MATCH(Analysis!$A$41,'MorningStar Data'!$A$1:$A$150,0),H1+1)=0,"",INDEX('MorningStar Data'!$A$1:$M$150,MATCH(Analysis!$A$41,'MorningStar Data'!$A$1:$A$150,0),H1+1)) -> 3682 | I41: =IF(INDEX('MorningStar Data'!$A$1:$M$150,MATCH(Analysis!$A$41,'MorningStar Data'!$A$1:$A$150,0),I1+1)=0,"",INDEX('MorningStar Data'!$A$1:$M$150,MATCH(Analysis!$A$41,'MorningStar Data'!$A$1:$A$150,0),I1+1)) -> 3443 | J41: =IF(INDEX('MorningStar Data'!$A$1:$M$150,MATCH(Analysis!$A$41,'MorningStar Data'!$A$1:$A$150,0),J1+1)=0,"",INDEX('MorningStar Data'!$A$1:$M$150,MATCH(Analysis!$A$41,'MorningStar Data'!$A$1:$A$150,0),J1+1)) -> 3006 | K41: =IF(INDEX('MorningStar Data'!$A$1:$M$150,MATCH(Analysis!$A$41,'MorningStar Data'!$A$1:$A$150,0),K1+1)=0,"",INDEX('MorningStar Data'!$A$1:$M$150,MATCH(Analysis!$A$41,'MorningStar Data'!$A$1:$A$150,0),K1+1)) -> 4602 | L41: =IF(INDEX('MorningStar Data'!$A$1:$M$150,MATCH(Analysis!$A$41,'MorningStar Data'!$A$1:$A$150,0),L1+1)=0,"",INDEX('MorningStar Data'!$A$1:$M$150,MATCH(Analysis!$A$41,'MorningStar Data'!$A$1:$A$150,0),L1+1)) -> 1337 | M41: 2463.5 | N41: 1334.768748 | O41: =(M41-P41)/M41 -> 0.174132225 | P41: =((1+IF(C41="",0,C41))*(1+IF(D41="",0,D41))*(1+IF(E41="",0,E41))*(1+IF(F41="",0,F41))*(1+IF(G41="",0,G41))*(1+IF(H41="",0,H41))*(1+IF(I41="",0,I41))*(1+IF(J41="",0,J41))*(1+IF(K41="",0,K41))*(1+IF(L41="",0,L41)))^(1/10)-1 -> 2034.525264
A42: 1Y rolling growth growth in cash flow | D42: =(D41/C41)-1 -> 2.356097561 | E42: -0.1337209302 | F42: 1.065436242 | G42: 0.2692932575 | H42: 0.17824 | I42: -0.0649103748 | J42: -0.126924194 | K42: 0.5309381238 | L42: -0.7094741417
A43: 3Y rolling growth free cash flow | E43: =(E41/C41)^(1/3)-1 -> 0.4272415033 | F43: =(F41/D41)^(1/3)-1 -> 0.2140126298 | G43: =(G41/E41)^(1/3)-1 -> 0.3788740194 | H43: =(H41/F41)^(1/3)-1 -> 0.1435765605 | I43: =(I41/G41)^(1/3)-1 -> 0.03283037149 | J43: =(J41/H41)^(1/3)-1 -> -0.06538001347 | K43: =(K41/I41)^(1/3)-1 -> 0.1015474189 | L43: =(L41/J41)^(1/3)-1 -> -0.2366668142
A44: 5Y rolling growth free cash flow | G44: =(G41/C41)^(1/5)-1 -> 0.5011124709 | H44: =(H41/D41)^(1/5)-1 -> 0.2175675642 | I44: =(I41/E41)^(1/5)-1 -> 0.2363235828 | J44: =(J41/F41)^(1/5)-1 -> 0.04073506079 | K44: =(K41/G41)^(1/5)-1 -> 0.08048643411 | L44: =(L41/H41)^(1/5)-1 -> -0.1833997198
A45: 7Y rolling growth free cash flow | I45: =(I41/C41)^(1/7)-1 -> 0.3552576919 | J45: =(J41/D41)^(1/7)-1 -> 0.1181022104 | K45: =(K41/E41)^(1/7)-1 -> 0.2128582629 | L45: =(L41/F41)^(1/7)-1 -> -0.0835253013
A46: Return on Assets % | B46: =IF(INDEX('MorningStar Data'!$A$1:$M$150,MATCH(Analysis!$A$46,'MorningStar Data'!$A$1:$A$150,0),B1+1)/100=0,"",INDEX('MorningStar Data'!$A$1:$M$150,MATCH(Analysis!$A$46,'MorningStar Data'!$A$1:$A$150,0),B1+1)/100) -> 0.3121 | C46: =IF(INDEX('MorningStar Data'!$A$1:$M$150,MATCH(Analysis!$A$46,'MorningStar Data'!$A$1:$A$150,0),C1+1)/100=0,"",INDEX('MorningStar Data'!$A$1:$M$150,MATCH(Analysis!$A$46,'MorningStar Data'!$A$1:$A$150,0),C1+1)/100) -> 0.1954 | D46: =IF(INDEX('MorningStar Data'!$A$1:$M$150,MATCH(Analysis!$A$46,'MorningStar Data'!$A$1:$A$150,0),D1+1)/100=0,"",INDEX('MorningStar Data'!$A$1:$M$150,MATCH(Analysis!$A$46,'MorningStar Data'!$A$1:$A$150,0),D1+1)/100) -> 0.229 | E46: =IF(INDEX('MorningStar Data'!$A$1:$M$150,MATCH(Analysis!$A$46,'MorningStar Data'!$A$1:$A$150,0),E1+1)/100=0,"",INDEX('MorningStar Data'!$A$1:$M$150,MATCH(Analysis!$A$46,'MorningStar Data'!$A$1:$A$150,0),E1+1)/100) -> 0.2205 | F46: =IF(INDEX('MorningStar Data'!$A$1:$M$150,MATCH(Analysis!$A$46,'MorningStar Data'!$A$1:$A$150,0),F1+1)/100=0,"",INDEX('MorningStar Data'!$A$1:$M$150,MATCH(Analysis!$A$46,'MorningStar Data'!$A$1:$A$150,0),F1+1)/100) -> 0.3294 | G46: =IF(INDEX('MorningStar Data'!$A$1:$M$150,MATCH(Analysis!$A$46,'MorningStar Data'!$A$1:$A$150,0),G1+1)/100=0,"",INDEX('MorningStar Data'!$A$1:$M$150,MATCH(Analysis!$A$46,'MorningStar Data'!$A$1:$A$150,0),G1+1)/100) -> 0.372 | H46: =IF(INDEX('MorningStar Data'!$A$1:$M$150,MATCH(Analysis!$A$46,'MorningStar Data'!$A$1:$A$150,0),H1+1)/100=0,"",INDEX('MorningStar Data'!$A$1:$M$150,MATCH(Analysis!$A$46,'MorningStar Data'!$A$1:$A$150,0),H1+1)/100) -> 0.5131 | I46: =IF(INDEX('MorningStar Data'!$A$1:$M$150,MATCH(Analysis!$A$46,'MorningStar Data'!$A$1:$A$150,0),I1+1)/100=0,"",INDEX('MorningStar Data'!$A$1:$M$150,MATCH(Analysis!$A$46,'MorningStar Data'!$A$1:$A$150,0),I1+1)/100) -> 0.4211 | J46: =IF(INDEX('MorningStar Data'!$A$1:$M$150,MATCH(Analysis!$A$46,'MorningStar Data'!$A$1:$A$150,0),J1+1)/100=0,"",INDEX('MorningStar Data'!$A$1:$M$150,MATCH(Analysis!$A$46,'MorningStar Data'!$A$1:$A$150,0),J1+1)/100) -> 0.414 | K46: =IF(INDEX('MorningStar Data'!$A$1:$M$150,MATCH(Analysis!$A$46,'MorningStar Data'!$A$1:$A$150,0),K1+1)/100=0,"",INDEX('MorningStar Data'!$A$1:$M$150,MATCH(Analysis!$A$46,'MorningStar Data'!$A$1:$A$150,0),K1+1)/100) -> 0.4078 | L46: =IF(INDEX('MorningStar Data'!$A$1:$M$150,MATCH(Analysis!$A$46,'MorningStar Data'!$A$1:$A$150,0),L1+1)/100=0,"",INDEX('MorningStar Data'!$A$1:$M$150,MATCH(Analysis!$A$46,'MorningStar Data'!$A$1:$A$150,0),L1+1)/100) -> 0.3862
A47: 1Y rolling growth growth in RoA | D47: =(D46/C46)-1 -> 0.1719549642 | E47: -0.03711790393 | F47: 0.493877551 | G47: 0.1293260474 | H47: 0.3793010753 | I47: -0.1793022803 | J47: -0.01686060318 | K47: -0.01497584541 | L47: -0.05296714076
A48: 3Y rolling growth RoA | E48: =(E46/C46)^(1/3)-1 -> 0.0411053498 | F48: =(F46/D46)^(1/3)-1 -> 0.1288321523 | G48: =(G46/E46)^(1/3)-1 -> 0.1904507931 | H48: =(H46/F46)^(1/3)-1 -> 0.1592029382 | I48: =(I46/G46)^(1/3)-1 -> 0.04219127697 | J48: =(J46/H46)^(1/3)-1 -> -0.06903623971 | K48: =(K46/I46)^(1/3)-1 -> -0.01064080744 | L48: =(L46/J46)^(1/3)-1 -> -0.0229038334
A49: 5Y rolling growth RoA | G49: =(G46/C46)^(1/5)-1 -> 0.1374273742 | H49: =(H46/D46)^(1/5)-1 -> 0.1750958878 | I49: =(I46/E46)^(1/5)-1 -> 0.1381390634 | J49: =(J46/F46)^(1/5)-1 -> 0.04677983835 | K49: =(K46/G46)^(1/5)-1 -> 0.01854648957 | L49: =(L46/H46)^(1/5)-1 -> -0.05523879599
A50: 7Y rolling growth RoA | I50: =(I46/C46)^(1/7)-1 -> 0.1159307381 | J50: =(J46/D46)^(1/7)-1 -> 0.08827295612 | K50: =(K46/E46)^(1/7)-1 -> 0.0918132874 | L50: =(L46/F46)^(1/7)-1 -> 0.02298628363
B51: =B34 -> TTM | C51: 2005 | D51: 2006 | E51: 2007 | F51: 2008 | G51: 2009 | H51: 2010 | I51: 2011 | J51: 2012 | K51: 2013 | L51: 2014 | M51: Average | N51: Std Dev | O51: Inconsistency measure* | P51: =P34 -> Geometric average*
A52: Operating Cash Flow Growth % YOY | B52: =IF(INDEX('MorningStar Data'!$A$1:$M$150,MATCH(Analysis!$A$52,'MorningStar Data'!$A$1:$A$150,0),B1+1)/100=0,"",INDEX('MorningStar Data'!$A$1:$M$150,MATCH(Analysis!$A$52,'MorningStar Data'!$A$1:$A$150,0),B1+1)/100) ->  | C52: =IF(INDEX('MorningStar Data'!$A$1:$M$150,MATCH(Analysis!$A$52,'MorningStar Data'!$A$1:$A$150,0),C1+1)/100=0,"",INDEX('MorningStar Data'!$A$1:$M$150,MATCH(Analysis!$A$52,'MorningStar Data'!$A$1:$A$150,0),C1+1)/100) -> 0.5218 | D52: =IF(INDEX('MorningStar Data'!$A$1:$M$150,MATCH(Analysis!$A$52,'MorningStar Data'!$A$1:$A$150,0),D1+1)/100=0,"",INDEX('MorningStar Data'!$A$1:$M$150,MATCH(Analysis!$A$52,'MorningStar Data'!$A$1:$A$150,0),D1+1)/100) -> 0.54 | E52: =IF(INDEX('MorningStar Data'!$A$1:$M$150,MATCH(Analysis!$A$52,'MorningStar Data'!$A$1:$A$150,0),E1+1)/100=0,"",INDEX('MorningStar Data'!$A$1:$M$150,MATCH(Analysis!$A$52,'MorningStar Data'!$A$1:$A$150,0),E1+1)/100) -> -0.1603 | F52: =IF(INDEX('MorningStar Data'!$A$1:$M$150,MATCH(Analysis!$A$52,'MorningStar Data'!$A$1:$A$150,0),F1+1)/100=0,"",INDEX('MorningStar Data'!$A$1:$M$150,MATCH(Analysis!$A$52,'MorningStar Data'!$A$1:$A$150,0),F1+1)/100) -> 0.8477 | G52: =IF(INDEX('MorningStar Data'!$A$1:$M$150,MATCH(Analysis!$A$52,'MorningStar Data'!$A$1:$A$150,0),G1+1)/100=0,"",INDEX('MorningStar Data'!$A$1:$M$150,MATCH(Analysis!$A$52,'MorningStar Data'!$A$1:$A$150,0),G1+1)/100) -> 0.2001 | H52: =IF(INDEX('MorningStar Data'!$A$1:$M$150,MATCH(Analysis!$A$52,'MorningStar Data'!$A$1:$A$150,0),H1+1)/100=0,"",INDEX('MorningStar Data'!$A$1:$M$150,MATCH(Analysis!$A$52,'MorningStar Data'!$A$1:$A$150,0),H1+1)/100) -> 0.1554 | I52: =IF(INDEX('MorningStar Data'!$A$1:$M$150,MATCH(Analysis!$A$52,'MorningStar Data'!$A$1:$A$150,0),I1+1)/100=0,"",INDEX('MorningStar Data'!$A$1:$M$150,MATCH(Analysis!$A$52,'MorningStar Data'!$A$1:$A$150,0),I1+1)/100) -> -0.046 | J52: =IF(INDEX('MorningStar Data'!$A$1:$M$150,MATCH(Analysis!$A$52,'MorningStar Data'!$A$1:$A$150,0),J1+1)/100=0,"",INDEX('MorningStar Data'!$A$1:$M$150,MATCH(Analysis!$A$52,'MorningStar Data'!$A$1:$A$150,0),J1+1)/100) -> 0.0452 | K52: =IF(INDEX('MorningStar Data'!$A$1:$M$150,MATCH(Analysis!$A$52,'MorningStar Data'!$A$1:$A$150,0),K1+1)/100=0,"",INDEX('MorningStar Data'!$A$1:$M$150,MATCH(Analysis!$A$52,'MorningStar Data'!$A$1:$A$150,0),K1+1)/100) -> 0.5264 | L52: =IF(INDEX('MorningStar Data'!$A$1:$M$150,MATCH(Analysis!$A$52,'MorningStar Data'!$A$1:$A$150,0),L1+1)/100=0,"",INDEX('MorningStar Data'!$A$1:$M$150,MATCH(Analysis!$A$52,'MorningStar Data'!$A$1:$A$150,0),L1+1)/100) -> -0.2562 | M52: =AVERAGE(C46:L46) -> 0.34885 | N52: =STDEV(C46:L46) -> 0.1036080461 | O52: =(M52-P52)/M52 -> 0.01041619877 | P52: =((1+IF(C46="",0,C46))*(1+IF(D46="",0,D46))*(1+IF(E46="",0,E46))*(1+IF(F46="",0,F46))*(1+IF(G46="",0,G46))*(1+IF(H46="",0,H46))*(1+IF(I46="",0,I46))*(1+IF(J46="",0,J46))*(1+IF(K46="",0,K46))*(1+IF(L46="",0,L46)))^(1/10)-1 -> 0.3452163091
A53: 3Y rolling growth OCF | E53: =((1+C52)*(1+D52)*(1+E52))^(1/3)-1 -> 0.253143535 | F53: =((1+D52)*(1+E52)*(1+F52))^(1/3)-1 -> 0.3368790295 | G53: 0.230243321 | H53: 0.3683391491 | I53: 0.09773975149 | J53: 0.04831881298 | K53: 0.1502847912 | L53: 0.05870421991
A54: 5Y rolling growth OCF | G54: =((1+C52)*(1+D52)*(1+E52)*(1+F52)*(1+G52))^(1/7)-1 -> 0.2342619351 | H54: =((1+D52)*(1+E52)*(1+F52)*(1+G52)*(1+H52))^(1/7)-1 -> 0.1866373636 | I54: 0.1081733038 | J54: 0.1433780799 | K54: 0.1125972708 | L54: 0.03910111311
A55: 7Y rolling growth OCF | I55: =((1+C52)*(1+D52)*(1+E52)*(1+F52)*(1+G52)*(1+H52)*(1+I52))^(1/7)-1 -> 0.2515477993 | J55: =((1+D52)*(1+E52)*(1+F52)*(1+G52)*(1+H52)*(1+I52)*(1+J52))^(1/7)-1 -> 0.1861486794 | K55: 0.1846465446 | L55: 0.1642997253
A56: Free Cash Flow/Sales % | B56: =IF(INDEX('MorningStar Data'!$A$1:$M$150,MATCH(Analysis!$A$56,'MorningStar Data'!$A$1:$A$150,0),B1+1)/100=0,"",INDEX('MorningStar Data'!$A$1:$M$150,MATCH(Analysis!$A$56,'MorningStar Data'!$A$1:$A$150,0),B1+1)/100) -> 0.0354 | C56: =IF(INDEX('MorningStar Data'!$A$1:$M$150,MATCH(Analysis!$A$56,'MorningStar Data'!$A$1:$A$150,0),C1+1)/100=0,"",INDEX('MorningStar Data'!$A$1:$M$150,MATCH(Analysis!$A$56,'MorningStar Data'!$A$1:$A$150,0),C1+1)/100) -> 0.0424 | D56: =IF(INDEX('MorningStar Data'!$A$1:$M$150,MATCH(Analysis!$A$56,'MorningStar Data'!$A$1:$A$150,0),D1+1)/100=0,"",INDEX('MorningStar Data'!$A$1:$M$150,MATCH(Analysis!$A$56,'MorningStar Data'!$A$1:$A$150,0),D1+1)/100) -> 0.1222 | E56: =IF(INDEX('MorningStar Data'!$A$1:$M$150,MATCH(Analysis!$A$56,'MorningStar Data'!$A$1:$A$150,0),E1+1)/100=0,"",INDEX('MorningStar Data'!$A$1:$M$150,MATCH(Analysis!$A$56,'MorningStar Data'!$A$1:$A$150,0),E1+1)/100) -> 0.092 | F56: =IF(INDEX('MorningStar Data'!$A$1:$M$150,MATCH(Analysis!$A$56,'MorningStar Data'!$A$1:$A$150,0),F1+1)/100=0,"",INDEX('MorningStar Data'!$A$1:$M$150,MATCH(Analysis!$A$56,'MorningStar Data'!$A$1:$A$150,0),F1+1)/100) -> 0.167 | G56: =IF(INDEX('MorningStar Data'!$A$1:$M$150,MATCH(Analysis!$A$56,'MorningStar Data'!$A$1:$A$150,0),G1+1)/100=0,"",INDEX('MorningStar Data'!$A$1:$M$150,MATCH(Analysis!$A$56,'MorningStar Data'!$A$1:$A$150,0),G1+1)/100) -> 0.1844 | H56: =IF(INDEX('MorningStar Data'!$A$1:$M$150,MATCH(Analysis!$A$56,'MorningStar Data'!$A$1:$A$150,0),H1+1)/100=0,"",INDEX('MorningStar Data'!$A$1:$M$150,MATCH(Analysis!$A$56,'MorningStar Data'!$A$1:$A$150,0),H1+1)/100) -> 0.1876 | I56: =IF(INDEX('MorningStar Data'!$A$1:$M$150,MATCH(Analysis!$A$56,'MorningStar Data'!$A$1:$A$150,0),I1+1)/100=0,"",INDEX('MorningStar Data'!$A$1:$M$150,MATCH(Analysis!$A$56,'MorningStar Data'!$A$1:$A$150,0),I1+1)/100) -> 0.1551 | J56: =IF(INDEX('MorningStar Data'!$A$1:$M$150,MATCH(Analysis!$A$56,'MorningStar Data'!$A$1:$A$150,0),J1+1)/100=0,"",INDEX('MorningStar Data'!$A$1:$M$150,MATCH(Analysis!$A$56,'MorningStar Data'!$A$1:$A$150,0),J1+1)/100) -> 0.1116 | K56: =IF(INDEX('MorningStar Data'!$A$1:$M$150,MATCH(Analysis!$A$56,'MorningStar Data'!$A$1:$A$150,0),K1+1)/100=0,"",INDEX('MorningStar Data'!$A$1:$M$150,MATCH(Analysis!$A$56,'MorningStar Data'!$A$1:$A$150,0),K1+1)/100) -> 0.1455 | L56: =IF(INDEX('MorningStar Data'!$A$1:$M$150,MATCH(Analysis!$A$56,'MorningStar Data'!$A$1:$A$150,0),L1+1)/100=0,"",INDEX('MorningStar Data'!$A$1:$M$150,MATCH(Analysis!$A$56,'MorningStar Data'!$A$1:$A$150,0),L1+1)/100) -> 0.0374 | M56: =AVERAGE(C50:L50) -> 0.0797508163 | N56: =STDEV(C50:L50) -> 0.03978831061 | O56: =(M56-P56)/M56 -> 0.6118649005 | P56: =((1+IF(C50="",0,C50))*(1+IF(D50="",0,D50))*(1+IF(E50="",0,E50))*(1+IF(F50="",0,F50))*(1+IF(G50="",0,G50))*(1+IF(H50="",0,H50))*(1+IF(I50="",0,I50))*(1+IF(J50="",0,J50))*(1+IF(K50="",0,K50))*(1+IF(L50="",0,L50)))^(1/10)-1 -> 0.03095409102
A57: 1Y rolling growth growth in FCF/Sales | D57: =(D56/C56)-1 -> 1.882075472 | E57: -0.2471358429 | F57: 0.8152173913 | G57: 0.1041916168 | H57: 0.01735357918 | I57: -0.1732409382 | J57: -0.2804642166 | K57: 0.3037634409 | L57: -0.7429553265
A58: 3Y rolling growth FCF/Sales | E58: =(E56/C56)^(1/3)-1 -> 0.2946150664 | F58: =(F56/D56)^(1/3)-1 -> 0.1097242805 | G58: =(G56/E56)^(1/3)-1 -> 0.2608333754 | H58: =(H56/F56)^(1/3)-1 -> 0.0395342137 | I58: =(I56/G56)^(1/3)-1 -> -0.05604716812 | J58: =(J56/H56)^(1/3)-1 -> -0.1589720025 | K58: =(K56/I56)^(1/3)-1 -> -0.02107279385 | L58: =(L56/J56)^(1/3)-1 -> -0.3053983629
A59: 5Y rolling growth FCF/Sales | G59: =(G56/C56)^(1/5)-1 -> 0.3417728874 | H59: =(H56/D56)^(1/5)-1 -> 0.08951277181 | I59: =(I56/E56)^(1/5)-1 -> 0.1101068796 | J59: =(J56/F56)^(1/5)-1 -> -0.07745078278 | K59: =(K56/G56)^(1/5)-1 -> -0.04628104264 | L59: =(L56/H56)^(1/5)-1 -> -0.2756845423
A60: 7Y rolling growth FCF/Sales | I60: =(I56/C56)^(1/7)-1 -> 0.2035488047 | J60: =(J56/D56)^(1/7)-1 -> -0.01287891869 | K60: =(K56/E56)^(1/7)-1 -> 0.06767557956 | L60: =(L56/F56)^(1/7)-1 -> -0.1924581867
B61: Morning Star does not seem to have this data. You can get it from screener.in and paste it below! (green cells)
A62: EBIDT | B62: 769.12 | C62: 208.55 | D62: 224.69 | E62: 273.08 | F62: 300.05 | G62: 373.69 | H62: 516.25 | I62: 556.38 | J62: 628.28 | K62: 706.73 | L62: 714.33 | M62: =AVERAGE(C62:L62) -> 450.203 | N62: =STDEV(C62:L62) -> 197.748819 | O62: =(M62-P62)/M62 -> 0.09147493838 | P62: =((1+IF(C62="",0,C62))*(1+IF(D62="",0,D62))*(1+IF(E62="",0,E62))*(1+IF(F62="",0,F62))*(1+IF(G62="",0,G62))*(1+IF(H62="",0,H62))*(1+IF(I62="",0,I62))*(1+IF(J62="",0,J62))*(1+IF(K62="",0,K62))*(1+IF(L62="",0,L62)))^(1/10)-1 -> 409.0207083
A63: 1Y rolling growth growth in EBIDT | D63: =(D62/C62)-1 -> 0.07739151283 | E63: 0.2153633896 | F63: 0.09876226747 | G63: 0.2454257624 | H63: 0.3814926811 | I63: 0.07773365617 | J63: 0.1292282253 | K63: 0.12486471 | L63: 0.0107537532
A64: 3Y rolling growth EBIDT | E64: =(E62/C62)^(1/3)-1 -> 0.09402328783 | F64: =(F62/D62)^(1/3)-1 -> 0.1012095328 | G64: =(G62/E62)^(1/3)-1 -> 0.110215264 | H64: =(H62/F62)^(1/3)-1 -> 0.1982721837 | I64: =(I62/G62)^(1/3)-1 -> 0.1418788035 | J64: =(J62/H62)^(1/3)-1 -> 0.06765529139 | K64: =(K62/I62)^(1/3)-1 -> 0.08299721291 | L64: =(L62/J62)^(1/3)-1 -> 0.04371490342
A65: 5Y rolling growth EBIDT | G65: =(G62/C62)^(1/5)-1 -> 0.1237255524 | H65: =(H62/D62)^(1/5)-1 -> 0.1810145934 | I65: =(I62/E62)^(1/5)-1 -> 0.1529655293 | J65: =(J62/F62)^(1/5)-1 -> 0.1592895492 | K65: =(K62/G62)^(1/5)-1 -> 0.1359217367 | L65: =(L62/H62)^(1/5)-1 -> 0.06710649929
A66: 7Y rolling growth EBIDT | I66: =(I62/C62)^(1/7)-1 -> 0.150482953 | J66: =(J62/D62)^(1/7)-1 -> 0.1582322186 | K66: =(K62/E62)^(1/7)-1 -> 0.1454992382 | L66: =(L62/F62)^(1/7)-1 -> 0.1319181843
A67: =INDEX('MorningStar Data'!A1:A250,MATCH("Revenue"& "*",'MorningStar Data'!A1:A250,0),1) -> Revenue INR Mil | B67: =IF(INDEX('MorningStar Data'!$A$1:$M$150,MATCH(Analysis!$A$67,'MorningStar Data'!$A$1:$A$150,0),B1+1)=0,"",INDEX('MorningStar Data'!$A$1:$M$150,MATCH(Analysis!$A$67,'MorningStar Data'!$A$1:$A$150,0),B1+1)) -> 37758 | C67: =IF(INDEX('MorningStar Data'!$A$1:$M$150,MATCH(Analysis!$A$67,'MorningStar Data'!$A$1:$A$150,0),C1+1)=0,"",INDEX('MorningStar Data'!$A$1:$M$150,MATCH(Analysis!$A$67,'MorningStar Data'!$A$1:$A$150,0),C1+1)) -> 9675 | D67: =IF(INDEX('MorningStar Data'!$A$1:$M$150,MATCH(Analysis!$A$67,'MorningStar Data'!$A$1:$A$150,0),D1+1)=0,"",INDEX('MorningStar Data'!$A$1:$M$150,MATCH(Analysis!$A$67,'MorningStar Data'!$A$1:$A$150,0),D1+1)) -> 11259 | E67: =IF(INDEX('MorningStar Data'!$A$1:$M$150,MATCH(Analysis!$A$67,'MorningStar Data'!$A$1:$A$150,0),E1+1)=0,"",INDEX('MorningStar Data'!$A$1:$M$150,MATCH(Analysis!$A$67,'MorningStar Data'!$A$1:$A$150,0),E1+1)) -> 12956 | F67: =IF(INDEX('MorningStar Data'!$A$1:$M$150,MATCH(Analysis!$A$67,'MorningStar Data'!$A$1:$A$150,0),F1+1)=0,"",INDEX('MorningStar Data'!$A$1:$M$150,MATCH(Analysis!$A$67,'MorningStar Data'!$A$1:$A$150,0),F1+1)) -> 14739 | G67: =IF(INDEX('MorningStar Data'!$A$1:$M$150,MATCH(Analysis!$A$67,'MorningStar Data'!$A$1:$A$150,0),G1+1)=0,"",INDEX('MorningStar Data'!$A$1:$M$150,MATCH(Analysis!$A$67,'MorningStar Data'!$A$1:$A$150,0),G1+1)) -> 16952 | H67: =IF(INDEX('MorningStar Data'!$A$1:$M$150,MATCH(Analysis!$A$67,'MorningStar Data'!$A$1:$A$150,0),H1+1)=0,"",INDEX('MorningStar Data'!$A$1:$M$150,MATCH(Analysis!$A$67,'MorningStar Data'!$A$1:$A$150,0),H1+1)) -> 19625 | I67: =IF(INDEX('MorningStar Data'!$A$1:$M$150,MATCH(Analysis!$A$67,'MorningStar Data'!$A$1:$A$150,0),I1+1)=0,"",INDEX('MorningStar Data'!$A$1:$M$150,MATCH(Analysis!$A$67,'MorningStar Data'!$A$1:$A$150,0),I1+1)) -> 22206 | J67: =IF(INDEX('MorningStar Data'!$A$1:$M$150,MATCH(Analysis!$A$67,'MorningStar Data'!$A$1:$A$150,0),J1+1)=0,"",INDEX('MorningStar Data'!$A$1:$M$150,MATCH(Analysis!$A$67,'MorningStar Data'!$A$1:$A$150,0),J1+1)) -> 26932 | K67: =IF(INDEX('MorningStar Data'!$A$1:$M$150,MATCH(Analysis!$A$67,'MorningStar Data'!$A$1:$A$150,0),K1+1)=0,"",INDEX('MorningStar Data'!$A$1:$M$150,MATCH(Analysis!$A$67,'MorningStar Data'!$A$1:$A$150,0),K1+1)) -> 31638 | L67: =IF(INDEX('MorningStar Data'!$A$1:$M$150,MATCH(Analysis!$A$67,'MorningStar Data'!$A$1:$A$150,0),L1+1)=0,"",INDEX('MorningStar Data'!$A$1:$M$150,MATCH(Analysis!$A$67,'MorningStar Data'!$A$1:$A$150,0),L1+1)) -> 35788
A68: 1Y rolling growth growth in Revenue | D68: =(D67/C67)-1 -> 0.1637209302 | E68: =(E67/D67)-1 -> 0.1507238654 | F68: =(F67/E67)-1 -> 0.1376196357 | G68: =(G67/F67)-1 -> 0.1501458715 | H68: =(H67/G67)-1 -> 0.1576805097 | I68: =(I67/H67)-1 -> 0.1315159236 | J68: =(J67/I67)-1 -> 0.2128253625 | K68: =(K67/J67)-1 -> 0.1747363731 | L68: =(L67/K67)-1 -> 0.1311713762
A69: 3Y rolling growth in revenue | E69: =(E67/C67)^(1/3)-1 -> 0.1022327781 | F69: =(F67/D67)^(1/3)-1 -> 0.09392966573 | G69: =(G67/E67)^(1/3)-1 -> 0.09374647944 | H69: =(H67/F67)^(1/3)-1 -> 0.1001381256 | I69: =(I67/G67)^(1/3)-1 -> 0.09416578626 | J69: =(J67/H67)^(1/3)-1 -> 0.1112701447 | K69: =(K67/I67)^(1/3)-1 -> 0.1252427638 | L69: =(L67/J67)^(1/3)-1 -> 0.0994013712
A70: 5Y rolling growth in revenue | G70: =(G67/C67)^(1/5)-1 -> 0.1187009168 | H70: =(H67/D67)^(1/5)-1 -> 0.1175371502 | I70: =(I67/E67)^(1/5)-1 -> 0.1137811904 | J70: =(J67/F67)^(1/5)-1 -> 0.128132517 | K70: =(K67/G67)^(1/5)-1 -> 0.1329157529 | L70: =(L67/H67)^(1/5)-1 -> 0.127679155
A71: 7Y rolling growth in revenue | I71: =(I67/C67)^(1/7)-1 -> 0.1260187522 | J71: =(J67/D67)^(1/7)-1 -> 0.1326867668 | K71: =(K67/E67)^(1/7)-1 -> 0.1360335427 | L71: =(L67/F67)^(1/7)-1 -> 0.1351114046
A72: Total Stockholders' Equity | B72: =IF(INDEX('MorningStar Data'!$A$1:$M$150,MATCH(Analysis!$A$72,'MorningStar Data'!$A$1:$A$150,0),B1+1)=0,"",INDEX('MorningStar Data'!$A$1:$M$150,MATCH(Analysis!$A$72,'MorningStar Data'!$A$1:$A$150,0),B1+1)) -> 42.6 | C72: =IF(INDEX('MorningStar Data'!$A$1:$M$150,MATCH(Analysis!$A$72,'MorningStar Data'!$A$1:$A$150,0),C1+1)=0,"",INDEX('MorningStar Data'!$A$1:$M$150,MATCH(Analysis!$A$72,'MorningStar Data'!$A$1:$A$150,0),C1+1)) -> 43.94 | D72: =IF(INDEX('MorningStar Data'!$A$1:$M$150,MATCH(Analysis!$A$72,'MorningStar Data'!$A$1:$A$150,0),D1+1)=0,"",INDEX('MorningStar Data'!$A$1:$M$150,MATCH(Analysis!$A$72,'MorningStar Data'!$A$1:$A$150,0),D1+1)) -> 43.99 | E72: =IF(INDEX('MorningStar Data'!$A$1:$M$150,MATCH(Analysis!$A$72,'MorningStar Data'!$A$1:$A$150,0),E1+1)=0,"",INDEX('MorningStar Data'!$A$1:$M$150,MATCH(Analysis!$A$72,'MorningStar Data'!$A$1:$A$150,0),E1+1)) -> 39.34 | F72: =IF(INDEX('MorningStar Data'!$A$1:$M$150,MATCH(Analysis!$A$72,'MorningStar Data'!$A$1:$A$150,0),F1+1)=0,"",INDEX('MorningStar Data'!$A$1:$M$150,MATCH(Analysis!$A$72,'MorningStar Data'!$A$1:$A$150,0),F1+1)) -> 23.37 | G72: =IF(INDEX('MorningStar Data'!$A$1:$M$150,MATCH(Analysis!$A$72,'MorningStar Data'!$A$1:$A$150,0),G1+1)=0,"",INDEX('MorningStar Data'!$A$1:$M$150,MATCH(Analysis!$A$72,'MorningStar Data'!$A$1:$A$150,0),G1+1)) -> 27.01 | H72: =IF(INDEX('MorningStar Data'!$A$1:$M$150,MATCH(Analysis!$A$72,'MorningStar Data'!$A$1:$A$150,0),H1+1)=0,"",INDEX('MorningStar Data'!$A$1:$M$150,MATCH(Analysis!$A$72,'MorningStar Data'!$A$1:$A$150,0),H1+1)) -> 37.33 | I72: =IF(INDEX('MorningStar Data'!$A$1:$M$150,MATCH(Analysis!$A$72,'MorningStar Data'!$A$1:$A$150,0),I1+1)=0,"",INDEX('MorningStar Data'!$A$1:$M$150,MATCH(Analysis!$A$72,'MorningStar Data'!$A$1:$A$150,0),I1+1)) -> 37.38 | J72: =IF(INDEX('MorningStar Data'!$A$1:$M$150,MATCH(Analysis!$A$72,'MorningStar Data'!$A$1:$A$150,0),J1+1)=0,"",INDEX('MorningStar Data'!$A$1:$M$150,MATCH(Analysis!$A$72,'MorningStar Data'!$A$1:$A$150,0),J1+1)) -> 38.54 | K72: =IF(INDEX('MorningStar Data'!$A$1:$M$150,MATCH(Analysis!$A$72,'MorningStar Data'!$A$1:$A$150,0),K1+1)=0,"",INDEX('MorningStar Data'!$A$1:$M$150,MATCH(Analysis!$A$72,'MorningStar Data'!$A$1:$A$150,0),K1+1)) -> 37.47 | L72: =IF(INDEX('MorningStar Data'!$A$1:$M$150,MATCH(Analysis!$A$72,'MorningStar Data'!$A$1:$A$150,0),L1+1)=0,"",INDEX('MorningStar Data'!$A$1:$M$150,MATCH(Analysis!$A$72,'MorningStar Data'!$A$1:$A$150,0),L1+1)) -> 40.29

Sheet Notes
A1: Diluted Earnings per share | B1: Used a version of the formula foud here | C1: http://www.financeformulas.net/Diluted-EPS.html
B2: Please let me know if the formula used in the sheet is wrong. I think it is!
A3: Inconsistency Measure | B3: I have used the difference between arithmetic average and geometric average as a measure of
B4: inconsistency or volatility. Lower the better!
A5: Geometric average | B5: Using the form of the CAGR or Compounded annualized growth rate.
B6: Not always relevant. Used only for calculating inconsistency

Sheet Graph
A1: Choose 'none' if you want to get rid of a plot | V1: None | Z1: 2 | AA1: =Z1+1 -> 3 | AB1: =AA1+1 -> 4 | AC1: 5 | AD1: 6 | AE1: 7 | AF1: 8 | AG1: 9 | AH1: 10 | AI1: 11
A2: Choose property (left y-axis) | B2: Net Income USD Mil | V2: =Analysis!A3 -> Tax Rate % | Z2: =VALUE(Analysis!C2) -> 2005 | AA2: =VALUE(Analysis!D2) -> 2006 | AB2: =VALUE(Analysis!E2) -> 2007 | AC2: =VALUE(Analysis!F2) -> 2008 | AD2: =VALUE(Analysis!G2) -> 2009 | AE2: =VALUE(Analysis!H2) -> 2010 | AF2: =VALUE(Analysis!I2) -> 2011 | AG2: =VALUE(Analysis!J2) -> 2012 | AH2: =VALUE(Analysis!K2) -> 2013 | AI2: =VALUE(Analysis!L2) -> 2014
A3: Choose property (left y-axis) | B3: 7Y rolling growth RoE | V3: =Analysis!A4 -> Gross Margin % | Z3: =IF(INDEX(Analysis!$B$3:$L$68,MATCH(Graph!$B$2,Analysis!$A$3:$A$68,0),Z1)="",NA(),INDEX(Analysis!$B$3:$L$68,MATCH(Graph!$B$2,Analysis!$A$3:$A$68,0),Z1)) ->  | AA3: =IF(INDEX(Analysis!$B$3:$L$68,MATCH(Graph!$B$2,Analysis!$A$3:$A$68,0),AA1)="",NA(),INDEX(Analysis!$B$3:$L$68,MATCH(Graph!$B$2,Analysis!$A$3:$A$68,0),AA1)) ->  | AB3: =IF(INDEX(Analysis!$B$3:$L$68,MATCH(Graph!$B$2,Analysis!$A$3:$A$68,0),AB1)="",NA(),INDEX(Analysis!$B$3:$L$68,MATCH(Graph!$B$2,Analysis!$A$3:$A$68,0),AB1)) ->  | AC3: =IF(INDEX(Analysis!$B$3:$L$68,MATCH(Graph!$B$2,Analysis!$A$3:$A$68,0),AC1)="",NA(),INDEX(Analysis!$B$3:$L$68,MATCH(Graph!$B$2,Analysis!$A$3:$A$68,0),AC1)) ->  | AD3: =IF(INDEX(Analysis!$B$3:$L$68,MATCH(Graph!$B$2,Analysis!$A$3:$A$68,0),AD1)="",NA(),INDEX(Analysis!$B$3:$L$68,MATCH(Graph!$B$2,Analysis!$A$3:$A$68,0),AD1)) ->  | AE3: =IF(INDEX(Analysis!$B$3:$L$68,MATCH(Graph!$B$2,Analysis!$A$3:$A$68,0),AE1)="",NA(),INDEX(Analysis!$B$3:$L$68,MATCH(Graph!$B$2,Analysis!$A$3:$A$68,0),AE1)) ->  | AF3: =IF(INDEX(Analysis!$B$3:$L$68,MATCH(Graph!$B$2,Analysis!$A$3:$A$68,0),AF1)="",NA(),INDEX(Analysis!$B$3:$L$68,MATCH(Graph!$B$2,Analysis!$A$3:$A$68,0),AF1)) ->  | AG3: =IF(INDEX(Analysis!$B$3:$L$68,MATCH(Graph!$B$2,Analysis!$A$3:$A$68,0),AG1)="",NA(),INDEX(Analysis!$B$3:$L$68,MATCH(Graph!$B$2,Analysis!$A$3:$A$68,0),AG1)) ->  | AH3: =IF(INDEX(Analysis!$B$3:$L$68,MATCH(Graph!$B$2,Analysis!$A$3:$A$68,0),AH1)="",NA(),INDEX(Analysis!$B$3:$L$68,MATCH(Graph!$B$2,Analysis!$A$3:$A$68,0),AH1)) ->  | AI3: =IF(INDEX(Analysis!$B$3:$L$68,MATCH(Graph!$B$2,Analysis!$A$3:$A$68,0),AI1)="",NA(),INDEX(Analysis!$B$3:$L$68,MATCH(Graph!$B$2,Analysis!$A$3:$A$68,0),AI1)) -> 
A4: Choose property (right y-axis) | B4: None | V4: =Analysis!A5 -> EBT Margin | Z4: =IF(INDEX(Analysis!$B$3:$L$68,MATCH(Graph!$B$3,Analysis!$A$3:$A$68,0),Z1)="",NA(),INDEX(Analysis!$B$3:$L$68,MATCH(Graph!$B$3,Analysis!$A$3:$A$68,0),Z1)) ->  | AA4: =IF(INDEX(Analysis!$B$3:$L$68,MATCH(Graph!$B$3,Analysis!$A$3:$A$68,0),AA1)="",NA(),INDEX(Analysis!$B$3:$L$68,MATCH(Graph!$B$3,Analysis!$A$3:$A$68,0),AA1)) ->  | AB4: =IF(INDEX(Analysis!$B$3:$L$68,MATCH(Graph!$B$3,Analysis!$A$3:$A$68,0),AB1)="",NA(),INDEX(Analysis!$B$3:$L$68,MATCH(Graph!$B$3,Analysis!$A$3:$A$68,0),AB1)) ->  | AC4: =IF(INDEX(Analysis!$B$3:$L$68,MATCH(Graph!$B$3,Analysis!$A$3:$A$68,0),AC1)="",NA(),INDEX(Analysis!$B$3:$L$68,MATCH(Graph!$B$3,Analysis!$A$3:$A$68,0),AC1)) ->  | AD4: =IF(INDEX(Analysis!$B$3:$L$68,MATCH(Graph!$B$3,Analysis!$A$3:$A$68,0),AD1)="",NA(),INDEX(Analysis!$B$3:$L$68,MATCH(Graph!$B$3,Analysis!$A$3:$A$68,0),AD1)) ->  | AE4: =IF(INDEX(Analysis!$B$3:$L$68,MATCH(Graph!$B$3,Analysis!$A$3:$A$68,0),AE1)="",NA(),INDEX(Analysis!$B$3:$L$68,MATCH(Graph!$B$3,Analysis!$A$3:$A$68,0),AE1)) ->  | AF4: =IF(INDEX(Analysis!$B$3:$L$68,MATCH(Graph!$B$3,Analysis!$A$3:$A$68,0),AF1)="",NA(),INDEX(Analysis!$B$3:$L$68,MATCH(Graph!$B$3,Analysis!$A$3:$A$68,0),AF1)) -> 0.1432807629 | AG4: =IF(INDEX(Analysis!$B$3:$L$68,MATCH(Graph!$B$3,Analysis!$A$3:$A$68,0),AG1)="",NA(),INDEX(Analysis!$B$3:$L$68,MATCH(Graph!$B$3,Analysis!$A$3:$A$68,0),AG1)) -> 0.1112025456 | AH4: =IF(INDEX(Analysis!$B$3:$L$68,MATCH(Graph!$B$3,Analysis!$A$3:$A$68,0),AH1)="",NA(),INDEX(Analysis!$B$3:$L$68,MATCH(Graph!$B$3,Analysis!$A$3:$A$68,0),AH1)) -> 0.1059373953 | AI4: =IF(INDEX(Analysis!$B$3:$L$68,MATCH(Graph!$B$3,Analysis!$A$3:$A$68,0),AI1)="",NA(),INDEX(Analysis!$B$3:$L$68,MATCH(Graph!$B$3,Analysis!$A$3:$A$68,0),AI1)) -> -0.008536655729
A5: Choose property (right y-axis) | B5: None | V5: =Analysis!A6 -> Operating Margin % | Z5: =IF(INDEX(Analysis!$B$3:$L$68,MATCH(Graph!$B$4,Analysis!$A$3:$A$68,0),Z1)="",NA(),INDEX(Analysis!$B$5:$L$68,MATCH(Graph!$B$4,Analysis!$A$3:$A$68,0),Z1)) ->  | AA5: =IF(INDEX(Analysis!$B$3:$L$68,MATCH(Graph!$B$4,Analysis!$A$3:$A$68,0),AA1)="",NA(),INDEX(Analysis!$B$5:$L$68,MATCH(Graph!$B$4,Analysis!$A$3:$A$68,0),AA1)) ->  | AB5: =IF(INDEX(Analysis!$B$3:$L$68,MATCH(Graph!$B$4,Analysis!$A$3:$A$68,0),AB1)="",NA(),INDEX(Analysis!$B$5:$L$68,MATCH(Graph!$B$4,Analysis!$A$3:$A$68,0),AB1)) ->  | AC5: =IF(INDEX(Analysis!$B$3:$L$68,MATCH(Graph!$B$4,Analysis!$A$3:$A$68,0),AC1)="",NA(),INDEX(Analysis!$B$5:$L$68,MATCH(Graph!$B$4,Analysis!$A$3:$A$68,0),AC1)) ->  | AD5: =IF(INDEX(Analysis!$B$3:$L$68,MATCH(Graph!$B$4,Analysis!$A$3:$A$68,0),AD1)="",NA(),INDEX(Analysis!$B$5:$L$68,MATCH(Graph!$B$4,Analysis!$A$3:$A$68,0),AD1)) ->  | AE5: =IF(INDEX(Analysis!$B$3:$L$68,MATCH(Graph!$B$4,Analysis!$A$3:$A$68,0),AE1)="",NA(),INDEX(Analysis!$B$5:$L$68,MATCH(Graph!$B$4,Analysis!$A$3:$A$68,0),AE1)) ->  | AF5: =IF(INDEX(Analysis!$B$3:$L$68,MATCH(Graph!$B$4,Analysis!$A$3:$A$68,0),AF1)="",NA(),INDEX(Analysis!$B$5:$L$68,MATCH(Graph!$B$4,Analysis!$A$3:$A$68,0),AF1)) ->  | AG5: =IF(INDEX(Analysis!$B$3:$L$68,MATCH(Graph!$B$4,Analysis!$A$3:$A$68,0),AG1)="",NA(),INDEX(Analysis!$B$5:$L$68,MATCH(Graph!$B$4,Analysis!$A$3:$A$68,0),AG1)) ->  | AH5: =IF(INDEX(Analysis!$B$3:$L$68,MATCH(Graph!$B$4,Analysis!$A$3:$A$68,0),AH1)="",NA(),INDEX(Analysis!$B$5:$L$68,MATCH(Graph!$B$4,Analysis!$A$3:$A$68,0),AH1)) ->  | AI5: =IF(INDEX(Analysis!$B$3:$L$68,MATCH(Graph!$B$4,Analysis!$A$3:$A$68,0),AI1)="",NA(),INDEX(Analysis!$B$5:$L$68,MATCH(Graph!$B$4,Analysis!$A$3:$A$68,0),AI1)) -> 
V6: =Analysis!A7 -> Return on Equity % | Z6: =IF(INDEX(Analysis!$B$3:$L$68,MATCH(Graph!$B$5,Analysis!$A$3:$A$68,0),Z1)="",NA(),INDEX(Analysis!$B$5:$L$68,MATCH(Graph!$B$5,Analysis!$A$3:$A$68,0),Z1)) ->  | AA6: =IF(INDEX(Analysis!$B$3:$L$68,MATCH(Graph!$B$5,Analysis!$A$3:$A$68,0),AA1)="",NA(),INDEX(Analysis!$B$5:$L$68,MATCH(Graph!$B$5,Analysis!$A$3:$A$68,0),AA1)) ->  | AB6: =IF(INDEX(Analysis!$B$3:$L$68,MATCH(Graph!$B$5,Analysis!$A$3:$A$68,0),AB1)="",NA(),INDEX(Analysis!$B$5:$L$68,MATCH(Graph!$B$5,Analysis!$A$3:$A$68,0),AB1)) ->  | AC6: =IF(INDEX(Analysis!$B$3:$L$68,MATCH(Graph!$B$5,Analysis!$A$3:$A$68,0),AC1)="",NA(),INDEX(Analysis!$B$5:$L$68,MATCH(Graph!$B$5,Analysis!$A$3:$A$68,0),AC1)) ->  | AD6: =IF(INDEX(Analysis!$B$3:$L$68,MATCH(Graph!$B$5,Analysis!$A$3:$A$68,0),AD1)="",NA(),INDEX(Analysis!$B$5:$L$68,MATCH(Graph!$B$5,Analysis!$A$3:$A$68,0),AD1)) ->  | AE6: =IF(INDEX(Analysis!$B$3:$L$68,MATCH(Graph!$B$5,Analysis!$A$3:$A$68,0),AE1)="",NA(),INDEX(Analysis!$B$5:$L$68,MATCH(Graph!$B$5,Analysis!$A$3:$A$68,0),AE1)) ->  | AF6: =IF(INDEX(Analysis!$B$3:$L$68,MATCH(Graph!$B$5,Analysis!$A$3:$A$68,0),AF1)="",NA(),INDEX(Analysis!$B$5:$L$68,MATCH(Graph!$B$5,Analysis!$A$3:$A$68,0),AF1)) ->  | AG6: =IF(INDEX(Analysis!$B$3:$L$68,MATCH(Graph!$B$5,Analysis!$A$3:$A$68,0),AG1)="",NA(),INDEX(Analysis!$B$5:$L$68,MATCH(Graph!$B$5,Analysis!$A$3:$A$68,0),AG1)) ->  | AH6: =IF(INDEX(Analysis!$B$3:$L$68,MATCH(Graph!$B$5,Analysis!$A$3:$A$68,0),AH1)="",NA(),INDEX(Analysis!$B$5:$L$68,MATCH(Graph!$B$5,Analysis!$A$3:$A$68,0),AH1)) ->  | AI6: =IF(INDEX(Analysis!$B$3:$L$68,MATCH(Graph!$B$5,Analysis!$A$3:$A$68,0),AI1)="",NA(),INDEX(Analysis!$B$5:$L$68,MATCH(Graph!$B$5,Analysis!$A$3:$A$68,0),AI1)) -> 
V7: =Analysis!A8 -> 1Y rolling growth growth in RoE
V8: =Analysis!A9 -> 3Y rolling growth RoE
V9: =Analysis!A10 -> 5Y rolling growth RoE
V10: =Analysis!A11 -> 7Y rolling growth RoE
V11: =Analysis!A12 -> Return on Invested Capital %
V12: =Analysis!A13 -> 1Y rolling growth growth in RoIC
V13: =Analysis!A14 -> 3Y rolling growth ROIC
V14: =Analysis!A15 -> 5Y rolling growth ROIC
V15: =Analysis!A16 -> 7Y rolling growth ROIC
V16: =Analysis!A17 -> Return on Assets %
V17: =Analysis!A19 -> Shares Mil
V18: =Analysis!A20 -> Net Income INR Mil
V19: =Analysis!A21 -> Earnings Per Share INR
V20: =Analysis!A22 -> Dividends INR
V21: =Analysis!A23 -> Payout Ratio %
V22: =Analysis!A24 -> Diluted Earnings Per Share*
V23: =Analysis!A25 -> 1Y rolling growth growth in Diluted EPS
V24: =Analysis!A26 -> 3Y rolling growth diluted EPS
V25: =Analysis!A27 -> 5Y rolling growth diluted EPS
V26: =Analysis!A28 -> 7Y rolling growth diluted EPS
V27: =Analysis!A29 -> Book Value Per Share INR
V28: =Analysis!A30 -> 1Y rolling growth growth in BV per share
V29: =Analysis!A31 -> 3Y rolling growth diluted BV per share
V30: =Analysis!A32 -> 5Y rolling growth diluted BV per share
V31: =Analysis!A33 -> 7Y rolling growth diluted BV per share
V32: =Analysis!A35 -> EBT Margin
V33: =Analysis!A36 -> 1Y rolling growth growth in EBT margin
V34: =Analysis!A37 -> 3Y rolling growth EBT margin
V35: =Analysis!A38 -> 5Y rolling growth EBT margin
V36: =Analysis!A39 -> 7Y rolling growth EBT margin
V37: =Analysis!A40 -> Debt/Equity
V38: =Analysis!A41 -> Free Cash Flow INR Mil
V39: =Analysis!A42 -> 1Y rolling growth growth in cash flow
V40: =Analysis!A43 -> 3Y rolling growth free cash flow
V41: =Analysis!A44 -> 5Y rolling growth free cash flow
V42: =Analysis!A45 -> 7Y rolling growth free cash flow
V43: =Analysis!A46 -> Return on Assets %
V44: =Analysis!A47 -> 1Y rolling growth growth in RoA
V45: =Analysis!A48 -> 3Y rolling growth RoA
V46: =Analysis!A49 -> 5Y rolling growth RoA
V47: =Analysis!A50 -> 7Y rolling growth RoA
V48: =Analysis!A52 -> Operating Cash Flow Growth % YOY
V49: =Analysis!A53 -> 3Y rolling growth OCF
V50: =Analysis!A54 -> 5Y rolling growth OCF
V51: =Analysis!A55 -> 7Y rolling growth OCF
V52: =Analysis!A56 -> Free Cash Flow/Sales %
V53: =Analysis!A57 -> 1Y rolling growth growth in FCF/Sales
V54: =Analysis!A58 -> 3Y rolling growth FCF/Sales
V55: =Analysis!A59 -> 5Y rolling growth FCF/Sales
V56: =Analysis!A60 -> 7Y rolling growth FCF/Sales
V57: =Analysis!A62 -> EBIDT
V58: =Analysis!A63 -> 1Y rolling growth growth in EBIDT
V59: =Analysis!A64 -> 3Y rolling growth EBIDT
V60: =Analysis!A65 -> 5Y rolling growth EBIDT
V61: =Analysis!A66 -> 7Y rolling growth EBIDT
V62: =Analysis!A67 -> Revenue INR Mil
V63: =Analysis!A68 -> 1Y rolling growth growth in Revenue
V64: =Analysis!A69 -> 3Y rolling growth in revenue
V65: =Analysis!A70 -> 5Y rolling growth in revenue
V66: =Analysis!A71 -> 7Y rolling growth in revenue
V67: =Analysis!A72 -> Total Stockholders' Equity
V68: =Analysis!A73 -> 0
V69: =Analysis!A74 -> 0
V70: =Analysis!A75 -> 0
V71: =Analysis!A76 -> 0
V72: =Analysis!A77 -> 0
V73: =Analysis!A78 -> 0
V74: =Analysis!A79 -> 0
V75: =Analysis!A80 -> 0
V76: =Analysis!A81 -> 0
V77: =Analysis!A82 -> 0
V78: =Analysis!A83 -> 0
V79: =Analysis!A84 -> 0
V80: =Analysis!A85 -> 0
V81: =Analysis!A86 -> 0
V82: =Analysis!A87 -> 0
V83: =Analysis!A88 -> 0
V84: =Analysis!A89 -> 0
V85: =Analysis!A90 -> 0
V86: =Analysis!A91 -> 0
V87: =Analysis!A92 -> 0
V88: =Analysis!A93 -> 0
V89: =Analysis!A94 -> 0
V90: =Analysis!A95 -> 0
V91: =Analysis!A96 -> 0
V92: =Analysis!A97 -> 0
V93: =Analysis!A98 -> 0
V94: =Analysis!A99 -> 0
V95: =Analysis!A100 -> 0
V96: =Analysis!A101 -> 0
V97: =Analysis!A102 -> 0
V98: =Analysis!A103 -> 0
V99: =Analysis!A104 -> 0
V100: =Analysis!A105 -> 0

Sheet Valuation-1
A1: Calculate if the stock is overvalued or undervalued
A2: Price Multiple Model. Source: | B2: http://investexcel.net/how-to-calculate-if-a-stock-is-undervalued-or-overvalued/
A4: Current price | B4: ='Read Me First'!C13 -> 1756.9
A5: Average annual Diluted EPS Growth over last 10Y | B5: =Analysis!M25 -> 0.2070422351
A6: Standard Deviation | B6: =Analysis!N25 -> 0.2186586382 | C6: If the standard deviation is as high than the average, the average is useless!
A7: Expected conservative EPS growth | B7: 0.15
A8: Forward PE (get from Morningstar) | B8: 41
A9: Current EPS (TTM) | B9: =Analysis!B21 -> 37.48
A10: Current Dividend per share (TTM) | B10: =Analysis!B22 -> 35
A11: Expected conservative rate of return | B11: 0.15
A13: Expected EPS Growth | E13: Expected EPS Growth
A14: Year 0 | B14: =B9 -> 37.48 | E14: Year 0 | F14: =B14 -> 37.48
A15: Year 1 | B15: =B14*(1+$B$7) -> 43.102 | E15: Year 1 | F15: =F14*(1+$B$7) -> 43.102
A16: Year 2 | B16: =B15*(1+$B$7) -> 49.5673 | E16: Year 2 | F16: =F15*(1+$B$7) -> 49.5673
A17: Year 3 | B17: =B16*(1+$B$7) -> 57.002395 | E17: Year 3 | F17: =F16*(1+$B$7) -> 57.002395
A18: Total 3Y EPS | B18: =SUM(B15:B17) -> 149.671695 | E18: Year 4 | F18: =F17*(1+$B$7) -> 65.55275425
E19: Year 5 | F19: =F18*(1+$B$7) -> 75.38566739
E20: Total 5Y EPS | F20: =SUM(F15:F19) -> 290.6101166
A22: Expected Share Price in 3 Years | B22: =B8*B17 -> 2337.098195 | E22: Expected Share Price in 5 Years | F22: =B8*F19 -> 3090.812363
A23: Dividend Payout Ratio | B23: =B10/B17 -> 0.6140092886 | E23: Dividend Payout Ratio | F23: =B10/F19 -> 0.4642792352
A24: Total Dividends Per Share Over 3 Years | B24: =B23*B18 -> 91.89981096 | E24: Total Dividends Per Share Over 3 Years | F24: =F23*F20 -> 134.9242427
A25: Expected Share Value at End of 3 Years | B25: =B24+B22 -> 2428.998006 | E25: Expected Share Value at End of 3 Years | F25: =F24+F22 -> 3225.736606
A26: Present Share Value for Good Value | B26: =B25/(1+B11)^3 -> 1597.105617 | C26: =IF(B26>B4, "Stock is undervalued", "Stock is overvalued") -> Stock is overvalued | E26: Present Share Value for Good Value | F26: =F25/(1+B11)^3 -> 2120.97418 | G26: =IF(F26>B4, "Stock is undervalued", "Stock is overvalued") -> Stock is undervalued
A28: "Analysis is purely quantitative, and does not incorporate qualitative aspects that may lead to investors prefering the over valued stock" - Raghavendre Shenoy

Sheet Inputs
A1: Obtain stock price from Yahoo Finance | H1: =TODAY() -> 2014-12-27 | N1: =INDEX(L2:M4500,MATCH(A5,L2:L4500,0),2) -> COLGATE.BO | O1: Yes | P1: Daily | U1: 1990 | V1: 1 | X1: 1 | Y1: January | AC1: =RIGHT('MorningStar Data'!A1,LEN('MorningStar Data'!A1)-46) -> Colgate-Palmolive (India) Ltd
A2: First few letters of the stock from morning star data sheet are listed below. | C2: NAV history start date* | H2: =H1-3650 -> 2004-12-29 | K2: =IF(ISNUMBER(SEARCH($A$3,L2)),MAX($K$1:K1)+1,0) -> 0 | L2: 21St Century Mgt Services Ltd | M2: 526921.BO | N2: =D4-1 -> 11 | O2: No | P2: Weekly | Q2: =TEXT(N9,"mmm") -> Dec | U2: =U1+1 -> 1991 | V2: =V1+1 -> 2 | X2: =X1+1 -> 2 | Y2: February | Z2: =IFERROR(VLOOKUP(ROWS($Z$2:Z2),K2:$L$6000,2,0),"") -> Colgate-Palmolive (India) Ltd | AA2: =IFERROR(VLOOKUP(ROWS($AA$2:AA2),K2:$M$6000,3,0),"") -> COLGATE.BO | AB2: =IF(ISERROR(INDEX(Z2:$AA$4500,MATCH($A$5,Z2:$Z$4500,0),2)),"",INDEX(Z2:$AA$4500,MATCH($A$5,Z2:$Z$4500,0),2)) -> COLGATE.BO | AC2: =LEN(AC1) -> 29
A3: =LEFT(AC1,INT(LEN(AC1)*20%)) -> Colga | C3: Day | D3: Month | E3: Year | K3: =IF(ISNUMBER(SEARCH($A$3,L3)),MAX($K$1:K2)+1,0) -> 0 | L3: 3i Infotech Ltd | M3: 532628.BO | N3: =C4 -> 29 | P3: Monthly | Q3: =TEXT(N10,"mmm") -> Dec | U3: 1992 | V3: 3 | X3: 3 | Y3: March | Z3: =IFERROR(VLOOKUP(ROWS($Z$2:Z3),K3:$L$6000,2,0),"") -> Colgate-Palmolive (India) Ltd | AA3: =IFERROR(VLOOKUP(ROWS($AA$2:AA3),K3:$M$6000,3,0),"") -> COLPAL.NS | AB3: =IF(ISERROR(INDEX(Z3:$AA$4500,MATCH($A$5,Z3:$Z$4500,0),2)),"",INDEX(Z3:$AA$4500,MATCH($A$5,Z3:$Z$4500,0),2)) -> COLPAL.NS | AC3: =INT(20%*AC2) -> 5
A4: Step 1: select the stock from this drop-down list. If not found, enter the first few leters of the stock in cell A3 | C4: =DAY(H2) -> 29 | D4: =MONTH(H2) -> 12 | E4: =YEAR(H2) -> 2004 | K4: =IF(ISNUMBER(SEARCH($A$3,L4)),MAX($K$1:K3)+1,0) -> 0 | L4: 3i Infotech Ltd | M4: 3IINFOTECH.NS | N4: =E4 -> 2004 | P4: Dividends only* | U4: 1993 | V4: 4 | X4: 4 | Y4: April | Z4: =IFERROR(VLOOKUP(ROWS($Z$2:Z4),K4:$L$6000,2,0),"") ->  | AA4: =IFERROR(VLOOKUP(ROWS($AA$2:AA4),K4:$M$6000,3,0),"") ->  | AB4: =IF(ISERROR(INDEX(Z4:$AA$4500,MATCH($A$5,Z4:$Z$4500,0),2)),"",INDEX(Z4:$AA$4500,MATCH($A$5,Z4:$Z$4500,0),2)) -> 
A5: Colgate-Palmolive (India) Ltd | K5: =IF(ISNUMBER(SEARCH($A$3,L5)),MAX($K$1:K4)+1,0) -> 0 | L5: 3M India Ltd | M5: 523395.BO | N5: =D8-1 -> 11 | U5: 1994 | V5: 5 | X5: 5 | Y5: May | Z5: =IFERROR(VLOOKUP(ROWS($Z$2:Z5),K5:$L$6000,2,0),"") ->  | AA5: =IFERROR(VLOOKUP(ROWS($AA$2:AA5),K5:$M$6000,3,0),"") ->  | AB5: =IF(ISERROR(INDEX(Z5:$AA$4500,MATCH($A$5,Z5:$Z$4500,0),2)),"",INDEX(Z5:$AA$4500,MATCH($A$5,Z5:$Z$4500,0),2)) -> 
A6: Step 3: Choose exchange: .BO stands for BSE and .NSE stands for NSE | C6: NAV history end date | K6: =IF(ISNUMBER(SEARCH($A$3,L6)),MAX($K$1:K5)+1,0) -> 0 | L6: 3M India Ltd | M6: 3MINDIA.NS | N6: =C8 -> 27 | U6: 1995 | V6: 6 | X6: 6 | Y6: June | Z6: =IFERROR(VLOOKUP(ROWS($Z$2:Z6),K6:$L$6000,2,0),"") ->  | AA6: =IFERROR(VLOOKUP(ROWS($AA$2:AA6),K6:$M$6000,3,0),"") ->  | AB6: =IF(ISERROR(INDEX(Z6:$AA$4500,MATCH($A$5,Z6:$Z$4500,0),2)),"",INDEX(Z6:$AA$4500,MATCH($A$5,Z6:$Z$4500,0),2)) -> 
A7: COLGATE.BO | C7: Day | D7: Month | E7: Year | K7: =IF(ISNUMBER(SEARCH($A$3,L7)),MAX($K$1:K6)+1,0) -> 0 | L7: 8K Miles Software Services Ltd | M7: PMSTRIPS.BO | N7: =E8 -> 2014 | U7: 1996 | V7: 7 | X7: 7 | Y7: July | Z7: =IFERROR(VLOOKUP(ROWS($Z$2:Z7),K7:$L$6000,2,0),"") ->  | AA7: =IFERROR(VLOOKUP(ROWS($AA$2:AA7),K7:$M$6000,3,0),"") ->  | AB7: =IF(ISERROR(INDEX(Z7:$AA$4500,MATCH($A$5,Z7:$Z$4500,0),2)),"",INDEX(Z7:$AA$4500,MATCH($A$5,Z7:$Z$4500,0),2)) -> 
C8: =DAY(H1) -> 27 | D8: =MONTH(H1) -> 12 | E8: =YEAR(H1) -> 2014 | K8: =IF(ISNUMBER(SEARCH($A$3,L8)),MAX($K$1:K7)+1,0) -> 0 | L8: A I Champdany Industries Ltd | M8: AICHAMPD.BO | N8: =IF(E10="Daily","d",IF(E10="Monthly","m",IF(E10="Weekly","w",IF(E10="Dividends Only*","v","")))) -> d | U8: 1997 | V8: 8 | X8: 8 | Y8: August | Z8: =IFERROR(VLOOKUP(ROWS($Z$2:Z8),K8:$L$6000,2,0),"") ->  | AA8: =IFERROR(VLOOKUP(ROWS($AA$2:AA8),K8:$M$6000,3,0),"") ->  | AB8: =IF(ISERROR(INDEX(Z8:$AA$4500,MATCH($A$5,Z8:$Z$4500,0),2)),"",INDEX(Z8:$AA$4500,MATCH($A$5,Z8:$Z$4500,0),2)) -> 
A9: Step 4: | K9: =IF(ISNUMBER(SEARCH($A$3,L9)),MAX($K$1:K8)+1,0) -> 0 | L9: A I Champdany Industries Ltd | M9: AICHAMP.NS | N9: =DATE(E4,D4,C4) -> 2004-12-29 | O9: =N9 -> 2004-12-29 | U9: 1998 | V9: 9 | X9: 9 | Y9: September | Z9: =IFERROR(VLOOKUP(ROWS($Z$2:Z9),K9:$L$6000,2,0),"") ->  | AA9: =IFERROR(VLOOKUP(ROWS($AA$2:AA9),K9:$M$6000,3,0),"") ->  | AB9: =IF(ISERROR(INDEX(Z9:$AA$4500,MATCH($A$5,Z9:$Z$4500,0),2)),"",INDEX(Z9:$AA$4500,MATCH($A$5,Z9:$Z$4500,0),2)) -> 
C10: Frequency? | E10: Daily | K10: =IF(ISNUMBER(SEARCH($A$3,L10)),MAX($K$1:K9)+1,0) -> 0 | L10: A K Capital Services Ltd | M10: AKCAPIT.BO | N10: =DATE(E8,D8,C8) -> 2014-12-27 | O10: =N10 -> 2014-12-27 | U10: 1999 | V10: 10 | X10: 10 | Y10: October | Z10: =IFERROR(VLOOKUP(ROWS($Z$2:Z10),K10:$L$6000,2,0),"") ->  | AA10: =IFERROR(VLOOKUP(ROWS($AA$2:AA10),K10:$M$6000,3,0),"") ->  | AB10: =IF(ISERROR(INDEX(Z10:$AA$4500,MATCH($A$5,Z10:$Z$4500,0),2)),"",INDEX(Z10:$AA$4500,MATCH($A$5,Z10:$Z$4500,0),2)) -> 
A11: Do not modify this grey area | C11: Sort Ascending? | K11: =IF(ISNUMBER(SEARCH($A$3,L11)),MAX($K$1:K10)+1,0) -> 0 | L11: Aadhaar Ventures India Ltd | M11: PRRANETA.BO | U11: 2000 | V11: 11 | X11: 11 | Y11: November | Z11: =IFERROR(VLOOKUP(ROWS($Z$2:Z11),K11:$L$6000,2,0),"") ->  | AA11: =IFERROR(VLOOKUP(ROWS($AA$2:AA11),K11:$M$6000,3,0),"") ->  | AB11: =IF(ISERROR(INDEX(Z11:$AA$4500,MATCH($A$5,Z11:$Z$4500,0),2)),"",INDEX(Z11:$AA$4500,MATCH($A$5,Z11:$Z$4500,0),2)) -> 
A12: =IF(DATE(E4,D4,C4)>DATE(E8,D8,C8),"Please check start and end dates","") ->  | D12: NO | K12: =IF(ISNUMBER(SEARCH($A$3,L12)),MAX($K$1:K11)+1,0) -> 0 | L12: Aadi Industries Ltd | M12: AADIIND.BO | U12: 2001 | V12: 12 | X12: 12 | Y12: December | Z12: =IFERROR(VLOOKUP(ROWS($Z$2:Z12),K12:$L$6000,2,0),"") ->  | AA12: =IFERROR(VLOOKUP(ROWS($AA$2:AA12),K12:$M$6000,3,0),"") ->  | AB12: =IF(ISERROR(INDEX(Z12:$AA$4500,MATCH($A$5,Z12:$Z$4500,0),2)),"",INDEX(Z12:$AA$4500,MATCH($A$5,Z12:$Z$4500,0),2)) -> 
A13: Click to view data at Yahoo Finance or resolve errors | K13: =IF(ISNUMBER(SEARCH($A$3,L13)),MAX($K$1:K12)+1,0) -> 0 | L13: Aagam Capital Ltd | M13: SUBHKAM.BO | U13: 2002 | V13: 13 | Z13: =IFERROR(VLOOKUP(ROWS($Z$2:Z13),K13:$L$6000,2,0),"") ->  | AA13: =IFERROR(VLOOKUP(ROWS($AA$2:AA13),K13:$M$6000,3,0),"") ->  | AB13: =IF(ISERROR(INDEX(Z13:$AA$4500,MATCH($A$5,Z13:$Z$4500,0),2)),"",INDEX(Z13:$AA$4500,MATCH($A$5,Z13:$Z$4500,0),2)) -> 
K14: =IF(ISNUMBER(SEARCH($A$3,L14)),MAX($K$1:K13)+1,0) -> 0 | L14: Aarey Drugs | M14: AREYDRG.BO | U14: 2003 | V14: 14 | Z14: =IFERROR(VLOOKUP(ROWS($Z$2:Z14),K14:$L$6000,2,0),"") ->  | AA14: =IFERROR(VLOOKUP(ROWS($AA$2:AA14),K14:$M$6000,3,0),"") ->  | AB14: =IF(ISERROR(INDEX(Z14:$AA$4500,MATCH($A$5,Z14:$Z$4500,0),2)),"",INDEX(Z14:$AA$4500,MATCH($A$5,Z14:$Z$4500,0),2)) -> 
K15: =IF(ISNUMBER(SEARCH($A$3,L15)),MAX($K$1:K14)+1,0) -> 0 | L15: Aarti Drugs Ltd | M15: AARTIDR.BO | U15: 2004 | V15: 15 | Z15: =IFERROR(VLOOKUP(ROWS($Z$2:Z15),K15:$L$6000,2,0),"") ->  | AA15: =IFERROR(VLOOKUP(ROWS($AA$2:AA15),K15:$M$6000,3,0),"") ->  | AB15: =IF(ISERROR(INDEX(Z15:$AA$4500,MATCH($A$5,Z15:$Z$4500,0),2)),"",INDEX(Z15:$AA$4500,MATCH($A$5,Z15:$Z$4500,0),2)) -> 
K16: =IF(ISNUMBER(SEARCH($A$3,L16)),MAX($K$1:K15)+1,0) -> 0 | L16: Aarti Drugs Ltd | M16: AARTIDRUG.NS | U16: 2005 | V16: 16 | Z16: =IFERROR(VLOOKUP(ROWS($Z$2:Z16),K16:$L$6000,2,0),"") ->  | AA16: =IFERROR(VLOOKUP(ROWS($AA$2:AA16),K16:$M$6000,3,0),"") ->  | AB16: =IF(ISERROR(INDEX(Z16:$AA$4500,MATCH($A$5,Z16:$Z$4500,0),2)),"",INDEX(Z16:$AA$4500,MATCH($A$5,Z16:$Z$4500,0),2)) -> 
K17: =IF(ISNUMBER(SEARCH($A$3,L17)),MAX($K$1:K16)+1,0) -> 0 | L17: Aarti Industries Ltd | M17: ARTIIND.BO | U17: 2006 | V17: 17 | Z17: =IFERROR(VLOOKUP(ROWS($Z$2:Z17),K17:$L$6000,2,0),"") ->  | AA17: =IFERROR(VLOOKUP(ROWS($AA$2:AA17),K17:$M$6000,3,0),"") ->  | AB17: =IF(ISERROR(INDEX(Z17:$AA$4500,MATCH($A$5,Z17:$Z$4500,0),2)),"",INDEX(Z17:$AA$4500,MATCH($A$5,Z17:$Z$4500,0),2)) -> 
K18: =IF(ISNUMBER(SEARCH($A$3,L18)),MAX($K$1:K17)+1,0) -> 0 | L18: Aarti Industries Ltd | M18: AARTIIND.NS | U18: 2007 | V18: 18 | Z18: =IFERROR(VLOOKUP(ROWS($Z$2:Z18),K18:$L$6000,2,0),"") ->  | AA18: =IFERROR(VLOOKUP(ROWS($AA$2:AA18),K18:$M$6000,3,0),"") ->  | AB18: =IF(ISERROR(INDEX(Z18:$AA$4500,MATCH($A$5,Z18:$Z$4500,0),2)),"",INDEX(Z18:$AA$4500,MATCH($A$5,Z18:$Z$4500,0),2)) -> 
K19: =IF(ISNUMBER(SEARCH($A$3,L19)),MAX($K$1:K18)+1,0) -> 0 | L19: Aarvee Denims & Exports Ltd | M19: AARVEED.BO | U19: 2008 | V19: 19 | Z19: =IFERROR(VLOOKUP(ROWS($Z$2:Z19),K19:$L$6000,2,0),"") ->  | AA19: =IFERROR(VLOOKUP(ROWS($AA$2:AA19),K19:$M$6000,3,0),"") ->  | AB19: =IF(ISERROR(INDEX(Z19:$AA$4500,MATCH($A$5,Z19:$Z$4500,0),2)),"",INDEX(Z19:$AA$4500,MATCH($A$5,Z19:$Z$4500,0),2)) -> 
K20: =IF(ISNUMBER(SEARCH($A$3,L20)),MAX($K$1:K19)+1,0) -> 0 | L20: Aarvee Denims & Exports Ltd | M20: AARVEEDEN.NS | U20: 2009 | V20: 20 | Z20: =IFERROR(VLOOKUP(ROWS($Z$2:Z20),K20:$L$6000,2,0),"") ->  | AA20: =IFERROR(VLOOKUP(ROWS($AA$2:AA20),K20:$M$6000,3,0),"") ->  | AB20: =IF(ISERROR(INDEX(Z20:$AA$4500,MATCH($A$5,Z20:$Z$4500,0),2)),"",INDEX(Z20:$AA$4500,MATCH($A$5,Z20:$Z$4500,0),2)) -> 
K21: =IF(ISNUMBER(SEARCH($A$3,L21)),MAX($K$1:K20)+1,0) -> 0 | L21: Aarya Global Shares | M21: KUVAM.BO | U21: 2010 | V21: 21 | Z21: =IFERROR(VLOOKUP(ROWS($Z$2:Z21),K21:$L$6000,2,0),"") ->  | AA21: =IFERROR(VLOOKUP(ROWS($AA$2:AA21),K21:$M$6000,3,0),"") ->  | AB21: =IF(ISERROR(INDEX(Z21:$AA$4500,MATCH($A$5,Z21:$Z$4500,0),2)),"",INDEX(Z21:$AA$4500,MATCH($A$5,Z21:$Z$4500,0),2)) -> 
K22: =IF(ISNUMBER(SEARCH($A$3,L22)),MAX($K$1:K21)+1,0) -> 0 | L22: Aashee Infotech Ltd | M22: SROILS.BO | U22: 2011 | V22: 22 | Z22: =IFERROR(VLOOKUP(ROWS($Z$2:Z22),K22:$L$6000,2,0),"") ->  | AA22: =IFERROR(VLOOKUP(ROWS($AA$2:AA22),K22:$M$6000,3,0),"") -> 
K23: =IF(ISNUMBER(SEARCH($A$3,L23)),MAX($K$1:K22)+1,0) -> 0 | L23: Aban Offshore Ltd | M23: ABANOFFSH.BO | U23: 2012 | V23: 23 | Z23: =IFERROR(VLOOKUP(ROWS($Z$2:Z23),K23:$L$6000,2,0),"") ->  | AA23: =IFERROR(VLOOKUP(ROWS($AA$2:AA23),K23:$M$6000,3,0),"") -> 
K24: =IF(ISNUMBER(SEARCH($A$3,L24)),MAX($K$1:K23)+1,0) -> 0 | L24: Aban Offshore Ltd | M24: ABAN.NS | U24: 2013 | V24: 24 | Z24: =IFERROR(VLOOKUP(ROWS($Z$2:Z24),K24:$L$6000,2,0),"") ->  | AA24: =IFERROR(VLOOKUP(ROWS($AA$2:AA24),K24:$M$6000,3,0),"") -> 
K25: =IF(ISNUMBER(SEARCH($A$3,L25)),MAX($K$1:K24)+1,0) -> 0 | L25: ABB India Ltd | M25: ABB.BO | U25: 2014 | V25: 25 | Z25: =IFERROR(VLOOKUP(ROWS($Z$2:Z25),K25:$L$6000,2,0),"") ->  | AA25: =IFERROR(VLOOKUP(ROWS($AA$2:AA25),K25:$M$6000,3,0),"") -> 
K26: =IF(ISNUMBER(SEARCH($A$3,L26)),MAX($K$1:K25)+1,0) -> 0 | L26: ABB India Ltd | M26: ABB.NS | U26: 2015 | V26: 26 | Z26: =IFERROR(VLOOKUP(ROWS($Z$2:Z26),K26:$L$6000,2,0),"") ->  | AA26: =IFERROR(VLOOKUP(ROWS($AA$2:AA26),K26:$M$6000,3,0),"") -> 
K27: =IF(ISNUMBER(SEARCH($A$3,L27)),MAX($K$1:K26)+1,0) -> 0 | L27: Abbott India Ltd | M27: ABBOT.BO | U27: 2016 | V27: 27 | Z27: =IFERROR(VLOOKUP(ROWS($Z$2:Z27),K27:$L$6000,2,0),"") ->  | AA27: =IFERROR(VLOOKUP(ROWS($AA$2:AA27),K27:$M$6000,3,0),"") -> 
K28: =IF(ISNUMBER(SEARCH($A$3,L28)),MAX($K$1:K27)+1,0) -> 0 | L28: ABC Bearings Ltd | M28: ABCBEARS.BO | U28: 2017 | V28: 28 | Z28: =IFERROR(VLOOKUP(ROWS($Z$2:Z28),K28:$L$6000,2,0),"") ->  | AA28: =IFERROR(VLOOKUP(ROWS($AA$2:AA28),K28:$M$6000,3,0),"") -> 
K29: =IF(ISNUMBER(SEARCH($A$3,L29)),MAX($K$1:K28)+1,0) -> 0 | L29: ABC Gas (International) Ltd | M29: ABCGAS.BO | U29: 2018 | V29: 29 | Z29: =IFERROR(VLOOKUP(ROWS($Z$2:Z29),K29:$L$6000,2,0),"") ->  | AA29: =IFERROR(VLOOKUP(ROWS($AA$2:AA29),K29:$M$6000,3,0),"") -> 
K30: =IF(ISNUMBER(SEARCH($A$3,L30)),MAX($K$1:K29)+1,0) -> 0 | L30: ABC India Ltd | M30: ABCINDQ.BO | U30: 2019 | V30: 30 | Z30: =IFERROR(VLOOKUP(ROWS($Z$2:Z30),K30:$L$6000,2,0),"") ->  | AA30: =IFERROR(VLOOKUP(ROWS($AA$2:AA30),K30:$M$6000,3,0),"") -> 
K31: =IF(ISNUMBER(SEARCH($A$3,L31)),MAX($K$1:K30)+1,0) -> 0 | L31: ABG Infralogistics Ltd | M31: ABG.BO | U31: 2020 | V31: 31 | Z31: =IFERROR(VLOOKUP(ROWS($Z$2:Z31),K31:$L$6000,2,0),"") ->  | AA31: =IFERROR(VLOOKUP(ROWS($AA$2:AA31),K31:$M$6000,3,0),"") -> 
K32: =IF(ISNUMBER(SEARCH($A$3,L32)),MAX($K$1:K31)+1,0) -> 0 | L32: ABG Shipyard Ltd | M32: ABGSHIP.BO | Z32: =IFERROR(VLOOKUP(ROWS($Z$2:Z32),K32:$L$6000,2,0),"") ->  | AA32: =IFERROR(VLOOKUP(ROWS($AA$2:AA32),K32:$M$6000,3,0),"") -> 
K33: =IF(ISNUMBER(SEARCH($A$3,L33)),MAX($K$1:K32)+1,0) -> 0 | L33: ABG Shipyard Ltd | M33: ABGSHIP.NS | Z33: =IFERROR(VLOOKUP(ROWS($Z$2:Z33),K33:$L$6000,2,0),"") ->  | AA33: =IFERROR(VLOOKUP(ROWS($AA$2:AA33),K33:$M$6000,3,0),"") -> 
K34: =IF(ISNUMBER(SEARCH($A$3,L34)),MAX($K$1:K33)+1,0) -> 0 | L34: Abhinav Capital Services Ltd | M34: ABHICAP.BO | Z34: =IFERROR(VLOOKUP(ROWS($Z$2:Z34),K34:$L$6000,2,0),"") ->  | AA34: =IFERROR(VLOOKUP(ROWS($AA$2:AA34),K34:$M$6000,3,0),"") -> 
K35: =IF(ISNUMBER(SEARCH($A$3,L35)),MAX($K$1:K34)+1,0) -> 0 | L35: Abhishek Corp Ltd | M35: ABHICOR.BO | Z35: =IFERROR(VLOOKUP(ROWS($Z$2:Z35),K35:$L$6000,2,0),"") ->  | AA35: =IFERROR(VLOOKUP(ROWS($AA$2:AA35),K35:$M$6000,3,0),"") -> 
K36: =IF(ISNUMBER(SEARCH($A$3,L36)),MAX($K$1:K35)+1,0) -> 0 | L36: Abirami Financial | M36: ABIRAFN.BO | Z36: =IFERROR(VLOOKUP(ROWS($Z$2:Z36),K36:$L$6000,2,0),"") ->  | AA36: =IFERROR(VLOOKUP(ROWS($AA$2:AA36),K36:$M$6000,3,0),"") -> 
K37: =IF(ISNUMBER(SEARCH($A$3,L37)),MAX($K$1:K36)+1,0) -> 0 | L37: ABL Bio Technologies Ltd | M37: ABLBIO.BO | Z37: =IFERROR(VLOOKUP(ROWS($Z$2:Z37),K37:$L$6000,2,0),"") ->  | AA37: =IFERROR(VLOOKUP(ROWS($AA$2:AA37),K37:$M$6000,3,0),"") -> 
K38: =IF(ISNUMBER(SEARCH($A$3,L38)),MAX($K$1:K37)+1,0) -> 0 | L38: ABM Knowledgeware Ltd | M38: ABMKNO.BO | Z38: =IFERROR(VLOOKUP(ROWS($Z$2:Z38),K38:$L$6000,2,0),"") ->  | AA38: =IFERROR(VLOOKUP(ROWS($AA$2:AA38),K38:$M$6000,3,0),"") -> 
K39: =IF(ISNUMBER(SEARCH($A$3,L39)),MAX($K$1:K38)+1,0) -> 0 | L39: ACC Ltd | M39: ACC.BO | Z39: =IFERROR(VLOOKUP(ROWS($Z$2:Z39),K39:$L$6000,2,0),"") ->  | AA39: =IFERROR(VLOOKUP(ROWS($AA$2:AA39),K39:$M$6000,3,0),"") -> 
K40: =IF(ISNUMBER(SEARCH($A$3,L40)),MAX($K$1:K39)+1,0) -> 0 | L40: ACC Ltd | M40: ACC.NS | Z40: =IFERROR(VLOOKUP(ROWS($Z$2:Z40),K40:$L$6000,2,0),"") ->  | AA40: =IFERROR(VLOOKUP(ROWS($AA$2:AA40),K40:$M$6000,3,0),"") -> 
K41: =IF(ISNUMBER(SEARCH($A$3,L41)),MAX($K$1:K40)+1,0) -> 0 | L41: Accel Frontline Ltd | M41: AFL.BO | Z41: =IFERROR(VLOOKUP(ROWS($Z$2:Z41),K41:$L$6000,2,0),"") ->  | AA41: =IFERROR(VLOOKUP(ROWS($AA$2:AA41),K41:$M$6000,3,0),"") -> 
K42: =IF(ISNUMBER(SEARCH($A$3,L42)),MAX($K$1:K41)+1,0) -> 0 | L42: Accel Frontline Ltd | M42: AFL.NS | Z42: =IFERROR(VLOOKUP(ROWS($Z$2:Z42),K42:$L$6000,2,0),"") ->  | AA42: =IFERROR(VLOOKUP(ROWS($AA$2:AA42),K42:$M$6000,3,0),"") -> 
K43: =IF(ISNUMBER(SEARCH($A$3,L43)),MAX($K$1:K42)+1,0) -> 0 | L43: Accel Transmatic Ltd | M43: ACCEL.BO | Z43: =IFERROR(VLOOKUP(ROWS($Z$2:Z43),K43:$L$6000,2,0),"") ->  | AA43: =IFERROR(VLOOKUP(ROWS($AA$2:AA43),K43:$M$6000,3,0),"") -> 
K44: =IF(ISNUMBER(SEARCH($A$3,L44)),MAX($K$1:K43)+1,0) -> 0 | L44: Accelya Kale Solutions Ltd | M44: KALECONSUL.BO | Z44: =IFERROR(VLOOKUP(ROWS($Z$2:Z44),K44:$L$6000,2,0),"") ->  | AA44: =IFERROR(VLOOKUP(ROWS($AA$2:AA44),K44:$M$6000,3,0),"") -> 
K45: =IF(ISNUMBER(SEARCH($A$3,L45)),MAX($K$1:K44)+1,0) -> 0 | L45: Accelya Kale Solutions Ltd | M45: KALECONSU.NS | Z45: =IFERROR(VLOOKUP(ROWS($Z$2:Z45),K45:$L$6000,2,0),"") ->  | AA45: =IFERROR(VLOOKUP(ROWS($AA$2:AA45),K45:$M$6000,3,0),"") -> 
K46: =IF(ISNUMBER(SEARCH($A$3,L46)),MAX($K$1:K45)+1,0) -> 0 | L46: Accentia Technologies Ltd GDR | M46: ACCENTECH.BO | Z46: =IFERROR(VLOOKUP(ROWS($Z$2:Z46),K46:$L$6000,2,0),"") ->  | AA46: =IFERROR(VLOOKUP(ROWS($AA$2:AA46),K46:$M$6000,3,0),"") -> 
K47: =IF(ISNUMBER(SEARCH($A$3,L47)),MAX($K$1:K46)+1,0) -> 0 | L47: Acclaim Industries Ltd | M47: ELPROPACKAG.BO | Z47: =IFERROR(VLOOKUP(ROWS($Z$2:Z47),K47:$L$6000,2,0),"") ->  | AA47: =IFERROR(VLOOKUP(ROWS($AA$2:AA47),K47:$M$6000,3,0),"") -> 
K48: =IF(ISNUMBER(SEARCH($A$3,L48)),MAX($K$1:K47)+1,0) -> 0 | L48: Accurate Transformers Ltd | M48: ACCURATE.BO | Z48: =IFERROR(VLOOKUP(ROWS($Z$2:Z48),K48:$L$6000,2,0),"") ->  | AA48: =IFERROR(VLOOKUP(ROWS($AA$2:AA48),K48:$M$6000,3,0),"") -> 
K49: =IF(ISNUMBER(SEARCH($A$3,L49)),MAX($K$1:K48)+1,0) -> 0 | L49: Ace Edutrend Ltd | M49: ACEINDI.BO | Z49: =IFERROR(VLOOKUP(ROWS($Z$2:Z49),K49:$L$6000,2,0),"") ->  | AA49: =IFERROR(VLOOKUP(ROWS($AA$2:AA49),K49:$M$6000,3,0),"") -> 
K50: =IF(ISNUMBER(SEARCH($A$3,L50)),MAX($K$1:K49)+1,0) -> 0 | L50: Ace Software Exports Ltd | M50: ACESOFT.BO | Z50: =IFERROR(VLOOKUP(ROWS($Z$2:Z50),K50:$L$6000,2,0),"") ->  | AA50: =IFERROR(VLOOKUP(ROWS($AA$2:AA50),K50:$M$6000,3,0),"") -> 
K51: =IF(ISNUMBER(SEARCH($A$3,L51)),MAX($K$1:K50)+1,0) -> 0 | L51: Acil Cotton Industries Ltd | M51: ACIL.BO | Z51: =IFERROR(VLOOKUP(ROWS($Z$2:Z51),K51:$L$6000,2,0),"") ->  | AA51: =IFERROR(VLOOKUP(ROWS($AA$2:AA51),K51:$M$6000,3,0),"") -> 
K52: =IF(ISNUMBER(SEARCH($A$3,L52)),MAX($K$1:K51)+1,0) -> 0 | L52: Acknit Industries Ltd | M52: ACKNIT.BO | Z52: =IFERROR(VLOOKUP(ROWS($Z$2:Z52),K52:$L$6000,2,0),"") ->  | AA52: =IFERROR(VLOOKUP(ROWS($AA$2:AA52),K52:$M$6000,3,0),"") -> 
K53: =IF(ISNUMBER(SEARCH($A$3,L53)),MAX($K$1:K52)+1,0) -> 0 | L53: Acrow India Ltd | M53: ACROW.BO | Z53: =IFERROR(VLOOKUP(ROWS($Z$2:Z53),K53:$L$6000,2,0),"") ->  | AA53: =IFERROR(VLOOKUP(ROWS($AA$2:AA53),K53:$M$6000,3,0),"") -> 
K54: =IF(ISNUMBER(SEARCH($A$3,L54)),MAX($K$1:K53)+1,0) -> 0 | L54: Acrysil Ltd | M54: ACRYSIL.BO | Z54: =IFERROR(VLOOKUP(ROWS($Z$2:Z54),K54:$L$6000,2,0),"") ->  | AA54: =IFERROR(VLOOKUP(ROWS($AA$2:AA54),K54:$M$6000,3,0),"") -> 
K55: =IF(ISNUMBER(SEARCH($A$3,L55)),MAX($K$1:K54)+1,0) -> 0 | L55: Action Construction Equip | M55: ACE.BO | Z55: =IFERROR(VLOOKUP(ROWS($Z$2:Z55),K55:$L$6000,2,0),"") ->  | AA55: =IFERROR(VLOOKUP(ROWS($AA$2:AA55),K55:$M$6000,3,0),"") -> 
K56: =IF(ISNUMBER(SEARCH($A$3,L56)),MAX($K$1:K55)+1,0) -> 0 | L56: Action Construction Equip | M56: ACE.NS | Z56: =IFERROR(VLOOKUP(ROWS($Z$2:Z56),K56:$L$6000,2,0),"") ->  | AA56: =IFERROR(VLOOKUP(ROWS($AA$2:AA56),K56:$M$6000,3,0),"") -> 
K57: =IF(ISNUMBER(SEARCH($A$3,L57)),MAX($K$1:K56)+1,0) -> 0 | L57: Action Financial Services | M57: ACTIONFI.BO | Z57: =IFERROR(VLOOKUP(ROWS($Z$2:Z57),K57:$L$6000,2,0),"") ->  | AA57: =IFERROR(VLOOKUP(ROWS($AA$2:AA57),K57:$M$6000,3,0),"") -> 
K58: =IF(ISNUMBER(SEARCH($A$3,L58)),MAX($K$1:K57)+1,0) -> 0 | L58: Adani Ports & Special | M58: MUNDRAPOR.BO | Z58: =IFERROR(VLOOKUP(ROWS($Z$2:Z58),K58:$L$6000,2,0),"") ->  | AA58: =IFERROR(VLOOKUP(ROWS($AA$2:AA58),K58:$M$6000,3,0),"") -> 
K59: =IF(ISNUMBER(SEARCH($A$3,L59)),MAX($K$1:K58)+1,0) -> 0 | L59: Adani Ports & Special | M59: MUNDRAPOR.NS | Z59: =IFERROR(VLOOKUP(ROWS($Z$2:Z59),K59:$L$6000,2,0),"") ->  | AA59: =IFERROR(VLOOKUP(ROWS($AA$2:AA59),K59:$M$6000,3,0),"") -> 
K60: =IF(ISNUMBER(SEARCH($A$3,L60)),MAX($K$1:K59)+1,0) -> 0 | L60: Adani Power Ltd | M60: ADANIPOWER.BO | Z60: =IFERROR(VLOOKUP(ROWS($Z$2:Z60),K60:$L$6000,2,0),"") ->  | AA60: =IFERROR(VLOOKUP(ROWS($AA$2:AA60),K60:$M$6000,3,0),"") -> 
K61: =IF(ISNUMBER(SEARCH($A$3,L61)),MAX($K$1:K60)+1,0) -> 0 | L61: Adani Power Ltd | M61: ADANIPOWE.NS | Z61: =IFERROR(VLOOKUP(ROWS($Z$2:Z61),K61:$L$6000,2,0),"") ->  | AA61: =IFERROR(VLOOKUP(ROWS($AA$2:AA61),K61:$M$6000,3,0),"") -> 
K62: =IF(ISNUMBER(SEARCH($A$3,L62)),MAX($K$1:K61)+1,0) -> 0 | L62: Adarsh Plant Protect Ltd | M62: ADARSHPL.BO | Z62: =IFERROR(VLOOKUP(ROWS($Z$2:Z62),K62:$L$6000,2,0),"") ->  | AA62: =IFERROR(VLOOKUP(ROWS($AA$2:AA62),K62:$M$6000,3,0),"") -> 
K63: =IF(ISNUMBER(SEARCH($A$3,L63)),MAX($K$1:K62)+1,0) -> 0 | L63: Addi Industries Ltd | M63: ADDIND.BO | Z63: =IFERROR(VLOOKUP(ROWS($Z$2:Z63),K63:$L$6000,2,0),"") ->  | AA63: =IFERROR(VLOOKUP(ROWS($AA$2:AA63),K63:$M$6000,3,0),"") -> 
K64: =IF(ISNUMBER(SEARCH($A$3,L64)),MAX($K$1:K63)+1,0) -> 0 | L64: ADF Foods Ltd | M64: ADFFOODQ.BO | Z64: =IFERROR(VLOOKUP(ROWS($Z$2:Z64),K64:$L$6000,2,0),"") ->  | AA64: =IFERROR(VLOOKUP(ROWS($AA$2:AA64),K64:$M$6000,3,0),"") -> 
K65: =IF(ISNUMBER(SEARCH($A$3,L65)),MAX($K$1:K64)+1,0) -> 0 | L65: Adhunik Metaliks Ltd | M65: ADHUNIK.BO | Z65: =IFERROR(VLOOKUP(ROWS($Z$2:Z65),K65:$L$6000,2,0),"") ->  | AA65: =IFERROR(VLOOKUP(ROWS($AA$2:AA65),K65:$M$6000,3,0),"") -> 
K66: =IF(ISNUMBER(SEARCH($A$3,L66)),MAX($K$1:K65)+1,0) -> 0 | L66: Adhunik Metaliks Ltd | M66: ADHUNIK.NS | Z66: =IFERROR(VLOOKUP(ROWS($Z$2:Z66),K66:$L$6000,2,0),"") ->  | AA66: =IFERROR(VLOOKUP(ROWS($AA$2:AA66),K66:$M$6000,3,0),"") -> 
K67: =IF(ISNUMBER(SEARCH($A$3,L67)),MAX($K$1:K66)+1,0) -> 0 | L67: Adi Finechem Ltd | M67: HKFINCHQ.BO | Z67: =IFERROR(VLOOKUP(ROWS($Z$2:Z67),K67:$L$6000,2,0),"") ->  | AA67: =IFERROR(VLOOKUP(ROWS($AA$2:AA67),K67:$M$6000,3,0),"") -> 
K68: =IF(ISNUMBER(SEARCH($A$3,L68)),MAX($K$1:K67)+1,0) -> 0 | L68: Adi RaSAyan Ltd | M68: ADIRASA.BO | Z68: =IFERROR(VLOOKUP(ROWS($Z$2:Z68),K68:$L$6000,2,0),"") ->  | AA68: =IFERROR(VLOOKUP(ROWS($AA$2:AA68),K68:$M$6000,3,0),"") -> 
K69: =IF(ISNUMBER(SEARCH($A$3,L69)),MAX($K$1:K68)+1,0) -> 0 | L69: Adinath Bio-Labs Ltd | M69: ADINATHBI.BO | Z69: =IFERROR(VLOOKUP(ROWS($Z$2:Z69),K69:$L$6000,2,0),"") ->  | AA69: =IFERROR(VLOOKUP(ROWS($AA$2:AA69),K69:$M$6000,3,0),"") -> 
K70: =IF(ISNUMBER(SEARCH($A$3,L70)),MAX($K$1:K69)+1,0) -> 0 | L70: Adinath Exim Resources Ltd | M70: ADIEXRE.BO | Z70: =IFERROR(VLOOKUP(ROWS($Z$2:Z70),K70:$L$6000,2,0),"") ->  | AA70: =IFERROR(VLOOKUP(ROWS($AA$2:AA70),K70:$M$6000,3,0),"") -> 
K71: =IF(ISNUMBER(SEARCH($A$3,L71)),MAX($K$1:K70)+1,0) -> 0 | L71: Adinath Textiles Ltd | M71: ADINATH.BO | Z71: =IFERROR(VLOOKUP(ROWS($Z$2:Z71),K71:$L$6000,2,0),"") ->  | AA71: =IFERROR(VLOOKUP(ROWS($AA$2:AA71),K71:$M$6000,3,0),"") -> 
K72: =IF(ISNUMBER(SEARCH($A$3,L72)),MAX($K$1:K71)+1,0) -> 0 | L72: Aditya Birla Chemicals (I | M72: ABCIL.BO | Z72: =IFERROR(VLOOKUP(ROWS($Z$2:Z72),K72:$L$6000,2,0),"") ->  | AA72: =IFERROR(VLOOKUP(ROWS($AA$2:AA72),K72:$M$6000,3,0),"") -> 
K73: =IF(ISNUMBER(SEARCH($A$3,L73)),MAX($K$1:K72)+1,0) -> 0 | L73: Aditya Birla Chemicals (I | M73: ABCIL.NS | Z73: =IFERROR(VLOOKUP(ROWS($Z$2:Z73),K73:$L$6000,2,0),"") ->  | AA73: =IFERROR(VLOOKUP(ROWS($AA$2:AA73),K73:$M$6000,3,0),"") -> 
K74: =IF(ISNUMBER(SEARCH($A$3,L74)),MAX($K$1:K73)+1,0) -> 0 | L74: Aditya Birla Money Ltd | M74: ABML.BO | Z74: =IFERROR(VLOOKUP(ROWS($Z$2:Z74),K74:$L$6000,2,0),"") ->  | AA74: =IFERROR(VLOOKUP(ROWS($AA$2:AA74),K74:$M$6000,3,0),"") -> 
K75: =IF(ISNUMBER(SEARCH($A$3,L75)),MAX($K$1:K74)+1,0) -> 0 | L75: Aditya Birla Money Ltd | M75: BIRLAMONE.NS | Z75: =IFERROR(VLOOKUP(ROWS($Z$2:Z75),K75:$L$6000,2,0),"") ->  | AA75: =IFERROR(VLOOKUP(ROWS($AA$2:AA75),K75:$M$6000,3,0),"") -> 
K76: =IF(ISNUMBER(SEARCH($A$3,L76)),MAX($K$1:K75)+1,0) -> 0 | L76: Aditya Birla Nuvo Ltd | M76: ABIRLANUV.BO | Z76: =IFERROR(VLOOKUP(ROWS($Z$2:Z76),K76:$L$6000,2,0),"") ->  | AA76: =IFERROR(VLOOKUP(ROWS($AA$2:AA76),K76:$M$6000,3,0),"") -> 
K77: =IF(ISNUMBER(SEARCH($A$3,L77)),MAX($K$1:K76)+1,0) -> 0 | L77: Aditya Birla Nuvo Ltd | M77: ABIRLANUV.NS | Z77: =IFERROR(VLOOKUP(ROWS($Z$2:Z77),K77:$L$6000,2,0),"") ->  | AA77: =IFERROR(VLOOKUP(ROWS($AA$2:AA77),K77:$M$6000,3,0),"") -> 
K78: =IF(ISNUMBER(SEARCH($A$3,L78)),MAX($K$1:K77)+1,0) -> 0 | L78: Aditya Forge Ltd | M78: ADTYFRG.BO | Z78: =IFERROR(VLOOKUP(ROWS($Z$2:Z78),K78:$L$6000,2,0),"") ->  | AA78: =IFERROR(VLOOKUP(ROWS($AA$2:AA78),K78:$M$6000,3,0),"") -> 
K79: =IF(ISNUMBER(SEARCH($A$3,L79)),MAX($K$1:K78)+1,0) -> 0 | L79: Aditya Ispat Ltd | M79: ADITYA.BO | Z79: =IFERROR(VLOOKUP(ROWS($Z$2:Z79),K79:$L$6000,2,0),"") ->  | AA79: =IFERROR(VLOOKUP(ROWS($AA$2:AA79),K79:$M$6000,3,0),"") -> 
K80: =IF(ISNUMBER(SEARCH($A$3,L80)),MAX($K$1:K79)+1,0) -> 0 | L80: Ad-Manum Finance Ltd | M80: ADMANUM.BO | Z80: =IFERROR(VLOOKUP(ROWS($Z$2:Z80),K80:$L$6000,2,0),"") ->  | AA80: =IFERROR(VLOOKUP(ROWS($AA$2:AA80),K80:$M$6000,3,0),"") -> 
K81: =IF(ISNUMBER(SEARCH($A$3,L81)),MAX($K$1:K80)+1,0) -> 0 | L81: Ador Fontech Ltd | M81: ADORFO.BO | Z81: =IFERROR(VLOOKUP(ROWS($Z$2:Z81),K81:$L$6000,2,0),"") ->  | AA81: =IFERROR(VLOOKUP(ROWS($AA$2:AA81),K81:$M$6000,3,0),"") -> 
K82: =IF(ISNUMBER(SEARCH($A$3,L82)),MAX($K$1:K81)+1,0) -> 0 | L82: Ador Multiproducts Ltd | M82: ADORMUL.BO | Z82: =IFERROR(VLOOKUP(ROWS($Z$2:Z82),K82:$L$6000,2,0),"") ->  | AA82: =IFERROR(VLOOKUP(ROWS($AA$2:AA82),K82:$M$6000,3,0),"") -> 
K83: =IF(ISNUMBER(SEARCH($A$3,L83)),MAX($K$1:K82)+1,0) -> 0 | L83: Ador Welding Ltd | M83: ADORWELDING.BO | Z83: =IFERROR(VLOOKUP(ROWS($Z$2:Z83),K83:$L$6000,2,0),"") ->  | AA83: =IFERROR(VLOOKUP(ROWS($AA$2:AA83),K83:$M$6000,3,0),"") -> 
K84: =IF(ISNUMBER(SEARCH($A$3,L84)),MAX($K$1:K83)+1,0) -> 0 | L84: Ador Welding Ltd | M84: ADORWELD.NS | Z84: =IFERROR(VLOOKUP(ROWS($Z$2:Z84),K84:$L$6000,2,0),"") ->  | AA84: =IFERROR(VLOOKUP(ROWS($AA$2:AA84),K84:$M$6000,3,0),"") -> 
K85: =IF(ISNUMBER(SEARCH($A$3,L85)),MAX($K$1:K84)+1,0) -> 0 | L85: Advance Powerinfra Tech Ltd | M85: MARSONS.BO | Z85: =IFERROR(VLOOKUP(ROWS($Z$2:Z85),K85:$L$6000,2,0),"") ->  | AA85: =IFERROR(VLOOKUP(ROWS($AA$2:AA85),K85:$M$6000,3,0),"") -> 
K86: =IF(ISNUMBER(SEARCH($A$3,L86)),MAX($K$1:K85)+1,0) -> 0 | L86: Advanced Micronic Devices Ltd | M86: ADVNCMIC.BO | Z86: =IFERROR(VLOOKUP(ROWS($Z$2:Z86),K86:$L$6000,2,0),"") ->  | AA86: =IFERROR(VLOOKUP(ROWS($AA$2:AA86),K86:$M$6000,3,0),"") -> 
K87: =IF(ISNUMBER(SEARCH($A$3,L87)),MAX($K$1:K86)+1,0) -> 0 | L87: Advani Hotels & Resorts I | M87: ADVANIHO.BO | Z87: =IFERROR(VLOOKUP(ROWS($Z$2:Z87),K87:$L$6000,2,0),"") ->  | AA87: =IFERROR(VLOOKUP(ROWS($AA$2:AA87),K87:$M$6000,3,0),"") -> 
K88: =IF(ISNUMBER(SEARCH($A$3,L88)),MAX($K$1:K87)+1,0) -> 0 | L88: Advani Hotels & Resorts I | M88: ADVANIHOT.NS | Z88: =IFERROR(VLOOKUP(ROWS($Z$2:Z88),K88:$L$6000,2,0),"") ->  | AA88: =IFERROR(VLOOKUP(ROWS($AA$2:AA88),K88:$M$6000,3,0),"") -> 
K89: =IF(ISNUMBER(SEARCH($A$3,L89)),MAX($K$1:K88)+1,0) -> 0 | L89: Advanta Ltd | M89: ADVANTA.BO | Z89: =IFERROR(VLOOKUP(ROWS($Z$2:Z89),K89:$L$6000,2,0),"") ->  | AA89: =IFERROR(VLOOKUP(ROWS($AA$2:AA89),K89:$M$6000,3,0),"") -> 
K90: =IF(ISNUMBER(SEARCH($A$3,L90)),MAX($K$1:K89)+1,0) -> 0 | L90: Advanta Ltd | M90: ADVANTA.NS | Z90: =IFERROR(VLOOKUP(ROWS($Z$2:Z90),K90:$L$6000,2,0),"") ->  | AA90: =IFERROR(VLOOKUP(ROWS($AA$2:AA90),K90:$M$6000,3,0),"") -> 
K91: =IF(ISNUMBER(SEARCH($A$3,L91)),MAX($K$1:K90)+1,0) -> 0 | L91: Advent Computer Services Ltd | M91: ADVENT.BO | Z91: =IFERROR(VLOOKUP(ROWS($Z$2:Z91),K91:$L$6000,2,0),"") ->  | AA91: =IFERROR(VLOOKUP(ROWS($AA$2:AA91),K91:$M$6000,3,0),"") -> 
K92: =IF(ISNUMBER(SEARCH($A$3,L92)),MAX($K$1:K91)+1,0) -> 0 | L92: Advik Laboratories Ltd | M92: ADVIKLA.BO | Z92: =IFERROR(VLOOKUP(ROWS($Z$2:Z92),K92:$L$6000,2,0),"") ->  | AA92: =IFERROR(VLOOKUP(ROWS($AA$2:AA92),K92:$M$6000,3,0),"") -> 
K93: =IF(ISNUMBER(SEARCH($A$3,L93)),MAX($K$1:K92)+1,0) -> 0 | L93: Aegis Logistics Ltd | M93: AEGISLOG.BO | Z93: =IFERROR(VLOOKUP(ROWS($Z$2:Z93),K93:$L$6000,2,0),"") ->  | AA93: =IFERROR(VLOOKUP(ROWS($AA$2:AA93),K93:$M$6000,3,0),"") -> 
K94: =IF(ISNUMBER(SEARCH($A$3,L94)),MAX($K$1:K93)+1,0) -> 0 | L94: Aegis Logistics Ltd | M94: AEGISCHEM.NS | Z94: =IFERROR(VLOOKUP(ROWS($Z$2:Z94),K94:$L$6000,2,0),"") ->  | AA94: =IFERROR(VLOOKUP(ROWS($AA$2:AA94),K94:$M$6000,3,0),"") -> 
K95: =IF(ISNUMBER(SEARCH($A$3,L95)),MAX($K$1:K94)+1,0) -> 0 | L95: Aftek Ltd | M95: AFTEKLTD.BO | Z95: =IFERROR(VLOOKUP(ROWS($Z$2:Z95),K95:$L$6000,2,0),"") ->  | AA95: =IFERROR(VLOOKUP(ROWS($AA$2:AA95),K95:$M$6000,3,0),"") -> 
K96: =IF(ISNUMBER(SEARCH($A$3,L96)),MAX($K$1:K95)+1,0) -> 0 | L96: Aftek Ltd | M96: AFTEK.NS | Z96: =IFERROR(VLOOKUP(ROWS($Z$2:Z96),K96:$L$6000,2,0),"") ->  | AA96: =IFERROR(VLOOKUP(ROWS($AA$2:AA96),K96:$M$6000,3,0),"") -> 
K97: =IF(ISNUMBER(SEARCH($A$3,L97)),MAX($K$1:K96)+1,0) -> 0 | L97: Agarwal Industrial Corp Ltd | M97: AGARIND.BO | Z97: =IFERROR(VLOOKUP(ROWS($Z$2:Z97),K97:$L$6000,2,0),"") ->  | AA97: =IFERROR(VLOOKUP(ROWS($AA$2:AA97),K97:$M$6000,3,0),"") -> 
K98: =IF(ISNUMBER(SEARCH($A$3,L98)),MAX($K$1:K97)+1,0) -> 0 | L98: AGC Networks Ltd | M98: AVAYA.BO | Z98: =IFERROR(VLOOKUP(ROWS($Z$2:Z98),K98:$L$6000,2,0),"") ->  | AA98: =IFERROR(VLOOKUP(ROWS($AA$2:AA98),K98:$M$6000,3,0),"") -> 
K99: =IF(ISNUMBER(SEARCH($A$3,L99)),MAX($K$1:K98)+1,0) -> 0 | L99: AGC Networks Ltd | M99: AGCNET.NS | Z99: =IFERROR(VLOOKUP(ROWS($Z$2:Z99),K99:$L$6000,2,0),"") ->  | AA99: =IFERROR(VLOOKUP(ROWS($AA$2:AA99),K99:$M$6000,3,0),"") -> 
K100: =IF(ISNUMBER(SEARCH($A$3,L100)),MAX($K$1:K99)+1,0) -> 0 | L100: Agio Paper & Industries Ltd | M100: AGIOPAPER.BO | Z100: =IFERROR(VLOOKUP(ROWS($Z$2:Z100),K100:$L$6000,2,0),"") ->  | AA100: =IFERROR(VLOOKUP(ROWS($AA$2:AA100),K100:$M$6000,3,0),"") -> 
K101: =IF(ISNUMBER(SEARCH($A$3,L101)),MAX($K$1:K100)+1,0) -> 0 | L101: Agro Dutch Industries Ltd | M101: AGRODUT.BO | Z101: =IFERROR(VLOOKUP(ROWS($Z$2:Z101),K101:$L$6000,2,0),"") ->  | AA101: =IFERROR(VLOOKUP(ROWS($AA$2:AA101),K101:$M$6000,3,0),"") -> 
K102: =IF(ISNUMBER(SEARCH($A$3,L102)),MAX($K$1:K101)+1,0) -> 0 | L102: Agro Dutch Industries Ltd | M102: AGRODUTCH.NS | Z102: =IFERROR(VLOOKUP(ROWS($Z$2:Z102),K102:$L$6000,2,0),"") ->  | AA102: =IFERROR(VLOOKUP(ROWS($AA$2:AA102),K102:$M$6000,3,0),"") -> 
K103: =IF(ISNUMBER(SEARCH($A$3,L103)),MAX($K$1:K102)+1,0) -> 0 | L103: Agro Tech Foods Ltd | M103: AGROTECHFO.BO | Z103: =IFERROR(VLOOKUP(ROWS($Z$2:Z103),K103:$L$6000,2,0),"") ->  | AA103: =IFERROR(VLOOKUP(ROWS($AA$2:AA103),K103:$M$6000,3,0),"") -> 
K104: =IF(ISNUMBER(SEARCH($A$3,L104)),MAX($K$1:K103)+1,0) -> 0 | L104: Agro Tech Foods Ltd | M104: ATFL.NS | Z104: =IFERROR(VLOOKUP(ROWS($Z$2:Z104),K104:$L$6000,2,0),"") ->  | AA104: =IFERROR(VLOOKUP(ROWS($AA$2:AA104),K104:$M$6000,3,0),"") -> 
K105: =IF(ISNUMBER(SEARCH($A$3,L105)),MAX($K$1:K104)+1,0) -> 0 | L105: Ahlcon Parenterals India Ltd | M105: AHLCONQ.BO | Z105: =IFERROR(VLOOKUP(ROWS($Z$2:Z105),K105:$L$6000,2,0),"") ->  | AA105: =IFERROR(VLOOKUP(ROWS($AA$2:AA105),K105:$M$6000,3,0),"") -> 
K106: =IF(ISNUMBER(SEARCH($A$3,L106)),MAX($K$1:K105)+1,0) -> 0 | L106: Ahluwalia Contracts India Ltd | M106: AHLUCONT.BO | Z106: =IFERROR(VLOOKUP(ROWS($Z$2:Z106),K106:$L$6000,2,0),"") ->  | AA106: =IFERROR(VLOOKUP(ROWS($AA$2:AA106),K106:$M$6000,3,0),"") -> 
K107: =IF(ISNUMBER(SEARCH($A$3,L107)),MAX($K$1:K106)+1,0) -> 0 | L107: Ahmedabad Steelcraft Ltd | M107: AHMDSTE.BO | Z107: =IFERROR(VLOOKUP(ROWS($Z$2:Z107),K107:$L$6000,2,0),"") ->  | AA107: =IFERROR(VLOOKUP(ROWS($AA$2:AA107),K107:$M$6000,3,0),"") -> 
K108: =IF(ISNUMBER(SEARCH($A$3,L108)),MAX($K$1:K107)+1,0) -> 0 | L108: Ahmednagar Forgings Ltd | M108: AHMEDFO.BO | Z108: =IFERROR(VLOOKUP(ROWS($Z$2:Z108),K108:$L$6000,2,0),"") ->  | AA108: =IFERROR(VLOOKUP(ROWS($AA$2:AA108),K108:$M$6000,3,0),"") -> 
K109: =IF(ISNUMBER(SEARCH($A$3,L109)),MAX($K$1:K108)+1,0) -> 0 | L109: Ahmednagar Forgings Ltd | M109: AHMEDFORG.NS | Z109: =IFERROR(VLOOKUP(ROWS($Z$2:Z109),K109:$L$6000,2,0),"") ->  | AA109: =IFERROR(VLOOKUP(ROWS($AA$2:AA109),K109:$M$6000,3,0),"") -> 
K110: =IF(ISNUMBER(SEARCH($A$3,L110)),MAX($K$1:K109)+1,0) -> 0 | L110: AIA Engineering Ltd | M110: AIAENG.BO | Z110: =IFERROR(VLOOKUP(ROWS($Z$2:Z110),K110:$L$6000,2,0),"") ->  | AA110: =IFERROR(VLOOKUP(ROWS($AA$2:AA110),K110:$M$6000,3,0),"") -> 
K111: =IF(ISNUMBER(SEARCH($A$3,L111)),MAX($K$1:K110)+1,0) -> 0 | L111: AIA Engineering Ltd | M111: AIAENG.NS | Z111: =IFERROR(VLOOKUP(ROWS($Z$2:Z111),K111:$L$6000,2,0),"") ->  | AA111: =IFERROR(VLOOKUP(ROWS($AA$2:AA111),K111:$M$6000,3,0),"") -> 
K112: =IF(ISNUMBER(SEARCH($A$3,L112)),MAX($K$1:K111)+1,0) -> 0 | L112: Aimco Pesticides Ltd | M112: AIMCO.BO | Z112: =IFERROR(VLOOKUP(ROWS($Z$2:Z112),K112:$L$6000,2,0),"") ->  | AA112: =IFERROR(VLOOKUP(ROWS($AA$2:AA112),K112:$M$6000,3,0),"") -> 
K113: =IF(ISNUMBER(SEARCH($A$3,L113)),MAX($K$1:K112)+1,0) -> 0 | L113: Aishwarya Technologies | M113: AISHWARYA.BO | Z113: =IFERROR(VLOOKUP(ROWS($Z$2:Z113),K113:$L$6000,2,0),"") ->  | AA113: =IFERROR(VLOOKUP(ROWS($AA$2:AA113),K113:$M$6000,3,0),"") -> 
K114: =IF(ISNUMBER(SEARCH($A$3,L114)),MAX($K$1:K113)+1,0) -> 0 | L114: Ajanta Soya Ltd | M114: AJANTSOY.BO | Z114: =IFERROR(VLOOKUP(ROWS($Z$2:Z114),K114:$L$6000,2,0),"") ->  | AA114: =IFERROR(VLOOKUP(ROWS($AA$2:AA114),K114:$M$6000,3,0),"") -> 
K115: =IF(ISNUMBER(SEARCH($A$3,L115)),MAX($K$1:K114)+1,0) -> 0 | L115: Ajcon Global Services Ltd | M115: AJCON.BO | Z115: =IFERROR(VLOOKUP(ROWS($Z$2:Z115),K115:$L$6000,2,0),"") ->  | AA115: =IFERROR(VLOOKUP(ROWS($AA$2:AA115),K115:$M$6000,3,0),"") -> 
K116: =IF(ISNUMBER(SEARCH($A$3,L116)),MAX($K$1:K115)+1,0) -> 0 | L116: Ajel Ltd | M116: AJEL.BO | Z116: =IFERROR(VLOOKUP(ROWS($Z$2:Z116),K116:$L$6000,2,0),"") ->  | AA116: =IFERROR(VLOOKUP(ROWS($AA$2:AA116),K116:$M$6000,3,0),"") -> 
K117: =IF(ISNUMBER(SEARCH($A$3,L117)),MAX($K$1:K116)+1,0) -> 0 | L117: Ajmera Realty & Infra Ind | M117: AJMERA.BO | Z117: =IFERROR(VLOOKUP(ROWS($Z$2:Z117),K117:$L$6000,2,0),"") ->  | AA117: =IFERROR(VLOOKUP(ROWS($AA$2:AA117),K117:$M$6000,3,0),"") -> 
K118: =IF(ISNUMBER(SEARCH($A$3,L118)),MAX($K$1:K117)+1,0) -> 0 | L118: Ajmera Realty & Infra Ind | M118: AJMERA.NS | Z118: =IFERROR(VLOOKUP(ROWS($Z$2:Z118),K118:$L$6000,2,0),"") ->  | AA118: =IFERROR(VLOOKUP(ROWS($AA$2:AA118),K118:$M$6000,3,0),"") -> 
K119: =IF(ISNUMBER(SEARCH($A$3,L119)),MAX($K$1:K118)+1,0) -> 0 | L119: Ajwa Fun World & Resort Ltd | M119: AJWAFUN.BO | Z119: =IFERROR(VLOOKUP(ROWS($Z$2:Z119),K119:$L$6000,2,0),"") ->  | AA119: =IFERROR(VLOOKUP(ROWS($AA$2:AA119),K119:$M$6000,3,0),"") -> 
K120: =IF(ISNUMBER(SEARCH($A$3,L120)),MAX($K$1:K119)+1,0) -> 0 | L120: Akar Tools Ltd | M120: AKARTOOL.BO | Z120: =IFERROR(VLOOKUP(ROWS($Z$2:Z120),K120:$L$6000,2,0),"") ->  | AA120: =IFERROR(VLOOKUP(ROWS($AA$2:AA120),K120:$M$6000,3,0),"") -> 
K121: =IF(ISNUMBER(SEARCH($A$3,L121)),MAX($K$1:K120)+1,0) -> 0 | L121: Aksh Optifibre Ltd | M121: AKSHOPTFBR.BO | Z121: =IFERROR(VLOOKUP(ROWS($Z$2:Z121),K121:$L$6000,2,0),"") ->  | AA121: =IFERROR(VLOOKUP(ROWS($AA$2:AA121),K121:$M$6000,3,0),"") -> 
K122: =IF(ISNUMBER(SEARCH($A$3,L122)),MAX($K$1:K121)+1,0) -> 0 | L122: Aksh Optifibre Ltd | M122: AKSHOPTFB.NS | Z122: =IFERROR(VLOOKUP(ROWS($Z$2:Z122),K122:$L$6000,2,0),"") ->  | AA122: =IFERROR(VLOOKUP(ROWS($AA$2:AA122),K122:$M$6000,3,0),"") -> 
K123: =IF(ISNUMBER(SEARCH($A$3,L123)),MAX($K$1:K122)+1,0) -> 0 | L123: AksharChem (India) Ltd | M123: AKSCHEM.BO | Z123: =IFERROR(VLOOKUP(ROWS($Z$2:Z123),K123:$L$6000,2,0),"") ->  | AA123: =IFERROR(VLOOKUP(ROWS($AA$2:AA123),K123:$M$6000,3,0),"") -> 
K124: =IF(ISNUMBER(SEARCH($A$3,L124)),MAX($K$1:K123)+1,0) -> 0 | L124: Akzo Nobel India Ltd | M124: ICI.BO | Z124: =IFERROR(VLOOKUP(ROWS($Z$2:Z124),K124:$L$6000,2,0),"") ->  | AA124: =IFERROR(VLOOKUP(ROWS($AA$2:AA124),K124:$M$6000,3,0),"") -> 
K125: =IF(ISNUMBER(SEARCH($A$3,L125)),MAX($K$1:K124)+1,0) -> 0 | L125: Akzo Nobel India Ltd | M125: AKZOINDIA.NS | Z125: =IFERROR(VLOOKUP(ROWS($Z$2:Z125),K125:$L$6000,2,0),"") ->  | AA125: =IFERROR(VLOOKUP(ROWS($AA$2:AA125),K125:$M$6000,3,0),"") -> 
K126: =IF(ISNUMBER(SEARCH($A$3,L126)),MAX($K$1:K125)+1,0) -> 0 | L126: Alang Industrial Gases Ltd | M126: ALANGIND.BO | Z126: =IFERROR(VLOOKUP(ROWS($Z$2:Z126),K126:$L$6000,2,0),"") ->  | AA126: =IFERROR(VLOOKUP(ROWS($AA$2:AA126),K126:$M$6000,3,0),"") -> 
K127: =IF(ISNUMBER(SEARCH($A$3,L127)),MAX($K$1:K126)+1,0) -> 0 | L127: Albert David Ltd | M127: ALBERTDA.BO | Z127: =IFERROR(VLOOKUP(ROWS($Z$2:Z127),K127:$L$6000,2,0),"") ->  | AA127: =IFERROR(VLOOKUP(ROWS($AA$2:AA127),K127:$M$6000,3,0),"") -> 
K128: =IF(ISNUMBER(SEARCH($A$3,L128)),MAX($K$1:K127)+1,0) -> 0 | L128: Alchemist Corp Ltd | M128: ALCHCORP.BO | Z128: =IFERROR(VLOOKUP(ROWS($Z$2:Z128),K128:$L$6000,2,0),"") ->  | AA128: =IFERROR(VLOOKUP(ROWS($AA$2:AA128),K128:$M$6000,3,0),"") -> 
K129: =IF(ISNUMBER(SEARCH($A$3,L129)),MAX($K$1:K128)+1,0) -> 0 | L129: Alchemist Ltd | M129: ALCHEMIST.BO | Z129: =IFERROR(VLOOKUP(ROWS($Z$2:Z129),K129:$L$6000,2,0),"") ->  | AA129: =IFERROR(VLOOKUP(ROWS($AA$2:AA129),K129:$M$6000,3,0),"") -> 
K130: =IF(ISNUMBER(SEARCH($A$3,L130)),MAX($K$1:K129)+1,0) -> 0 | L130: Alchemist Ltd | M130: ALCHEM.NS | Z130: =IFERROR(VLOOKUP(ROWS($Z$2:Z130),K130:$L$6000,2,0),"") ->  | AA130: =IFERROR(VLOOKUP(ROWS($AA$2:AA130),K130:$M$6000,3,0),"") -> 
K131: =IF(ISNUMBER(SEARCH($A$3,L131)),MAX($K$1:K130)+1,0) -> 0 | L131: Alchemist Realty Ltd | M131: AREALTY.BO | Z131: =IFERROR(VLOOKUP(ROWS($Z$2:Z131),K131:$L$6000,2,0),"") ->  | AA131: =IFERROR(VLOOKUP(ROWS($AA$2:AA131),K131:$M$6000,3,0),"") -> 
K132: =IF(ISNUMBER(SEARCH($A$3,L132)),MAX($K$1:K131)+1,0) -> 0 | L132: Alembic Ltd | M132: ALEMBICLTD.BO | Z132: =IFERROR(VLOOKUP(ROWS($Z$2:Z132),K132:$L$6000,2,0),"") ->  | AA132: =IFERROR(VLOOKUP(ROWS($AA$2:AA132),K132:$M$6000,3,0),"") -> 
K133: =IF(ISNUMBER(SEARCH($A$3,L133)),MAX($K$1:K132)+1,0) -> 0 | L133: Alembic Ltd | M133: ALEMBICLT.NS | Z133: =IFERROR(VLOOKUP(ROWS($Z$2:Z133),K133:$L$6000,2,0),"") ->  | AA133: =IFERROR(VLOOKUP(ROWS($AA$2:AA133),K133:$M$6000,3,0),"") -> 
K134: =IF(ISNUMBER(SEARCH($A$3,L134)),MAX($K$1:K133)+1,0) -> 0 | L134: Alfa Ica (India) Ltd | M134: ALFAICA.BO | Z134: =IFERROR(VLOOKUP(ROWS($Z$2:Z134),K134:$L$6000,2,0),"") ->  | AA134: =IFERROR(VLOOKUP(ROWS($AA$2:AA134),K134:$M$6000,3,0),"") -> 
K135: =IF(ISNUMBER(SEARCH($A$3,L135)),MAX($K$1:K134)+1,0) -> 0 | L135: Alfa Transformers Ltd | M135: ALFATRAN.BO | Z135: =IFERROR(VLOOKUP(ROWS($Z$2:Z135),K135:$L$6000,2,0),"") ->  | AA135: =IFERROR(VLOOKUP(ROWS($AA$2:AA135),K135:$M$6000,3,0),"") -> 
K136: =IF(ISNUMBER(SEARCH($A$3,L136)),MAX($K$1:K135)+1,0) -> 0 | L136: Alfavision Overseas | M136: ALFAVIO.BO | Z136: =IFERROR(VLOOKUP(ROWS($Z$2:Z136),K136:$L$6000,2,0),"") ->  | AA136: =IFERROR(VLOOKUP(ROWS($AA$2:AA136),K136:$M$6000,3,0),"") -> 
K137: =IF(ISNUMBER(SEARCH($A$3,L137)),MAX($K$1:K136)+1,0) -> 0 | L137: Alfred Herbert India Ltd | M137: ALFREDHE.BO | Z137: =IFERROR(VLOOKUP(ROWS($Z$2:Z137),K137:$L$6000,2,0),"") ->  | AA137: =IFERROR(VLOOKUP(ROWS($AA$2:AA137),K137:$M$6000,3,0),"") -> 
K138: =IF(ISNUMBER(SEARCH($A$3,L138)),MAX($K$1:K137)+1,0) -> 0 | L138: Alicon Castalloy Ltd | M138: ENKEICAQ.BO | Z138: =IFERROR(VLOOKUP(ROWS($Z$2:Z138),K138:$L$6000,2,0),"") ->  | AA138: =IFERROR(VLOOKUP(ROWS($AA$2:AA138),K138:$M$6000,3,0),"") -> 
K139: =IF(ISNUMBER(SEARCH($A$3,L139)),MAX($K$1:K138)+1,0) -> 0 | L139: Alicon Castalloy Ltd | M139: ENKEI.NS | Z139: =IFERROR(VLOOKUP(ROWS($Z$2:Z139),K139:$L$6000,2,0),"") ->  | AA139: =IFERROR(VLOOKUP(ROWS($AA$2:AA139),K139:$M$6000,3,0),"") -> 
K140: =IF(ISNUMBER(SEARCH($A$3,L140)),MAX($K$1:K139)+1,0) -> 0 | L140: Alka Diamond Industries Ltd | M140: ALKADIA.BO | Z140: =IFERROR(VLOOKUP(ROWS($Z$2:Z140),K140:$L$6000,2,0),"") ->  | AA140: =IFERROR(VLOOKUP(ROWS($AA$2:AA140),K140:$M$6000,3,0),"") -> 
K141: =IF(ISNUMBER(SEARCH($A$3,L141)),MAX($K$1:K140)+1,0) -> 0 | L141: Alka India Ltd | M141: ALKA.BO | Z141: =IFERROR(VLOOKUP(ROWS($Z$2:Z141),K141:$L$6000,2,0),"") ->  | AA141: =IFERROR(VLOOKUP(ROWS($AA$2:AA141),K141:$M$6000,3,0),"") -> 
K142: =IF(ISNUMBER(SEARCH($A$3,L142)),MAX($K$1:K141)+1,0) -> 0 | L142: Alka Securities Ltd | M142: ALKASEC.BO | Z142: =IFERROR(VLOOKUP(ROWS($Z$2:Z142),K142:$L$6000,2,0),"") ->  | AA142: =IFERROR(VLOOKUP(ROWS($AA$2:AA142),K142:$M$6000,3,0),"") -> 
K143: =IF(ISNUMBER(SEARCH($A$3,L143)),MAX($K$1:K142)+1,0) -> 0 | L143: Alkyl Amines Chemicals Ltd | M143: ALKYLAM.BO | Z143: =IFERROR(VLOOKUP(ROWS($Z$2:Z143),K143:$L$6000,2,0),"") ->  | AA143: =IFERROR(VLOOKUP(ROWS($AA$2:AA143),K143:$M$6000,3,0),"") -> 
K144: =IF(ISNUMBER(SEARCH($A$3,L144)),MAX($K$1:K143)+1,0) -> 0 | L144: Alkyl Amines Chemicals Ltd | M144: ALKYLAMIN.NS | Z144: =IFERROR(VLOOKUP(ROWS($Z$2:Z144),K144:$L$6000,2,0),"") ->  | AA144: =IFERROR(VLOOKUP(ROWS($AA$2:AA144),K144:$M$6000,3,0),"") -> 
K145: =IF(ISNUMBER(SEARCH($A$3,L145)),MAX($K$1:K144)+1,0) -> 0 | L145: Allahabad Bank | M145: ALLBANKSL.BO | Z145: =IFERROR(VLOOKUP(ROWS($Z$2:Z145),K145:$L$6000,2,0),"") ->  | AA145: =IFERROR(VLOOKUP(ROWS($AA$2:AA145),K145:$M$6000,3,0),"") -> 
K146: =IF(ISNUMBER(SEARCH($A$3,L146)),MAX($K$1:K145)+1,0) -> 0 | L146: Allahabad Bank | M146: ALBK.NS | Z146: =IFERROR(VLOOKUP(ROWS($Z$2:Z146),K146:$L$6000,2,0),"") ->  | AA146: =IFERROR(VLOOKUP(ROWS($AA$2:AA146),K146:$M$6000,3,0),"") -> 
K147: =IF(ISNUMBER(SEARCH($A$3,L147)),MAX($K$1:K146)+1,0) -> 0 | L147: Allcargo Logistics Ltd | M147: ALLCARGO.BO | Z147: =IFERROR(VLOOKUP(ROWS($Z$2:Z147),K147:$L$6000,2,0),"") ->  | AA147: =IFERROR(VLOOKUP(ROWS($AA$2:AA147),K147:$M$6000,3,0),"") -> 
K148: =IF(ISNUMBER(SEARCH($A$3,L148)),MAX($K$1:K147)+1,0) -> 0 | L148: Allcargo Logistics Ltd | M148: ALLCARGO.NS | Z148: =IFERROR(VLOOKUP(ROWS($Z$2:Z148),K148:$L$6000,2,0),"") ->  | AA148: =IFERROR(VLOOKUP(ROWS($AA$2:AA148),K148:$M$6000,3,0),"") -> 
K149: =IF(ISNUMBER(SEARCH($A$3,L149)),MAX($K$1:K148)+1,0) -> 0 | L149: Allied Computers Internat | M149: ACIASIA.BO | Z149: =IFERROR(VLOOKUP(ROWS($Z$2:Z149),K149:$L$6000,2,0),"") ->  | AA149: =IFERROR(VLOOKUP(ROWS($AA$2:AA149),K149:$M$6000,3,0),"") -> 
K150: =IF(ISNUMBER(SEARCH($A$3,L150)),MAX($K$1:K149)+1,0) -> 0 | L150: Allied Digital Services Ltd | M150: ADSL.BO | Z150: =IFERROR(VLOOKUP(ROWS($Z$2:Z150),K150:$L$6000,2,0),"") ->  | AA150: =IFERROR(VLOOKUP(ROWS($AA$2:AA150),K150:$M$6000,3,0),"") -> 
K151: =IF(ISNUMBER(SEARCH($A$3,L151)),MAX($K$1:K150)+1,0) -> 0 | L151: Allied Digital Services Ltd | M151: ADSL.NS | Z151: =IFERROR(VLOOKUP(ROWS($Z$2:Z151),K151:$L$6000,2,0),"") ->  | AA151: =IFERROR(VLOOKUP(ROWS($AA$2:AA151),K151:$M$6000,3,0),"") -> 
K152: =IF(ISNUMBER(SEARCH($A$3,L152)),MAX($K$1:K151)+1,0) -> 0 | L152: Allied Herbals Ltd | M152: RAJDHNIL.BO | Z152: =IFERROR(VLOOKUP(ROWS($Z$2:Z152),K152:$L$6000,2,0),"") ->  | AA152: =IFERROR(VLOOKUP(ROWS($AA$2:AA152),K152:$M$6000,3,0),"") -> 
K153: =IF(ISNUMBER(SEARCH($A$3,L153)),MAX($K$1:K152)+1,0) -> 0 | L153: Allsec Technologies Ltd | M153: ALLSEC.BO | Z153: =IFERROR(VLOOKUP(ROWS($Z$2:Z153),K153:$L$6000,2,0),"") ->  | AA153: =IFERROR(VLOOKUP(ROWS($AA$2:AA153),K153:$M$6000,3,0),"") -> 
K154: =IF(ISNUMBER(SEARCH($A$3,L154)),MAX($K$1:K153)+1,0) -> 0 | L154: Allsec Technologies Ltd | M154: ALLSEC.NS | Z154: =IFERROR(VLOOKUP(ROWS($Z$2:Z154),K154:$L$6000,2,0),"") ->  | AA154: =IFERROR(VLOOKUP(ROWS($AA$2:AA154),K154:$M$6000,3,0),"") -> 
K155: =IF(ISNUMBER(SEARCH($A$3,L155)),MAX($K$1:K154)+1,0) -> 0 | L155: Almondz Capital | M155: ALMONDZ.BO | Z155: =IFERROR(VLOOKUP(ROWS($Z$2:Z155),K155:$L$6000,2,0),"") ->  | AA155: =IFERROR(VLOOKUP(ROWS($AA$2:AA155),K155:$M$6000,3,0),"") -> 
K156: =IF(ISNUMBER(SEARCH($A$3,L156)),MAX($K$1:K155)+1,0) -> 0 | L156: Almondz Global Securities Ltd | M156: ALMONDZGL.BO | Z156: =IFERROR(VLOOKUP(ROWS($Z$2:Z156),K156:$L$6000,2,0),"") ->  | AA156: =IFERROR(VLOOKUP(ROWS($AA$2:AA156),K156:$M$6000,3,0),"") -> 
K157: =IF(ISNUMBER(SEARCH($A$3,L157)),MAX($K$1:K156)+1,0) -> 0 | L157: Almondz Global Securities Ltd | M157: ALMONDZ.NS | Z157: =IFERROR(VLOOKUP(ROWS($Z$2:Z157),K157:$L$6000,2,0),"") ->  | AA157: =IFERROR(VLOOKUP(ROWS($AA$2:AA157),K157:$M$6000,3,0),"") -> 
K158: =IF(ISNUMBER(SEARCH($A$3,L158)),MAX($K$1:K157)+1,0) -> 0 | L158: Alok Industries Ltd | M158: ALOKIND.BO | Z158: =IFERROR(VLOOKUP(ROWS($Z$2:Z158),K158:$L$6000,2,0),"") ->  | AA158: =IFERROR(VLOOKUP(ROWS($AA$2:AA158),K158:$M$6000,3,0),"") -> 
K159: =IF(ISNUMBER(SEARCH($A$3,L159)),MAX($K$1:K158)+1,0) -> 0 | L159: Alok Industries Ltd | M159: ALOKTEXT.NS | Z159: =IFERROR(VLOOKUP(ROWS($Z$2:Z159),K159:$L$6000,2,0),"") ->  | AA159: =IFERROR(VLOOKUP(ROWS($AA$2:AA159),K159:$M$6000,3,0),"") -> 
K160: =IF(ISNUMBER(SEARCH($A$3,L160)),MAX($K$1:K159)+1,0) -> 0 | L160: Alpa Laboratories Ltd | M160: ALPA.BO | Z160: =IFERROR(VLOOKUP(ROWS($Z$2:Z160),K160:$L$6000,2,0),"") ->  | AA160: =IFERROR(VLOOKUP(ROWS($AA$2:AA160),K160:$M$6000,3,0),"") -> 
K161: =IF(ISNUMBER(SEARCH($A$3,L161)),MAX($K$1:K160)+1,0) -> 0 | L161: Alpa Laboratories Ltd | M161: ALPA.NS | Z161: =IFERROR(VLOOKUP(ROWS($Z$2:Z161),K161:$L$6000,2,0),"") ->  | AA161: =IFERROR(VLOOKUP(ROWS($AA$2:AA161),K161:$M$6000,3,0),"") -> 
K162: =IF(ISNUMBER(SEARCH($A$3,L162)),MAX($K$1:K161)+1,0) -> 0 | L162: Alpha Graphic India Ltd | M162: ALPGRAPH.BO | Z162: =IFERROR(VLOOKUP(ROWS($Z$2:Z162),K162:$L$6000,2,0),"") ->  | AA162: =IFERROR(VLOOKUP(ROWS($AA$2:AA162),K162:$M$6000,3,0),"") -> 
K163: =IF(ISNUMBER(SEARCH($A$3,L163)),MAX($K$1:K162)+1,0) -> 0 | L163: Alpha Hi-Tech Fuel Ltd | M163: ALPHA.BO | Z163: =IFERROR(VLOOKUP(ROWS($Z$2:Z163),K163:$L$6000,2,0),"") ->  | AA163: =IFERROR(VLOOKUP(ROWS($AA$2:AA163),K163:$M$6000,3,0),"") -> 
K164: =IF(ISNUMBER(SEARCH($A$3,L164)),MAX($K$1:K163)+1,0) -> 0 | L164: Alphageo India Ltd | M164: ALPHAGEO.BO | Z164: =IFERROR(VLOOKUP(ROWS($Z$2:Z164),K164:$L$6000,2,0),"") ->  | AA164: =IFERROR(VLOOKUP(ROWS($AA$2:AA164),K164:$M$6000,3,0),"") -> 
K165: =IF(ISNUMBER(SEARCH($A$3,L165)),MAX($K$1:K164)+1,0) -> 0 | L165: Alphageo India Ltd | M165: ALPHAGEO.NS | Z165: =IFERROR(VLOOKUP(ROWS($Z$2:Z165),K165:$L$6000,2,0),"") ->  | AA165: =IFERROR(VLOOKUP(ROWS($AA$2:AA165),K165:$M$6000,3,0),"") -> 
K166: =IF(ISNUMBER(SEARCH($A$3,L166)),MAX($K$1:K165)+1,0) -> 0 | L166: Alpine Housing Developmen | M166: ALPINEHO.BO | Z166: =IFERROR(VLOOKUP(ROWS($Z$2:Z166),K166:$L$6000,2,0),"") ->  | AA166: =IFERROR(VLOOKUP(ROWS($AA$2:AA166),K166:$M$6000,3,0),"") -> 
K167: =IF(ISNUMBER(SEARCH($A$3,L167)),MAX($K$1:K166)+1,0) -> 0 | L167: Alps Industries Ltd | M167: ALPSIND.BO | Z167: =IFERROR(VLOOKUP(ROWS($Z$2:Z167),K167:$L$6000,2,0),"") ->  | AA167: =IFERROR(VLOOKUP(ROWS($AA$2:AA167),K167:$M$6000,3,0),"") -> 
K168: =IF(ISNUMBER(SEARCH($A$3,L168)),MAX($K$1:K167)+1,0) -> 0 | L168: Alps Industries Ltd | M168: ALPSINDUS.NS | Z168: =IFERROR(VLOOKUP(ROWS($Z$2:Z168),K168:$L$6000,2,0),"") ->  | AA168: =IFERROR(VLOOKUP(ROWS($AA$2:AA168),K168:$M$6000,3,0),"") -> 
K169: =IF(ISNUMBER(SEARCH($A$3,L169)),MAX($K$1:K168)+1,0) -> 0 | L169: Alstom India Ltd | M169: ALSTOMPROJ.BO | Z169: =IFERROR(VLOOKUP(ROWS($Z$2:Z169),K169:$L$6000,2,0),"") ->  | AA169: =IFERROR(VLOOKUP(ROWS($AA$2:AA169),K169:$M$6000,3,0),"") -> 
K170: =IF(ISNUMBER(SEARCH($A$3,L170)),MAX($K$1:K169)+1,0) -> 0 | L170: Alstom India Ltd | M170: APIL.NS | Z170: =IFERROR(VLOOKUP(ROWS($Z$2:Z170),K170:$L$6000,2,0),"") ->  | AA170: =IFERROR(VLOOKUP(ROWS($AA$2:AA170),K170:$M$6000,3,0),"") -> 
K171: =IF(ISNUMBER(SEARCH($A$3,L171)),MAX($K$1:K170)+1,0) -> 0 | L171: ALSTOM T&D India Ltd | M171: AREVA.BO | Z171: =IFERROR(VLOOKUP(ROWS($Z$2:Z171),K171:$L$6000,2,0),"") ->  | AA171: =IFERROR(VLOOKUP(ROWS($AA$2:AA171),K171:$M$6000,3,0),"") -> 
K172: =IF(ISNUMBER(SEARCH($A$3,L172)),MAX($K$1:K171)+1,0) -> 0 | L172: Alufluoride Ltd | M172: ALUFLUOR.BO | Z172: =IFERROR(VLOOKUP(ROWS($Z$2:Z172),K172:$L$6000,2,0),"") ->  | AA172: =IFERROR(VLOOKUP(ROWS($AA$2:AA172),K172:$M$6000,3,0),"") -> 
K173: =IF(ISNUMBER(SEARCH($A$3,L173)),MAX($K$1:K172)+1,0) -> 0 | L173: Alumeco India Extrusion Ltd | M173: ALUMECO.BO | Z173: =IFERROR(VLOOKUP(ROWS($Z$2:Z173),K173:$L$6000,2,0),"") ->  | AA173: =IFERROR(VLOOKUP(ROWS($AA$2:AA173),K173:$M$6000,3,0),"") -> 
K174: =IF(ISNUMBER(SEARCH($A$3,L174)),MAX($K$1:K173)+1,0) -> 0 | L174: Amal Ltd | M174: AMAL.BO | Z174: =IFERROR(VLOOKUP(ROWS($Z$2:Z174),K174:$L$6000,2,0),"") ->  | AA174: =IFERROR(VLOOKUP(ROWS($AA$2:AA174),K174:$M$6000,3,0),"") -> 
K175: =IF(ISNUMBER(SEARCH($A$3,L175)),MAX($K$1:K174)+1,0) -> 0 | L175: Amani Trading & Exports Ltd | M175: AMANITRA.BO | Z175: =IFERROR(VLOOKUP(ROWS($Z$2:Z175),K175:$L$6000,2,0),"") ->  | AA175: =IFERROR(VLOOKUP(ROWS($AA$2:AA175),K175:$M$6000,3,0),"") -> 
K176: =IF(ISNUMBER(SEARCH($A$3,L176)),MAX($K$1:K175)+1,0) -> 0 | L176: Amarjothi Spinning Mills Ltd | M176: AMARJOSP.BO | Z176: =IFERROR(VLOOKUP(ROWS($Z$2:Z176),K176:$L$6000,2,0),"") ->  | AA176: =IFERROR(VLOOKUP(ROWS($AA$2:AA176),K176:$M$6000,3,0),"") -> 
K177: =IF(ISNUMBER(SEARCH($A$3,L177)),MAX($K$1:K176)+1,0) -> 0 | L177: Ambalal Sarabhai Enterpri | M177: AMBALALSA.BO | Z177: =IFERROR(VLOOKUP(ROWS($Z$2:Z177),K177:$L$6000,2,0),"") ->  | AA177: =IFERROR(VLOOKUP(ROWS($AA$2:AA177),K177:$M$6000,3,0),"") -> 
K178: =IF(ISNUMBER(SEARCH($A$3,L178)),MAX($K$1:K177)+1,0) -> 0 | L178: Ambica Agarbathies & Arom | M178: AMBICAGR.BO | Z178: =IFERROR(VLOOKUP(ROWS($Z$2:Z178),K178:$L$6000,2,0),"") ->  | AA178: =IFERROR(VLOOKUP(ROWS($AA$2:AA178),K178:$M$6000,3,0),"") -> 
K179: =IF(ISNUMBER(SEARCH($A$3,L179)),MAX($K$1:K178)+1,0) -> 0 | L179: Ambika Cotton Mills Ltd | M179: AMBIKCO.BO | Z179: =IFERROR(VLOOKUP(ROWS($Z$2:Z179),K179:$L$6000,2,0),"") ->  | AA179: =IFERROR(VLOOKUP(ROWS($AA$2:AA179),K179:$M$6000,3,0),"") -> 
K180: =IF(ISNUMBER(SEARCH($A$3,L180)),MAX($K$1:K179)+1,0) -> 0 | L180: Ambika Cotton Mills Ltd | M180: AMBIKCO.NS | Z180: =IFERROR(VLOOKUP(ROWS($Z$2:Z180),K180:$L$6000,2,0),"") ->  | AA180: =IFERROR(VLOOKUP(ROWS($AA$2:AA180),K180:$M$6000,3,0),"") -> 
K181: =IF(ISNUMBER(SEARCH($A$3,L181)),MAX($K$1:K180)+1,0) -> 0 | L181: Ambitious Plastomac Co Ltd | M181: AMBIT.BO | Z181: =IFERROR(VLOOKUP(ROWS($Z$2:Z181),K181:$L$6000,2,0),"") ->  | AA181: =IFERROR(VLOOKUP(ROWS($AA$2:AA181),K181:$M$6000,3,0),"") -> 
K182: =IF(ISNUMBER(SEARCH($A$3,L182)),MAX($K$1:K181)+1,0) -> 0 | L182: Ambuja Cements Ltd | M182: ACL.BO | Z182: =IFERROR(VLOOKUP(ROWS($Z$2:Z182),K182:$L$6000,2,0),"") ->  | AA182: =IFERROR(VLOOKUP(ROWS($AA$2:AA182),K182:$M$6000,3,0),"") -> 
K183: =IF(ISNUMBER(SEARCH($A$3,L183)),MAX($K$1:K182)+1,0) -> 0 | L183: Ambuja Cements Ltd | M183: AMBUJACEM.NS | Z183: =IFERROR(VLOOKUP(ROWS($Z$2:Z183),K183:$L$6000,2,0),"") ->  | AA183: =IFERROR(VLOOKUP(ROWS($AA$2:AA183),K183:$M$6000,3,0),"") -> 
K184: =IF(ISNUMBER(SEARCH($A$3,L184)),MAX($K$1:K183)+1,0) -> 0 | L184: Amco India Ltd | M184: AMCOIND.BO | Z184: =IFERROR(VLOOKUP(ROWS($Z$2:Z184),K184:$L$6000,2,0),"") ->  | AA184: =IFERROR(VLOOKUP(ROWS($AA$2:AA184),K184:$M$6000,3,0),"") -> 
K185: =IF(ISNUMBER(SEARCH($A$3,L185)),MAX($K$1:K184)+1,0) -> 0 | L185: AMD Industries Ltd | M185: AMDINDUS.BO | Z185: =IFERROR(VLOOKUP(ROWS($Z$2:Z185),K185:$L$6000,2,0),"") ->  | AA185: =IFERROR(VLOOKUP(ROWS($AA$2:AA185),K185:$M$6000,3,0),"") -> 
K186: =IF(ISNUMBER(SEARCH($A$3,L186)),MAX($K$1:K185)+1,0) -> 0 | L186: AMD Industries Ltd | M186: AMDIND.NS | Z186: =IFERROR(VLOOKUP(ROWS($Z$2:Z186),K186:$L$6000,2,0),"") ->  | AA186: =IFERROR(VLOOKUP(ROWS($AA$2:AA186),K186:$M$6000,3,0),"") -> 
K187: =IF(ISNUMBER(SEARCH($A$3,L187)),MAX($K$1:K186)+1,0) -> 0 | L187: Amforge Industries Ltd | M187: AMFORG.BO | Z187: =IFERROR(VLOOKUP(ROWS($Z$2:Z187),K187:$L$6000,2,0),"") ->  | AA187: =IFERROR(VLOOKUP(ROWS($AA$2:AA187),K187:$M$6000,3,0),"") -> 
K188: =IF(ISNUMBER(SEARCH($A$3,L188)),MAX($K$1:K187)+1,0) -> 0 | L188: Amines & Plasticizers Ltd | M188: AMNPLST.BO | Z188: =IFERROR(VLOOKUP(ROWS($Z$2:Z188),K188:$L$6000,2,0),"") ->  | AA188: =IFERROR(VLOOKUP(ROWS($AA$2:AA188),K188:$M$6000,3,0),"") -> 
K189: =IF(ISNUMBER(SEARCH($A$3,L189)),MAX($K$1:K188)+1,0) -> 0 | L189: Amit International Ltd | M189: AMITINT.BO | Z189: =IFERROR(VLOOKUP(ROWS($Z$2:Z189),K189:$L$6000,2,0),"") ->  | AA189: =IFERROR(VLOOKUP(ROWS($AA$2:AA189),K189:$M$6000,3,0),"") -> 
K190: =IF(ISNUMBER(SEARCH($A$3,L190)),MAX($K$1:K189)+1,0) -> 0 | L190: Amit Securities Ltd | M190: AMITSEC.BO | Z190: =IFERROR(VLOOKUP(ROWS($Z$2:Z190),K190:$L$6000,2,0),"") ->  | AA190: =IFERROR(VLOOKUP(ROWS($AA$2:AA190),K190:$M$6000,3,0),"") -> 
K191: =IF(ISNUMBER(SEARCH($A$3,L191)),MAX($K$1:K190)+1,0) -> 0 | L191: Amit Spinning Industries Ltd | M191: AMITSPG.BO | Z191: =IFERROR(VLOOKUP(ROWS($Z$2:Z191),K191:$L$6000,2,0),"") ->  | AA191: =IFERROR(VLOOKUP(ROWS($AA$2:AA191),K191:$M$6000,3,0),"") -> 
K192: =IF(ISNUMBER(SEARCH($A$3,L192)),MAX($K$1:K191)+1,0) -> 0 | L192: Amit Spinning Industries Ltd | M192: ASIL.NS | Z192: =IFERROR(VLOOKUP(ROWS($Z$2:Z192),K192:$L$6000,2,0),"") ->  | AA192: =IFERROR(VLOOKUP(ROWS($AA$2:AA192),K192:$M$6000,3,0),"") -> 
K193: =IF(ISNUMBER(SEARCH($A$3,L193)),MAX($K$1:K192)+1,0) -> 0 | L193: AML Steel Ltd | M193: AMLSTEEL.NS | Z193: =IFERROR(VLOOKUP(ROWS($Z$2:Z193),K193:$L$6000,2,0),"") ->  | AA193: =IFERROR(VLOOKUP(ROWS($AA$2:AA193),K193:$M$6000,3,0),"") -> 
K194: =IF(ISNUMBER(SEARCH($A$3,L194)),MAX($K$1:K193)+1,0) -> 0 | L194: Amradeep Industries Ltd | M194: AMARDEE.BO | Z194: =IFERROR(VLOOKUP(ROWS($Z$2:Z194),K194:$L$6000,2,0),"") ->  | AA194: =IFERROR(VLOOKUP(ROWS($AA$2:AA194),K194:$M$6000,3,0),"") -> 
K195: =IF(ISNUMBER(SEARCH($A$3,L195)),MAX($K$1:K194)+1,0) -> 0 | L195: Amrapali Industries Ltd | M195: AMRAPLIN.BO | Z195: =IFERROR(VLOOKUP(ROWS($Z$2:Z195),K195:$L$6000,2,0),"") ->  | AA195: =IFERROR(VLOOKUP(ROWS($AA$2:AA195),K195:$M$6000,3,0),"") -> 
K196: =IF(ISNUMBER(SEARCH($A$3,L196)),MAX($K$1:K195)+1,0) -> 0 | L196: Amraworld Agrico Ltd | M196: AMRAAGRI.BO | Z196: =IFERROR(VLOOKUP(ROWS($Z$2:Z196),K196:$L$6000,2,0),"") ->  | AA196: =IFERROR(VLOOKUP(ROWS($AA$2:AA196),K196:$M$6000,3,0),"") -> 
K197: =IF(ISNUMBER(SEARCH($A$3,L197)),MAX($K$1:K196)+1,0) -> 0 | L197: Amrit Corp Ltd | M197: AMRITCORP.BO | Z197: =IFERROR(VLOOKUP(ROWS($Z$2:Z197),K197:$L$6000,2,0),"") ->  | AA197: =IFERROR(VLOOKUP(ROWS($AA$2:AA197),K197:$M$6000,3,0),"") -> 
K198: =IF(ISNUMBER(SEARCH($A$3,L198)),MAX($K$1:K197)+1,0) -> 0 | L198: Amtek Auto Ltd | M198: AMTEKAUTO.BO | Z198: =IFERROR(VLOOKUP(ROWS($Z$2:Z198),K198:$L$6000,2,0),"") ->  | AA198: =IFERROR(VLOOKUP(ROWS($AA$2:AA198),K198:$M$6000,3,0),"") -> 
K199: =IF(ISNUMBER(SEARCH($A$3,L199)),MAX($K$1:K198)+1,0) -> 0 | L199: Amtek Auto Ltd | M199: AMTEKAUTO.NS | Z199: =IFERROR(VLOOKUP(ROWS($Z$2:Z199),K199:$L$6000,2,0),"") ->  | AA199: =IFERROR(VLOOKUP(ROWS($AA$2:AA199),K199:$M$6000,3,0),"") -> 
K200: =IF(ISNUMBER(SEARCH($A$3,L200)),MAX($K$1:K199)+1,0) -> 0 | L200: Amtek India Ltd | M200: AMTEKIN.BO | Z200: =IFERROR(VLOOKUP(ROWS($Z$2:Z200),K200:$L$6000,2,0),"") ->  | AA200: =IFERROR(VLOOKUP(ROWS($AA$2:AA200),K200:$M$6000,3,0),"") -> 
... 2050 more rows

Sheet Valuation-2
A1: Valuation using sustainable growth rate | C1: Source: | D1: http://www.aaii.com/computerized-investing/article/valuing-stocks-the-warren-buffett-way.touch
A3: Before using please ensure both | B3: Morning star data is for | E3: =Inputs!AC1 -> Colgate-Palmolive (India) Ltd | G3: Current price | H3: ='Read Me First'!C13 -> 1756.9
A4: morning star and yahoo finance | B4: Yahoo finance stock price is for | E4: =Inputs!A5 -> Colgate-Palmolive (India) Ltd
A5: data is for the same stock!
A7: Year | B7: Price Max | C7: Price Min | D7: =Analysis!A19 -> Shares Mil | E7: =Analysis!A21 -> Earnings Per Share INR | F7: =Analysis!A22 -> Dividends INR | G7: =Analysis!A29 -> Book Value Per Share INR | H7: PE high | I7: PE low | J7: ROE% | K7: Payout Ratio% | L7: =Analysis!A67 -> Revenue INR Mil | M7: =Analysis!A20 -> Net Income INR Mil | N7: =Analysis!A72 -> Total Stockholders' Equity
A8: ='Stock price FY high and low'!A1 -> 2005 | B8: =IF('Stock price FY high and low'!C1=0,NA(),'Stock price FY high and low'!C1) ->  | C8: =IF('Stock price FY high and low'!C2=0,NA(),'Stock price FY high and low'!C2) ->  | D8: =Analysis!C19 -> 136 | E8: =Analysis!C21 -> 8.27 | F8: =Analysis!C22 ->  | G8: =Analysis!C29 ->  | H8: =IF(ISERROR(B8/$E8),"",B8/$E8) ->  | J8: =Analysis!C7 -> 0.4415 | K8: =Analysis!C23 ->  | L8: =Analysis!C67 -> 9675 | M8: =Analysis!C20 -> 1124
A9: ='Stock price FY high and low'!D1 -> 2006 | B9: =IF('Stock price FY high and low'!F1=0,NA(),'Stock price FY high and low'!F1) ->  | C9: =IF('Stock price FY high and low'!F2=0,NA(),'Stock price FY high and low'!F2) ->  | D9: =Analysis!D19 -> 136 | E9: =Analysis!D21 -> 10.3 | F9: =Analysis!D22 ->  | G9: =Analysis!D29 ->  | J9: =Analysis!D7 -> 0.5209 | K9: =Analysis!D23 ->  | L9: =Analysis!D67 -> 11259 | M9: =Analysis!D20 -> 1400
A10: 2007 | B10: =IF('Stock price FY high and low'!I1=0,NA(),'Stock price FY high and low'!I1) ->  | C10: =IF('Stock price FY high and low'!I2=0,NA(),'Stock price FY high and low'!I2) ->  | D10: =Analysis!E19 -> 136 | E10: =Analysis!E21 -> 10.91 | F10: =Analysis!E22 ->  | G10: =Analysis!E29 ->  | J10: =Analysis!E7 -> 0.5308 | K10: =Analysis!E23 ->  | L10: =Analysis!E67 -> 12956 | M10: =Analysis!E20 -> 1484
A11: ='Stock price FY high and low'!J1 -> 2008 | B11: =IF('Stock price FY high and low'!L1=0,NA(),'Stock price FY high and low'!L1) -> 487.8 | C11: =IF('Stock price FY high and low'!L2=0,NA(),'Stock price FY high and low'!L2) -> 363.65 | D11: =Analysis!F19 -> 136 | E11: =Analysis!F21 -> 17.34 | F11: =Analysis!F22 ->  | G11: =Analysis!F29 -> 12.6 | H11: =IF(ISERROR(B11/$E11),"",B11/$E11) -> 28.13148789 | I11: =IF(ISERROR(C11/$E11),"",C11/$E11) -> 20.97174164 | J11: =Analysis!F7 -> 1.0524 | K11: =Analysis!F23 ->  | L11: =Analysis!F67 -> 14739 | M11: =Analysis!F20 -> 2358
A12: ='Stock price FY high and low'!M1 -> 2009 | B12: =IF('Stock price FY high and low'!O1=0,NA(),'Stock price FY high and low'!O1) -> 470.75 | C12: =IF('Stock price FY high and low'!O2=0,NA(),'Stock price FY high and low'!O2) -> 347.9 | D12: =Analysis!G19 -> 136 | E12: =Analysis!G21 -> 21.01 | F12: =Analysis!G22 -> 16 | G12: =Analysis!G29 -> 16.1 | H12: 22.40599714 | I12: 16.55878153 | J12: =Analysis!G7 -> 1.4641 | K12: =Analysis!G23 -> 0.761 | L12: =Analysis!G67 -> 16952 | M12: =Analysis!G20 -> 2858
A13: ='Stock price FY high and low'!P1 -> 2010 | B13: =IF('Stock price FY high and low'!R1=0,NA(),'Stock price FY high and low'!R1) -> 732.55 | C13: =IF('Stock price FY high and low'!R2=0,NA(),'Stock price FY high and low'!R2) -> 446.25 | D13: =Analysis!H19 -> 136 | E13: =Analysis!H21 -> 31.92 | F13: =Analysis!H22 -> 21 | G13: =Analysis!H29 -> 23.98 | H13: 22.9495614 | I13: 13.98026316 | J13: =Analysis!H7 -> 1.5807 | K13: =Analysis!H23 -> 0.658 | L13: =Analysis!H67 -> 19625 | M13: =Analysis!H20 -> 4356
A14: ='Stock price FY high and low'!S1 -> 2011 | B14: =IF('Stock price FY high and low'!U1=0,NA(),'Stock price FY high and low'!U1) -> 946.55 | C14: =IF('Stock price FY high and low'!U2=0,NA(),'Stock price FY high and low'!U2) -> 677.3 | D14: =Analysis!I19 -> 136 | E14: =Analysis!I21 -> 29.6 | F14: =Analysis!I22 -> 27 | G14: =Analysis!I29 -> 28.24 | H14: 31.97804054 | I14: 22.88175676 | J14: =Analysis!I7 -> 1.1272 | K14: =Analysis!I23 -> 0.912 | L14: =Analysis!I67 -> 22206 | M14: =Analysis!I20 -> 4026
A15: ='Stock price FY high and low'!V1 -> 2012 | B15: =IF('Stock price FY high and low'!X1=0,NA(),'Stock price FY high and low'!X1) -> 1117.35 | C15: =IF('Stock price FY high and low'!X2=0,NA(),'Stock price FY high and low'!X2) -> 824.5 | D15: =Analysis!J19 -> 136 | E15: =Analysis!J21 -> 32.83 | F15: =Analysis!J22 -> 25 | G15: =Analysis!J29 -> 32.02 | H15: 34.03441974 | I15: 25.11422479 | J15: =Analysis!J7 -> 1.0897 | K15: =Analysis!J23 -> 0.761 | L15: =Analysis!J67 -> 26932 | M15: =Analysis!J20 -> 4465
A16: ='Stock price FY high and low'!Y1 -> 2013 | B16: =IF('Stock price FY high and low'!AA1=0,NA(),'Stock price FY high and low'!AA1) -> 1567 | C16: =IF('Stock price FY high and low'!AA2=0,NA(),'Stock price FY high and low'!AA2) -> 1107 | D16: =Analysis!K19 -> 136 | E16: =Analysis!K21 -> 36.53 | F16: =Analysis!K22 -> 28 | G16: =Analysis!K29 -> 36 | H16: 42.89624966 | I16: 30.30385984 | J16: =Analysis!K7 -> 1.0741 | K16: =Analysis!K23 -> 0.766 | L16: =Analysis!K67 -> 31638 | M16: =Analysis!K20 -> 4968
A17: ='Stock price FY high and low'!AB1 -> 2014 | B17: =IF('Stock price FY high and low'!AD1=0,NA(),'Stock price FY high and low'!AD1) -> 1549.15 | C17: =IF('Stock price FY high and low'!AD2=0,NA(),'Stock price FY high and low'!AD2) -> 1201.9 | D17: =Analysis!L19 -> 136 | E17: =Analysis!L21 -> 39.7 | F17: =Analysis!L22 -> 27 | G17: =Analysis!L29 -> 44.11 | H17: 39.02141058 | I17: 30.27455919 | J17: =Analysis!L7 -> 0.9911 | K17: =Analysis!L23 -> 0.68 | L17: =Analysis!L67 -> 35788 | M17: =Analysis!L20 -> 5399
A18: Average | H18: =AVERAGE(H8:H17) -> 31.63102385 | I18: =AVERAGE(I8:I17) -> 22.86931242 | J18: =AVERAGE(J8:J17) -> 0.98725 | K18: =AVERAGE(K8:K17) -> 0.7563333333
A19: Average Sustainable Growth rate | B19: =J18*(1-K18) -> 0.2405599167
A20: CAGR 3Y | B20: =IF(ISERROR((B17/B15)^(1/3)-1),"",(B17/B15)^(1/3)-1) -> 0.115068154 | C20: =IF(ISERROR((C17/C15)^(1/3)-1),"",(C17/C15)^(1/3)-1) -> 0.1338594528 | D20: 0 | E20: 0.06538491038 | F20: 0.02598556801 | G20: 0.1126841716 | H20: 0.04663407857 | I20: 0.06427211591 | J20: -0.0311195896
A21: CAGR 5Y | B21: =IF(ISERROR((B17/B13)^(1/5)-1),"",(B17/B13)^(1/5)-1) -> 0.1615856541 | C21: =IF(ISERROR((C17/C13)^(1/5)-1),"",(C17/C13)^(1/5)-1) -> 0.2191524653 | D21: 0 | E21: 0.04458918427 | F21: 0.0515474968 | G21: 0.1296335328 | H21: 0.1120023753 | I21: 0.1671118978 | J21: -0.08913586003
A22: CAGR 7Y | B22: =IF(ISERROR((B17/B11)^(1/7)-1),"",(B17/B11)^(1/7)-1) -> 0.1794868314 | C22: =IF(ISERROR((C17/C11)^(1/7)-1),"",(C17/C11)^(1/7)-1) -> 0.1862309445 | D22: 0 | E22: 0.1256195581 | G22: 0.1960189843 | H22: 0.04785566575 | I22: 0.05384713338 | J22: -0.008536655729
A23: CAGR 10Y | B23: =IF(ISERROR((B17/B8)^(1/10)-1),"",(B17/B8)^(1/10)-1) ->  | C23: =IF(ISERROR((C17/C8)^(1/10)-1),"",(C17/C8)^(1/10)-1) ->  | D23: 0 | E23: 0.1698454755 | J23: 0.08422315214
A25: Valuation with TTM EPS and DPS and their past CAGR's
E26: CAGR that will be use to project growth rates | K26: Average high PE | L26: Average low PE
A27: Select CAGR to be used | B27: CAGR 3Y | E27: =INDEX($A$20:$M$23,MATCH($B$27,$A$20:$A$23,0),5) -> 0.06538491038 | F27: =INDEX($A$20:$M$23,MATCH($B$27,$A$20:$A$23,0),6) -> 0.02598556801 | K27: =AVERAGE(H8:H17) -> 31.63102385 | L27: =AVERAGE(I8:I17) -> 22.86931242
A28: =A18 -> Average | E28: =E7 -> Earnings Per Share INR | F28: =F7 -> Dividends INR
A29: Current(TTM) | E29: =Analysis!B21 -> 37.48 | F29: =Analysis!B22 -> 35
A30: 1Y from now | E30: =E29*(1+$E$27) -> 39.93062644 | F30: =F29*(1+$F$27) -> 35.90949488
A31: 2Y from now | E31: =E30*(1+$E$27) -> 42.54148687 | F31: =F30*(1+$F$27) -> 36.8426235
A32: 3Y from now | E32: 45.32305818 | F32: 37.8
A33: 4Y from now | E33: 48.28650228 | F33: 38.78225447
A34: 5Y from now | E34: 51.4437109 | F34: 39.79003338
A35: 6Y from now | E35: 54.80735333 | F35: 40.824
A36: 7Y from now | E36: 58.39092721 | F36: 41.88483483
A37: 8Y from now | E37: 62.20881275 | F37: 42.97323605
A38: 9Y from now | E38: 66.2763304 | F38: 44.08992
A39: 10Y from now | E39: 70.60980232 | F39: 45.23562161
A41: Total Dividend over next 10Y | C41: =SUM(F29:F39) -> 439.1320187
A42: EPS 10Y from now | C42: =E39 -> 70.60980232 | D42: This calculation is similar to that done in 'Valuation-1' sheet
A43: Proected price after 10Y with average PE | C43: =AVERAGE(H8:I17)*C42 -> 1924.128985 | D43: Projected price after 10Y with median PE | G43: =MEDIAN(H8:I17)*C42 -> 1879.834624
A44: Total gain | C44: =C43+C41 -> 2363.261004 | D44: Total gain | G44: =C43+G41 -> 1924.128985
A45: Projected return | C45: =(C44/$H$3)^(1/10)-1 -> 0.03009306798 | D45: Projected return | G45: =(G44/$H$3)^(1/10)-1 -> 0.009133709835
A47: Valuation with TTM BVS and projected EPS and DPS with average of past ROE and payout ratios
A48: =A28 -> Average | E48: =E28 -> Earnings Per Share INR | F48: =F28 -> Dividends INR | G48: =G7 -> Book Value Per Share INR
A49: Current projected (BVS is TTM val) | E49: =G49*AVERAGE($J$8:$J$17) -> 53.4990775 | F49: =E49*AVERAGE($K$8:$K$17) -> 40.46313562 | G49: =Analysis!B29 -> 54.19
A50: 1Y from now | E50: =G50*AVERAGE($J$8:$J$17) -> 66.36881113 | F50: =E50*AVERAGE($K$8:$K$17) -> 50.19694415 | G50: =G49+E49-F49 -> 67.22594188
A51: 2Y from now | E51: =G51*AVERAGE($J$8:$J$17) -> 82.3344868 | F51: =E51*AVERAGE($K$8:$K$17) -> 62.27231685 | G51: =G50+E50-F50 -> 83.39780886
A52: 3Y from now | E52: 102.1408641 | F52: 77.2525402 | G52: 103.4599788
A53: 4Y from now | E53: 126.7118618 | F53: 95.83640483 | G53: 128.3483027
A54: 5Y from now | E54: 157.1936568 | F54: 118.8908024 | G54: 159.2237597
A55: 6Y from now | E55: 195.0081497 | F55: 147.4911639 | G55: 197.5266141
A56: 7Y from now | E56: 241.919294 | F56: 182.971626 | G56: 245.0435999
A57: 8Y from now | E57: 300.1153792 | F57: 226.9872651 | G57: 303.9912678
A58: 9Y from now | E58: 372.3111098 | F58: 281.5913027 | G58: 377.1193819
A59: 10Y from now | E59: 461.8742393 | F59: 349.330883 | G59: 467.839189
E60: Projected CAGR
E61: =(E59/E49)^(1/10)-1 -> 0.2405599167 | F61: =(F59/F49)^(1/10)-1 -> 0.2405599167 | G61: =(G59/G49)^(1/10)-1 -> 0.2405599167
A63: Total Dividend over next 10Y | C63: =SUM(F49:F59) -> 1633.284385
A64: Projected EPS 10Y from now | C64: =E59 -> 461.8742393
A65: Proected price after 10Y | C65: =AVERAGE($H$8:$I$17)*C64 -> 12586.15068 | D65: Projected price after 10Y with median PE | G65: =MEDIAN($H$8:$I$17)*C64 -> 12296.41152
A66: Total gain | C66: =C65+C63 -> 14219.43506 | D66: Total gain | G66: =G65+C63 -> 13929.69591
A67: Projected return | C67: =(C66/$H$3)^(1/10)-1 -> 0.2325754971 | D67: Projected return | G67: =(G66/$H$3)^(1/10)-1 -> 0.2300406363
A69: To find the actual return on investment based on parameters that influence sustainable growth, go to valuation-3

Sheet Valuation-3
A1: Return on investment based on book value growth rate | D1: Source:
D2: http://gbr.pepperdine.edu/2010/08/the-buffett-approach-to-valuing-stocks/
D3: Source:
A4: Long-term Bond yield | B4: 0.07981 | D4: http://www.investing.com/rates-bonds/india-10-year-bond-yield-historical-data
A7: ='Valuation-2'!A7 -> Year | B7: Book Yield Per Share | C7: ='Valuation-2'!K7 -> Payout Ratio% | D7: Retention Ratio%
A8: ='Valuation-2'!A8 -> 2005 | B8: =IF(ISERROR('Valuation-2'!E8/'Valuation-2'!G8),"",'Valuation-2'!E8/'Valuation-2'!G8) ->  | C8: ='Valuation-2'!K8 ->  | D8: =IF(C8="","",1-C8) -> 
A9: ='Valuation-2'!A9 -> 2006 | B9: =IF(ISERROR('Valuation-2'!E9/'Valuation-2'!G9),"",'Valuation-2'!E9/'Valuation-2'!G9) ->  | C9: ='Valuation-2'!K9 ->  | D9: =IF(C9="","",1-C9) -> 
A10: ='Valuation-2'!A10 -> 2007 | B10: =IF(ISERROR('Valuation-2'!E10/'Valuation-2'!G10),"",'Valuation-2'!E10/'Valuation-2'!G10) ->  | C10: ='Valuation-2'!K10 -> 
A11: ='Valuation-2'!A11 -> 2008 | B11: =IF(ISERROR('Valuation-2'!E11/'Valuation-2'!G11),"",'Valuation-2'!E11/'Valuation-2'!G11) -> 1.376190476 | C11: ='Valuation-2'!K11 -> 
A12: ='Valuation-2'!A12 -> 2009 | B12: =IF(ISERROR('Valuation-2'!E12/'Valuation-2'!G12),"",'Valuation-2'!E12/'Valuation-2'!G12) -> 1.304968944 | C12: ='Valuation-2'!K12 -> 0.761 | D12: 0.239 | F12: Assumed Growth in Book Value
A13: ='Valuation-2'!A13 -> 2010 | B13: =IF(ISERROR('Valuation-2'!E13/'Valuation-2'!G13),"",'Valuation-2'!E13/'Valuation-2'!G13) -> 1.331109258 | C13: ='Valuation-2'!K13 -> 0.658 | D13: 0.342 | F13: with avg BYS and RR | G13: =B18*D18 -> 0.2784925127 | H13: Sustainable Growth rate
A14: ='Valuation-2'!A14 -> 2011 | B14: =IF(ISERROR('Valuation-2'!E14/'Valuation-2'!G14),"",'Valuation-2'!E14/'Valuation-2'!G14) -> 1.04815864 | C14: ='Valuation-2'!K14 -> 0.912 | D14: 0.088 | F14: with median BYS and RR | G14: =B19*D19 -> 0.250509915
A15: ='Valuation-2'!A15 -> 2012 | B15: =IF(ISERROR('Valuation-2'!E15/'Valuation-2'!G15),"",'Valuation-2'!E15/'Valuation-2'!G15) -> 1.02529669 | C15: ='Valuation-2'!K15 -> 0.761 | D15: 0.239 | F15: historical 1Y average | G15: =Analysis!M30 -> 0.2380490991
A16: ='Valuation-2'!A16 -> 2013 | B16: =IF(ISERROR('Valuation-2'!E16/'Valuation-2'!G16),"",'Valuation-2'!E16/'Valuation-2'!G16) -> 1.014722222 | C16: ='Valuation-2'!K16 -> 0.766 | D16: 0.234 | F16: lower limit (hist avg- std.dev) | G16: =Analysis!M30-Analysis!N30 -> 0.1021197004
A17: ='Valuation-2'!A17 -> 2014 | B17: =IF(ISERROR('Valuation-2'!E17/'Valuation-2'!G17),"",'Valuation-2'!E17/'Valuation-2'!G17) -> 0.9000226706 | C17: ='Valuation-2'!K17 -> 0.68 | D17: 0.32
A18: Average | B18: =AVERAGE(B8:B17) -> 1.142924129 | C18: =AVERAGE(C8:C17) -> 0.7563333333 | D18: =AVERAGE(D8:D17) -> 0.2436666667
A19: Median | B19: =MEDIAN(B8:B17) -> 1.04815864 | C19: =MEDIAN(C8:C17) -> 0.761 | D19: =MEDIAN(D8:D17) -> 0.239
A21: Choose Book value Growth rate | B21: 0.1021197004 | D21: =INDEX(F13:G16,MATCH(B21,G13:G16,0),1) -> lower limit (hist avg- std.dev)
D23: Projection with avg BYS and Payout Ratio | E23: Projection with median BYS and Payout Ratio
B24: ='Valuation-2'!G7 -> Book Value Per Share INR | C24: ='Valuation-2'!E48 -> Earnings Per Share INR | D24: ='Valuation-2'!F48 -> Dividends INR | E24: =C24 -> Earnings Per Share INR | F24: =D24 -> Dividends INR
A25: ='Valuation-2'!A29 -> Current(TTM) | B25: =Analysis!B29 -> 54.19 | C25: =B25*$B$18 -> 61.93505853 | D25: =$C$18*C25 -> 46.84354927 | E25: =B25*$B$19 -> 56.79971671 | F25: =$C$19*E25 -> 43.22458442
A26: ='Valuation-2'!A30 -> 1Y from now | B26: =B25*(1+$B$21) -> 59.72386656 | C26: =B26*$B$18 -> 68.25984815 | D26: =$C$18*C26 -> 51.62719849 | E26: 62.60008677 | F26: =$C$19*E26 -> 47.63866603
A27: ='Valuation-2'!A31 -> 2Y from now | B27: =B26*(1+$B$21) -> 65.82284992 | C27: 75.2305234 | D27: 56.89935253 | E27: 68.99278887 | F27: 52.50351233
A28: ='Valuation-2'!A32 -> 3Y from now | B28: 72.54465964 | C28: 82.91304191 | D28: 62.70989736 | E28: 76.0383118 | F28: 57.86515528
A29: ='Valuation-2'!A33 -> 4Y from now | B29: 79.95289855 | C29: 91.3800969 | D29: 69.11381329 | E29: 83.80332142 | F29: 63.7743276
A30: ='Valuation-2'!A34 -> 5Y from now | B30: 88.11766459 | C30: 100.711805 | D30: 76.1716952 | E30: 92.3612915 | F30: 70.28694283
A31: ='Valuation-2'!A35 -> 6Y from now | B31: 97.1162141 | C31: 110.9964644 | D31: 83.95032589 | E31: 101.7931989 | F31: 77.46462437
A32: ='Valuation-2'!A36 -> 7Y from now | B32: 107.0336928 | C32: 122.3313901 | D32: 92.52330802 | E32: 112.1882899 | F32: 85.37528861
A33: ='Valuation-2'!A37 -> 8Y from now | B33: 117.9639414 | C33: 134.823835 | D33: 101.9717605 | E33: 123.6449244 | F33: 94.0937875
A34: ='Valuation-2'!A38 -> 9Y from now | B34: 130.0103838 | C34: 148.5920046 | D34: 112.3850861 | E34: 136.2715071 | F34: 103.7026169
A35: ='Valuation-2'!A39 -> 10Y from now | B35: 143.2870052 | C35: 163.7661756 | D35: 123.8618175 | E35: 150.1875126 | F35: 114.2926971
A36: CAGR | B36: =(B35/B25)^(1/11)-1 -> 0.09242036273 | C36: =(C35/C25)^(1/11)-1 -> 0.09242036273 | D36: =(D35/D25)^(1/11)-1 -> 0.09242036273 | E36: =(E35/E25)^(1/11)-1 -> 0.09242036273 | F36: =(F35/F25)^(1/11)-1 -> 0.09242036273
A39: Estimated CAGR of investment with different PE values
A40: Choose | B40: Projection with median BYS and Payout Ratio | J40: 1 | K40: Projection with avg BYS and Payout Ratio
A41: Historical | B41: Lowest PE | C41: Highest PE | D41: Average PE | E41: Median PE | J41: 2 | K41: Projection with median BYS and Payout Ratio
B42: =MIN('Valuation-2'!H8:I17) -> 13.98026316 | C42: =MAX('Valuation-2'!H8:I17) -> 42.89624966 | D42: =AVERAGE('Valuation-2'!H8:I17) -> 27.25016813 | E42: =MEDIAN('Valuation-2'!H8:I17) -> 26.62285634 | J42: =INDEX(J40:K41,MATCH(B40,K40:K41,0),1) -> 2
A43: Projected CAGR with | B43: =B41 -> Lowest PE | C43: =C41 -> Highest PE | D43: =D41 -> Average PE | E43: =E41 -> Median PE
A44: Investment at today's price | B44: =-'Read Me First'!C13 -> -1756.9 | C44: =B44 -> -1756.9 | D44: =C44 -> -1756.9 | E44: =D44 -> -1756.9 | F44: negative sign signifies investment (necessary for IRR calcualtion)
A45: =CONCATENATE("Dividend received ",A26) -> Dividend received 1Y from now | B45: =IF($J$42=1,$D26,$F26) -> 47.63866603 | C45: 47.63866603 | D45: 47.63866603 | E45: 47.63866603 | F45: These are the
A46: =CONCATENATE("Dividend received ",A27) -> Dividend received 2Y from now | B46: 52.50351233 | C46: 52.50351233 | D46: 52.50351233 | E46: 52.50351233 | F46: dividends which
A47: Dividend received 3Y from now | B47: =IF($J$42=1,$D28,$F28) -> 57.86515528 | C47: 57.86515528 | D47: 57.86515528 | E47: 57.86515528 | F47: are assumed to be
A48: Dividend received 4Y from now | B48: =IF($J$42=1,$D29,$F29) -> 63.7743276 | C48: 63.7743276 | D48: 63.7743276 | E48: 63.7743276 | F48: received and not
A49: Dividend received 5Y from now | B49: =IF($J$42=1,$D30,$F30) -> 70.28694283 | C49: 70.28694283 | D49: 70.28694283 | E49: 70.28694283 | F49: reinvested. Such as
A50: Dividend received 6Y from now | B50: =IF($J$42=1,$D31,$F31) -> 77.46462437 | C50: 77.46462437 | D50: 77.46462437 | E50: 77.46462437 | F50: assumption is incorrect,
A51: Dividend received 7Y from now | B51: =IF($J$42=1,$D32,$F32) -> 85.37528861 | C51: 85.37528861 | D51: 85.37528861 | E51: 85.37528861 | F51: but should suffice for
A52: Dividend received 8Y from now | B52: =IF($J$42=1,$D33,$F33) -> 94.0937875 | C52: 94.0937875 | D52: 94.0937875 | E52: 94.0937875 | F52: estimation purposes
A53: Dividend received 9Y from now | B53: =IF($J$42=1,$D34,$F34) -> 103.7026169 | C53: 103.7026169 | D53: 103.7026169 | E53: 103.7026169
A54: Future value (incl. Div) 10Y from now | B54: =IF($J$42=1,$D35,$F35)+(B42*IF($J$42=1,$C$35,$E$35)) -> 2213.953646 | C54: =IF($J$42=1,$D35,$F35)+(C42*IF($J$42=1,$C$35,$E$35)) -> 6556.773731 | D54: =IF($J$42=1,$D35,$F35)+(D42*IF($J$42=1,$C$35,$E$35)) -> 4206.927666 | E54: =IF($J$42=1,$D35,$F35)+(E42*IF($J$42=1,$C$35,$E$35)) -> 4112.713268
A55: CAGR via IRR | B55: =IRR(B44:B54) -> 0.05680251856 | C55: =IRR(C44:C54) -> 0.1623940752 | D55: =IRR(D44:D54) -> 0.1168896968 | E55: =IRR(E44:E54) -> 0.1146520764 | F55: Since entries are spaced an year apart, IRR = XIRR

Sheet Stock Price
A1: Date | B1: Open | C1: High | D1: Low | E1: Close | F1: Volume | G1: Adj Close
A2: 2014-08-05 | B2: 1554 | C2: 1563 | D2: 1537.1 | E2: 1543.7 | F2: 7000 | G2: 1543.7
A3: 2014-08-04 | B3: 1564 | C3: 1567.05 | D3: 1541.35 | E3: 1553.35 | F3: 5200 | G3: 1553.35
A4: 2014-08-01 | B4: 1571 | C4: 1586 | D4: 1541 | E4: 1547.1 | F4: 7300 | G4: 1547.1
A5: 2014-07-31 | B5: 1599.5 | C5: 1599.5 | D5: 1555 | E5: 1564.9 | F5: 10300 | G5: 1564.9
A6: 2014-07-30 | B6: 1600 | C6: 1610 | D6: 1565 | E6: 1580.55 | F6: 9800 | G6: 1580.55
A7: 2014-07-29 | B7: 1593.1 | C7: 1593.1 | D7: 1593.1 | E7: 1593.1 | F7: 0 | G7: 1593.1
A8: 2014-07-28 | B8: 1642 | C8: 1642 | D8: 1584 | E8: 1593.1 | F8: 11300 | G8: 1593.1
A9: 2014-07-25 | B9: 1664.9 | C9: 1698 | D9: 1619.95 | E9: 1631.5 | F9: 28300 | G9: 1631.5
A10: 2014-07-24 | B10: 1673.5 | C10: 1687 | D10: 1656.4 | E10: 1660.75 | F10: 4700 | G10: 1660.75
A11: 2014-07-23 | B11: 1657.5 | C11: 1697.35 | D11: 1649 | E11: 1671.55 | F11: 16900 | G11: 1671.55
A12: 2014-07-22 | B12: 1650 | C12: 1665 | D12: 1631 | E12: 1641.05 | F12: 5800 | G12: 1641.05
A13: 2014-07-21 | B13: 1666 | C13: 1666 | D13: 1645.1 | E13: 1648.35 | F13: 3600 | G13: 1648.35
A14: 2014-07-18 | B14: 1666 | C14: 1676.65 | D14: 1640.5 | E14: 1660.95 | F14: 10600 | G14: 1660.95
A15: 2014-07-17 | B15: 1606.45 | C15: 1669.95 | D15: 1606.45 | E15: 1664.65 | F15: 27800 | G15: 1664.65
A16: 2014-07-16 | B16: 1621.35 | C16: 1621.35 | D16: 1591 | E16: 1610 | F16: 8900 | G16: 1610
A17: 2014-07-15 | B17: 1592 | C17: 1620 | D17: 1582.2 | E17: 1616.3 | F17: 10000 | G17: 1616.3
A18: 2014-07-14 | B18: 1533.6 | C18: 1587 | D18: 1533.6 | E18: 1580.35 | F18: 12800 | G18: 1580.35
A19: 2014-07-11 | B19: 1538.1 | C19: 1584.45 | D19: 1526.1 | E19: 1532.05 | F19: 9500 | G19: 1532.05
A20: 2014-07-10 | B20: 1569 | C20: 1575 | D20: 1516.4 | E20: 1539.8 | F20: 19700 | G20: 1539.8
A21: 2014-07-09 | B21: 1593 | C21: 1620 | D21: 1563.2 | E21: 1568.9 | F21: 10700 | G21: 1568.9
A22: 2014-07-08 | B22: 1665 | C22: 1684 | D22: 1585 | E22: 1600.65 | F22: 14500 | G22: 1600.65
A23: 2014-07-07 | B23: 1665.9 | C23: 1674.35 | D23: 1639.55 | E23: 1663.4 | F23: 13200 | G23: 1663.4
A24: 2014-07-04 | B24: 1615 | C24: 1670.5 | D24: 1608.75 | E24: 1664.15 | F24: 28000 | G24: 1664.15
A25: 2014-07-03 | B25: 1621 | C25: 1650 | D25: 1593.05 | E25: 1608.85 | F25: 3900 | G25: 1608.85
A26: 2014-07-02 | B26: 1548 | C26: 1629 | D26: 1531.25 | E26: 1615.95 | F26: 40300 | G26: 1615.95
A27: 2014-07-01 | B27: 1520 | C27: 1533.5 | D27: 1507 | E27: 1528.65 | F27: 6500 | G27: 1528.65
A28: 2014-06-30 | B28: 1529 | C28: 1532.95 | D28: 1508.3 | E28: 1511.8 | F28: 5300 | G28: 1511.8
A29: 2014-06-27 | B29: 1560 | C29: 1560 | D29: 1511.1 | E29: 1514.75 | F29: 10800 | G29: 1514.75
A30: 2014-06-26 | B30: 1537.95 | C30: 1543.95 | D30: 1521.4 | E30: 1532.4 | F30: 5100 | G30: 1532.4
A31: 2014-06-25 | B31: 1530 | C31: 1546.85 | D31: 1525.75 | E31: 1532.45 | F31: 9000 | G31: 1532.45
A32: 2014-06-24 | B32: 1530 | C32: 1540.15 | D32: 1519.15 | E32: 1522.15 | F32: 12400 | G32: 1522.15
A33: 2014-06-23 | B33: 1559 | C33: 1567.8 | D33: 1508 | E33: 1517.2 | F33: 13500 | G33: 1517.2
A34: 2014-06-20 | B34: 1597 | C34: 1600 | D34: 1550 | E34: 1552.75 | F34: 22300 | G34: 1552.75
A35: 2014-06-19 | B35: 1520 | C35: 1584.8 | D35: 1520 | E35: 1575 | F35: 36200 | G35: 1575
A36: 2014-06-18 | B36: 1472 | C36: 1534.9 | D36: 1472 | E36: 1525.25 | F36: 24700 | G36: 1525.25
A37: 2014-06-17 | B37: 1517.85 | C37: 1517.85 | D37: 1497 | E37: 1508.1 | F37: 10400 | G37: 1508.1
A38: 2014-06-16 | B38: 1519 | C38: 1526.9 | D38: 1493 | E38: 1499.75 | F38: 13500 | G38: 1499.75
A39: 2014-06-13 | B39: 1490 | C39: 1544.4 | D39: 1488 | E39: 1515.45 | F39: 57800 | G39: 1515.45
A40: 2014-06-12 | B40: 1453.5 | C40: 1488.95 | D40: 1444.5 | E40: 1484.3 | F40: 14400 | G40: 1484.3
A41: 2014-06-11 | B41: 1459.9 | C41: 1460.7 | D41: 1437.6 | E41: 1451.55 | F41: 10300 | G41: 1451.55
A42: 2014-06-10 | B42: 1426.1 | C42: 1474.2 | D42: 1422 | E42: 1453.5 | F42: 15200 | G42: 1453.5
A43: 2014-06-09 | B43: 1417.5 | C43: 1440 | D43: 1414 | E43: 1425.9 | F43: 11000 | G43: 1425.9
A44: 2014-06-06 | B44: 1409 | C44: 1417 | D44: 1395 | E44: 1413.15 | F44: 9300 | G44: 1413.15
A45: 2014-06-05 | B45: 1392.9 | C45: 1401.25 | D45: 1383 | E45: 1399 | F45: 7700 | G45: 1399
A46: 2014-06-04 | B46: 1408.6 | C46: 1409.8 | D46: 1382.45 | E46: 1392 | F46: 8800 | G46: 1392
A47: 2014-06-03 | B47: 1396.95 | C47: 1405 | D47: 1384 | E47: 1400.15 | F47: 10900 | G47: 1400.15
A48: 2014-06-02 | B48: 1403.9 | C48: 1403.9 | D48: 1380.5 | E48: 1386.95 | F48: 9600 | G48: 1386.95
A49: 2014-05-30 | B49: 1369 | C49: 1394 | D49: 1365 | E49: 1385.25 | F49: 21000 | G49: 1385.25
A50: 2014-05-29 | B50: 1365 | C50: 1370.95 | D50: 1345 | E50: 1365.05 | F50: 12000 | G50: 1365.05
A51: 2014-05-28 | B51: 1339 | C51: 1361.2 | D51: 1335 | E51: 1357.8 | F51: 9700 | G51: 1357.8
A52: 2014-05-27 | B52: 1337 | C52: 1339 | D52: 1326 | E52: 1328 | F52: 5400 | G52: 1328
A53: 2014-05-26 | B53: 1370 | C53: 1375 | D53: 1331 | E53: 1336.05 | F53: 20500 | G53: 1336.05
A54: 2014-05-23 | B54: 1374.9 | C54: 1405 | D54: 1325 | E54: 1373.85 | F54: 50500 | G54: 1373.85
A55: 2014-05-22 | B55: 1365 | C55: 1387.95 | D55: 1356.9 | E55: 1362.25 | F55: 9200 | G55: 1362.25
A56: 2014-05-21 | B56: 1369.95 | C56: 1393 | D56: 1360 | E56: 1364.8 | F56: 19700 | G56: 1364.8
A57: 2014-05-20 | B57: 1337 | C57: 1374.7 | D57: 1327.5 | E57: 1361.75 | F57: 19500 | G57: 1361.75
A58: 2014-05-19 | B58: 1400 | C58: 1405 | D58: 1333 | E58: 1336.35 | F58: 40000 | G58: 1336.35
A59: 2014-05-16 | B59: 1410 | C59: 1420 | D59: 1365 | E59: 1393.15 | F59: 17700 | G59: 1393.15
A60: 2014-05-15 | B60: 1410.15 | C60: 1418.95 | D60: 1391 | E60: 1397 | F60: 10000 | G60: 1397
A61: 2014-05-14 | B61: 1407 | C61: 1425 | D61: 1404.85 | E61: 1409.2 | F61: 7100 | G61: 1409.2
A62: 2014-05-13 | B62: 1433.5 | C62: 1433.5 | D62: 1402 | E62: 1407.2 | F62: 13200 | G62: 1407.2
A63: 2014-05-12 | B63: 1415 | C63: 1432 | D63: 1401.6 | E63: 1415.4 | F63: 12500 | G63: 1415.4
A64: 2014-05-09 | B64: 1393 | C64: 1425.4 | D64: 1393 | E64: 1415.05 | F64: 9100 | G64: 1415.05
A65: 2014-05-08 | B65: 1419 | C65: 1426 | D65: 1404.7 | E65: 1410.05 | F65: 5800 | G65: 1410.05
A66: 2014-05-07 | B66: 1430 | C66: 1436 | D66: 1400.45 | E66: 1411.55 | F66: 8200 | G66: 1411.55
A67: 2014-05-06 | B67: 1444.1 | C67: 1444.35 | D67: 1420.1 | E67: 1423.65 | F67: 3700 | G67: 1423.65
A68: 2014-05-05 | B68: 1440 | C68: 1448 | D68: 1433.5 | E68: 1435.9 | F68: 4500 | G68: 1435.9
A69: 2014-05-02 | B69: 1444 | C69: 1444.2 | D69: 1428.6 | E69: 1437.6 | F69: 3200 | G69: 1437.6
A70: 2014-05-01 | B70: 1434.2 | C70: 1434.2 | D70: 1434.2 | E70: 1434.2 | F70: 0 | G70: 1434.2
A71: 2014-04-30 | B71: 1460.05 | C71: 1466.4 | D71: 1420 | E71: 1434.2 | F71: 7600 | G71: 1434.2
A72: 2014-04-29 | B72: 1470 | C72: 1475 | D72: 1451.25 | E72: 1461.1 | F72: 8200 | G72: 1461.1
A73: 2014-04-28 | B73: 1477 | C73: 1484 | D73: 1469 | E73: 1472.35 | F73: 8000 | G73: 1472.35
A74: 2014-04-25 | B74: 1480 | C74: 1489 | D74: 1466 | E74: 1481.3 | F74: 14200 | G74: 1481.3
A75: 2014-04-24 | B75: 1472.2 | C75: 1472.2 | D75: 1472.2 | E75: 1472.2 | F75: 0 | G75: 1472.2
A76: 2014-04-23 | B76: 1449 | C76: 1485 | D76: 1436 | E76: 1472.2 | F76: 23000 | G76: 1472.2
A77: 2014-04-22 | B77: 1421 | C77: 1447 | D77: 1415.55 | E77: 1442.75 | F77: 14400 | G77: 1442.75
A78: 2014-04-21 | B78: 1406 | C78: 1429 | D78: 1406 | E78: 1421.15 | F78: 5900 | G78: 1421.15
A79: 2014-04-18 | B79: 1405.65 | C79: 1405.65 | D79: 1405.65 | E79: 1405.65 | F79: 0 | G79: 1405.65
A80: 2014-04-17 | B80: 1399 | C80: 1409 | D80: 1390 | E80: 1405.65 | F80: 8000 | G80: 1405.65
A81: 2014-04-16 | B81: 1400 | C81: 1413.9 | D81: 1377.55 | E81: 1383.35 | F81: 8100 | G81: 1383.35
A82: 2014-04-15 | B82: 1424 | C82: 1425 | D82: 1389 | E82: 1396.35 | F82: 8500 | G82: 1396.35
A83: 2014-04-14 | B83: 1419.55 | C83: 1419.55 | D83: 1419.55 | E83: 1419.55 | F83: 0 | G83: 1419.55
A84: 2014-04-11 | B84: 1402 | C84: 1428.8 | D84: 1402 | E84: 1419.55 | F84: 19200 | G84: 1419.55
A85: 2014-04-10 | B85: 1400 | C85: 1413 | D85: 1384.25 | E85: 1408 | F85: 13700 | G85: 1408
A86: 2014-04-09 | B86: 1385 | C86: 1414.95 | D86: 1385 | E86: 1393.1 | F86: 11600 | G86: 1393.1
A87: 2014-04-08 | B87: 1388.8 | C87: 1388.8 | D87: 1388.8 | E87: 1388.8 | F87: 0 | G87: 1388.8
A88: 2014-04-07 | B88: 1394 | C88: 1425 | D88: 1356 | E88: 1388.8 | F88: 5400 | G88: 1388.8
A89: 2014-04-04 | B89: 1399 | C89: 1405 | D89: 1376.25 | E89: 1390.35 | F89: 21500 | G89: 1390.35
A90: 2014-04-03 | B90: 1349 | C90: 1398 | D90: 1341 | E90: 1394.2 | F90: 25300 | G90: 1394.2
A91: 2014-04-02 | B91: 1366 | C91: 1366 | D91: 1343.3 | E91: 1346.95 | F91: 138600 | G91: 1346.95
A92: 2014-04-01 | B92: 1375 | C92: 1376.8 | D92: 1341 | E92: 1354.15 | F92: 9000 | G92: 1354.15
A93: 2014-03-31 | B93: 1372 | C93: 1380 | D93: 1369 | E93: 1373.45 | F93: 5200 | G93: 1364.45
A94: 2014-03-28 | B94: 1364 | C94: 1375 | D94: 1351 | E94: 1369.7 | F94: 5700 | G94: 1360.72
A95: 2014-03-27 | B95: 1366 | C95: 1383.85 | D95: 1353 | E95: 1359.85 | F95: 11400 | G95: 1350.94
A96: 2014-03-26 | B96: 1345 | C96: 1365 | D96: 1340.95 | E96: 1363.15 | F96: 12000 | G96: 1354.22
A97: 2014-03-25 | B97: 1343.05 | C97: 1365 | D97: 1340 | E97: 1343.3 | F97: 8100 | G97: 1334.5
A98: 2014-03-24 | B98: 1350 | C98: 1358 | D98: 1340 | E98: 1350.4 | F98: 5700 | G98: 1341.55
A99: 2014-03-21 | B99: 1364.95 | C99: 1374.8 | D99: 1322.4 | E99: 1333.7 | F99: 13300 | G99: 1324.96
A100: 2014-03-20 | B100: 1328 | C100: 1359 | D100: 1325 | E100: 1353.4 | F100: 15800 | G100: 1344.53
A101: 2014-03-19 | B101: 1323 | C101: 1328.85 | D101: 1310 | E101: 1324.85 | F101: 31100 | G101: 1316.17
A102: 2014-03-18 | B102: 1306 | C102: 1324 | D102: 1306 | E102: 1318.3 | F102: 4900 | G102: 1309.66
A103: 2014-03-17 | B103: 1310.65 | C103: 1310.65 | D103: 1310.65 | E103: 1310.65 | F103: 0 | G103: 1302.06
A104: 2014-03-14 | B104: 1307.4 | C104: 1317.95 | D104: 1305.7 | E104: 1310.65 | F104: 3800 | G104: 1302.06
A105: 2014-03-13 | B105: 1321 | C105: 1330 | D105: 1309 | E105: 1313.95 | F105: 7700 | G105: 1305.34
A106: 2014-03-12 | B106: 1325 | C106: 1332.95 | D106: 1316.25 | E106: 1319.25 | F106: 3800 | G106: 1310.61
A107: 2014-03-11 | B107: 1320 | C107: 1333.35 | D107: 1316.55 | E107: 1326.75 | F107: 7400 | G107: 1318.06
A108: 2014-03-10 | B108: 1322 | C108: 1337 | D108: 1307.3 | E108: 1322.45 | F108: 10500 | G108: 1313.78
A109: 2014-03-07 | B109: 1344 | C109: 1364 | D109: 1325.05 | E109: 1335.95 | F109: 16000 | G109: 1327.2
A110: 2014-03-06 | B110: 1310 | C110: 1326 | D110: 1310 | E110: 1324.7 | F110: 4400 | G110: 1316.02
A111: 2014-03-05 | B111: 1325 | C111: 1326 | D111: 1306 | E111: 1314.45 | F111: 5100 | G111: 1305.84
A112: 2014-03-04 | B112: 1311.1 | C112: 1320.9 | D112: 1311.1 | E112: 1314.9 | F112: 3400 | G112: 1306.28
A113: 2014-03-03 | B113: 1317.2 | C113: 1325 | D113: 1302.35 | E113: 1317.3 | F113: 8100 | G113: 1308.67
A114: 2014-02-28 | B114: 1307 | C114: 1318.35 | D114: 1307 | E114: 1312.85 | F114: 4200 | G114: 1304.25
A115: 2014-02-27 | B115: 1313.6 | C115: 1313.6 | D115: 1313.6 | E115: 1313.6 | F115: 0 | G115: 1304.99
A116: 2014-02-26 | B116: 1315 | C116: 1324 | D116: 1304.5 | E116: 1313.6 | F116: 4400 | G116: 1304.99
A117: 2014-02-25 | B117: 1314 | C117: 1325 | D117: 1309.05 | E117: 1311.75 | F117: 5800 | G117: 1303.15
A118: 2014-02-24 | B118: 1301 | C118: 1316 | D118: 1301 | E118: 1311 | F118: 5400 | G118: 1302.41
A119: 2014-02-21 | B119: 1315 | C119: 1319 | D119: 1306.55 | E119: 1308.05 | F119: 7100 | G119: 1299.48
A120: 2014-02-20 | B120: 1316 | C120: 1320.75 | D120: 1308 | E120: 1312.35 | F120: 2700 | G120: 1303.75
A121: 2014-02-19 | B121: 1313 | C121: 1322.45 | D121: 1305 | E121: 1317 | F121: 6600 | G121: 1308.37
A122: 2014-02-18 | B122: 1325 | C122: 1325 | D122: 1308 | E122: 1310.55 | F122: 4300 | G122: 1301.96
A123: 2014-02-17 | B123: 1322.2 | C123: 1326 | D123: 1303 | E123: 1321.15 | F123: 6200 | G123: 1312.49
A124: 2014-02-14 | B124: 1308.6 | C124: 1328.5 | D124: 1302 | E124: 1322.2 | F124: 4500 | G124: 1313.54
A125: 2014-02-13 | B125: 1321.2 | C125: 1330 | D125: 1303.35 | E125: 1315.65 | F125: 5000 | G125: 1307.03
A126: 2014-02-12 | B126: 1316 | C126: 1326.35 | D126: 1308.45 | E126: 1324.6 | F126: 6800 | G126: 1315.92
A127: 2014-02-11 | B127: 1308 | C127: 1319 | D127: 1305 | E127: 1318.35 | F127: 3100 | G127: 1309.71
A128: 2014-02-10 | B128: 1330 | C128: 1330 | D128: 1296 | E128: 1310.25 | F128: 5100 | G128: 1301.66
A129: 2014-02-07 | B129: 1333.9 | C129: 1334 | D129: 1294.15 | E129: 1302.9 | F129: 8100 | G129: 1294.36
A130: 2014-02-06 | B130: 1315 | C130: 1326 | D130: 1300 | E130: 1323.25 | F130: 5000 | G130: 1314.58
A131: 2014-02-05 | B131: 1321 | C131: 1324.4 | D131: 1310 | E131: 1320.55 | F131: 3900 | G131: 1311.9
A132: 2014-02-04 | B132: 1300 | C132: 1326 | D132: 1290.6 | E132: 1317.25 | F132: 5900 | G132: 1308.62
A133: 2014-02-03 | B133: 1291 | C133: 1339.05 | D133: 1286 | E133: 1312.05 | F133: 9800 | G133: 1303.45
A134: 2014-01-31 | B134: 1287.65 | C134: 1307 | D134: 1280 | E134: 1299.85 | F134: 6300 | G134: 1291.33
A135: 2014-01-30 | B135: 1287 | C135: 1310 | D135: 1280 | E135: 1296.95 | F135: 15000 | G135: 1288.45
A136: 2014-01-29 | B136: 1303 | C136: 1315.5 | D136: 1302.65 | E136: 1313.95 | F136: 4900 | G136: 1305.34
A137: 2014-01-28 | B137: 1303 | C137: 1310 | D137: 1302.25 | E137: 1305.55 | F137: 5500 | G137: 1297
A138: 2014-01-27 | B138: 1315 | C138: 1315 | D138: 1291.75 | E138: 1306.45 | F138: 10300 | G138: 1297.89
A139: 2014-01-24 | B139: 1320.4 | C139: 1328 | D139: 1296 | E139: 1320.05 | F139: 13500 | G139: 1311.4
A140: 2014-01-23 | B140: 1320 | C140: 1329.9 | D140: 1317.45 | E140: 1320.4 | F140: 4600 | G140: 1311.75
A141: 2014-01-22 | B141: 1325 | C141: 1325 | D141: 1290 | E141: 1320.15 | F141: 13700 | G141: 1311.5
A142: 2014-01-21 | B142: 1327 | C142: 1342.65 | D142: 1305.75 | E142: 1310.6 | F142: 20300 | G142: 1302.01
A143: 2014-01-20 | B143: 1320 | C143: 1330 | D143: 1315 | E143: 1325.25 | F143: 5600 | G143: 1316.57
A144: 2014-01-17 | B144: 1302.1 | C144: 1330 | D144: 1302.1 | E144: 1320.55 | F144: 10300 | G144: 1311.9
A145: 2014-01-16 | B145: 1315 | C145: 1321.15 | D145: 1295 | E145: 1311.65 | F145: 5800 | G145: 1303.06
A146: 2014-01-15 | B146: 1317.05 | C146: 1321.45 | D146: 1298 | E146: 1310.9 | F146: 11900 | G146: 1302.31
A147: 2014-01-14 | B147: 1322 | C147: 1332 | D147: 1313 | E147: 1318.05 | F147: 2700 | G147: 1309.41
A148: 2014-01-13 | B148: 1322 | C148: 1333.1 | D148: 1313 | E148: 1319.6 | F148: 4700 | G148: 1310.95
A149: 2014-01-10 | B149: 1320 | C149: 1330 | D149: 1312 | E149: 1321.95 | F149: 5400 | G149: 1313.29
A150: 2014-01-09 | B150: 1333.6 | C150: 1343.9 | D150: 1315 | E150: 1319.95 | F150: 14100 | G150: 1311.3
A151: 2014-01-08 | B151: 1345.05 | C151: 1357.75 | D151: 1332.25 | E151: 1336.2 | F151: 11000 | G151: 1327.44
A152: 2014-01-07 | B152: 1353.1 | C152: 1365.35 | D152: 1331.9 | E152: 1341.5 | F152: 7700 | G152: 1332.71
A153: 2014-01-06 | B153: 1356.2 | C153: 1371.35 | D153: 1344 | E153: 1351.45 | F153: 12400 | G153: 1342.59
A154: 2014-01-03 | B154: 1338 | C154: 1360.95 | D154: 1333.6 | E154: 1356.2 | F154: 9400 | G154: 1347.31
A155: 2014-01-02 | B155: 1357 | C155: 1386 | D155: 1326 | E155: 1339.4 | F155: 21600 | G155: 1330.62
A156: 2014-01-01 | B156: 1359 | C156: 1368 | D156: 1343.35 | E156: 1361.75 | F156: 10600 | G156: 1352.83
A157: 2013-12-31 | B157: 1364.4 | C157: 1369 | D157: 1347 | E157: 1352.85 | F157: 23000 | G157: 1343.98
A158: 2013-12-30 | B158: 1322 | C158: 1363 | D158: 1305.1 | E158: 1355.5 | F158: 32500 | G158: 1346.62
A159: 2013-12-27 | B159: 1298.75 | C159: 1317.05 | D159: 1296 | E159: 1304.75 | F159: 10700 | G159: 1296.2
A160: 2013-12-26 | B160: 1300 | C160: 1319.7 | D160: 1292.55 | E160: 1298 | F160: 10500 | G160: 1289.49
A161: 2013-12-25 | B161: 1302.45 | C161: 1302.45 | D161: 1302.45 | E161: 1302.45 | F161: 0 | G161: 1293.92
A162: 2013-12-24 | B162: 1310.45 | C162: 1324 | D162: 1298 | E162: 1302.45 | F162: 11700 | G162: 1293.92
A163: 2013-12-23 | B163: 1308 | C163: 1327.4 | D163: 1296.7 | E163: 1310.45 | F163: 18100 | G163: 1301.86
A164: 2013-12-20 | B164: 1305.8 | C164: 1309 | D164: 1282 | E164: 1300.75 | F164: 13300 | G164: 1292.23
A165: 2013-12-19 | B165: 1309 | C165: 1315.8 | D165: 1291.25 | E165: 1300.95 | F165: 60100 | G165: 1292.43
A166: 2013-12-18 | B166: 1257 | C166: 1309.4 | D166: 1257 | E166: 1299.7 | F166: 14300 | G166: 1291.18
A167: 2013-12-17 | B167: 1272 | C167: 1272 | D167: 1255.05 | E167: 1265.25 | F167: 9100 | G167: 1256.96
A168: 2013-12-16 | B168: 1264 | C168: 1274 | D168: 1253.1 | E168: 1261.7 | F168: 5700 | G168: 1253.43
A169: 2013-12-13 | B169: 1267 | C169: 1270 | D169: 1260 | E169: 1263.95 | F169: 7100 | G169: 1255.67
A170: 2013-12-12 | B170: 1275 | C170: 1276.2 | D170: 1267 | E170: 1270.2 | F170: 9000 | G170: 1261.88
A171: 2013-12-11 | B171: 1274 | C171: 1283.4 | D171: 1266.2 | E171: 1274.5 | F171: 31900 | G171: 1266.15
A172: 2013-12-10 | B172: 1267 | C172: 1280 | D172: 1265.2 | E172: 1275.85 | F172: 4400 | G172: 1267.49
A173: 2013-12-09 | B173: 1277 | C173: 1287.75 | D173: 1259.55 | E173: 1277.35 | F173: 12900 | G173: 1268.98
A174: 2013-12-06 | B174: 1251 | C174: 1276.9 | D174: 1251 | E174: 1274 | F174: 5600 | G174: 1256.71
A175: 2013-12-05 | B175: 1284.7 | C175: 1284.7 | D175: 1254.1 | E175: 1259.4 | F175: 5100 | G175: 1242.31
A176: 2013-12-04 | B176: 1275 | C176: 1290 | D176: 1272 | E176: 1274.35 | F176: 8300 | G176: 1257.06
A177: 2013-12-03 | B177: 1290 | C177: 1298 | D177: 1270.05 | E177: 1273.75 | F177: 12300 | G177: 1256.46
A178: 2013-12-02 | B178: 1270 | C178: 1288.55 | D178: 1268.05 | E178: 1284.7 | F178: 13400 | G178: 1267.27
A179: 2013-11-29 | B179: 1241 | C179: 1268 | D179: 1241 | E179: 1261.4 | F179: 11700 | G179: 1244.28
A180: 2013-11-28 | B180: 1251 | C180: 1252.35 | D180: 1236 | E180: 1238.1 | F180: 8200 | G180: 1221.3
A181: 2013-11-27 | B181: 1249.9 | C181: 1258.5 | D181: 1242.25 | E181: 1251.8 | F181: 8600 | G181: 1234.81
A182: 2013-11-26 | B182: 1250 | C182: 1254.7 | D182: 1242.1 | E182: 1246.55 | F182: 6500 | G182: 1229.63
A183: 2013-11-25 | B183: 1248.85 | C183: 1260 | D183: 1243.55 | E183: 1245.95 | F183: 5200 | G183: 1229.04
A184: 2013-11-22 | B184: 1260 | C184: 1272.6 | D184: 1246 | E184: 1249.5 | F184: 5300 | G184: 1232.54
A185: 2013-11-21 | B185: 1258 | C185: 1271 | D185: 1248 | E185: 1252.65 | F185: 8700 | G185: 1235.65
A186: 2013-11-20 | B186: 1248.2 | C186: 1275 | D186: 1242.75 | E186: 1258.9 | F186: 10600 | G186: 1241.82
A187: 2013-11-19 | B187: 1265 | C187: 1270 | D187: 1249 | E187: 1252.5 | F187: 9000 | G187: 1235.5
A188: 2013-11-18 | B188: 1251 | C188: 1263.05 | D188: 1251 | E188: 1259.75 | F188: 8500 | G188: 1242.65
A189: 2013-11-15 | B189: 1249.3 | C189: 1249.3 | D189: 1249.3 | E189: 1249.3 | F189: 0 | G189: 1232.35
A190: 2013-11-14 | B190: 1240.05 | C190: 1268.4 | D190: 1240 | E190: 1249.3 | F190: 27100 | G190: 1232.35
A191: 2013-11-13 | B191: 1232 | C191: 1245 | D191: 1228 | E191: 1238.8 | F191: 9300 | G191: 1221.99
A192: 2013-11-12 | B192: 1235 | C192: 1242.95 | D192: 1229.9 | E192: 1231.95 | F192: 8900 | G192: 1215.23
A193: 2013-11-11 | B193: 1235 | C193: 1244.8 | D193: 1232.1 | E193: 1234 | F193: 6600 | G193: 1217.25
A194: 2013-11-08 | B194: 1240.8 | C194: 1244.5 | D194: 1231 | E194: 1236.1 | F194: 10300 | G194: 1219.32
A195: 2013-11-07 | B195: 1239 | C195: 1244.5 | D195: 1232 | E195: 1234.2 | F195: 6400 | G195: 1217.45
A196: 2013-11-06 | B196: 1244 | C196: 1244.95 | D196: 1231.25 | E196: 1240.6 | F196: 6700 | G196: 1223.76
A197: 2013-11-05 | B197: 1262 | C197: 1264.1 | D197: 1241 | E197: 1244.75 | F197: 12100 | G197: 1218.98
A198: 2013-11-04 | B198: 1247.2 | C198: 1247.2 | D198: 1247.2 | E198: 1247.2 | F198: 0 | G198: 1221.38
A199: 2013-11-01 | B199: 1231 | C199: 1257 | D199: 1228 | E199: 1247.2 | F199: 13300 | G199: 1221.38
A200: 2013-10-31 | B200: 1240 | C200: 1246 | D200: 1235.05 | E200: 1239.2 | F200: 64700 | G200: 1213.54
... 1491 more rows

Sheet ticker sheet
A1: Stock Name | B1: ticker code | C1: Use ctrl+f to locate the stock you want
A2: Adarsh Plant Protect Ltd | B2: ADARSHPL.BO | C2: .NS refers to price at NSE
A3: Aimco Pesticides Ltd | B3: AIMCO.BO | C3: .BO refers to price at BSE
A4: Aries Agro Ltd | B4: ARIES.BO | C4: Source
A5: Basant Agro-Tech India Ltd | B5: BASANTGL.BO
A6: Bayer CropScience Ltd | B6: BAYER.BO
A7: Bhagiradha Chemicals | B7: BHAGCHEM.BO
A8: Bharat Agri Fert & Realty Ltd | B8: BFIL.BO
A9: Bharat Rasayan Ltd | B9: BHTRAS.BO
A10: Camson Bio Technologies Ltd | B10: CAMSONBIO.BO
A11: Chambal Fertilisers & Che | B11: CHAMBAL.BO
A12: Coromandel International Ltd | B12: COROMINTE.BO
A13: Deepak Fertilisers | B13: DEEPAKFERT.BO
A14: Dhanuka Agritech Ltd | B14: DHANUKA.BO
A15: Excel Crop Care Ltd | B15: XCLCROP.BO
A16: Excel Industries Ltd | B16: XCLIND.BO
A17: Fertilizers & Chemicals T | B17: FACTL.BO
A18: Gujarat Narmada Valley | B18: GNFC.BO
A19: Insecticides (India) Ltd | B19: INSECTCID.BO
A20: Khaitan Chemicals | B20: KHAICHEM.BO
A21: Kilpest India Ltd | B21: KILPEST.BO
A22: Liberty Phosphate Ltd | B22: LIBERTYP.BO
A23: M P Agro Industries Ltd | B23: MPAGI.BO
A24: Mangalore Chemicals & Fer | B24: MANGCHEM.BO
A25: Meghmani Organics Ltd | B25: MEGH.BO
A26: Modipon Ltd | B26: MODIPON.BO
A27: Monsanto India Ltd | B27: MONSANTO.BO
A28: Nagarjuna Agritech Ltd | B28: NAGTECH.BO
A29: National Fertilizers Ltd | B29: NFL.BO
A30: Ocean Agro (India) Ltd | B30: OCEAGRO.BO
A31: Phyto Chem (India) Ltd | B31: PHYTO.BO
A32: Punjab Chemicals & Crop P | B32: PUNJCHEM.BO
A33: Rama Phosphates Ltd | B33: RAMAPHO.BO
A34: Rashtriya Chemicals and F | B34: RCF.BO
A35: Sabero Organics Gujarat Ltd | B35: SABERO.BO
A36: Shiva Global Agro Industr | B36: SHIVAFER.BO
A37: Southern Petrochemicals I | B37: SOUTHPET.BO
A38: Super Crop Safe Ltd | B38: SUCROSA.BO
A39: Teesta Agro Industries Ltd | B39: TEEAI.BO
A40: Tuticorin Alkali | B40: TUTIALKA.BO
A41: United Phosphorus Ltd | B41: UNITEDPHOS.BO
A42: Zuari Global Ltd | B42: ZUARIIND.BO
A43: Alumeco India Extrusion Ltd | B43: ALUMECO.BO
A44: Associated Profiles | B44: HINDALUMI.BO
A45: Bhoruka Aluminium Ltd | B45: BHRKALM.BO
A46: Century Extrusions Ltd | B46: CENTEXTR.BO
A47: Gujarat Foils Ltd | B47: GUJFOIL.BO
A48: Maan Aluminium Ltd | B48: MANALUM.BO
A49: National Aluminium Co Ltd | B49: NALCO.BO
A50: Nirav Commercials Ltd | B50: NIRAVCOM.BO
A51: PG Foils Ltd | B51: PGFOILQ.BO
A52: Sacheta Metals Ltd | B52: SACHEMT.BO
A53: Sudal Industries Ltd | B53: SUDAI.BO
A54: Aarti Industries Ltd | B54: ARTIIND.BO
A55: Aditya Birla Chemicals (I | B55: ABCIL.BO
A56: AksharChem (India) Ltd | B56: AKSCHEM.BO
A57: Alufluoride Ltd | B57: ALUFLUOR.BO
A58: Amines & Plasticizers Ltd | B58: AMNPLST.BO
A59: Andhra Petrochemicals Ltd | B59: ANDHRAPE.BO
A60: Andhra Sugars Ltd | B60: ANDHRASUGAR.BO
A61: Archit Organosys Ltd | B61: SHCHOLC.BO
A62: Asahi Songwon Colors Ltd | B62: ASCL.BO
A63: Asian Petroproducts | B63: ASINPET.BO
A64: Astec Lifesciences Ltd | B64: ASTEC.BO
A65: Atul Ltd | B65: ATULLTD.BO
A66: Avon Organics Ltd | B66: AVONORG.BO
A67: BASF India Ltd | B67: BASF.BO
A68: Bhagawati Gas Ltd | B68: BHAGGAS.BO
A69: Bhansali Engineering Poly | B69: BEPL.BO
A70: Camphor & Allied Products Ltd | B70: CAMPHOR.BO
A71: DCW Ltd | B71: DCW.BO
A72: Deepak Nitrite Ltd | B72: DEEPAKNI.BO
A73: Dharamsi Morarji Chemical | B73: DHARAMSI.BO
A74: Dhoot Industrial Finance Ltd | B74: DHOOTIN.BO
A75: Diamines & Chemicals Ltd | B75: DIAMINESQ.BO
A76: DIC India Ltd | B76: DIC.BO
A77: Ellenbarrie Industrial Ga | B77: ELLENBARR.BO
A78: Fischer Chemic Ltd | B78: FISCHER.BO
A79: Foseco India Ltd | B79: FOSECO.BO
A80: Genus Prime Infra Ltd | B80: GULCHEM.BO
A81: GHCL Ltd | B81: GHCL.BO
A82: Godrej Industries Ltd | B82: GODREJIND.BO
A83: Gujarat Alkalies | B83: GUJALKALI.BO
A84: Gujarat Fluorochemicals Ltd | B84: GUJFLUORO.BO
A85: Gulshan Polyols Ltd | B85: GULPOLY.BO
A86: Hikal Ltd | B86: HIKAL.BO
A87: Himadri Chemicals & Indus | B87: HIMCI.BO
A88: Hindustan Fluorocarbons Ltd | B88: HINFLUR.BO
A89: Hindustan Organic Chemica | B89: HINDORG.BO
A90: Ind-Agiv Commerce Ltd | B90: INDAGIV.BO
A91: India Gelatine & Chemicals Ltd | B91: INDGELA.BO
A92: India Glycols Ltd | B92: INDIAGLYCOL.BO
A93: Indo Amines Ltd | B93: INDOAMIN.BO
A94: Indo Borax & Chemicals Ltd | B94: INDOBORAX.BO
A95: Insilco Ltd | B95: INSILCO.BO
A96: Jayshree Chemicals Ltd | B96: JAYCH.BO
A97: JD Orgochem Ltd | B97: JDORGO.BO
A98: Kanoria Chemicals & Indus | B98: KANORIAC.BO
A99: Kansai Nerolac Paints Ltd | B99: KANSANERO.BO
A100: Kesar Petroproducts Ltd | B100: KESARPE.BO
A101: Kilburn Chemicals Ltd | B101: KILBURNC.BO
A102: Laffans Petrochemicals Ltd | B102: LAFFANSQ.BO
A103: Manali Petrochemicals Ltd | B103: MANALIPE.BO
A104: Mangalam Drugs & Organics Ltd | B104: MANGALAM.BO
A105: Mangalam Organics Ltd | B105: DUJODPRO.BO
A106: Multibase India Ltd | B106: MULTIBASE.BO
A107: Mysore Petro Chemicals Ltd | B107: MYSORPET.BO
A108: National Peroxide Ltd | B108: NATPEROX.BO
A109: Navin Fluorine Internatio | B109: NAVIN.BO
A110: NOCIL Ltd | B110: NOCIL.BO
A111: Oriental Carbon | B111: ORIENTCQ.BO
A112: Pratiksha Chemicals Ltd | B112: PRATIKSH.BO
A113: Pressure Sensitive System | B113: PRESSURS.BO
A114: Punjab Alkalies & Chem | B114: PACL.BO
A115: Refex Refrigerants Ltd | B115: REFEX.BO
A116: Refnol Resins & Chemicals Ltd | B116: REFNOL.BO
A117: Resonance Specialties Ltd | B117: RESONANCE.BO
A118: Ritesh International Ltd | B118: RITESHIN.BO
A119: Roopa Industries Ltd | B119: ROOPAIND.BO
A120: Sarang Chemicals Ltd | B120: SARCHEM.BO
A121: Shalimar Paints Ltd | B121: SHALMPAI.BO
A122: Sree Rayalaseema | B122: SREERAYA.BO
A123: Standard Shoe Sole | B123: CHMCRWN.BO
A124: Sunitee Chemicals Ltd | B124: SUNITEE.BO
A125: Supreme Industries Ltd | B125: SUPREMEIND.BO
A126: Supreme Petrochem Ltd | B126: SUPREMEPET.BO
A127: SVC Superchem Ltd | B127: SVCSUPE.BO
A128: T C M Ltd | B128: TCMLMTD.BO
A129: Tamilnadu Petroproducts Ltd | B129: TNPETRO.BO
A130: Tata Chemicals Ltd | B130: TATACHEM.BO
A131: Transpek Industry Ltd | B131: TRANSPEK.BO
A132: Ultramarine & Pigments Ltd | B132: ULTRAMAR.BO
A133: Uniphos Enterprises Ltd | B133: UNIPHOS.BO
A134: Universal Starch-Chem All | B134: UNIVSTAR.BO
A135: Vinati Organics Ltd | B135: VINATIOR.BO
A136: Vivid Global Industries Ltd | B136: VIVIDIND.BO
A137: ABC Gas (International) Ltd | B137: ABCGAS.BO
A138: Cubex Tubings Ltd | B138: CUBTU.BO
A139: Hindalco Industries Ltd | B139: HINDALCO.BO
A140: Hindustan Copper Ltd | B140: HINDCOPER.BO
A141: Deccan Gold Mines Ltd | B141: DECNGOLD.BO
A142: Shirpur Gold Refinery Ltd | B142: AGEEGOLD.BO
A143: Gujarat Natural Resources Ltd | B143: LESHAENER.BO
A144: Hindustan Oil Exploration | B144: HINDOILEXP.BO
A145: Interlink Petroleum Ltd | B145: INTLNKP.BO
A146: KGN Industries Ltd | B146: KGNIND.BO
A147: Sterling International En | B147: STEERINTER.BO
A148: Trinity Tradelink Ltd | B148: SHARPTR.BO
A149: Aegis Logistics Ltd | B149: AEGISLOG.BO
A150: Cairn India Ltd | B150: CAIRN.BO
A151: Eastern Gases Ltd | B151: EASTERNGAS.BO
A152: Essar Oil Ltd | B152: ESSAROIL.BO
A153: Gagan Gases Ltd | B153: GAGAN.BO
A154: Oil & Natural Gas Corp Ltd | B154: ONGC.BO
A155: Oil India Ltd | B155: OIL.BO
A156: Aban Offshore Ltd | B156: ABANOFFSH.BO
A157: Asian Oilfield Services Ltd | B157: ASIANOI.BO
A158: Gemmia Oiltech (India) Ltd | B158: RAMKASH.BO
A159: Jindal Drilling & Industr | B159: JINDRILL.BO
A160: Selan Exploration | B160: SELAN.BO
A161: Alphageo India Ltd | B161: ALPHAGEO.BO
A162: Deep Industries Ltd | B162: DEEPIND.BO
A163: Dolphin Offshore Enterpri | B163: DOLPOFF.BO
A164: Duke Offshore Ltd | B164: DUKEOFS.BO
A165: Expo Gas Containers Ltd | B165: EXPOGAS.BO
A166: Gol Offshore Ltd | B166: GREATOFF.BO
A167: Oil Country Tubular Ltd | B167: OILCOUNT.BO
A168: Seamec Ltd | B168: SEAMECLTD.BO
A169: Shiv-Vani Oil & Gas Explo | B169: SHIVVANI.BO
A170: United Drilling Tools Ltd | B170: UNIDT.BO
A171: Bharat Petroleum Corp Ltd | B171: BPCL.BO
A172: Cals Refineries Ltd | B172: CALSREF.BO
A173: Chennai Petroleum Corp Ltd | B173: CHENNPETRO.BO
A174: Confidence Petroleum India Ltd | B174: CONFIPET.BO
A175: Continental Petroleums Ltd | B175: CONTPTR.BO
A176: Hindustan Petroleum Corp Ltd | B176: HPCL.BO
A177: Indian Oil Corp Ltd | B177: IOC.BO
A178: Kanel Industries Ltd | B178: KANELOIL.BO
A179: Mangalore Refinery and Pe | B179: MRPL.BO
A180: Panama Petrochem Ltd | B180: PANAMA.BO
A181: Petronet LNG Ltd | B181: PETRONET.BO
A182: Reliance Industries Ltd | B182: RIL.BO
A183: Sah Petroleums Ltd | B183: SAHPETRO.BO
A184: Samyak International Ltd | B184: SAMYAKINT.BO
A185: Tide Water Oil Co India Ltd | B185: TIDEWAT.BO
A186: Adi Finechem Ltd | B186: HKFINCHQ.BO
A187: Agarwal Industrial Corp Ltd | B187: AGARIND.BO
A188: Akzo Nobel India Ltd | B188: ICI.BO
A189: Alkyl Amines Chemicals Ltd | B189: ALKYLAM.BO
A190: Amal Ltd | B190: AMAL.BO
A191: Axel Polymers Ltd | B191: AXELPOLY.BO
A192: Bagadia Colourchem Ltd | B192: BAGADIA.BO
A193: Balaji Amines Ltd | B193: BALAJIAM.BO
A194: Berger Paints India Ltd | B194: BERGEPAINT.BO
A195: Bhageria Dye Chem Ltd | B195: BHAGERIA.BO
A196: Black Rose Industries Ltd | B196: BLACKROSE.BO
A197: Bodal Chemicals Ltd | B197: BODALCHEM.BO
A198: Borax Morarji Ltd | B198: BORAX.BO
A199: C J Gelatine Products Ltd | B199: CJGEL.BO
A200: Camex Ltd | B200: CAMEXLTD.BO
... 3934 more rows

Sheet Stock price FY high and low
A1: =Analysis!C2 -> 2005 | C1: =MAX(B2:B10000) -> 0 | D1: =Analysis!D2 -> 2006 | F1: =MAX(E2:E10000) -> 0 | G1: =Analysis!E2 -> 2007 | I1: =MAX(H2:H10000) -> 0 | J1: =Analysis!F2 -> 2008 | L1: =MAX(K2:K10000) -> 487.8 | M1: =Analysis!G2 -> 2009 | O1: =MAX(N2:N10000) -> 470.75 | P1: =Analysis!H2 -> 2010 | R1: =MAX(Q2:Q10000) -> 732.55 | S1: =Analysis!I2 -> 2011 | U1: =MAX(T2:T10000) -> 946.55 | V1: =Analysis!J2 -> 2012 | X1: =MAX(W2:W10000) -> 1117.35 | Y1: =Analysis!K2 -> 2013 | AA1: =MAX(Z2:Z10000) -> 1567 | AB1: =Analysis!L2 -> 2014 | AD1: =MAX(AC2:AC10000) -> 1549.15
A2: =IF('Stock Price'!A2>=DATE($A$1-1,4,1),IF('Stock Price'!A2<=DATE($A$1,3,31),'Stock Price'!A2,""),"") ->  | B2: =IF('Stock Price'!A2>=DATE($A$1-1,4,1),IF('Stock Price'!A2<=DATE($A$1,3,31),'Stock Price'!E2,""),"") ->  | C2: =MIN(B2:B10000) -> 0 | D2: =IF('Stock Price'!$A2>=DATE($D$1-1,4,1),IF('Stock Price'!$A2<=DATE($D$1,3,31),'Stock Price'!$A2,""),"") ->  | E2: =IF('Stock Price'!$A2>=DATE($D$1-1,4,1),IF('Stock Price'!$A2<=DATE($D$1,3,31),'Stock Price'!$E2,""),"") ->  | F2: =MIN(E2:E10000) -> 0 | G2: =IF('Stock Price'!$A2>=DATE($G$1-1,4,1),IF('Stock Price'!$A2<=DATE($G$1,3,31),'Stock Price'!$A2,""),"") ->  | H2: =IF('Stock Price'!$A2>=DATE($G$1-1,4,1),IF('Stock Price'!$A2<=DATE($G$1,3,31),'Stock Price'!$E2,""),"") ->  | I2: =MIN(H2:H10000) -> 0 | J2: =IF('Stock Price'!$A2>=DATE($J$1-1,4,1),IF('Stock Price'!$A2<=DATE($J$1,3,31),'Stock Price'!$A2,""),"") ->  | K2: =IF('Stock Price'!$A2>=DATE($J$1-1,4,1),IF('Stock Price'!$A2<=DATE($J$1,3,31),'Stock Price'!$E2,""),"") ->  | L2: =MIN(K2:K10000) -> 363.65 | M2: =IF('Stock Price'!$A2>=DATE($M$1-1,4,1),IF('Stock Price'!$A2<=DATE($M$1,3,31),'Stock Price'!$A2,""),"") ->  | N2: =IF('Stock Price'!$A2>=DATE($M$1-1,4,1),IF('Stock Price'!$A2<=DATE($M$1,3,31),'Stock Price'!$E2,""),"") ->  | O2: =MIN(N2:N10000) -> 347.9 | P2: =IF('Stock Price'!$A2>=DATE($P$1-1,4,1),IF('Stock Price'!$A2<=DATE($P$1,3,31),'Stock Price'!$A2,""),"") ->  | Q2: =IF('Stock Price'!$A2>=DATE($P$1-1,4,1),IF('Stock Price'!$A2<=DATE($P$1,3,31),'Stock Price'!$E2,""),"") ->  | R2: =MIN(Q2:Q10000) -> 446.25 | S2: =IF('Stock Price'!$A2>=DATE($S$1-1,4,1),IF('Stock Price'!$A2<=DATE($S$1,3,31),'Stock Price'!$A2,""),"") ->  | T2: =IF('Stock Price'!$A2>=DATE($S$1-1,4,1),IF('Stock Price'!$A2<=DATE($S$1,3,31),'Stock Price'!$E2,""),"") ->  | U2: =MIN(T2:T10000) -> 677.3 | V2: =IF('Stock Price'!$A2>=DATE($V$1-1,4,1),IF('Stock Price'!$A2<=DATE($V$1,3,31),'Stock Price'!$A2,""),"") ->  | W2: =IF('Stock Price'!$A2>=DATE($V$1-1,4,1),IF('Stock Price'!$A2<=DATE($V$1,3,31),'Stock Price'!$E2,""),"") ->  | X2: =MIN(W2:W10000) -> 824.5 | Y2: =IF('Stock Price'!$A2>=DATE($Y$1-1,4,1),IF('Stock Price'!$A2<=DATE($Y$1,3,31),'Stock Price'!$A2,""),"") ->  | Z2: =IF('Stock Price'!$A2>=DATE($Y$1-1,4,1),IF('Stock Price'!$A2<=DATE($Y$1,3,31),'Stock Price'!$E2,""),"") ->  | AA2: =MIN(Z2:Z10000) -> 1107 | AB2: =IF('Stock Price'!$A2>=DATE($AB$1-1,4,1),IF('Stock Price'!$A2<=DATE($AB$1,3,31),'Stock Price'!$A2,""),"") ->  | AC2: =IF('Stock Price'!$A2>=DATE($AB$1-1,4,1),IF('Stock Price'!$A2<=DATE($AB$1,3,31),'Stock Price'!$E2,""),"") ->  | AD2: =MIN(AC2:AC10000) -> 1201.9
A3: =IF('Stock Price'!A3>=DATE($A$1-1,4,1),IF('Stock Price'!A3<=DATE($A$1,3,31),'Stock Price'!A3,""),"") ->  | B3: =IF('Stock Price'!A3>=DATE($A$1-1,4,1),IF('Stock Price'!A3<=DATE($A$1,3,31),'Stock Price'!E3,""),"") ->  | D3: =IF('Stock Price'!$A3>=DATE($D$1-1,4,1),IF('Stock Price'!$A3<=DATE($D$1,3,31),'Stock Price'!$A3,""),"") ->  | E3: =IF('Stock Price'!$A3>=DATE($D$1-1,4,1),IF('Stock Price'!$A3<=DATE($D$1,3,31),'Stock Price'!$E3,""),"") ->  | G3: =IF('Stock Price'!$A3>=DATE($G$1-1,4,1),IF('Stock Price'!$A3<=DATE($G$1,3,31),'Stock Price'!$A3,""),"") ->  | H3: =IF('Stock Price'!$A3>=DATE($G$1-1,4,1),IF('Stock Price'!$A3<=DATE($G$1,3,31),'Stock Price'!$E3,""),"") ->  | J3: =IF('Stock Price'!$A3>=DATE($J$1-1,4,1),IF('Stock Price'!$A3<=DATE($J$1,3,31),'Stock Price'!$A3,""),"") ->  | K3: =IF('Stock Price'!$A3>=DATE($J$1-1,4,1),IF('Stock Price'!$A3<=DATE($J$1,3,31),'Stock Price'!$E3,""),"") ->  | M3: =IF('Stock Price'!$A3>=DATE($M$1-1,4,1),IF('Stock Price'!$A3<=DATE($M$1,3,31),'Stock Price'!$A3,""),"") ->  | N3: =IF('Stock Price'!$A3>=DATE($M$1-1,4,1),IF('Stock Price'!$A3<=DATE($M$1,3,31),'Stock Price'!$E3,""),"") ->  | P3: =IF('Stock Price'!$A3>=DATE($P$1-1,4,1),IF('Stock Price'!$A3<=DATE($P$1,3,31),'Stock Price'!$A3,""),"") ->  | Q3: =IF('Stock Price'!$A3>=DATE($P$1-1,4,1),IF('Stock Price'!$A3<=DATE($P$1,3,31),'Stock Price'!$E3,""),"") ->  | S3: =IF('Stock Price'!$A3>=DATE($S$1-1,4,1),IF('Stock Price'!$A3<=DATE($S$1,3,31),'Stock Price'!$A3,""),"") ->  | T3: =IF('Stock Price'!$A3>=DATE($S$1-1,4,1),IF('Stock Price'!$A3<=DATE($S$1,3,31),'Stock Price'!$E3,""),"") ->  | V3: =IF('Stock Price'!$A3>=DATE($V$1-1,4,1),IF('Stock Price'!$A3<=DATE($V$1,3,31),'Stock Price'!$A3,""),"") ->  | W3: =IF('Stock Price'!$A3>=DATE($V$1-1,4,1),IF('Stock Price'!$A3<=DATE($V$1,3,31),'Stock Price'!$E3,""),"") ->  | Y3: =IF('Stock Price'!$A3>=DATE($Y$1-1,4,1),IF('Stock Price'!$A3<=DATE($Y$1,3,31),'Stock Price'!$A3,""),"") ->  | Z3: =IF('Stock Price'!$A3>=DATE($Y$1-1,4,1),IF('Stock Price'!$A3<=DATE($Y$1,3,31),'Stock Price'!$E3,""),"") ->  | AB3: =IF('Stock Price'!$A3>=DATE($AB$1-1,4,1),IF('Stock Price'!$A3<=DATE($AB$1,3,31),'Stock Price'!$A3,""),"") ->  | AC3: =IF('Stock Price'!$A3>=DATE($AB$1-1,4,1),IF('Stock Price'!$A3<=DATE($AB$1,3,31),'Stock Price'!$E3,""),"") -> 
A4: =IF('Stock Price'!A4>=DATE($A$1-1,4,1),IF('Stock Price'!A4<=DATE($A$1,3,31),'Stock Price'!A4,""),"") ->  | B4: =IF('Stock Price'!A4>=DATE($A$1-1,4,1),IF('Stock Price'!A4<=DATE($A$1,3,31),'Stock Price'!E4,""),"") ->  | D4: =IF('Stock Price'!$A4>=DATE($D$1-1,4,1),IF('Stock Price'!$A4<=DATE($D$1,3,31),'Stock Price'!$A4,""),"") ->  | E4: =IF('Stock Price'!$A4>=DATE($D$1-1,4,1),IF('Stock Price'!$A4<=DATE($D$1,3,31),'Stock Price'!$E4,""),"") ->  | G4: =IF('Stock Price'!$A4>=DATE($G$1-1,4,1),IF('Stock Price'!$A4<=DATE($G$1,3,31),'Stock Price'!$A4,""),"") ->  | H4: =IF('Stock Price'!$A4>=DATE($G$1-1,4,1),IF('Stock Price'!$A4<=DATE($G$1,3,31),'Stock Price'!$E4,""),"") ->  | J4: =IF('Stock Price'!$A4>=DATE($J$1-1,4,1),IF('Stock Price'!$A4<=DATE($J$1,3,31),'Stock Price'!$A4,""),"") ->  | K4: =IF('Stock Price'!$A4>=DATE($J$1-1,4,1),IF('Stock Price'!$A4<=DATE($J$1,3,31),'Stock Price'!$E4,""),"") ->  | M4: =IF('Stock Price'!$A4>=DATE($M$1-1,4,1),IF('Stock Price'!$A4<=DATE($M$1,3,31),'Stock Price'!$A4,""),"") ->  | N4: =IF('Stock Price'!$A4>=DATE($M$1-1,4,1),IF('Stock Price'!$A4<=DATE($M$1,3,31),'Stock Price'!$E4,""),"") ->  | P4: =IF('Stock Price'!$A4>=DATE($P$1-1,4,1),IF('Stock Price'!$A4<=DATE($P$1,3,31),'Stock Price'!$A4,""),"") ->  | Q4: =IF('Stock Price'!$A4>=DATE($P$1-1,4,1),IF('Stock Price'!$A4<=DATE($P$1,3,31),'Stock Price'!$E4,""),"") ->  | S4: =IF('Stock Price'!$A4>=DATE($S$1-1,4,1),IF('Stock Price'!$A4<=DATE($S$1,3,31),'Stock Price'!$A4,""),"") ->  | T4: =IF('Stock Price'!$A4>=DATE($S$1-1,4,1),IF('Stock Price'!$A4<=DATE($S$1,3,31),'Stock Price'!$E4,""),"") ->  | V4: =IF('Stock Price'!$A4>=DATE($V$1-1,4,1),IF('Stock Price'!$A4<=DATE($V$1,3,31),'Stock Price'!$A4,""),"") ->  | W4: =IF('Stock Price'!$A4>=DATE($V$1-1,4,1),IF('Stock Price'!$A4<=DATE($V$1,3,31),'Stock Price'!$E4,""),"") ->  | Y4: =IF('Stock Price'!$A4>=DATE($Y$1-1,4,1),IF('Stock Price'!$A4<=DATE($Y$1,3,31),'Stock Price'!$A4,""),"") ->  | Z4: =IF('Stock Price'!$A4>=DATE($Y$1-1,4,1),IF('Stock Price'!$A4<=DATE($Y$1,3,31),'Stock Price'!$E4,""),"") ->  | AB4: =IF('Stock Price'!$A4>=DATE($AB$1-1,4,1),IF('Stock Price'!$A4<=DATE($AB$1,3,31),'Stock Price'!$A4,""),"") ->  | AC4: =IF('Stock Price'!$A4>=DATE($AB$1-1,4,1),IF('Stock Price'!$A4<=DATE($AB$1,3,31),'Stock Price'!$E4,""),"") -> 
A5: =IF('Stock Price'!A5>=DATE($A$1-1,4,1),IF('Stock Price'!A5<=DATE($A$1,3,31),'Stock Price'!A5,""),"") ->  | B5: =IF('Stock Price'!A5>=DATE($A$1-1,4,1),IF('Stock Price'!A5<=DATE($A$1,3,31),'Stock Price'!E5,""),"") ->  | D5: =IF('Stock Price'!$A5>=DATE($D$1-1,4,1),IF('Stock Price'!$A5<=DATE($D$1,3,31),'Stock Price'!$A5,""),"") ->  | E5: =IF('Stock Price'!$A5>=DATE($D$1-1,4,1),IF('Stock Price'!$A5<=DATE($D$1,3,31),'Stock Price'!$E5,""),"") ->  | G5: =IF('Stock Price'!$A5>=DATE($G$1-1,4,1),IF('Stock Price'!$A5<=DATE($G$1,3,31),'Stock Price'!$A5,""),"") ->  | H5: =IF('Stock Price'!$A5>=DATE($G$1-1,4,1),IF('Stock Price'!$A5<=DATE($G$1,3,31),'Stock Price'!$E5,""),"") ->  | J5: =IF('Stock Price'!$A5>=DATE($J$1-1,4,1),IF('Stock Price'!$A5<=DATE($J$1,3,31),'Stock Price'!$A5,""),"") ->  | K5: =IF('Stock Price'!$A5>=DATE($J$1-1,4,1),IF('Stock Price'!$A5<=DATE($J$1,3,31),'Stock Price'!$E5,""),"") ->  | M5: =IF('Stock Price'!$A5>=DATE($M$1-1,4,1),IF('Stock Price'!$A5<=DATE($M$1,3,31),'Stock Price'!$A5,""),"") ->  | N5: =IF('Stock Price'!$A5>=DATE($M$1-1,4,1),IF('Stock Price'!$A5<=DATE($M$1,3,31),'Stock Price'!$E5,""),"") ->  | P5: =IF('Stock Price'!$A5>=DATE($P$1-1,4,1),IF('Stock Price'!$A5<=DATE($P$1,3,31),'Stock Price'!$A5,""),"") ->  | Q5: =IF('Stock Price'!$A5>=DATE($P$1-1,4,1),IF('Stock Price'!$A5<=DATE($P$1,3,31),'Stock Price'!$E5,""),"") ->  | S5: =IF('Stock Price'!$A5>=DATE($S$1-1,4,1),IF('Stock Price'!$A5<=DATE($S$1,3,31),'Stock Price'!$A5,""),"") ->  | T5: =IF('Stock Price'!$A5>=DATE($S$1-1,4,1),IF('Stock Price'!$A5<=DATE($S$1,3,31),'Stock Price'!$E5,""),"") ->  | V5: =IF('Stock Price'!$A5>=DATE($V$1-1,4,1),IF('Stock Price'!$A5<=DATE($V$1,3,31),'Stock Price'!$A5,""),"") ->  | W5: =IF('Stock Price'!$A5>=DATE($V$1-1,4,1),IF('Stock Price'!$A5<=DATE($V$1,3,31),'Stock Price'!$E5,""),"") ->  | Y5: =IF('Stock Price'!$A5>=DATE($Y$1-1,4,1),IF('Stock Price'!$A5<=DATE($Y$1,3,31),'Stock Price'!$A5,""),"") ->  | Z5: =IF('Stock Price'!$A5>=DATE($Y$1-1,4,1),IF('Stock Price'!$A5<=DATE($Y$1,3,31),'Stock Price'!$E5,""),"") ->  | AB5: =IF('Stock Price'!$A5>=DATE($AB$1-1,4,1),IF('Stock Price'!$A5<=DATE($AB$1,3,31),'Stock Price'!$A5,""),"") ->  | AC5: =IF('Stock Price'!$A5>=DATE($AB$1-1,4,1),IF('Stock Price'!$A5<=DATE($AB$1,3,31),'Stock Price'!$E5,""),"") -> 
A6: =IF('Stock Price'!A6>=DATE($A$1-1,4,1),IF('Stock Price'!A6<=DATE($A$1,3,31),'Stock Price'!A6,""),"") ->  | B6: =IF('Stock Price'!A6>=DATE($A$1-1,4,1),IF('Stock Price'!A6<=DATE($A$1,3,31),'Stock Price'!E6,""),"") ->  | D6: =IF('Stock Price'!$A6>=DATE($D$1-1,4,1),IF('Stock Price'!$A6<=DATE($D$1,3,31),'Stock Price'!$A6,""),"") ->  | E6: =IF('Stock Price'!$A6>=DATE($D$1-1,4,1),IF('Stock Price'!$A6<=DATE($D$1,3,31),'Stock Price'!$E6,""),"") ->  | G6: =IF('Stock Price'!$A6>=DATE($G$1-1,4,1),IF('Stock Price'!$A6<=DATE($G$1,3,31),'Stock Price'!$A6,""),"") ->  | H6: =IF('Stock Price'!$A6>=DATE($G$1-1,4,1),IF('Stock Price'!$A6<=DATE($G$1,3,31),'Stock Price'!$E6,""),"") ->  | J6: =IF('Stock Price'!$A6>=DATE($J$1-1,4,1),IF('Stock Price'!$A6<=DATE($J$1,3,31),'Stock Price'!$A6,""),"") ->  | K6: =IF('Stock Price'!$A6>=DATE($J$1-1,4,1),IF('Stock Price'!$A6<=DATE($J$1,3,31),'Stock Price'!$E6,""),"") ->  | M6: =IF('Stock Price'!$A6>=DATE($M$1-1,4,1),IF('Stock Price'!$A6<=DATE($M$1,3,31),'Stock Price'!$A6,""),"") ->  | N6: =IF('Stock Price'!$A6>=DATE($M$1-1,4,1),IF('Stock Price'!$A6<=DATE($M$1,3,31),'Stock Price'!$E6,""),"") ->  | P6: =IF('Stock Price'!$A6>=DATE($P$1-1,4,1),IF('Stock Price'!$A6<=DATE($P$1,3,31),'Stock Price'!$A6,""),"") ->  | Q6: =IF('Stock Price'!$A6>=DATE($P$1-1,4,1),IF('Stock Price'!$A6<=DATE($P$1,3,31),'Stock Price'!$E6,""),"") ->  | S6: =IF('Stock Price'!$A6>=DATE($S$1-1,4,1),IF('Stock Price'!$A6<=DATE($S$1,3,31),'Stock Price'!$A6,""),"") ->  | T6: =IF('Stock Price'!$A6>=DATE($S$1-1,4,1),IF('Stock Price'!$A6<=DATE($S$1,3,31),'Stock Price'!$E6,""),"") ->  | V6: =IF('Stock Price'!$A6>=DATE($V$1-1,4,1),IF('Stock Price'!$A6<=DATE($V$1,3,31),'Stock Price'!$A6,""),"") ->  | W6: =IF('Stock Price'!$A6>=DATE($V$1-1,4,1),IF('Stock Price'!$A6<=DATE($V$1,3,31),'Stock Price'!$E6,""),"") ->  | Y6: =IF('Stock Price'!$A6>=DATE($Y$1-1,4,1),IF('Stock Price'!$A6<=DATE($Y$1,3,31),'Stock Price'!$A6,""),"") ->  | Z6: =IF('Stock Price'!$A6>=DATE($Y$1-1,4,1),IF('Stock Price'!$A6<=DATE($Y$1,3,31),'Stock Price'!$E6,""),"") ->  | AB6: =IF('Stock Price'!$A6>=DATE($AB$1-1,4,1),IF('Stock Price'!$A6<=DATE($AB$1,3,31),'Stock Price'!$A6,""),"") ->  | AC6: =IF('Stock Price'!$A6>=DATE($AB$1-1,4,1),IF('Stock Price'!$A6<=DATE($AB$1,3,31),'Stock Price'!$E6,""),"") -> 
A7: =IF('Stock Price'!A7>=DATE($A$1-1,4,1),IF('Stock Price'!A7<=DATE($A$1,3,31),'Stock Price'!A7,""),"") ->  | B7: =IF('Stock Price'!A7>=DATE($A$1-1,4,1),IF('Stock Price'!A7<=DATE($A$1,3,31),'Stock Price'!E7,""),"") ->  | D7: =IF('Stock Price'!$A7>=DATE($D$1-1,4,1),IF('Stock Price'!$A7<=DATE($D$1,3,31),'Stock Price'!$A7,""),"") ->  | E7: =IF('Stock Price'!$A7>=DATE($D$1-1,4,1),IF('Stock Price'!$A7<=DATE($D$1,3,31),'Stock Price'!$E7,""),"") ->  | G7: =IF('Stock Price'!$A7>=DATE($G$1-1,4,1),IF('Stock Price'!$A7<=DATE($G$1,3,31),'Stock Price'!$A7,""),"") ->  | H7: =IF('Stock Price'!$A7>=DATE($G$1-1,4,1),IF('Stock Price'!$A7<=DATE($G$1,3,31),'Stock Price'!$E7,""),"") ->  | J7: =IF('Stock Price'!$A7>=DATE($J$1-1,4,1),IF('Stock Price'!$A7<=DATE($J$1,3,31),'Stock Price'!$A7,""),"") ->  | K7: =IF('Stock Price'!$A7>=DATE($J$1-1,4,1),IF('Stock Price'!$A7<=DATE($J$1,3,31),'Stock Price'!$E7,""),"") ->  | M7: =IF('Stock Price'!$A7>=DATE($M$1-1,4,1),IF('Stock Price'!$A7<=DATE($M$1,3,31),'Stock Price'!$A7,""),"") ->  | N7: =IF('Stock Price'!$A7>=DATE($M$1-1,4,1),IF('Stock Price'!$A7<=DATE($M$1,3,31),'Stock Price'!$E7,""),"") ->  | P7: =IF('Stock Price'!$A7>=DATE($P$1-1,4,1),IF('Stock Price'!$A7<=DATE($P$1,3,31),'Stock Price'!$A7,""),"") ->  | Q7: =IF('Stock Price'!$A7>=DATE($P$1-1,4,1),IF('Stock Price'!$A7<=DATE($P$1,3,31),'Stock Price'!$E7,""),"") ->  | S7: =IF('Stock Price'!$A7>=DATE($S$1-1,4,1),IF('Stock Price'!$A7<=DATE($S$1,3,31),'Stock Price'!$A7,""),"") ->  | T7: =IF('Stock Price'!$A7>=DATE($S$1-1,4,1),IF('Stock Price'!$A7<=DATE($S$1,3,31),'Stock Price'!$E7,""),"") ->  | V7: =IF('Stock Price'!$A7>=DATE($V$1-1,4,1),IF('Stock Price'!$A7<=DATE($V$1,3,31),'Stock Price'!$A7,""),"") ->  | W7: =IF('Stock Price'!$A7>=DATE($V$1-1,4,1),IF('Stock Price'!$A7<=DATE($V$1,3,31),'Stock Price'!$E7,""),"") ->  | Y7: =IF('Stock Price'!$A7>=DATE($Y$1-1,4,1),IF('Stock Price'!$A7<=DATE($Y$1,3,31),'Stock Price'!$A7,""),"") ->  | Z7: =IF('Stock Price'!$A7>=DATE($Y$1-1,4,1),IF('Stock Price'!$A7<=DATE($Y$1,3,31),'Stock Price'!$E7,""),"") ->  | AB7: =IF('Stock Price'!$A7>=DATE($AB$1-1,4,1),IF('Stock Price'!$A7<=DATE($AB$1,3,31),'Stock Price'!$A7,""),"") ->  | AC7: =IF('Stock Price'!$A7>=DATE($AB$1-1,4,1),IF('Stock Price'!$A7<=DATE($AB$1,3,31),'Stock Price'!$E7,""),"") -> 
A8: =IF('Stock Price'!A8>=DATE($A$1-1,4,1),IF('Stock Price'!A8<=DATE($A$1,3,31),'Stock Price'!A8,""),"") ->  | B8: =IF('Stock Price'!A8>=DATE($A$1-1,4,1),IF('Stock Price'!A8<=DATE($A$1,3,31),'Stock Price'!E8,""),"") ->  | D8: =IF('Stock Price'!$A8>=DATE($D$1-1,4,1),IF('Stock Price'!$A8<=DATE($D$1,3,31),'Stock Price'!$A8,""),"") ->  | E8: =IF('Stock Price'!$A8>=DATE($D$1-1,4,1),IF('Stock Price'!$A8<=DATE($D$1,3,31),'Stock Price'!$E8,""),"") ->  | G8: =IF('Stock Price'!$A8>=DATE($G$1-1,4,1),IF('Stock Price'!$A8<=DATE($G$1,3,31),'Stock Price'!$A8,""),"") ->  | H8: =IF('Stock Price'!$A8>=DATE($G$1-1,4,1),IF('Stock Price'!$A8<=DATE($G$1,3,31),'Stock Price'!$E8,""),"") ->  | J8: =IF('Stock Price'!$A8>=DATE($J$1-1,4,1),IF('Stock Price'!$A8<=DATE($J$1,3,31),'Stock Price'!$A8,""),"") ->  | K8: =IF('Stock Price'!$A8>=DATE($J$1-1,4,1),IF('Stock Price'!$A8<=DATE($J$1,3,31),'Stock Price'!$E8,""),"") ->  | M8: =IF('Stock Price'!$A8>=DATE($M$1-1,4,1),IF('Stock Price'!$A8<=DATE($M$1,3,31),'Stock Price'!$A8,""),"") ->  | N8: =IF('Stock Price'!$A8>=DATE($M$1-1,4,1),IF('Stock Price'!$A8<=DATE($M$1,3,31),'Stock Price'!$E8,""),"") ->  | P8: =IF('Stock Price'!$A8>=DATE($P$1-1,4,1),IF('Stock Price'!$A8<=DATE($P$1,3,31),'Stock Price'!$A8,""),"") ->  | Q8: =IF('Stock Price'!$A8>=DATE($P$1-1,4,1),IF('Stock Price'!$A8<=DATE($P$1,3,31),'Stock Price'!$E8,""),"") ->  | S8: =IF('Stock Price'!$A8>=DATE($S$1-1,4,1),IF('Stock Price'!$A8<=DATE($S$1,3,31),'Stock Price'!$A8,""),"") ->  | T8: =IF('Stock Price'!$A8>=DATE($S$1-1,4,1),IF('Stock Price'!$A8<=DATE($S$1,3,31),'Stock Price'!$E8,""),"") ->  | V8: =IF('Stock Price'!$A8>=DATE($V$1-1,4,1),IF('Stock Price'!$A8<=DATE($V$1,3,31),'Stock Price'!$A8,""),"") ->  | W8: =IF('Stock Price'!$A8>=DATE($V$1-1,4,1),IF('Stock Price'!$A8<=DATE($V$1,3,31),'Stock Price'!$E8,""),"") ->  | Y8: =IF('Stock Price'!$A8>=DATE($Y$1-1,4,1),IF('Stock Price'!$A8<=DATE($Y$1,3,31),'Stock Price'!$A8,""),"") ->  | Z8: =IF('Stock Price'!$A8>=DATE($Y$1-1,4,1),IF('Stock Price'!$A8<=DATE($Y$1,3,31),'Stock Price'!$E8,""),"") ->  | AB8: =IF('Stock Price'!$A8>=DATE($AB$1-1,4,1),IF('Stock Price'!$A8<=DATE($AB$1,3,31),'Stock Price'!$A8,""),"") ->  | AC8: =IF('Stock Price'!$A8>=DATE($AB$1-1,4,1),IF('Stock Price'!$A8<=DATE($AB$1,3,31),'Stock Price'!$E8,""),"") -> 
A9: =IF('Stock Price'!A9>=DATE($A$1-1,4,1),IF('Stock Price'!A9<=DATE($A$1,3,31),'Stock Price'!A9,""),"") ->  | B9: =IF('Stock Price'!A9>=DATE($A$1-1,4,1),IF('Stock Price'!A9<=DATE($A$1,3,31),'Stock Price'!E9,""),"") ->  | D9: =IF('Stock Price'!$A9>=DATE($D$1-1,4,1),IF('Stock Price'!$A9<=DATE($D$1,3,31),'Stock Price'!$A9,""),"") ->  | E9: =IF('Stock Price'!$A9>=DATE($D$1-1,4,1),IF('Stock Price'!$A9<=DATE($D$1,3,31),'Stock Price'!$E9,""),"") ->  | G9: =IF('Stock Price'!$A9>=DATE($G$1-1,4,1),IF('Stock Price'!$A9<=DATE($G$1,3,31),'Stock Price'!$A9,""),"") ->  | H9: =IF('Stock Price'!$A9>=DATE($G$1-1,4,1),IF('Stock Price'!$A9<=DATE($G$1,3,31),'Stock Price'!$E9,""),"") ->  | J9: =IF('Stock Price'!$A9>=DATE($J$1-1,4,1),IF('Stock Price'!$A9<=DATE($J$1,3,31),'Stock Price'!$A9,""),"") ->  | K9: =IF('Stock Price'!$A9>=DATE($J$1-1,4,1),IF('Stock Price'!$A9<=DATE($J$1,3,31),'Stock Price'!$E9,""),"") ->  | M9: =IF('Stock Price'!$A9>=DATE($M$1-1,4,1),IF('Stock Price'!$A9<=DATE($M$1,3,31),'Stock Price'!$A9,""),"") ->  | N9: =IF('Stock Price'!$A9>=DATE($M$1-1,4,1),IF('Stock Price'!$A9<=DATE($M$1,3,31),'Stock Price'!$E9,""),"") ->  | P9: =IF('Stock Price'!$A9>=DATE($P$1-1,4,1),IF('Stock Price'!$A9<=DATE($P$1,3,31),'Stock Price'!$A9,""),"") ->  | Q9: =IF('Stock Price'!$A9>=DATE($P$1-1,4,1),IF('Stock Price'!$A9<=DATE($P$1,3,31),'Stock Price'!$E9,""),"") ->  | S9: =IF('Stock Price'!$A9>=DATE($S$1-1,4,1),IF('Stock Price'!$A9<=DATE($S$1,3,31),'Stock Price'!$A9,""),"") ->  | T9: =IF('Stock Price'!$A9>=DATE($S$1-1,4,1),IF('Stock Price'!$A9<=DATE($S$1,3,31),'Stock Price'!$E9,""),"") ->  | V9: =IF('Stock Price'!$A9>=DATE($V$1-1,4,1),IF('Stock Price'!$A9<=DATE($V$1,3,31),'Stock Price'!$A9,""),"") ->  | W9: =IF('Stock Price'!$A9>=DATE($V$1-1,4,1),IF('Stock Price'!$A9<=DATE($V$1,3,31),'Stock Price'!$E9,""),"") ->  | Y9: =IF('Stock Price'!$A9>=DATE($Y$1-1,4,1),IF('Stock Price'!$A9<=DATE($Y$1,3,31),'Stock Price'!$A9,""),"") ->  | Z9: =IF('Stock Price'!$A9>=DATE($Y$1-1,4,1),IF('Stock Price'!$A9<=DATE($Y$1,3,31),'Stock Price'!$E9,""),"") ->  | AB9: =IF('Stock Price'!$A9>=DATE($AB$1-1,4,1),IF('Stock Price'!$A9<=DATE($AB$1,3,31),'Stock Price'!$A9,""),"") ->  | AC9: =IF('Stock Price'!$A9>=DATE($AB$1-1,4,1),IF('Stock Price'!$A9<=DATE($AB$1,3,31),'Stock Price'!$E9,""),"") -> 
A10: =IF('Stock Price'!A10>=DATE($A$1-1,4,1),IF('Stock Price'!A10<=DATE($A$1,3,31),'Stock Price'!A10,""),"") ->  | B10: =IF('Stock Price'!A10>=DATE($A$1-1,4,1),IF('Stock Price'!A10<=DATE($A$1,3,31),'Stock Price'!E10,""),"") ->  | D10: =IF('Stock Price'!$A10>=DATE($D$1-1,4,1),IF('Stock Price'!$A10<=DATE($D$1,3,31),'Stock Price'!$A10,""),"") ->  | E10: =IF('Stock Price'!$A10>=DATE($D$1-1,4,1),IF('Stock Price'!$A10<=DATE($D$1,3,31),'Stock Price'!$E10,""),"") ->  | G10: =IF('Stock Price'!$A10>=DATE($G$1-1,4,1),IF('Stock Price'!$A10<=DATE($G$1,3,31),'Stock Price'!$A10,""),"") ->  | H10: =IF('Stock Price'!$A10>=DATE($G$1-1,4,1),IF('Stock Price'!$A10<=DATE($G$1,3,31),'Stock Price'!$E10,""),"") ->  | J10: =IF('Stock Price'!$A10>=DATE($J$1-1,4,1),IF('Stock Price'!$A10<=DATE($J$1,3,31),'Stock Price'!$A10,""),"") ->  | K10: =IF('Stock Price'!$A10>=DATE($J$1-1,4,1),IF('Stock Price'!$A10<=DATE($J$1,3,31),'Stock Price'!$E10,""),"") ->  | M10: =IF('Stock Price'!$A10>=DATE($M$1-1,4,1),IF('Stock Price'!$A10<=DATE($M$1,3,31),'Stock Price'!$A10,""),"") ->  | N10: =IF('Stock Price'!$A10>=DATE($M$1-1,4,1),IF('Stock Price'!$A10<=DATE($M$1,3,31),'Stock Price'!$E10,""),"") ->  | P10: =IF('Stock Price'!$A10>=DATE($P$1-1,4,1),IF('Stock Price'!$A10<=DATE($P$1,3,31),'Stock Price'!$A10,""),"") ->  | Q10: =IF('Stock Price'!$A10>=DATE($P$1-1,4,1),IF('Stock Price'!$A10<=DATE($P$1,3,31),'Stock Price'!$E10,""),"") ->  | S10: =IF('Stock Price'!$A10>=DATE($S$1-1,4,1),IF('Stock Price'!$A10<=DATE($S$1,3,31),'Stock Price'!$A10,""),"") ->  | T10: =IF('Stock Price'!$A10>=DATE($S$1-1,4,1),IF('Stock Price'!$A10<=DATE($S$1,3,31),'Stock Price'!$E10,""),"") ->  | V10: =IF('Stock Price'!$A10>=DATE($V$1-1,4,1),IF('Stock Price'!$A10<=DATE($V$1,3,31),'Stock Price'!$A10,""),"") ->  | W10: =IF('Stock Price'!$A10>=DATE($V$1-1,4,1),IF('Stock Price'!$A10<=DATE($V$1,3,31),'Stock Price'!$E10,""),"") ->  | Y10: =IF('Stock Price'!$A10>=DATE($Y$1-1,4,1),IF('Stock Price'!$A10<=DATE($Y$1,3,31),'Stock Price'!$A10,""),"") ->  | Z10: =IF('Stock Price'!$A10>=DATE($Y$1-1,4,1),IF('Stock Price'!$A10<=DATE($Y$1,3,31),'Stock Price'!$E10,""),"") ->  | AB10: =IF('Stock Price'!$A10>=DATE($AB$1-1,4,1),IF('Stock Price'!$A10<=DATE($AB$1,3,31),'Stock Price'!$A10,""),"") ->  | AC10: =IF('Stock Price'!$A10>=DATE($AB$1-1,4,1),IF('Stock Price'!$A10<=DATE($AB$1,3,31),'Stock Price'!$E10,""),"") -> 
A11: =IF('Stock Price'!A11>=DATE($A$1-1,4,1),IF('Stock Price'!A11<=DATE($A$1,3,31),'Stock Price'!A11,""),"") ->  | B11: =IF('Stock Price'!A11>=DATE($A$1-1,4,1),IF('Stock Price'!A11<=DATE($A$1,3,31),'Stock Price'!E11,""),"") ->  | D11: =IF('Stock Price'!$A11>=DATE($D$1-1,4,1),IF('Stock Price'!$A11<=DATE($D$1,3,31),'Stock Price'!$A11,""),"") ->  | E11: =IF('Stock Price'!$A11>=DATE($D$1-1,4,1),IF('Stock Price'!$A11<=DATE($D$1,3,31),'Stock Price'!$E11,""),"") ->  | G11: =IF('Stock Price'!$A11>=DATE($G$1-1,4,1),IF('Stock Price'!$A11<=DATE($G$1,3,31),'Stock Price'!$A11,""),"") ->  | H11: =IF('Stock Price'!$A11>=DATE($G$1-1,4,1),IF('Stock Price'!$A11<=DATE($G$1,3,31),'Stock Price'!$E11,""),"") ->  | J11: =IF('Stock Price'!$A11>=DATE($J$1-1,4,1),IF('Stock Price'!$A11<=DATE($J$1,3,31),'Stock Price'!$A11,""),"") ->  | K11: =IF('Stock Price'!$A11>=DATE($J$1-1,4,1),IF('Stock Price'!$A11<=DATE($J$1,3,31),'Stock Price'!$E11,""),"") ->  | M11: =IF('Stock Price'!$A11>=DATE($M$1-1,4,1),IF('Stock Price'!$A11<=DATE($M$1,3,31),'Stock Price'!$A11,""),"") ->  | N11: =IF('Stock Price'!$A11>=DATE($M$1-1,4,1),IF('Stock Price'!$A11<=DATE($M$1,3,31),'Stock Price'!$E11,""),"") ->  | P11: =IF('Stock Price'!$A11>=DATE($P$1-1,4,1),IF('Stock Price'!$A11<=DATE($P$1,3,31),'Stock Price'!$A11,""),"") ->  | Q11: =IF('Stock Price'!$A11>=DATE($P$1-1,4,1),IF('Stock Price'!$A11<=DATE($P$1,3,31),'Stock Price'!$E11,""),"") ->  | S11: =IF('Stock Price'!$A11>=DATE($S$1-1,4,1),IF('Stock Price'!$A11<=DATE($S$1,3,31),'Stock Price'!$A11,""),"") ->  | T11: =IF('Stock Price'!$A11>=DATE($S$1-1,4,1),IF('Stock Price'!$A11<=DATE($S$1,3,31),'Stock Price'!$E11,""),"") ->  | V11: =IF('Stock Price'!$A11>=DATE($V$1-1,4,1),IF('Stock Price'!$A11<=DATE($V$1,3,31),'Stock Price'!$A11,""),"") ->  | W11: =IF('Stock Price'!$A11>=DATE($V$1-1,4,1),IF('Stock Price'!$A11<=DATE($V$1,3,31),'Stock Price'!$E11,""),"") ->  | Y11: =IF('Stock Price'!$A11>=DATE($Y$1-1,4,1),IF('Stock Price'!$A11<=DATE($Y$1,3,31),'Stock Price'!$A11,""),"") ->  | Z11: =IF('Stock Price'!$A11>=DATE($Y$1-1,4,1),IF('Stock Price'!$A11<=DATE($Y$1,3,31),'Stock Price'!$E11,""),"") ->  | AB11: =IF('Stock Price'!$A11>=DATE($AB$1-1,4,1),IF('Stock Price'!$A11<=DATE($AB$1,3,31),'Stock Price'!$A11,""),"") ->  | AC11: =IF('Stock Price'!$A11>=DATE($AB$1-1,4,1),IF('Stock Price'!$A11<=DATE($AB$1,3,31),'Stock Price'!$E11,""),"") -> 
A12: =IF('Stock Price'!A12>=DATE($A$1-1,4,1),IF('Stock Price'!A12<=DATE($A$1,3,31),'Stock Price'!A12,""),"") ->  | B12: =IF('Stock Price'!A12>=DATE($A$1-1,4,1),IF('Stock Price'!A12<=DATE($A$1,3,31),'Stock Price'!E12,""),"") ->  | D12: =IF('Stock Price'!$A12>=DATE($D$1-1,4,1),IF('Stock Price'!$A12<=DATE($D$1,3,31),'Stock Price'!$A12,""),"") ->  | E12: =IF('Stock Price'!$A12>=DATE($D$1-1,4,1),IF('Stock Price'!$A12<=DATE($D$1,3,31),'Stock Price'!$E12,""),"") ->  | G12: =IF('Stock Price'!$A12>=DATE($G$1-1,4,1),IF('Stock Price'!$A12<=DATE($G$1,3,31),'Stock Price'!$A12,""),"") ->  | H12: =IF('Stock Price'!$A12>=DATE($G$1-1,4,1),IF('Stock Price'!$A12<=DATE($G$1,3,31),'Stock Price'!$E12,""),"") ->  | J12: =IF('Stock Price'!$A12>=DATE($J$1-1,4,1),IF('Stock Price'!$A12<=DATE($J$1,3,31),'Stock Price'!$A12,""),"") ->  | K12: =IF('Stock Price'!$A12>=DATE($J$1-1,4,1),IF('Stock Price'!$A12<=DATE($J$1,3,31),'Stock Price'!$E12,""),"") ->  | M12: =IF('Stock Price'!$A12>=DATE($M$1-1,4,1),IF('Stock Price'!$A12<=DATE($M$1,3,31),'Stock Price'!$A12,""),"") ->  | N12: =IF('Stock Price'!$A12>=DATE($M$1-1,4,1),IF('Stock Price'!$A12<=DATE($M$1,3,31),'Stock Price'!$E12,""),"") ->  | P12: =IF('Stock Price'!$A12>=DATE($P$1-1,4,1),IF('Stock Price'!$A12<=DATE($P$1,3,31),'Stock Price'!$A12,""),"") ->  | Q12: =IF('Stock Price'!$A12>=DATE($P$1-1,4,1),IF('Stock Price'!$A12<=DATE($P$1,3,31),'Stock Price'!$E12,""),"") ->  | S12: =IF('Stock Price'!$A12>=DATE($S$1-1,4,1),IF('Stock Price'!$A12<=DATE($S$1,3,31),'Stock Price'!$A12,""),"") ->  | T12: =IF('Stock Price'!$A12>=DATE($S$1-1,4,1),IF('Stock Price'!$A12<=DATE($S$1,3,31),'Stock Price'!$E12,""),"") ->  | V12: =IF('Stock Price'!$A12>=DATE($V$1-1,4,1),IF('Stock Price'!$A12<=DATE($V$1,3,31),'Stock Price'!$A12,""),"") ->  | W12: =IF('Stock Price'!$A12>=DATE($V$1-1,4,1),IF('Stock Price'!$A12<=DATE($V$1,3,31),'Stock Price'!$E12,""),"") ->  | Y12: =IF('Stock Price'!$A12>=DATE($Y$1-1,4,1),IF('Stock Price'!$A12<=DATE($Y$1,3,31),'Stock Price'!$A12,""),"") ->  | Z12: =IF('Stock Price'!$A12>=DATE($Y$1-1,4,1),IF('Stock Price'!$A12<=DATE($Y$1,3,31),'Stock Price'!$E12,""),"") ->  | AB12: =IF('Stock Price'!$A12>=DATE($AB$1-1,4,1),IF('Stock Price'!$A12<=DATE($AB$1,3,31),'Stock Price'!$A12,""),"") ->  | AC12: =IF('Stock Price'!$A12>=DATE($AB$1-1,4,1),IF('Stock Price'!$A12<=DATE($AB$1,3,31),'Stock Price'!$E12,""),"") -> 
A13: =IF('Stock Price'!A13>=DATE($A$1-1,4,1),IF('Stock Price'!A13<=DATE($A$1,3,31),'Stock Price'!A13,""),"") ->  | B13: =IF('Stock Price'!A13>=DATE($A$1-1,4,1),IF('Stock Price'!A13<=DATE($A$1,3,31),'Stock Price'!E13,""),"") ->  | D13: =IF('Stock Price'!$A13>=DATE($D$1-1,4,1),IF('Stock Price'!$A13<=DATE($D$1,3,31),'Stock Price'!$A13,""),"") ->  | E13: =IF('Stock Price'!$A13>=DATE($D$1-1,4,1),IF('Stock Price'!$A13<=DATE($D$1,3,31),'Stock Price'!$E13,""),"") ->  | G13: =IF('Stock Price'!$A13>=DATE($G$1-1,4,1),IF('Stock Price'!$A13<=DATE($G$1,3,31),'Stock Price'!$A13,""),"") ->  | H13: =IF('Stock Price'!$A13>=DATE($G$1-1,4,1),IF('Stock Price'!$A13<=DATE($G$1,3,31),'Stock Price'!$E13,""),"") ->  | J13: =IF('Stock Price'!$A13>=DATE($J$1-1,4,1),IF('Stock Price'!$A13<=DATE($J$1,3,31),'Stock Price'!$A13,""),"") ->  | K13: =IF('Stock Price'!$A13>=DATE($J$1-1,4,1),IF('Stock Price'!$A13<=DATE($J$1,3,31),'Stock Price'!$E13,""),"") ->  | M13: =IF('Stock Price'!$A13>=DATE($M$1-1,4,1),IF('Stock Price'!$A13<=DATE($M$1,3,31),'Stock Price'!$A13,""),"") ->  | N13: =IF('Stock Price'!$A13>=DATE($M$1-1,4,1),IF('Stock Price'!$A13<=DATE($M$1,3,31),'Stock Price'!$E13,""),"") ->  | P13: =IF('Stock Price'!$A13>=DATE($P$1-1,4,1),IF('Stock Price'!$A13<=DATE($P$1,3,31),'Stock Price'!$A13,""),"") ->  | Q13: =IF('Stock Price'!$A13>=DATE($P$1-1,4,1),IF('Stock Price'!$A13<=DATE($P$1,3,31),'Stock Price'!$E13,""),"") ->  | S13: =IF('Stock Price'!$A13>=DATE($S$1-1,4,1),IF('Stock Price'!$A13<=DATE($S$1,3,31),'Stock Price'!$A13,""),"") ->  | T13: =IF('Stock Price'!$A13>=DATE($S$1-1,4,1),IF('Stock Price'!$A13<=DATE($S$1,3,31),'Stock Price'!$E13,""),"") ->  | V13: =IF('Stock Price'!$A13>=DATE($V$1-1,4,1),IF('Stock Price'!$A13<=DATE($V$1,3,31),'Stock Price'!$A13,""),"") ->  | W13: =IF('Stock Price'!$A13>=DATE($V$1-1,4,1),IF('Stock Price'!$A13<=DATE($V$1,3,31),'Stock Price'!$E13,""),"") ->  | Y13: =IF('Stock Price'!$A13>=DATE($Y$1-1,4,1),IF('Stock Price'!$A13<=DATE($Y$1,3,31),'Stock Price'!$A13,""),"") ->  | Z13: =IF('Stock Price'!$A13>=DATE($Y$1-1,4,1),IF('Stock Price'!$A13<=DATE($Y$1,3,31),'Stock Price'!$E13,""),"") ->  | AB13: =IF('Stock Price'!$A13>=DATE($AB$1-1,4,1),IF('Stock Price'!$A13<=DATE($AB$1,3,31),'Stock Price'!$A13,""),"") ->  | AC13: =IF('Stock Price'!$A13>=DATE($AB$1-1,4,1),IF('Stock Price'!$A13<=DATE($AB$1,3,31),'Stock Price'!$E13,""),"") -> 
A14: =IF('Stock Price'!A14>=DATE($A$1-1,4,1),IF('Stock Price'!A14<=DATE($A$1,3,31),'Stock Price'!A14,""),"") ->  | B14: =IF('Stock Price'!A14>=DATE($A$1-1,4,1),IF('Stock Price'!A14<=DATE($A$1,3,31),'Stock Price'!E14,""),"") ->  | D14: =IF('Stock Price'!$A14>=DATE($D$1-1,4,1),IF('Stock Price'!$A14<=DATE($D$1,3,31),'Stock Price'!$A14,""),"") ->  | E14: =IF('Stock Price'!$A14>=DATE($D$1-1,4,1),IF('Stock Price'!$A14<=DATE($D$1,3,31),'Stock Price'!$E14,""),"") ->  | G14: =IF('Stock Price'!$A14>=DATE($G$1-1,4,1),IF('Stock Price'!$A14<=DATE($G$1,3,31),'Stock Price'!$A14,""),"") ->  | H14: =IF('Stock Price'!$A14>=DATE($G$1-1,4,1),IF('Stock Price'!$A14<=DATE($G$1,3,31),'Stock Price'!$E14,""),"") ->  | J14: =IF('Stock Price'!$A14>=DATE($J$1-1,4,1),IF('Stock Price'!$A14<=DATE($J$1,3,31),'Stock Price'!$A14,""),"") ->  | K14: =IF('Stock Price'!$A14>=DATE($J$1-1,4,1),IF('Stock Price'!$A14<=DATE($J$1,3,31),'Stock Price'!$E14,""),"") ->  | M14: =IF('Stock Price'!$A14>=DATE($M$1-1,4,1),IF('Stock Price'!$A14<=DATE($M$1,3,31),'Stock Price'!$A14,""),"") ->  | N14: =IF('Stock Price'!$A14>=DATE($M$1-1,4,1),IF('Stock Price'!$A14<=DATE($M$1,3,31),'Stock Price'!$E14,""),"") ->  | P14: =IF('Stock Price'!$A14>=DATE($P$1-1,4,1),IF('Stock Price'!$A14<=DATE($P$1,3,31),'Stock Price'!$A14,""),"") ->  | Q14: =IF('Stock Price'!$A14>=DATE($P$1-1,4,1),IF('Stock Price'!$A14<=DATE($P$1,3,31),'Stock Price'!$E14,""),"") ->  | S14: =IF('Stock Price'!$A14>=DATE($S$1-1,4,1),IF('Stock Price'!$A14<=DATE($S$1,3,31),'Stock Price'!$A14,""),"") ->  | T14: =IF('Stock Price'!$A14>=DATE($S$1-1,4,1),IF('Stock Price'!$A14<=DATE($S$1,3,31),'Stock Price'!$E14,""),"") ->  | V14: =IF('Stock Price'!$A14>=DATE($V$1-1,4,1),IF('Stock Price'!$A14<=DATE($V$1,3,31),'Stock Price'!$A14,""),"") ->  | W14: =IF('Stock Price'!$A14>=DATE($V$1-1,4,1),IF('Stock Price'!$A14<=DATE($V$1,3,31),'Stock Price'!$E14,""),"") ->  | Y14: =IF('Stock Price'!$A14>=DATE($Y$1-1,4,1),IF('Stock Price'!$A14<=DATE($Y$1,3,31),'Stock Price'!$A14,""),"") ->  | Z14: =IF('Stock Price'!$A14>=DATE($Y$1-1,4,1),IF('Stock Price'!$A14<=DATE($Y$1,3,31),'Stock Price'!$E14,""),"") ->  | AB14: =IF('Stock Price'!$A14>=DATE($AB$1-1,4,1),IF('Stock Price'!$A14<=DATE($AB$1,3,31),'Stock Price'!$A14,""),"") ->  | AC14: =IF('Stock Price'!$A14>=DATE($AB$1-1,4,1),IF('Stock Price'!$A14<=DATE($AB$1,3,31),'Stock Price'!$E14,""),"") -> 
A15: =IF('Stock Price'!A15>=DATE($A$1-1,4,1),IF('Stock Price'!A15<=DATE($A$1,3,31),'Stock Price'!A15,""),"") ->  | B15: =IF('Stock Price'!A15>=DATE($A$1-1,4,1),IF('Stock Price'!A15<=DATE($A$1,3,31),'Stock Price'!E15,""),"") ->  | D15: =IF('Stock Price'!$A15>=DATE($D$1-1,4,1),IF('Stock Price'!$A15<=DATE($D$1,3,31),'Stock Price'!$A15,""),"") ->  | E15: =IF('Stock Price'!$A15>=DATE($D$1-1,4,1),IF('Stock Price'!$A15<=DATE($D$1,3,31),'Stock Price'!$E15,""),"") ->  | G15: =IF('Stock Price'!$A15>=DATE($G$1-1,4,1),IF('Stock Price'!$A15<=DATE($G$1,3,31),'Stock Price'!$A15,""),"") ->  | H15: =IF('Stock Price'!$A15>=DATE($G$1-1,4,1),IF('Stock Price'!$A15<=DATE($G$1,3,31),'Stock Price'!$E15,""),"") ->  | J15: =IF('Stock Price'!$A15>=DATE($J$1-1,4,1),IF('Stock Price'!$A15<=DATE($J$1,3,31),'Stock Price'!$A15,""),"") ->  | K15: =IF('Stock Price'!$A15>=DATE($J$1-1,4,1),IF('Stock Price'!$A15<=DATE($J$1,3,31),'Stock Price'!$E15,""),"") ->  | M15: =IF('Stock Price'!$A15>=DATE($M$1-1,4,1),IF('Stock Price'!$A15<=DATE($M$1,3,31),'Stock Price'!$A15,""),"") ->  | N15: =IF('Stock Price'!$A15>=DATE($M$1-1,4,1),IF('Stock Price'!$A15<=DATE($M$1,3,31),'Stock Price'!$E15,""),"") ->  | P15: =IF('Stock Price'!$A15>=DATE($P$1-1,4,1),IF('Stock Price'!$A15<=DATE($P$1,3,31),'Stock Price'!$A15,""),"") ->  | Q15: =IF('Stock Price'!$A15>=DATE($P$1-1,4,1),IF('Stock Price'!$A15<=DATE($P$1,3,31),'Stock Price'!$E15,""),"") ->  | S15: =IF('Stock Price'!$A15>=DATE($S$1-1,4,1),IF('Stock Price'!$A15<=DATE($S$1,3,31),'Stock Price'!$A15,""),"") ->  | T15: =IF('Stock Price'!$A15>=DATE($S$1-1,4,1),IF('Stock Price'!$A15<=DATE($S$1,3,31),'Stock Price'!$E15,""),"") ->  | V15: =IF('Stock Price'!$A15>=DATE($V$1-1,4,1),IF('Stock Price'!$A15<=DATE($V$1,3,31),'Stock Price'!$A15,""),"") ->  | W15: =IF('Stock Price'!$A15>=DATE($V$1-1,4,1),IF('Stock Price'!$A15<=DATE($V$1,3,31),'Stock Price'!$E15,""),"") ->  | Y15: =IF('Stock Price'!$A15>=DATE($Y$1-1,4,1),IF('Stock Price'!$A15<=DATE($Y$1,3,31),'Stock Price'!$A15,""),"") ->  | Z15: =IF('Stock Price'!$A15>=DATE($Y$1-1,4,1),IF('Stock Price'!$A15<=DATE($Y$1,3,31),'Stock Price'!$E15,""),"") ->  | AB15: =IF('Stock Price'!$A15>=DATE($AB$1-1,4,1),IF('Stock Price'!$A15<=DATE($AB$1,3,31),'Stock Price'!$A15,""),"") ->  | AC15: =IF('Stock Price'!$A15>=DATE($AB$1-1,4,1),IF('Stock Price'!$A15<=DATE($AB$1,3,31),'Stock Price'!$E15,""),"") -> 
A16: =IF('Stock Price'!A16>=DATE($A$1-1,4,1),IF('Stock Price'!A16<=DATE($A$1,3,31),'Stock Price'!A16,""),"") ->  | B16: =IF('Stock Price'!A16>=DATE($A$1-1,4,1),IF('Stock Price'!A16<=DATE($A$1,3,31),'Stock Price'!E16,""),"") ->  | D16: =IF('Stock Price'!$A16>=DATE($D$1-1,4,1),IF('Stock Price'!$A16<=DATE($D$1,3,31),'Stock Price'!$A16,""),"") ->  | E16: =IF('Stock Price'!$A16>=DATE($D$1-1,4,1),IF('Stock Price'!$A16<=DATE($D$1,3,31),'Stock Price'!$E16,""),"") ->  | G16: =IF('Stock Price'!$A16>=DATE($G$1-1,4,1),IF('Stock Price'!$A16<=DATE($G$1,3,31),'Stock Price'!$A16,""),"") ->  | H16: =IF('Stock Price'!$A16>=DATE($G$1-1,4,1),IF('Stock Price'!$A16<=DATE($G$1,3,31),'Stock Price'!$E16,""),"") ->  | J16: =IF('Stock Price'!$A16>=DATE($J$1-1,4,1),IF('Stock Price'!$A16<=DATE($J$1,3,31),'Stock Price'!$A16,""),"") ->  | K16: =IF('Stock Price'!$A16>=DATE($J$1-1,4,1),IF('Stock Price'!$A16<=DATE($J$1,3,31),'Stock Price'!$E16,""),"") ->  | M16: =IF('Stock Price'!$A16>=DATE($M$1-1,4,1),IF('Stock Price'!$A16<=DATE($M$1,3,31),'Stock Price'!$A16,""),"") ->  | N16: =IF('Stock Price'!$A16>=DATE($M$1-1,4,1),IF('Stock Price'!$A16<=DATE($M$1,3,31),'Stock Price'!$E16,""),"") ->  | P16: =IF('Stock Price'!$A16>=DATE($P$1-1,4,1),IF('Stock Price'!$A16<=DATE($P$1,3,31),'Stock Price'!$A16,""),"") ->  | Q16: =IF('Stock Price'!$A16>=DATE($P$1-1,4,1),IF('Stock Price'!$A16<=DATE($P$1,3,31),'Stock Price'!$E16,""),"") ->  | S16: =IF('Stock Price'!$A16>=DATE($S$1-1,4,1),IF('Stock Price'!$A16<=DATE($S$1,3,31),'Stock Price'!$A16,""),"") ->  | T16: =IF('Stock Price'!$A16>=DATE($S$1-1,4,1),IF('Stock Price'!$A16<=DATE($S$1,3,31),'Stock Price'!$E16,""),"") ->  | V16: =IF('Stock Price'!$A16>=DATE($V$1-1,4,1),IF('Stock Price'!$A16<=DATE($V$1,3,31),'Stock Price'!$A16,""),"") ->  | W16: =IF('Stock Price'!$A16>=DATE($V$1-1,4,1),IF('Stock Price'!$A16<=DATE($V$1,3,31),'Stock Price'!$E16,""),"") ->  | Y16: =IF('Stock Price'!$A16>=DATE($Y$1-1,4,1),IF('Stock Price'!$A16<=DATE($Y$1,3,31),'Stock Price'!$A16,""),"") ->  | Z16: =IF('Stock Price'!$A16>=DATE($Y$1-1,4,1),IF('Stock Price'!$A16<=DATE($Y$1,3,31),'Stock Price'!$E16,""),"") ->  | AB16: =IF('Stock Price'!$A16>=DATE($AB$1-1,4,1),IF('Stock Price'!$A16<=DATE($AB$1,3,31),'Stock Price'!$A16,""),"") ->  | AC16: =IF('Stock Price'!$A16>=DATE($AB$1-1,4,1),IF('Stock Price'!$A16<=DATE($AB$1,3,31),'Stock Price'!$E16,""),"") -> 
A17: =IF('Stock Price'!A17>=DATE($A$1-1,4,1),IF('Stock Price'!A17<=DATE($A$1,3,31),'Stock Price'!A17,""),"") ->  | B17: =IF('Stock Price'!A17>=DATE($A$1-1,4,1),IF('Stock Price'!A17<=DATE($A$1,3,31),'Stock Price'!E17,""),"") ->  | D17: =IF('Stock Price'!$A17>=DATE($D$1-1,4,1),IF('Stock Price'!$A17<=DATE($D$1,3,31),'Stock Price'!$A17,""),"") ->  | E17: =IF('Stock Price'!$A17>=DATE($D$1-1,4,1),IF('Stock Price'!$A17<=DATE($D$1,3,31),'Stock Price'!$E17,""),"") ->  | G17: =IF('Stock Price'!$A17>=DATE($G$1-1,4,1),IF('Stock Price'!$A17<=DATE($G$1,3,31),'Stock Price'!$A17,""),"") ->  | H17: =IF('Stock Price'!$A17>=DATE($G$1-1,4,1),IF('Stock Price'!$A17<=DATE($G$1,3,31),'Stock Price'!$E17,""),"") ->  | J17: =IF('Stock Price'!$A17>=DATE($J$1-1,4,1),IF('Stock Price'!$A17<=DATE($J$1,3,31),'Stock Price'!$A17,""),"") ->  | K17: =IF('Stock Price'!$A17>=DATE($J$1-1,4,1),IF('Stock Price'!$A17<=DATE($J$1,3,31),'Stock Price'!$E17,""),"") ->  | M17: =IF('Stock Price'!$A17>=DATE($M$1-1,4,1),IF('Stock Price'!$A17<=DATE($M$1,3,31),'Stock Price'!$A17,""),"") ->  | N17: =IF('Stock Price'!$A17>=DATE($M$1-1,4,1),IF('Stock Price'!$A17<=DATE($M$1,3,31),'Stock Price'!$E17,""),"") ->  | P17: =IF('Stock Price'!$A17>=DATE($P$1-1,4,1),IF('Stock Price'!$A17<=DATE($P$1,3,31),'Stock Price'!$A17,""),"") ->  | Q17: =IF('Stock Price'!$A17>=DATE($P$1-1,4,1),IF('Stock Price'!$A17<=DATE($P$1,3,31),'Stock Price'!$E17,""),"") ->  | S17: =IF('Stock Price'!$A17>=DATE($S$1-1,4,1),IF('Stock Price'!$A17<=DATE($S$1,3,31),'Stock Price'!$A17,""),"") ->  | T17: =IF('Stock Price'!$A17>=DATE($S$1-1,4,1),IF('Stock Price'!$A17<=DATE($S$1,3,31),'Stock Price'!$E17,""),"") ->  | V17: =IF('Stock Price'!$A17>=DATE($V$1-1,4,1),IF('Stock Price'!$A17<=DATE($V$1,3,31),'Stock Price'!$A17,""),"") ->  | W17: =IF('Stock Price'!$A17>=DATE($V$1-1,4,1),IF('Stock Price'!$A17<=DATE($V$1,3,31),'Stock Price'!$E17,""),"") ->  | Y17: =IF('Stock Price'!$A17>=DATE($Y$1-1,4,1),IF('Stock Price'!$A17<=DATE($Y$1,3,31),'Stock Price'!$A17,""),"") ->  | Z17: =IF('Stock Price'!$A17>=DATE($Y$1-1,4,1),IF('Stock Price'!$A17<=DATE($Y$1,3,31),'Stock Price'!$E17,""),"") ->  | AB17: =IF('Stock Price'!$A17>=DATE($AB$1-1,4,1),IF('Stock Price'!$A17<=DATE($AB$1,3,31),'Stock Price'!$A17,""),"") ->  | AC17: =IF('Stock Price'!$A17>=DATE($AB$1-1,4,1),IF('Stock Price'!$A17<=DATE($AB$1,3,31),'Stock Price'!$E17,""),"") -> 
A18: =IF('Stock Price'!A18>=DATE($A$1-1,4,1),IF('Stock Price'!A18<=DATE($A$1,3,31),'Stock Price'!A18,""),"") ->  | B18: =IF('Stock Price'!A18>=DATE($A$1-1,4,1),IF('Stock Price'!A18<=DATE($A$1,3,31),'Stock Price'!E18,""),"") ->  | D18: =IF('Stock Price'!$A18>=DATE($D$1-1,4,1),IF('Stock Price'!$A18<=DATE($D$1,3,31),'Stock Price'!$A18,""),"") ->  | E18: =IF('Stock Price'!$A18>=DATE($D$1-1,4,1),IF('Stock Price'!$A18<=DATE($D$1,3,31),'Stock Price'!$E18,""),"") ->  | G18: =IF('Stock Price'!$A18>=DATE($G$1-1,4,1),IF('Stock Price'!$A18<=DATE($G$1,3,31),'Stock Price'!$A18,""),"") ->  | H18: =IF('Stock Price'!$A18>=DATE($G$1-1,4,1),IF('Stock Price'!$A18<=DATE($G$1,3,31),'Stock Price'!$E18,""),"") ->  | J18: =IF('Stock Price'!$A18>=DATE($J$1-1,4,1),IF('Stock Price'!$A18<=DATE($J$1,3,31),'Stock Price'!$A18,""),"") ->  | K18: =IF('Stock Price'!$A18>=DATE($J$1-1,4,1),IF('Stock Price'!$A18<=DATE($J$1,3,31),'Stock Price'!$E18,""),"") ->  | M18: =IF('Stock Price'!$A18>=DATE($M$1-1,4,1),IF('Stock Price'!$A18<=DATE($M$1,3,31),'Stock Price'!$A18,""),"") ->  | N18: =IF('Stock Price'!$A18>=DATE($M$1-1,4,1),IF('Stock Price'!$A18<=DATE($M$1,3,31),'Stock Price'!$E18,""),"") ->  | P18: =IF('Stock Price'!$A18>=DATE($P$1-1,4,1),IF('Stock Price'!$A18<=DATE($P$1,3,31),'Stock Price'!$A18,""),"") ->  | Q18: =IF('Stock Price'!$A18>=DATE($P$1-1,4,1),IF('Stock Price'!$A18<=DATE($P$1,3,31),'Stock Price'!$E18,""),"") ->  | S18: =IF('Stock Price'!$A18>=DATE($S$1-1,4,1),IF('Stock Price'!$A18<=DATE($S$1,3,31),'Stock Price'!$A18,""),"") ->  | T18: =IF('Stock Price'!$A18>=DATE($S$1-1,4,1),IF('Stock Price'!$A18<=DATE($S$1,3,31),'Stock Price'!$E18,""),"") ->  | V18: =IF('Stock Price'!$A18>=DATE($V$1-1,4,1),IF('Stock Price'!$A18<=DATE($V$1,3,31),'Stock Price'!$A18,""),"") ->  | W18: =IF('Stock Price'!$A18>=DATE($V$1-1,4,1),IF('Stock Price'!$A18<=DATE($V$1,3,31),'Stock Price'!$E18,""),"") ->  | Y18: =IF('Stock Price'!$A18>=DATE($Y$1-1,4,1),IF('Stock Price'!$A18<=DATE($Y$1,3,31),'Stock Price'!$A18,""),"") ->  | Z18: =IF('Stock Price'!$A18>=DATE($Y$1-1,4,1),IF('Stock Price'!$A18<=DATE($Y$1,3,31),'Stock Price'!$E18,""),"") ->  | AB18: =IF('Stock Price'!$A18>=DATE($AB$1-1,4,1),IF('Stock Price'!$A18<=DATE($AB$1,3,31),'Stock Price'!$A18,""),"") ->  | AC18: =IF('Stock Price'!$A18>=DATE($AB$1-1,4,1),IF('Stock Price'!$A18<=DATE($AB$1,3,31),'Stock Price'!$E18,""),"") -> 
A19: =IF('Stock Price'!A19>=DATE($A$1-1,4,1),IF('Stock Price'!A19<=DATE($A$1,3,31),'Stock Price'!A19,""),"") ->  | B19: =IF('Stock Price'!A19>=DATE($A$1-1,4,1),IF('Stock Price'!A19<=DATE($A$1,3,31),'Stock Price'!E19,""),"") ->  | D19: =IF('Stock Price'!$A19>=DATE($D$1-1,4,1),IF('Stock Price'!$A19<=DATE($D$1,3,31),'Stock Price'!$A19,""),"") ->  | E19: =IF('Stock Price'!$A19>=DATE($D$1-1,4,1),IF('Stock Price'!$A19<=DATE($D$1,3,31),'Stock Price'!$E19,""),"") ->  | G19: =IF('Stock Price'!$A19>=DATE($G$1-1,4,1),IF('Stock Price'!$A19<=DATE($G$1,3,31),'Stock Price'!$A19,""),"") ->  | H19: =IF('Stock Price'!$A19>=DATE($G$1-1,4,1),IF('Stock Price'!$A19<=DATE($G$1,3,31),'Stock Price'!$E19,""),"") ->  | J19: =IF('Stock Price'!$A19>=DATE($J$1-1,4,1),IF('Stock Price'!$A19<=DATE($J$1,3,31),'Stock Price'!$A19,""),"") ->  | K19: =IF('Stock Price'!$A19>=DATE($J$1-1,4,1),IF('Stock Price'!$A19<=DATE($J$1,3,31),'Stock Price'!$E19,""),"") ->  | M19: =IF('Stock Price'!$A19>=DATE($M$1-1,4,1),IF('Stock Price'!$A19<=DATE($M$1,3,31),'Stock Price'!$A19,""),"") ->  | N19: =IF('Stock Price'!$A19>=DATE($M$1-1,4,1),IF('Stock Price'!$A19<=DATE($M$1,3,31),'Stock Price'!$E19,""),"") ->  | P19: =IF('Stock Price'!$A19>=DATE($P$1-1,4,1),IF('Stock Price'!$A19<=DATE($P$1,3,31),'Stock Price'!$A19,""),"") ->  | Q19: =IF('Stock Price'!$A19>=DATE($P$1-1,4,1),IF('Stock Price'!$A19<=DATE($P$1,3,31),'Stock Price'!$E19,""),"") ->  | S19: =IF('Stock Price'!$A19>=DATE($S$1-1,4,1),IF('Stock Price'!$A19<=DATE($S$1,3,31),'Stock Price'!$A19,""),"") ->  | T19: =IF('Stock Price'!$A19>=DATE($S$1-1,4,1),IF('Stock Price'!$A19<=DATE($S$1,3,31),'Stock Price'!$E19,""),"") ->  | V19: =IF('Stock Price'!$A19>=DATE($V$1-1,4,1),IF('Stock Price'!$A19<=DATE($V$1,3,31),'Stock Price'!$A19,""),"") ->  | W19: =IF('Stock Price'!$A19>=DATE($V$1-1,4,1),IF('Stock Price'!$A19<=DATE($V$1,3,31),'Stock Price'!$E19,""),"") ->  | Y19: =IF('Stock Price'!$A19>=DATE($Y$1-1,4,1),IF('Stock Price'!$A19<=DATE($Y$1,3,31),'Stock Price'!$A19,""),"") ->  | Z19: =IF('Stock Price'!$A19>=DATE($Y$1-1,4,1),IF('Stock Price'!$A19<=DATE($Y$1,3,31),'Stock Price'!$E19,""),"") ->  | AB19: =IF('Stock Price'!$A19>=DATE($AB$1-1,4,1),IF('Stock Price'!$A19<=DATE($AB$1,3,31),'Stock Price'!$A19,""),"") ->  | AC19: =IF('Stock Price'!$A19>=DATE($AB$1-1,4,1),IF('Stock Price'!$A19<=DATE($AB$1,3,31),'Stock Price'!$E19,""),"") -> 
A20: =IF('Stock Price'!A20>=DATE($A$1-1,4,1),IF('Stock Price'!A20<=DATE($A$1,3,31),'Stock Price'!A20,""),"") ->  | B20: =IF('Stock Price'!A20>=DATE($A$1-1,4,1),IF('Stock Price'!A20<=DATE($A$1,3,31),'Stock Price'!E20,""),"") ->  | D20: =IF('Stock Price'!$A20>=DATE($D$1-1,4,1),IF('Stock Price'!$A20<=DATE($D$1,3,31),'Stock Price'!$A20,""),"") ->  | E20: =IF('Stock Price'!$A20>=DATE($D$1-1,4,1),IF('Stock Price'!$A20<=DATE($D$1,3,31),'Stock Price'!$E20,""),"") ->  | G20: =IF('Stock Price'!$A20>=DATE($G$1-1,4,1),IF('Stock Price'!$A20<=DATE($G$1,3,31),'Stock Price'!$A20,""),"") ->  | H20: =IF('Stock Price'!$A20>=DATE($G$1-1,4,1),IF('Stock Price'!$A20<=DATE($G$1,3,31),'Stock Price'!$E20,""),"") ->  | J20: =IF('Stock Price'!$A20>=DATE($J$1-1,4,1),IF('Stock Price'!$A20<=DATE($J$1,3,31),'Stock Price'!$A20,""),"") ->  | K20: =IF('Stock Price'!$A20>=DATE($J$1-1,4,1),IF('Stock Price'!$A20<=DATE($J$1,3,31),'Stock Price'!$E20,""),"") ->  | M20: =IF('Stock Price'!$A20>=DATE($M$1-1,4,1),IF('Stock Price'!$A20<=DATE($M$1,3,31),'Stock Price'!$A20,""),"") ->  | N20: =IF('Stock Price'!$A20>=DATE($M$1-1,4,1),IF('Stock Price'!$A20<=DATE($M$1,3,31),'Stock Price'!$E20,""),"") ->  | P20: =IF('Stock Price'!$A20>=DATE($P$1-1,4,1),IF('Stock Price'!$A20<=DATE($P$1,3,31),'Stock Price'!$A20,""),"") ->  | Q20: =IF('Stock Price'!$A20>=DATE($P$1-1,4,1),IF('Stock Price'!$A20<=DATE($P$1,3,31),'Stock Price'!$E20,""),"") ->  | S20: =IF('Stock Price'!$A20>=DATE($S$1-1,4,1),IF('Stock Price'!$A20<=DATE($S$1,3,31),'Stock Price'!$A20,""),"") ->  | T20: =IF('Stock Price'!$A20>=DATE($S$1-1,4,1),IF('Stock Price'!$A20<=DATE($S$1,3,31),'Stock Price'!$E20,""),"") ->  | V20: =IF('Stock Price'!$A20>=DATE($V$1-1,4,1),IF('Stock Price'!$A20<=DATE($V$1,3,31),'Stock Price'!$A20,""),"") ->  | W20: =IF('Stock Price'!$A20>=DATE($V$1-1,4,1),IF('Stock Price'!$A20<=DATE($V$1,3,31),'Stock Price'!$E20,""),"") ->  | Y20: =IF('Stock Price'!$A20>=DATE($Y$1-1,4,1),IF('Stock Price'!$A20<=DATE($Y$1,3,31),'Stock Price'!$A20,""),"") ->  | Z20: =IF('Stock Price'!$A20>=DATE($Y$1-1,4,1),IF('Stock Price'!$A20<=DATE($Y$1,3,31),'Stock Price'!$E20,""),"") ->  | AB20: =IF('Stock Price'!$A20>=DATE($AB$1-1,4,1),IF('Stock Price'!$A20<=DATE($AB$1,3,31),'Stock Price'!$A20,""),"") ->  | AC20: =IF('Stock Price'!$A20>=DATE($AB$1-1,4,1),IF('Stock Price'!$A20<=DATE($AB$1,3,31),'Stock Price'!$E20,""),"") -> 
A21: =IF('Stock Price'!A21>=DATE($A$1-1,4,1),IF('Stock Price'!A21<=DATE($A$1,3,31),'Stock Price'!A21,""),"") ->  | B21: =IF('Stock Price'!A21>=DATE($A$1-1,4,1),IF('Stock Price'!A21<=DATE($A$1,3,31),'Stock Price'!E21,""),"") ->  | D21: =IF('Stock Price'!$A21>=DATE($D$1-1,4,1),IF('Stock Price'!$A21<=DATE($D$1,3,31),'Stock Price'!$A21,""),"") ->  | E21: =IF('Stock Price'!$A21>=DATE($D$1-1,4,1),IF('Stock Price'!$A21<=DATE($D$1,3,31),'Stock Price'!$E21,""),"") ->  | G21: =IF('Stock Price'!$A21>=DATE($G$1-1,4,1),IF('Stock Price'!$A21<=DATE($G$1,3,31),'Stock Price'!$A21,""),"") ->  | H21: =IF('Stock Price'!$A21>=DATE($G$1-1,4,1),IF('Stock Price'!$A21<=DATE($G$1,3,31),'Stock Price'!$E21,""),"") ->  | J21: =IF('Stock Price'!$A21>=DATE($J$1-1,4,1),IF('Stock Price'!$A21<=DATE($J$1,3,31),'Stock Price'!$A21,""),"") ->  | K21: =IF('Stock Price'!$A21>=DATE($J$1-1,4,1),IF('Stock Price'!$A21<=DATE($J$1,3,31),'Stock Price'!$E21,""),"") ->  | M21: =IF('Stock Price'!$A21>=DATE($M$1-1,4,1),IF('Stock Price'!$A21<=DATE($M$1,3,31),'Stock Price'!$A21,""),"") ->  | N21: =IF('Stock Price'!$A21>=DATE($M$1-1,4,1),IF('Stock Price'!$A21<=DATE($M$1,3,31),'Stock Price'!$E21,""),"") ->  | P21: =IF('Stock Price'!$A21>=DATE($P$1-1,4,1),IF('Stock Price'!$A21<=DATE($P$1,3,31),'Stock Price'!$A21,""),"") ->  | Q21: =IF('Stock Price'!$A21>=DATE($P$1-1,4,1),IF('Stock Price'!$A21<=DATE($P$1,3,31),'Stock Price'!$E21,""),"") ->  | S21: =IF('Stock Price'!$A21>=DATE($S$1-1,4,1),IF('Stock Price'!$A21<=DATE($S$1,3,31),'Stock Price'!$A21,""),"") ->  | T21: =IF('Stock Price'!$A21>=DATE($S$1-1,4,1),IF('Stock Price'!$A21<=DATE($S$1,3,31),'Stock Price'!$E21,""),"") ->  | V21: =IF('Stock Price'!$A21>=DATE($V$1-1,4,1),IF('Stock Price'!$A21<=DATE($V$1,3,31),'Stock Price'!$A21,""),"") ->  | W21: =IF('Stock Price'!$A21>=DATE($V$1-1,4,1),IF('Stock Price'!$A21<=DATE($V$1,3,31),'Stock Price'!$E21,""),"") ->  | Y21: =IF('Stock Price'!$A21>=DATE($Y$1-1,4,1),IF('Stock Price'!$A21<=DATE($Y$1,3,31),'Stock Price'!$A21,""),"") ->  | Z21: =IF('Stock Price'!$A21>=DATE($Y$1-1,4,1),IF('Stock Price'!$A21<=DATE($Y$1,3,31),'Stock Price'!$E21,""),"") ->  | AB21: =IF('Stock Price'!$A21>=DATE($AB$1-1,4,1),IF('Stock Price'!$A21<=DATE($AB$1,3,31),'Stock Price'!$A21,""),"") ->  | AC21: =IF('Stock Price'!$A21>=DATE($AB$1-1,4,1),IF('Stock Price'!$A21<=DATE($AB$1,3,31),'Stock Price'!$E21,""),"") -> 
A22: =IF('Stock Price'!A22>=DATE($A$1-1,4,1),IF('Stock Price'!A22<=DATE($A$1,3,31),'Stock Price'!A22,""),"") ->  | B22: =IF('Stock Price'!A22>=DATE($A$1-1,4,1),IF('Stock Price'!A22<=DATE($A$1,3,31),'Stock Price'!E22,""),"") ->  | D22: =IF('Stock Price'!$A22>=DATE($D$1-1,4,1),IF('Stock Price'!$A22<=DATE($D$1,3,31),'Stock Price'!$A22,""),"") ->  | E22: =IF('Stock Price'!$A22>=DATE($D$1-1,4,1),IF('Stock Price'!$A22<=DATE($D$1,3,31),'Stock Price'!$E22,""),"") ->  | G22: =IF('Stock Price'!$A22>=DATE($G$1-1,4,1),IF('Stock Price'!$A22<=DATE($G$1,3,31),'Stock Price'!$A22,""),"") ->  | H22: =IF('Stock Price'!$A22>=DATE($G$1-1,4,1),IF('Stock Price'!$A22<=DATE($G$1,3,31),'Stock Price'!$E22,""),"") ->  | J22: =IF('Stock Price'!$A22>=DATE($J$1-1,4,1),IF('Stock Price'!$A22<=DATE($J$1,3,31),'Stock Price'!$A22,""),"") ->  | K22: =IF('Stock Price'!$A22>=DATE($J$1-1,4,1),IF('Stock Price'!$A22<=DATE($J$1,3,31),'Stock Price'!$E22,""),"") ->  | M22: =IF('Stock Price'!$A22>=DATE($M$1-1,4,1),IF('Stock Price'!$A22<=DATE($M$1,3,31),'Stock Price'!$A22,""),"") ->  | N22: =IF('Stock Price'!$A22>=DATE($M$1-1,4,1),IF('Stock Price'!$A22<=DATE($M$1,3,31),'Stock Price'!$E22,""),"") ->  | P22: =IF('Stock Price'!$A22>=DATE($P$1-1,4,1),IF('Stock Price'!$A22<=DATE($P$1,3,31),'Stock Price'!$A22,""),"") ->  | Q22: =IF('Stock Price'!$A22>=DATE($P$1-1,4,1),IF('Stock Price'!$A22<=DATE($P$1,3,31),'Stock Price'!$E22,""),"") ->  | S22: =IF('Stock Price'!$A22>=DATE($S$1-1,4,1),IF('Stock Price'!$A22<=DATE($S$1,3,31),'Stock Price'!$A22,""),"") ->  | T22: =IF('Stock Price'!$A22>=DATE($S$1-1,4,1),IF('Stock Price'!$A22<=DATE($S$1,3,31),'Stock Price'!$E22,""),"") ->  | V22: =IF('Stock Price'!$A22>=DATE($V$1-1,4,1),IF('Stock Price'!$A22<=DATE($V$1,3,31),'Stock Price'!$A22,""),"") ->  | W22: =IF('Stock Price'!$A22>=DATE($V$1-1,4,1),IF('Stock Price'!$A22<=DATE($V$1,3,31),'Stock Price'!$E22,""),"") ->  | Y22: =IF('Stock Price'!$A22>=DATE($Y$1-1,4,1),IF('Stock Price'!$A22<=DATE($Y$1,3,31),'Stock Price'!$A22,""),"") ->  | Z22: =IF('Stock Price'!$A22>=DATE($Y$1-1,4,1),IF('Stock Price'!$A22<=DATE($Y$1,3,31),'Stock Price'!$E22,""),"") ->  | AB22: =IF('Stock Price'!$A22>=DATE($AB$1-1,4,1),IF('Stock Price'!$A22<=DATE($AB$1,3,31),'Stock Price'!$A22,""),"") ->  | AC22: =IF('Stock Price'!$A22>=DATE($AB$1-1,4,1),IF('Stock Price'!$A22<=DATE($AB$1,3,31),'Stock Price'!$E22,""),"") -> 
A23: =IF('Stock Price'!A23>=DATE($A$1-1,4,1),IF('Stock Price'!A23<=DATE($A$1,3,31),'Stock Price'!A23,""),"") ->  | B23: =IF('Stock Price'!A23>=DATE($A$1-1,4,1),IF('Stock Price'!A23<=DATE($A$1,3,31),'Stock Price'!E23,""),"") ->  | D23: =IF('Stock Price'!$A23>=DATE($D$1-1,4,1),IF('Stock Price'!$A23<=DATE($D$1,3,31),'Stock Price'!$A23,""),"") ->  | E23: =IF('Stock Price'!$A23>=DATE($D$1-1,4,1),IF('Stock Price'!$A23<=DATE($D$1,3,31),'Stock Price'!$E23,""),"") ->  | G23: =IF('Stock Price'!$A23>=DATE($G$1-1,4,1),IF('Stock Price'!$A23<=DATE($G$1,3,31),'Stock Price'!$A23,""),"") ->  | H23: =IF('Stock Price'!$A23>=DATE($G$1-1,4,1),IF('Stock Price'!$A23<=DATE($G$1,3,31),'Stock Price'!$E23,""),"") ->  | J23: =IF('Stock Price'!$A23>=DATE($J$1-1,4,1),IF('Stock Price'!$A23<=DATE($J$1,3,31),'Stock Price'!$A23,""),"") ->  | K23: =IF('Stock Price'!$A23>=DATE($J$1-1,4,1),IF('Stock Price'!$A23<=DATE($J$1,3,31),'Stock Price'!$E23,""),"") ->  | M23: =IF('Stock Price'!$A23>=DATE($M$1-1,4,1),IF('Stock Price'!$A23<=DATE($M$1,3,31),'Stock Price'!$A23,""),"") ->  | N23: =IF('Stock Price'!$A23>=DATE($M$1-1,4,1),IF('Stock Price'!$A23<=DATE($M$1,3,31),'Stock Price'!$E23,""),"") ->  | P23: =IF('Stock Price'!$A23>=DATE($P$1-1,4,1),IF('Stock Price'!$A23<=DATE($P$1,3,31),'Stock Price'!$A23,""),"") ->  | Q23: =IF('Stock Price'!$A23>=DATE($P$1-1,4,1),IF('Stock Price'!$A23<=DATE($P$1,3,31),'Stock Price'!$E23,""),"") ->  | S23: =IF('Stock Price'!$A23>=DATE($S$1-1,4,1),IF('Stock Price'!$A23<=DATE($S$1,3,31),'Stock Price'!$A23,""),"") ->  | T23: =IF('Stock Price'!$A23>=DATE($S$1-1,4,1),IF('Stock Price'!$A23<=DATE($S$1,3,31),'Stock Price'!$E23,""),"") ->  | V23: =IF('Stock Price'!$A23>=DATE($V$1-1,4,1),IF('Stock Price'!$A23<=DATE($V$1,3,31),'Stock Price'!$A23,""),"") ->  | W23: =IF('Stock Price'!$A23>=DATE($V$1-1,4,1),IF('Stock Price'!$A23<=DATE($V$1,3,31),'Stock Price'!$E23,""),"") ->  | Y23: =IF('Stock Price'!$A23>=DATE($Y$1-1,4,1),IF('Stock Price'!$A23<=DATE($Y$1,3,31),'Stock Price'!$A23,""),"") ->  | Z23: =IF('Stock Price'!$A23>=DATE($Y$1-1,4,1),IF('Stock Price'!$A23<=DATE($Y$1,3,31),'Stock Price'!$E23,""),"") ->  | AB23: =IF('Stock Price'!$A23>=DATE($AB$1-1,4,1),IF('Stock Price'!$A23<=DATE($AB$1,3,31),'Stock Price'!$A23,""),"") ->  | AC23: =IF('Stock Price'!$A23>=DATE($AB$1-1,4,1),IF('Stock Price'!$A23<=DATE($AB$1,3,31),'Stock Price'!$E23,""),"") -> 
A24: =IF('Stock Price'!A24>=DATE($A$1-1,4,1),IF('Stock Price'!A24<=DATE($A$1,3,31),'Stock Price'!A24,""),"") ->  | B24: =IF('Stock Price'!A24>=DATE($A$1-1,4,1),IF('Stock Price'!A24<=DATE($A$1,3,31),'Stock Price'!E24,""),"") ->  | D24: =IF('Stock Price'!$A24>=DATE($D$1-1,4,1),IF('Stock Price'!$A24<=DATE($D$1,3,31),'Stock Price'!$A24,""),"") ->  | E24: =IF('Stock Price'!$A24>=DATE($D$1-1,4,1),IF('Stock Price'!$A24<=DATE($D$1,3,31),'Stock Price'!$E24,""),"") ->  | G24: =IF('Stock Price'!$A24>=DATE($G$1-1,4,1),IF('Stock Price'!$A24<=DATE($G$1,3,31),'Stock Price'!$A24,""),"") ->  | H24: =IF('Stock Price'!$A24>=DATE($G$1-1,4,1),IF('Stock Price'!$A24<=DATE($G$1,3,31),'Stock Price'!$E24,""),"") ->  | J24: =IF('Stock Price'!$A24>=DATE($J$1-1,4,1),IF('Stock Price'!$A24<=DATE($J$1,3,31),'Stock Price'!$A24,""),"") ->  | K24: =IF('Stock Price'!$A24>=DATE($J$1-1,4,1),IF('Stock Price'!$A24<=DATE($J$1,3,31),'Stock Price'!$E24,""),"") ->  | M24: =IF('Stock Price'!$A24>=DATE($M$1-1,4,1),IF('Stock Price'!$A24<=DATE($M$1,3,31),'Stock Price'!$A24,""),"") ->  | N24: =IF('Stock Price'!$A24>=DATE($M$1-1,4,1),IF('Stock Price'!$A24<=DATE($M$1,3,31),'Stock Price'!$E24,""),"") ->  | P24: =IF('Stock Price'!$A24>=DATE($P$1-1,4,1),IF('Stock Price'!$A24<=DATE($P$1,3,31),'Stock Price'!$A24,""),"") ->  | Q24: =IF('Stock Price'!$A24>=DATE($P$1-1,4,1),IF('Stock Price'!$A24<=DATE($P$1,3,31),'Stock Price'!$E24,""),"") ->  | S24: =IF('Stock Price'!$A24>=DATE($S$1-1,4,1),IF('Stock Price'!$A24<=DATE($S$1,3,31),'Stock Price'!$A24,""),"") ->  | T24: =IF('Stock Price'!$A24>=DATE($S$1-1,4,1),IF('Stock Price'!$A24<=DATE($S$1,3,31),'Stock Price'!$E24,""),"") ->  | V24: =IF('Stock Price'!$A24>=DATE($V$1-1,4,1),IF('Stock Price'!$A24<=DATE($V$1,3,31),'Stock Price'!$A24,""),"") ->  | W24: =IF('Stock Price'!$A24>=DATE($V$1-1,4,1),IF('Stock Price'!$A24<=DATE($V$1,3,31),'Stock Price'!$E24,""),"") ->  | Y24: =IF('Stock Price'!$A24>=DATE($Y$1-1,4,1),IF('Stock Price'!$A24<=DATE($Y$1,3,31),'Stock Price'!$A24,""),"") ->  | Z24: =IF('Stock Price'!$A24>=DATE($Y$1-1,4,1),IF('Stock Price'!$A24<=DATE($Y$1,3,31),'Stock Price'!$E24,""),"") ->  | AB24: =IF('Stock Price'!$A24>=DATE($AB$1-1,4,1),IF('Stock Price'!$A24<=DATE($AB$1,3,31),'Stock Price'!$A24,""),"") ->  | AC24: =IF('Stock Price'!$A24>=DATE($AB$1-1,4,1),IF('Stock Price'!$A24<=DATE($AB$1,3,31),'Stock Price'!$E24,""),"") -> 
A25: =IF('Stock Price'!A25>=DATE($A$1-1,4,1),IF('Stock Price'!A25<=DATE($A$1,3,31),'Stock Price'!A25,""),"") ->  | B25: =IF('Stock Price'!A25>=DATE($A$1-1,4,1),IF('Stock Price'!A25<=DATE($A$1,3,31),'Stock Price'!E25,""),"") ->  | D25: =IF('Stock Price'!$A25>=DATE($D$1-1,4,1),IF('Stock Price'!$A25<=DATE($D$1,3,31),'Stock Price'!$A25,""),"") ->  | E25: =IF('Stock Price'!$A25>=DATE($D$1-1,4,1),IF('Stock Price'!$A25<=DATE($D$1,3,31),'Stock Price'!$E25,""),"") ->  | G25: =IF('Stock Price'!$A25>=DATE($G$1-1,4,1),IF('Stock Price'!$A25<=DATE($G$1,3,31),'Stock Price'!$A25,""),"") ->  | H25: =IF('Stock Price'!$A25>=DATE($G$1-1,4,1),IF('Stock Price'!$A25<=DATE($G$1,3,31),'Stock Price'!$E25,""),"") ->  | J25: =IF('Stock Price'!$A25>=DATE($J$1-1,4,1),IF('Stock Price'!$A25<=DATE($J$1,3,31),'Stock Price'!$A25,""),"") ->  | K25: =IF('Stock Price'!$A25>=DATE($J$1-1,4,1),IF('Stock Price'!$A25<=DATE($J$1,3,31),'Stock Price'!$E25,""),"") ->  | M25: =IF('Stock Price'!$A25>=DATE($M$1-1,4,1),IF('Stock Price'!$A25<=DATE($M$1,3,31),'Stock Price'!$A25,""),"") ->  | N25: =IF('Stock Price'!$A25>=DATE($M$1-1,4,1),IF('Stock Price'!$A25<=DATE($M$1,3,31),'Stock Price'!$E25,""),"") ->  | P25: =IF('Stock Price'!$A25>=DATE($P$1-1,4,1),IF('Stock Price'!$A25<=DATE($P$1,3,31),'Stock Price'!$A25,""),"") ->  | Q25: =IF('Stock Price'!$A25>=DATE($P$1-1,4,1),IF('Stock Price'!$A25<=DATE($P$1,3,31),'Stock Price'!$E25,""),"") ->  | S25: =IF('Stock Price'!$A25>=DATE($S$1-1,4,1),IF('Stock Price'!$A25<=DATE($S$1,3,31),'Stock Price'!$A25,""),"") ->  | T25: =IF('Stock Price'!$A25>=DATE($S$1-1,4,1),IF('Stock Price'!$A25<=DATE($S$1,3,31),'Stock Price'!$E25,""),"") ->  | V25: =IF('Stock Price'!$A25>=DATE($V$1-1,4,1),IF('Stock Price'!$A25<=DATE($V$1,3,31),'Stock Price'!$A25,""),"") ->  | W25: =IF('Stock Price'!$A25>=DATE($V$1-1,4,1),IF('Stock Price'!$A25<=DATE($V$1,3,31),'Stock Price'!$E25,""),"") ->  | Y25: =IF('Stock Price'!$A25>=DATE($Y$1-1,4,1),IF('Stock Price'!$A25<=DATE($Y$1,3,31),'Stock Price'!$A25,""),"") ->  | Z25: =IF('Stock Price'!$A25>=DATE($Y$1-1,4,1),IF('Stock Price'!$A25<=DATE($Y$1,3,31),'Stock Price'!$E25,""),"") ->  | AB25: =IF('Stock Price'!$A25>=DATE($AB$1-1,4,1),IF('Stock Price'!$A25<=DATE($AB$1,3,31),'Stock Price'!$A25,""),"") ->  | AC25: =IF('Stock Price'!$A25>=DATE($AB$1-1,4,1),IF('Stock Price'!$A25<=DATE($AB$1,3,31),'Stock Price'!$E25,""),"") -> 
A26: =IF('Stock Price'!A26>=DATE($A$1-1,4,1),IF('Stock Price'!A26<=DATE($A$1,3,31),'Stock Price'!A26,""),"") ->  | B26: =IF('Stock Price'!A26>=DATE($A$1-1,4,1),IF('Stock Price'!A26<=DATE($A$1,3,31),'Stock Price'!E26,""),"") ->  | D26: =IF('Stock Price'!$A26>=DATE($D$1-1,4,1),IF('Stock Price'!$A26<=DATE($D$1,3,31),'Stock Price'!$A26,""),"") ->  | E26: =IF('Stock Price'!$A26>=DATE($D$1-1,4,1),IF('Stock Price'!$A26<=DATE($D$1,3,31),'Stock Price'!$E26,""),"") ->  | G26: =IF('Stock Price'!$A26>=DATE($G$1-1,4,1),IF('Stock Price'!$A26<=DATE($G$1,3,31),'Stock Price'!$A26,""),"") ->  | H26: =IF('Stock Price'!$A26>=DATE($G$1-1,4,1),IF('Stock Price'!$A26<=DATE($G$1,3,31),'Stock Price'!$E26,""),"") ->  | J26: =IF('Stock Price'!$A26>=DATE($J$1-1,4,1),IF('Stock Price'!$A26<=DATE($J$1,3,31),'Stock Price'!$A26,""),"") ->  | K26: =IF('Stock Price'!$A26>=DATE($J$1-1,4,1),IF('Stock Price'!$A26<=DATE($J$1,3,31),'Stock Price'!$E26,""),"") ->  | M26: =IF('Stock Price'!$A26>=DATE($M$1-1,4,1),IF('Stock Price'!$A26<=DATE($M$1,3,31),'Stock Price'!$A26,""),"") ->  | N26: =IF('Stock Price'!$A26>=DATE($M$1-1,4,1),IF('Stock Price'!$A26<=DATE($M$1,3,31),'Stock Price'!$E26,""),"") ->  | P26: =IF('Stock Price'!$A26>=DATE($P$1-1,4,1),IF('Stock Price'!$A26<=DATE($P$1,3,31),'Stock Price'!$A26,""),"") ->  | Q26: =IF('Stock Price'!$A26>=DATE($P$1-1,4,1),IF('Stock Price'!$A26<=DATE($P$1,3,31),'Stock Price'!$E26,""),"") ->  | S26: =IF('Stock Price'!$A26>=DATE($S$1-1,4,1),IF('Stock Price'!$A26<=DATE($S$1,3,31),'Stock Price'!$A26,""),"") ->  | T26: =IF('Stock Price'!$A26>=DATE($S$1-1,4,1),IF('Stock Price'!$A26<=DATE($S$1,3,31),'Stock Price'!$E26,""),"") ->  | V26: =IF('Stock Price'!$A26>=DATE($V$1-1,4,1),IF('Stock Price'!$A26<=DATE($V$1,3,31),'Stock Price'!$A26,""),"") ->  | W26: =IF('Stock Price'!$A26>=DATE($V$1-1,4,1),IF('Stock Price'!$A26<=DATE($V$1,3,31),'Stock Price'!$E26,""),"") ->  | Y26: =IF('Stock Price'!$A26>=DATE($Y$1-1,4,1),IF('Stock Price'!$A26<=DATE($Y$1,3,31),'Stock Price'!$A26,""),"") ->  | Z26: =IF('Stock Price'!$A26>=DATE($Y$1-1,4,1),IF('Stock Price'!$A26<=DATE($Y$1,3,31),'Stock Price'!$E26,""),"") ->  | AB26: =IF('Stock Price'!$A26>=DATE($AB$1-1,4,1),IF('Stock Price'!$A26<=DATE($AB$1,3,31),'Stock Price'!$A26,""),"") ->  | AC26: =IF('Stock Price'!$A26>=DATE($AB$1-1,4,1),IF('Stock Price'!$A26<=DATE($AB$1,3,31),'Stock Price'!$E26,""),"") -> 
A27: =IF('Stock Price'!A27>=DATE($A$1-1,4,1),IF('Stock Price'!A27<=DATE($A$1,3,31),'Stock Price'!A27,""),"") ->  | B27: =IF('Stock Price'!A27>=DATE($A$1-1,4,1),IF('Stock Price'!A27<=DATE($A$1,3,31),'Stock Price'!E27,""),"") ->  | D27: =IF('Stock Price'!$A27>=DATE($D$1-1,4,1),IF('Stock Price'!$A27<=DATE($D$1,3,31),'Stock Price'!$A27,""),"") ->  | E27: =IF('Stock Price'!$A27>=DATE($D$1-1,4,1),IF('Stock Price'!$A27<=DATE($D$1,3,31),'Stock Price'!$E27,""),"") ->  | G27: =IF('Stock Price'!$A27>=DATE($G$1-1,4,1),IF('Stock Price'!$A27<=DATE($G$1,3,31),'Stock Price'!$A27,""),"") ->  | H27: =IF('Stock Price'!$A27>=DATE($G$1-1,4,1),IF('Stock Price'!$A27<=DATE($G$1,3,31),'Stock Price'!$E27,""),"") ->  | J27: =IF('Stock Price'!$A27>=DATE($J$1-1,4,1),IF('Stock Price'!$A27<=DATE($J$1,3,31),'Stock Price'!$A27,""),"") ->  | K27: =IF('Stock Price'!$A27>=DATE($J$1-1,4,1),IF('Stock Price'!$A27<=DATE($J$1,3,31),'Stock Price'!$E27,""),"") ->  | M27: =IF('Stock Price'!$A27>=DATE($M$1-1,4,1),IF('Stock Price'!$A27<=DATE($M$1,3,31),'Stock Price'!$A27,""),"") ->  | N27: =IF('Stock Price'!$A27>=DATE($M$1-1,4,1),IF('Stock Price'!$A27<=DATE($M$1,3,31),'Stock Price'!$E27,""),"") ->  | P27: =IF('Stock Price'!$A27>=DATE($P$1-1,4,1),IF('Stock Price'!$A27<=DATE($P$1,3,31),'Stock Price'!$A27,""),"") ->  | Q27: =IF('Stock Price'!$A27>=DATE($P$1-1,4,1),IF('Stock Price'!$A27<=DATE($P$1,3,31),'Stock Price'!$E27,""),"") ->  | S27: =IF('Stock Price'!$A27>=DATE($S$1-1,4,1),IF('Stock Price'!$A27<=DATE($S$1,3,31),'Stock Price'!$A27,""),"") ->  | T27: =IF('Stock Price'!$A27>=DATE($S$1-1,4,1),IF('Stock Price'!$A27<=DATE($S$1,3,31),'Stock Price'!$E27,""),"") ->  | V27: =IF('Stock Price'!$A27>=DATE($V$1-1,4,1),IF('Stock Price'!$A27<=DATE($V$1,3,31),'Stock Price'!$A27,""),"") ->  | W27: =IF('Stock Price'!$A27>=DATE($V$1-1,4,1),IF('Stock Price'!$A27<=DATE($V$1,3,31),'Stock Price'!$E27,""),"") ->  | Y27: =IF('Stock Price'!$A27>=DATE($Y$1-1,4,1),IF('Stock Price'!$A27<=DATE($Y$1,3,31),'Stock Price'!$A27,""),"") ->  | Z27: =IF('Stock Price'!$A27>=DATE($Y$1-1,4,1),IF('Stock Price'!$A27<=DATE($Y$1,3,31),'Stock Price'!$E27,""),"") ->  | AB27: =IF('Stock Price'!$A27>=DATE($AB$1-1,4,1),IF('Stock Price'!$A27<=DATE($AB$1,3,31),'Stock Price'!$A27,""),"") ->  | AC27: =IF('Stock Price'!$A27>=DATE($AB$1-1,4,1),IF('Stock Price'!$A27<=DATE($AB$1,3,31),'Stock Price'!$E27,""),"") -> 
A28: =IF('Stock Price'!A28>=DATE($A$1-1,4,1),IF('Stock Price'!A28<=DATE($A$1,3,31),'Stock Price'!A28,""),"") ->  | B28: =IF('Stock Price'!A28>=DATE($A$1-1,4,1),IF('Stock Price'!A28<=DATE($A$1,3,31),'Stock Price'!E28,""),"") ->  | D28: =IF('Stock Price'!$A28>=DATE($D$1-1,4,1),IF('Stock Price'!$A28<=DATE($D$1,3,31),'Stock Price'!$A28,""),"") ->  | E28: =IF('Stock Price'!$A28>=DATE($D$1-1,4,1),IF('Stock Price'!$A28<=DATE($D$1,3,31),'Stock Price'!$E28,""),"") ->  | G28: =IF('Stock Price'!$A28>=DATE($G$1-1,4,1),IF('Stock Price'!$A28<=DATE($G$1,3,31),'Stock Price'!$A28,""),"") ->  | H28: =IF('Stock Price'!$A28>=DATE($G$1-1,4,1),IF('Stock Price'!$A28<=DATE($G$1,3,31),'Stock Price'!$E28,""),"") ->  | J28: =IF('Stock Price'!$A28>=DATE($J$1-1,4,1),IF('Stock Price'!$A28<=DATE($J$1,3,31),'Stock Price'!$A28,""),"") ->  | K28: =IF('Stock Price'!$A28>=DATE($J$1-1,4,1),IF('Stock Price'!$A28<=DATE($J$1,3,31),'Stock Price'!$E28,""),"") ->  | M28: =IF('Stock Price'!$A28>=DATE($M$1-1,4,1),IF('Stock Price'!$A28<=DATE($M$1,3,31),'Stock Price'!$A28,""),"") ->  | N28: =IF('Stock Price'!$A28>=DATE($M$1-1,4,1),IF('Stock Price'!$A28<=DATE($M$1,3,31),'Stock Price'!$E28,""),"") ->  | P28: =IF('Stock Price'!$A28>=DATE($P$1-1,4,1),IF('Stock Price'!$A28<=DATE($P$1,3,31),'Stock Price'!$A28,""),"") ->  | Q28: =IF('Stock Price'!$A28>=DATE($P$1-1,4,1),IF('Stock Price'!$A28<=DATE($P$1,3,31),'Stock Price'!$E28,""),"") ->  | S28: =IF('Stock Price'!$A28>=DATE($S$1-1,4,1),IF('Stock Price'!$A28<=DATE($S$1,3,31),'Stock Price'!$A28,""),"") ->  | T28: =IF('Stock Price'!$A28>=DATE($S$1-1,4,1),IF('Stock Price'!$A28<=DATE($S$1,3,31),'Stock Price'!$E28,""),"") ->  | V28: =IF('Stock Price'!$A28>=DATE($V$1-1,4,1),IF('Stock Price'!$A28<=DATE($V$1,3,31),'Stock Price'!$A28,""),"") ->  | W28: =IF('Stock Price'!$A28>=DATE($V$1-1,4,1),IF('Stock Price'!$A28<=DATE($V$1,3,31),'Stock Price'!$E28,""),"") ->  | Y28: =IF('Stock Price'!$A28>=DATE($Y$1-1,4,1),IF('Stock Price'!$A28<=DATE($Y$1,3,31),'Stock Price'!$A28,""),"") ->  | Z28: =IF('Stock Price'!$A28>=DATE($Y$1-1,4,1),IF('Stock Price'!$A28<=DATE($Y$1,3,31),'Stock Price'!$E28,""),"") ->  | AB28: =IF('Stock Price'!$A28>=DATE($AB$1-1,4,1),IF('Stock Price'!$A28<=DATE($AB$1,3,31),'Stock Price'!$A28,""),"") ->  | AC28: =IF('Stock Price'!$A28>=DATE($AB$1-1,4,1),IF('Stock Price'!$A28<=DATE($AB$1,3,31),'Stock Price'!$E28,""),"") -> 
A29: =IF('Stock Price'!A29>=DATE($A$1-1,4,1),IF('Stock Price'!A29<=DATE($A$1,3,31),'Stock Price'!A29,""),"") ->  | B29: =IF('Stock Price'!A29>=DATE($A$1-1,4,1),IF('Stock Price'!A29<=DATE($A$1,3,31),'Stock Price'!E29,""),"") ->  | D29: =IF('Stock Price'!$A29>=DATE($D$1-1,4,1),IF('Stock Price'!$A29<=DATE($D$1,3,31),'Stock Price'!$A29,""),"") ->  | E29: =IF('Stock Price'!$A29>=DATE($D$1-1,4,1),IF('Stock Price'!$A29<=DATE($D$1,3,31),'Stock Price'!$E29,""),"") ->  | G29: =IF('Stock Price'!$A29>=DATE($G$1-1,4,1),IF('Stock Price'!$A29<=DATE($G$1,3,31),'Stock Price'!$A29,""),"") ->  | H29: =IF('Stock Price'!$A29>=DATE($G$1-1,4,1),IF('Stock Price'!$A29<=DATE($G$1,3,31),'Stock Price'!$E29,""),"") ->  | J29: =IF('Stock Price'!$A29>=DATE($J$1-1,4,1),IF('Stock Price'!$A29<=DATE($J$1,3,31),'Stock Price'!$A29,""),"") ->  | K29: =IF('Stock Price'!$A29>=DATE($J$1-1,4,1),IF('Stock Price'!$A29<=DATE($J$1,3,31),'Stock Price'!$E29,""),"") ->  | M29: =IF('Stock Price'!$A29>=DATE($M$1-1,4,1),IF('Stock Price'!$A29<=DATE($M$1,3,31),'Stock Price'!$A29,""),"") ->  | N29: =IF('Stock Price'!$A29>=DATE($M$1-1,4,1),IF('Stock Price'!$A29<=DATE($M$1,3,31),'Stock Price'!$E29,""),"") ->  | P29: =IF('Stock Price'!$A29>=DATE($P$1-1,4,1),IF('Stock Price'!$A29<=DATE($P$1,3,31),'Stock Price'!$A29,""),"") ->  | Q29: =IF('Stock Price'!$A29>=DATE($P$1-1,4,1),IF('Stock Price'!$A29<=DATE($P$1,3,31),'Stock Price'!$E29,""),"") ->  | S29: =IF('Stock Price'!$A29>=DATE($S$1-1,4,1),IF('Stock Price'!$A29<=DATE($S$1,3,31),'Stock Price'!$A29,""),"") ->  | T29: =IF('Stock Price'!$A29>=DATE($S$1-1,4,1),IF('Stock Price'!$A29<=DATE($S$1,3,31),'Stock Price'!$E29,""),"") ->  | V29: =IF('Stock Price'!$A29>=DATE($V$1-1,4,1),IF('Stock Price'!$A29<=DATE($V$1,3,31),'Stock Price'!$A29,""),"") ->  | W29: =IF('Stock Price'!$A29>=DATE($V$1-1,4,1),IF('Stock Price'!$A29<=DATE($V$1,3,31),'Stock Price'!$E29,""),"") ->  | Y29: =IF('Stock Price'!$A29>=DATE($Y$1-1,4,1),IF('Stock Price'!$A29<=DATE($Y$1,3,31),'Stock Price'!$A29,""),"") ->  | Z29: =IF('Stock Price'!$A29>=DATE($Y$1-1,4,1),IF('Stock Price'!$A29<=DATE($Y$1,3,31),'Stock Price'!$E29,""),"") ->  | AB29: =IF('Stock Price'!$A29>=DATE($AB$1-1,4,1),IF('Stock Price'!$A29<=DATE($AB$1,3,31),'Stock Price'!$A29,""),"") ->  | AC29: =IF('Stock Price'!$A29>=DATE($AB$1-1,4,1),IF('Stock Price'!$A29<=DATE($AB$1,3,31),'Stock Price'!$E29,""),"") -> 
A30: =IF('Stock Price'!A30>=DATE($A$1-1,4,1),IF('Stock Price'!A30<=DATE($A$1,3,31),'Stock Price'!A30,""),"") ->  | B30: =IF('Stock Price'!A30>=DATE($A$1-1,4,1),IF('Stock Price'!A30<=DATE($A$1,3,31),'Stock Price'!E30,""),"") ->  | D30: =IF('Stock Price'!$A30>=DATE($D$1-1,4,1),IF('Stock Price'!$A30<=DATE($D$1,3,31),'Stock Price'!$A30,""),"") ->  | E30: =IF('Stock Price'!$A30>=DATE($D$1-1,4,1),IF('Stock Price'!$A30<=DATE($D$1,3,31),'Stock Price'!$E30,""),"") ->  | G30: =IF('Stock Price'!$A30>=DATE($G$1-1,4,1),IF('Stock Price'!$A30<=DATE($G$1,3,31),'Stock Price'!$A30,""),"") ->  | H30: =IF('Stock Price'!$A30>=DATE($G$1-1,4,1),IF('Stock Price'!$A30<=DATE($G$1,3,31),'Stock Price'!$E30,""),"") ->  | J30: =IF('Stock Price'!$A30>=DATE($J$1-1,4,1),IF('Stock Price'!$A30<=DATE($J$1,3,31),'Stock Price'!$A30,""),"") ->  | K30: =IF('Stock Price'!$A30>=DATE($J$1-1,4,1),IF('Stock Price'!$A30<=DATE($J$1,3,31),'Stock Price'!$E30,""),"") ->  | M30: =IF('Stock Price'!$A30>=DATE($M$1-1,4,1),IF('Stock Price'!$A30<=DATE($M$1,3,31),'Stock Price'!$A30,""),"") ->  | N30: =IF('Stock Price'!$A30>=DATE($M$1-1,4,1),IF('Stock Price'!$A30<=DATE($M$1,3,31),'Stock Price'!$E30,""),"") ->  | P30: =IF('Stock Price'!$A30>=DATE($P$1-1,4,1),IF('Stock Price'!$A30<=DATE($P$1,3,31),'Stock Price'!$A30,""),"") ->  | Q30: =IF('Stock Price'!$A30>=DATE($P$1-1,4,1),IF('Stock Price'!$A30<=DATE($P$1,3,31),'Stock Price'!$E30,""),"") ->  | S30: =IF('Stock Price'!$A30>=DATE($S$1-1,4,1),IF('Stock Price'!$A30<=DATE($S$1,3,31),'Stock Price'!$A30,""),"") ->  | T30: =IF('Stock Price'!$A30>=DATE($S$1-1,4,1),IF('Stock Price'!$A30<=DATE($S$1,3,31),'Stock Price'!$E30,""),"") ->  | V30: =IF('Stock Price'!$A30>=DATE($V$1-1,4,1),IF('Stock Price'!$A30<=DATE($V$1,3,31),'Stock Price'!$A30,""),"") ->  | W30: =IF('Stock Price'!$A30>=DATE($V$1-1,4,1),IF('Stock Price'!$A30<=DATE($V$1,3,31),'Stock Price'!$E30,""),"") ->  | Y30: =IF('Stock Price'!$A30>=DATE($Y$1-1,4,1),IF('Stock Price'!$A30<=DATE($Y$1,3,31),'Stock Price'!$A30,""),"") ->  | Z30: =IF('Stock Price'!$A30>=DATE($Y$1-1,4,1),IF('Stock Price'!$A30<=DATE($Y$1,3,31),'Stock Price'!$E30,""),"") ->  | AB30: =IF('Stock Price'!$A30>=DATE($AB$1-1,4,1),IF('Stock Price'!$A30<=DATE($AB$1,3,31),'Stock Price'!$A30,""),"") ->  | AC30: =IF('Stock Price'!$A30>=DATE($AB$1-1,4,1),IF('Stock Price'!$A30<=DATE($AB$1,3,31),'Stock Price'!$E30,""),"") -> 
A31: =IF('Stock Price'!A31>=DATE($A$1-1,4,1),IF('Stock Price'!A31<=DATE($A$1,3,31),'Stock Price'!A31,""),"") ->  | B31: =IF('Stock Price'!A31>=DATE($A$1-1,4,1),IF('Stock Price'!A31<=DATE($A$1,3,31),'Stock Price'!E31,""),"") ->  | D31: =IF('Stock Price'!$A31>=DATE($D$1-1,4,1),IF('Stock Price'!$A31<=DATE($D$1,3,31),'Stock Price'!$A31,""),"") ->  | E31: =IF('Stock Price'!$A31>=DATE($D$1-1,4,1),IF('Stock Price'!$A31<=DATE($D$1,3,31),'Stock Price'!$E31,""),"") ->  | G31: =IF('Stock Price'!$A31>=DATE($G$1-1,4,1),IF('Stock Price'!$A31<=DATE($G$1,3,31),'Stock Price'!$A31,""),"") ->  | H31: =IF('Stock Price'!$A31>=DATE($G$1-1,4,1),IF('Stock Price'!$A31<=DATE($G$1,3,31),'Stock Price'!$E31,""),"") ->  | J31: =IF('Stock Price'!$A31>=DATE($J$1-1,4,1),IF('Stock Price'!$A31<=DATE($J$1,3,31),'Stock Price'!$A31,""),"") ->  | K31: =IF('Stock Price'!$A31>=DATE($J$1-1,4,1),IF('Stock Price'!$A31<=DATE($J$1,3,31),'Stock Price'!$E31,""),"") ->  | M31: =IF('Stock Price'!$A31>=DATE($M$1-1,4,1),IF('Stock Price'!$A31<=DATE($M$1,3,31),'Stock Price'!$A31,""),"") ->  | N31: =IF('Stock Price'!$A31>=DATE($M$1-1,4,1),IF('Stock Price'!$A31<=DATE($M$1,3,31),'Stock Price'!$E31,""),"") ->  | P31: =IF('Stock Price'!$A31>=DATE($P$1-1,4,1),IF('Stock Price'!$A31<=DATE($P$1,3,31),'Stock Price'!$A31,""),"") ->  | Q31: =IF('Stock Price'!$A31>=DATE($P$1-1,4,1),IF('Stock Price'!$A31<=DATE($P$1,3,31),'Stock Price'!$E31,""),"") ->  | S31: =IF('Stock Price'!$A31>=DATE($S$1-1,4,1),IF('Stock Price'!$A31<=DATE($S$1,3,31),'Stock Price'!$A31,""),"") ->  | T31: =IF('Stock Price'!$A31>=DATE($S$1-1,4,1),IF('Stock Price'!$A31<=DATE($S$1,3,31),'Stock Price'!$E31,""),"") ->  | V31: =IF('Stock Price'!$A31>=DATE($V$1-1,4,1),IF('Stock Price'!$A31<=DATE($V$1,3,31),'Stock Price'!$A31,""),"") ->  | W31: =IF('Stock Price'!$A31>=DATE($V$1-1,4,1),IF('Stock Price'!$A31<=DATE($V$1,3,31),'Stock Price'!$E31,""),"") ->  | Y31: =IF('Stock Price'!$A31>=DATE($Y$1-1,4,1),IF('Stock Price'!$A31<=DATE($Y$1,3,31),'Stock Price'!$A31,""),"") ->  | Z31: =IF('Stock Price'!$A31>=DATE($Y$1-1,4,1),IF('Stock Price'!$A31<=DATE($Y$1,3,31),'Stock Price'!$E31,""),"") ->  | AB31: =IF('Stock Price'!$A31>=DATE($AB$1-1,4,1),IF('Stock Price'!$A31<=DATE($AB$1,3,31),'Stock Price'!$A31,""),"") ->  | AC31: =IF('Stock Price'!$A31>=DATE($AB$1-1,4,1),IF('Stock Price'!$A31<=DATE($AB$1,3,31),'Stock Price'!$E31,""),"") -> 
A32: =IF('Stock Price'!A32>=DATE($A$1-1,4,1),IF('Stock Price'!A32<=DATE($A$1,3,31),'Stock Price'!A32,""),"") ->  | B32: =IF('Stock Price'!A32>=DATE($A$1-1,4,1),IF('Stock Price'!A32<=DATE($A$1,3,31),'Stock Price'!E32,""),"") ->  | D32: =IF('Stock Price'!$A32>=DATE($D$1-1,4,1),IF('Stock Price'!$A32<=DATE($D$1,3,31),'Stock Price'!$A32,""),"") ->  | E32: =IF('Stock Price'!$A32>=DATE($D$1-1,4,1),IF('Stock Price'!$A32<=DATE($D$1,3,31),'Stock Price'!$E32,""),"") ->  | G32: =IF('Stock Price'!$A32>=DATE($G$1-1,4,1),IF('Stock Price'!$A32<=DATE($G$1,3,31),'Stock Price'!$A32,""),"") ->  | H32: =IF('Stock Price'!$A32>=DATE($G$1-1,4,1),IF('Stock Price'!$A32<=DATE($G$1,3,31),'Stock Price'!$E32,""),"") ->  | J32: =IF('Stock Price'!$A32>=DATE($J$1-1,4,1),IF('Stock Price'!$A32<=DATE($J$1,3,31),'Stock Price'!$A32,""),"") ->  | K32: =IF('Stock Price'!$A32>=DATE($J$1-1,4,1),IF('Stock Price'!$A32<=DATE($J$1,3,31),'Stock Price'!$E32,""),"") ->  | M32: =IF('Stock Price'!$A32>=DATE($M$1-1,4,1),IF('Stock Price'!$A32<=DATE($M$1,3,31),'Stock Price'!$A32,""),"") ->  | N32: =IF('Stock Price'!$A32>=DATE($M$1-1,4,1),IF('Stock Price'!$A32<=DATE($M$1,3,31),'Stock Price'!$E32,""),"") ->  | P32: =IF('Stock Price'!$A32>=DATE($P$1-1,4,1),IF('Stock Price'!$A32<=DATE($P$1,3,31),'Stock Price'!$A32,""),"") ->  | Q32: =IF('Stock Price'!$A32>=DATE($P$1-1,4,1),IF('Stock Price'!$A32<=DATE($P$1,3,31),'Stock Price'!$E32,""),"") ->  | S32: =IF('Stock Price'!$A32>=DATE($S$1-1,4,1),IF('Stock Price'!$A32<=DATE($S$1,3,31),'Stock Price'!$A32,""),"") ->  | T32: =IF('Stock Price'!$A32>=DATE($S$1-1,4,1),IF('Stock Price'!$A32<=DATE($S$1,3,31),'Stock Price'!$E32,""),"") ->  | V32: =IF('Stock Price'!$A32>=DATE($V$1-1,4,1),IF('Stock Price'!$A32<=DATE($V$1,3,31),'Stock Price'!$A32,""),"") ->  | W32: =IF('Stock Price'!$A32>=DATE($V$1-1,4,1),IF('Stock Price'!$A32<=DATE($V$1,3,31),'Stock Price'!$E32,""),"") ->  | Y32: =IF('Stock Price'!$A32>=DATE($Y$1-1,4,1),IF('Stock Price'!$A32<=DATE($Y$1,3,31),'Stock Price'!$A32,""),"") ->  | Z32: =IF('Stock Price'!$A32>=DATE($Y$1-1,4,1),IF('Stock Price'!$A32<=DATE($Y$1,3,31),'Stock Price'!$E32,""),"") ->  | AB32: =IF('Stock Price'!$A32>=DATE($AB$1-1,4,1),IF('Stock Price'!$A32<=DATE($AB$1,3,31),'Stock Price'!$A32,""),"") ->  | AC32: =IF('Stock Price'!$A32>=DATE($AB$1-1,4,1),IF('Stock Price'!$A32<=DATE($AB$1,3,31),'Stock Price'!$E32,""),"") -> 
A33: =IF('Stock Price'!A33>=DATE($A$1-1,4,1),IF('Stock Price'!A33<=DATE($A$1,3,31),'Stock Price'!A33,""),"") ->  | B33: =IF('Stock Price'!A33>=DATE($A$1-1,4,1),IF('Stock Price'!A33<=DATE($A$1,3,31),'Stock Price'!E33,""),"") ->  | D33: =IF('Stock Price'!$A33>=DATE($D$1-1,4,1),IF('Stock Price'!$A33<=DATE($D$1,3,31),'Stock Price'!$A33,""),"") ->  | E33: =IF('Stock Price'!$A33>=DATE($D$1-1,4,1),IF('Stock Price'!$A33<=DATE($D$1,3,31),'Stock Price'!$E33,""),"") ->  | G33: =IF('Stock Price'!$A33>=DATE($G$1-1,4,1),IF('Stock Price'!$A33<=DATE($G$1,3,31),'Stock Price'!$A33,""),"") ->  | H33: =IF('Stock Price'!$A33>=DATE($G$1-1,4,1),IF('Stock Price'!$A33<=DATE($G$1,3,31),'Stock Price'!$E33,""),"") ->  | J33: =IF('Stock Price'!$A33>=DATE($J$1-1,4,1),IF('Stock Price'!$A33<=DATE($J$1,3,31),'Stock Price'!$A33,""),"") ->  | K33: =IF('Stock Price'!$A33>=DATE($J$1-1,4,1),IF('Stock Price'!$A33<=DATE($J$1,3,31),'Stock Price'!$E33,""),"") ->  | M33: =IF('Stock Price'!$A33>=DATE($M$1-1,4,1),IF('Stock Price'!$A33<=DATE($M$1,3,31),'Stock Price'!$A33,""),"") ->  | N33: =IF('Stock Price'!$A33>=DATE($M$1-1,4,1),IF('Stock Price'!$A33<=DATE($M$1,3,31),'Stock Price'!$E33,""),"") ->  | P33: =IF('Stock Price'!$A33>=DATE($P$1-1,4,1),IF('Stock Price'!$A33<=DATE($P$1,3,31),'Stock Price'!$A33,""),"") ->  | Q33: =IF('Stock Price'!$A33>=DATE($P$1-1,4,1),IF('Stock Price'!$A33<=DATE($P$1,3,31),'Stock Price'!$E33,""),"") ->  | S33: =IF('Stock Price'!$A33>=DATE($S$1-1,4,1),IF('Stock Price'!$A33<=DATE($S$1,3,31),'Stock Price'!$A33,""),"") ->  | T33: =IF('Stock Price'!$A33>=DATE($S$1-1,4,1),IF('Stock Price'!$A33<=DATE($S$1,3,31),'Stock Price'!$E33,""),"") ->  | V33: =IF('Stock Price'!$A33>=DATE($V$1-1,4,1),IF('Stock Price'!$A33<=DATE($V$1,3,31),'Stock Price'!$A33,""),"") ->  | W33: =IF('Stock Price'!$A33>=DATE($V$1-1,4,1),IF('Stock Price'!$A33<=DATE($V$1,3,31),'Stock Price'!$E33,""),"") ->  | Y33: =IF('Stock Price'!$A33>=DATE($Y$1-1,4,1),IF('Stock Price'!$A33<=DATE($Y$1,3,31),'Stock Price'!$A33,""),"") ->  | Z33: =IF('Stock Price'!$A33>=DATE($Y$1-1,4,1),IF('Stock Price'!$A33<=DATE($Y$1,3,31),'Stock Price'!$E33,""),"") ->  | AB33: =IF('Stock Price'!$A33>=DATE($AB$1-1,4,1),IF('Stock Price'!$A33<=DATE($AB$1,3,31),'Stock Price'!$A33,""),"") ->  | AC33: =IF('Stock Price'!$A33>=DATE($AB$1-1,4,1),IF('Stock Price'!$A33<=DATE($AB$1,3,31),'Stock Price'!$E33,""),"") -> 
A34: =IF('Stock Price'!A34>=DATE($A$1-1,4,1),IF('Stock Price'!A34<=DATE($A$1,3,31),'Stock Price'!A34,""),"") ->  | B34: =IF('Stock Price'!A34>=DATE($A$1-1,4,1),IF('Stock Price'!A34<=DATE($A$1,3,31),'Stock Price'!E34,""),"") ->  | D34: =IF('Stock Price'!$A34>=DATE($D$1-1,4,1),IF('Stock Price'!$A34<=DATE($D$1,3,31),'Stock Price'!$A34,""),"") ->  | E34: =IF('Stock Price'!$A34>=DATE($D$1-1,4,1),IF('Stock Price'!$A34<=DATE($D$1,3,31),'Stock Price'!$E34,""),"") ->  | G34: =IF('Stock Price'!$A34>=DATE($G$1-1,4,1),IF('Stock Price'!$A34<=DATE($G$1,3,31),'Stock Price'!$A34,""),"") ->  | H34: =IF('Stock Price'!$A34>=DATE($G$1-1,4,1),IF('Stock Price'!$A34<=DATE($G$1,3,31),'Stock Price'!$E34,""),"") ->  | J34: =IF('Stock Price'!$A34>=DATE($J$1-1,4,1),IF('Stock Price'!$A34<=DATE($J$1,3,31),'Stock Price'!$A34,""),"") ->  | K34: =IF('Stock Price'!$A34>=DATE($J$1-1,4,1),IF('Stock Price'!$A34<=DATE($J$1,3,31),'Stock Price'!$E34,""),"") ->  | M34: =IF('Stock Price'!$A34>=DATE($M$1-1,4,1),IF('Stock Price'!$A34<=DATE($M$1,3,31),'Stock Price'!$A34,""),"") ->  | N34: =IF('Stock Price'!$A34>=DATE($M$1-1,4,1),IF('Stock Price'!$A34<=DATE($M$1,3,31),'Stock Price'!$E34,""),"") ->  | P34: =IF('Stock Price'!$A34>=DATE($P$1-1,4,1),IF('Stock Price'!$A34<=DATE($P$1,3,31),'Stock Price'!$A34,""),"") ->  | Q34: =IF('Stock Price'!$A34>=DATE($P$1-1,4,1),IF('Stock Price'!$A34<=DATE($P$1,3,31),'Stock Price'!$E34,""),"") ->  | S34: =IF('Stock Price'!$A34>=DATE($S$1-1,4,1),IF('Stock Price'!$A34<=DATE($S$1,3,31),'Stock Price'!$A34,""),"") ->  | T34: =IF('Stock Price'!$A34>=DATE($S$1-1,4,1),IF('Stock Price'!$A34<=DATE($S$1,3,31),'Stock Price'!$E34,""),"") ->  | V34: =IF('Stock Price'!$A34>=DATE($V$1-1,4,1),IF('Stock Price'!$A34<=DATE($V$1,3,31),'Stock Price'!$A34,""),"") ->  | W34: =IF('Stock Price'!$A34>=DATE($V$1-1,4,1),IF('Stock Price'!$A34<=DATE($V$1,3,31),'Stock Price'!$E34,""),"") ->  | Y34: =IF('Stock Price'!$A34>=DATE($Y$1-1,4,1),IF('Stock Price'!$A34<=DATE($Y$1,3,31),'Stock Price'!$A34,""),"") ->  | Z34: =IF('Stock Price'!$A34>=DATE($Y$1-1,4,1),IF('Stock Price'!$A34<=DATE($Y$1,3,31),'Stock Price'!$E34,""),"") ->  | AB34: =IF('Stock Price'!$A34>=DATE($AB$1-1,4,1),IF('Stock Price'!$A34<=DATE($AB$1,3,31),'Stock Price'!$A34,""),"") ->  | AC34: =IF('Stock Price'!$A34>=DATE($AB$1-1,4,1),IF('Stock Price'!$A34<=DATE($AB$1,3,31),'Stock Price'!$E34,""),"") -> 
A35: =IF('Stock Price'!A35>=DATE($A$1-1,4,1),IF('Stock Price'!A35<=DATE($A$1,3,31),'Stock Price'!A35,""),"") ->  | B35: =IF('Stock Price'!A35>=DATE($A$1-1,4,1),IF('Stock Price'!A35<=DATE($A$1,3,31),'Stock Price'!E35,""),"") ->  | D35: =IF('Stock Price'!$A35>=DATE($D$1-1,4,1),IF('Stock Price'!$A35<=DATE($D$1,3,31),'Stock Price'!$A35,""),"") ->  | E35: =IF('Stock Price'!$A35>=DATE($D$1-1,4,1),IF('Stock Price'!$A35<=DATE($D$1,3,31),'Stock Price'!$E35,""),"") ->  | G35: =IF('Stock Price'!$A35>=DATE($G$1-1,4,1),IF('Stock Price'!$A35<=DATE($G$1,3,31),'Stock Price'!$A35,""),"") ->  | H35: =IF('Stock Price'!$A35>=DATE($G$1-1,4,1),IF('Stock Price'!$A35<=DATE($G$1,3,31),'Stock Price'!$E35,""),"") ->  | J35: =IF('Stock Price'!$A35>=DATE($J$1-1,4,1),IF('Stock Price'!$A35<=DATE($J$1,3,31),'Stock Price'!$A35,""),"") ->  | K35: =IF('Stock Price'!$A35>=DATE($J$1-1,4,1),IF('Stock Price'!$A35<=DATE($J$1,3,31),'Stock Price'!$E35,""),"") ->  | M35: =IF('Stock Price'!$A35>=DATE($M$1-1,4,1),IF('Stock Price'!$A35<=DATE($M$1,3,31),'Stock Price'!$A35,""),"") ->  | N35: =IF('Stock Price'!$A35>=DATE($M$1-1,4,1),IF('Stock Price'!$A35<=DATE($M$1,3,31),'Stock Price'!$E35,""),"") ->  | P35: =IF('Stock Price'!$A35>=DATE($P$1-1,4,1),IF('Stock Price'!$A35<=DATE($P$1,3,31),'Stock Price'!$A35,""),"") ->  | Q35: =IF('Stock Price'!$A35>=DATE($P$1-1,4,1),IF('Stock Price'!$A35<=DATE($P$1,3,31),'Stock Price'!$E35,""),"") ->  | S35: =IF('Stock Price'!$A35>=DATE($S$1-1,4,1),IF('Stock Price'!$A35<=DATE($S$1,3,31),'Stock Price'!$A35,""),"") ->  | T35: =IF('Stock Price'!$A35>=DATE($S$1-1,4,1),IF('Stock Price'!$A35<=DATE($S$1,3,31),'Stock Price'!$E35,""),"") ->  | V35: =IF('Stock Price'!$A35>=DATE($V$1-1,4,1),IF('Stock Price'!$A35<=DATE($V$1,3,31),'Stock Price'!$A35,""),"") ->  | W35: =IF('Stock Price'!$A35>=DATE($V$1-1,4,1),IF('Stock Price'!$A35<=DATE($V$1,3,31),'Stock Price'!$E35,""),"") ->  | Y35: =IF('Stock Price'!$A35>=DATE($Y$1-1,4,1),IF('Stock Price'!$A35<=DATE($Y$1,3,31),'Stock Price'!$A35,""),"") ->  | Z35: =IF('Stock Price'!$A35>=DATE($Y$1-1,4,1),IF('Stock Price'!$A35<=DATE($Y$1,3,31),'Stock Price'!$E35,""),"") ->  | AB35: =IF('Stock Price'!$A35>=DATE($AB$1-1,4,1),IF('Stock Price'!$A35<=DATE($AB$1,3,31),'Stock Price'!$A35,""),"") ->  | AC35: =IF('Stock Price'!$A35>=DATE($AB$1-1,4,1),IF('Stock Price'!$A35<=DATE($AB$1,3,31),'Stock Price'!$E35,""),"") -> 
A36: =IF('Stock Price'!A36>=DATE($A$1-1,4,1),IF('Stock Price'!A36<=DATE($A$1,3,31),'Stock Price'!A36,""),"") ->  | B36: =IF('Stock Price'!A36>=DATE($A$1-1,4,1),IF('Stock Price'!A36<=DATE($A$1,3,31),'Stock Price'!E36,""),"") ->  | D36: =IF('Stock Price'!$A36>=DATE($D$1-1,4,1),IF('Stock Price'!$A36<=DATE($D$1,3,31),'Stock Price'!$A36,""),"") ->  | E36: =IF('Stock Price'!$A36>=DATE($D$1-1,4,1),IF('Stock Price'!$A36<=DATE($D$1,3,31),'Stock Price'!$E36,""),"") ->  | G36: =IF('Stock Price'!$A36>=DATE($G$1-1,4,1),IF('Stock Price'!$A36<=DATE($G$1,3,31),'Stock Price'!$A36,""),"") ->  | H36: =IF('Stock Price'!$A36>=DATE($G$1-1,4,1),IF('Stock Price'!$A36<=DATE($G$1,3,31),'Stock Price'!$E36,""),"") ->  | J36: =IF('Stock Price'!$A36>=DATE($J$1-1,4,1),IF('Stock Price'!$A36<=DATE($J$1,3,31),'Stock Price'!$A36,""),"") ->  | K36: =IF('Stock Price'!$A36>=DATE($J$1-1,4,1),IF('Stock Price'!$A36<=DATE($J$1,3,31),'Stock Price'!$E36,""),"") ->  | M36: =IF('Stock Price'!$A36>=DATE($M$1-1,4,1),IF('Stock Price'!$A36<=DATE($M$1,3,31),'Stock Price'!$A36,""),"") ->  | N36: =IF('Stock Price'!$A36>=DATE($M$1-1,4,1),IF('Stock Price'!$A36<=DATE($M$1,3,31),'Stock Price'!$E36,""),"") ->  | P36: =IF('Stock Price'!$A36>=DATE($P$1-1,4,1),IF('Stock Price'!$A36<=DATE($P$1,3,31),'Stock Price'!$A36,""),"") ->  | Q36: =IF('Stock Price'!$A36>=DATE($P$1-1,4,1),IF('Stock Price'!$A36<=DATE($P$1,3,31),'Stock Price'!$E36,""),"") ->  | S36: =IF('Stock Price'!$A36>=DATE($S$1-1,4,1),IF('Stock Price'!$A36<=DATE($S$1,3,31),'Stock Price'!$A36,""),"") ->  | T36: =IF('Stock Price'!$A36>=DATE($S$1-1,4,1),IF('Stock Price'!$A36<=DATE($S$1,3,31),'Stock Price'!$E36,""),"") ->  | V36: =IF('Stock Price'!$A36>=DATE($V$1-1,4,1),IF('Stock Price'!$A36<=DATE($V$1,3,31),'Stock Price'!$A36,""),"") ->  | W36: =IF('Stock Price'!$A36>=DATE($V$1-1,4,1),IF('Stock Price'!$A36<=DATE($V$1,3,31),'Stock Price'!$E36,""),"") ->  | Y36: =IF('Stock Price'!$A36>=DATE($Y$1-1,4,1),IF('Stock Price'!$A36<=DATE($Y$1,3,31),'Stock Price'!$A36,""),"") ->  | Z36: =IF('Stock Price'!$A36>=DATE($Y$1-1,4,1),IF('Stock Price'!$A36<=DATE($Y$1,3,31),'Stock Price'!$E36,""),"") ->  | AB36: =IF('Stock Price'!$A36>=DATE($AB$1-1,4,1),IF('Stock Price'!$A36<=DATE($AB$1,3,31),'Stock Price'!$A36,""),"") ->  | AC36: =IF('Stock Price'!$A36>=DATE($AB$1-1,4,1),IF('Stock Price'!$A36<=DATE($AB$1,3,31),'Stock Price'!$E36,""),"") -> 
A37: =IF('Stock Price'!A37>=DATE($A$1-1,4,1),IF('Stock Price'!A37<=DATE($A$1,3,31),'Stock Price'!A37,""),"") ->  | B37: =IF('Stock Price'!A37>=DATE($A$1-1,4,1),IF('Stock Price'!A37<=DATE($A$1,3,31),'Stock Price'!E37,""),"") ->  | D37: =IF('Stock Price'!$A37>=DATE($D$1-1,4,1),IF('Stock Price'!$A37<=DATE($D$1,3,31),'Stock Price'!$A37,""),"") ->  | E37: =IF('Stock Price'!$A37>=DATE($D$1-1,4,1),IF('Stock Price'!$A37<=DATE($D$1,3,31),'Stock Price'!$E37,""),"") ->  | G37: =IF('Stock Price'!$A37>=DATE($G$1-1,4,1),IF('Stock Price'!$A37<=DATE($G$1,3,31),'Stock Price'!$A37,""),"") ->  | H37: =IF('Stock Price'!$A37>=DATE($G$1-1,4,1),IF('Stock Price'!$A37<=DATE($G$1,3,31),'Stock Price'!$E37,""),"") ->  | J37: =IF('Stock Price'!$A37>=DATE($J$1-1,4,1),IF('Stock Price'!$A37<=DATE($J$1,3,31),'Stock Price'!$A37,""),"") ->  | K37: =IF('Stock Price'!$A37>=DATE($J$1-1,4,1),IF('Stock Price'!$A37<=DATE($J$1,3,31),'Stock Price'!$E37,""),"") ->  | M37: =IF('Stock Price'!$A37>=DATE($M$1-1,4,1),IF('Stock Price'!$A37<=DATE($M$1,3,31),'Stock Price'!$A37,""),"") ->  | N37: =IF('Stock Price'!$A37>=DATE($M$1-1,4,1),IF('Stock Price'!$A37<=DATE($M$1,3,31),'Stock Price'!$E37,""),"") ->  | P37: =IF('Stock Price'!$A37>=DATE($P$1-1,4,1),IF('Stock Price'!$A37<=DATE($P$1,3,31),'Stock Price'!$A37,""),"") ->  | Q37: =IF('Stock Price'!$A37>=DATE($P$1-1,4,1),IF('Stock Price'!$A37<=DATE($P$1,3,31),'Stock Price'!$E37,""),"") ->  | S37: =IF('Stock Price'!$A37>=DATE($S$1-1,4,1),IF('Stock Price'!$A37<=DATE($S$1,3,31),'Stock Price'!$A37,""),"") ->  | T37: =IF('Stock Price'!$A37>=DATE($S$1-1,4,1),IF('Stock Price'!$A37<=DATE($S$1,3,31),'Stock Price'!$E37,""),"") ->  | V37: =IF('Stock Price'!$A37>=DATE($V$1-1,4,1),IF('Stock Price'!$A37<=DATE($V$1,3,31),'Stock Price'!$A37,""),"") ->  | W37: =IF('Stock Price'!$A37>=DATE($V$1-1,4,1),IF('Stock Price'!$A37<=DATE($V$1,3,31),'Stock Price'!$E37,""),"") ->  | Y37: =IF('Stock Price'!$A37>=DATE($Y$1-1,4,1),IF('Stock Price'!$A37<=DATE($Y$1,3,31),'Stock Price'!$A37,""),"") ->  | Z37: =IF('Stock Price'!$A37>=DATE($Y$1-1,4,1),IF('Stock Price'!$A37<=DATE($Y$1,3,31),'Stock Price'!$E37,""),"") ->  | AB37: =IF('Stock Price'!$A37>=DATE($AB$1-1,4,1),IF('Stock Price'!$A37<=DATE($AB$1,3,31),'Stock Price'!$A37,""),"") ->  | AC37: =IF('Stock Price'!$A37>=DATE($AB$1-1,4,1),IF('Stock Price'!$A37<=DATE($AB$1,3,31),'Stock Price'!$E37,""),"") -> 
A38: =IF('Stock Price'!A38>=DATE($A$1-1,4,1),IF('Stock Price'!A38<=DATE($A$1,3,31),'Stock Price'!A38,""),"") ->  | B38: =IF('Stock Price'!A38>=DATE($A$1-1,4,1),IF('Stock Price'!A38<=DATE($A$1,3,31),'Stock Price'!E38,""),"") ->  | D38: =IF('Stock Price'!$A38>=DATE($D$1-1,4,1),IF('Stock Price'!$A38<=DATE($D$1,3,31),'Stock Price'!$A38,""),"") ->  | E38: =IF('Stock Price'!$A38>=DATE($D$1-1,4,1),IF('Stock Price'!$A38<=DATE($D$1,3,31),'Stock Price'!$E38,""),"") ->  | G38: =IF('Stock Price'!$A38>=DATE($G$1-1,4,1),IF('Stock Price'!$A38<=DATE($G$1,3,31),'Stock Price'!$A38,""),"") ->  | H38: =IF('Stock Price'!$A38>=DATE($G$1-1,4,1),IF('Stock Price'!$A38<=DATE($G$1,3,31),'Stock Price'!$E38,""),"") ->  | J38: =IF('Stock Price'!$A38>=DATE($J$1-1,4,1),IF('Stock Price'!$A38<=DATE($J$1,3,31),'Stock Price'!$A38,""),"") ->  | K38: =IF('Stock Price'!$A38>=DATE($J$1-1,4,1),IF('Stock Price'!$A38<=DATE($J$1,3,31),'Stock Price'!$E38,""),"") ->  | M38: =IF('Stock Price'!$A38>=DATE($M$1-1,4,1),IF('Stock Price'!$A38<=DATE($M$1,3,31),'Stock Price'!$A38,""),"") ->  | N38: =IF('Stock Price'!$A38>=DATE($M$1-1,4,1),IF('Stock Price'!$A38<=DATE($M$1,3,31),'Stock Price'!$E38,""),"") ->  | P38: =IF('Stock Price'!$A38>=DATE($P$1-1,4,1),IF('Stock Price'!$A38<=DATE($P$1,3,31),'Stock Price'!$A38,""),"") ->  | Q38: =IF('Stock Price'!$A38>=DATE($P$1-1,4,1),IF('Stock Price'!$A38<=DATE($P$1,3,31),'Stock Price'!$E38,""),"") ->  | S38: =IF('Stock Price'!$A38>=DATE($S$1-1,4,1),IF('Stock Price'!$A38<=DATE($S$1,3,31),'Stock Price'!$A38,""),"") ->  | T38: =IF('Stock Price'!$A38>=DATE($S$1-1,4,1),IF('Stock Price'!$A38<=DATE($S$1,3,31),'Stock Price'!$E38,""),"") ->  | V38: =IF('Stock Price'!$A38>=DATE($V$1-1,4,1),IF('Stock Price'!$A38<=DATE($V$1,3,31),'Stock Price'!$A38,""),"") ->  | W38: =IF('Stock Price'!$A38>=DATE($V$1-1,4,1),IF('Stock Price'!$A38<=DATE($V$1,3,31),'Stock Price'!$E38,""),"") ->  | Y38: =IF('Stock Price'!$A38>=DATE($Y$1-1,4,1),IF('Stock Price'!$A38<=DATE($Y$1,3,31),'Stock Price'!$A38,""),"") ->  | Z38: =IF('Stock Price'!$A38>=DATE($Y$1-1,4,1),IF('Stock Price'!$A38<=DATE($Y$1,3,31),'Stock Price'!$E38,""),"") ->  | AB38: =IF('Stock Price'!$A38>=DATE($AB$1-1,4,1),IF('Stock Price'!$A38<=DATE($AB$1,3,31),'Stock Price'!$A38,""),"") ->  | AC38: =IF('Stock Price'!$A38>=DATE($AB$1-1,4,1),IF('Stock Price'!$A38<=DATE($AB$1,3,31),'Stock Price'!$E38,""),"") -> 
A39: =IF('Stock Price'!A39>=DATE($A$1-1,4,1),IF('Stock Price'!A39<=DATE($A$1,3,31),'Stock Price'!A39,""),"") ->  | B39: =IF('Stock Price'!A39>=DATE($A$1-1,4,1),IF('Stock Price'!A39<=DATE($A$1,3,31),'Stock Price'!E39,""),"") ->  | D39: =IF('Stock Price'!$A39>=DATE($D$1-1,4,1),IF('Stock Price'!$A39<=DATE($D$1,3,31),'Stock Price'!$A39,""),"") ->  | E39: =IF('Stock Price'!$A39>=DATE($D$1-1,4,1),IF('Stock Price'!$A39<=DATE($D$1,3,31),'Stock Price'!$E39,""),"") ->  | G39: =IF('Stock Price'!$A39>=DATE($G$1-1,4,1),IF('Stock Price'!$A39<=DATE($G$1,3,31),'Stock Price'!$A39,""),"") ->  | H39: =IF('Stock Price'!$A39>=DATE($G$1-1,4,1),IF('Stock Price'!$A39<=DATE($G$1,3,31),'Stock Price'!$E39,""),"") ->  | J39: =IF('Stock Price'!$A39>=DATE($J$1-1,4,1),IF('Stock Price'!$A39<=DATE($J$1,3,31),'Stock Price'!$A39,""),"") ->  | K39: =IF('Stock Price'!$A39>=DATE($J$1-1,4,1),IF('Stock Price'!$A39<=DATE($J$1,3,31),'Stock Price'!$E39,""),"") ->  | M39: =IF('Stock Price'!$A39>=DATE($M$1-1,4,1),IF('Stock Price'!$A39<=DATE($M$1,3,31),'Stock Price'!$A39,""),"") ->  | N39: =IF('Stock Price'!$A39>=DATE($M$1-1,4,1),IF('Stock Price'!$A39<=DATE($M$1,3,31),'Stock Price'!$E39,""),"") ->  | P39: =IF('Stock Price'!$A39>=DATE($P$1-1,4,1),IF('Stock Price'!$A39<=DATE($P$1,3,31),'Stock Price'!$A39,""),"") ->  | Q39: =IF('Stock Price'!$A39>=DATE($P$1-1,4,1),IF('Stock Price'!$A39<=DATE($P$1,3,31),'Stock Price'!$E39,""),"") ->  | S39: =IF('Stock Price'!$A39>=DATE($S$1-1,4,1),IF('Stock Price'!$A39<=DATE($S$1,3,31),'Stock Price'!$A39,""),"") ->  | T39: =IF('Stock Price'!$A39>=DATE($S$1-1,4,1),IF('Stock Price'!$A39<=DATE($S$1,3,31),'Stock Price'!$E39,""),"") ->  | V39: =IF('Stock Price'!$A39>=DATE($V$1-1,4,1),IF('Stock Price'!$A39<=DATE($V$1,3,31),'Stock Price'!$A39,""),"") ->  | W39: =IF('Stock Price'!$A39>=DATE($V$1-1,4,1),IF('Stock Price'!$A39<=DATE($V$1,3,31),'Stock Price'!$E39,""),"") ->  | Y39: =IF('Stock Price'!$A39>=DATE($Y$1-1,4,1),IF('Stock Price'!$A39<=DATE($Y$1,3,31),'Stock Price'!$A39,""),"") ->  | Z39: =IF('Stock Price'!$A39>=DATE($Y$1-1,4,1),IF('Stock Price'!$A39<=DATE($Y$1,3,31),'Stock Price'!$E39,""),"") ->  | AB39: =IF('Stock Price'!$A39>=DATE($AB$1-1,4,1),IF('Stock Price'!$A39<=DATE($AB$1,3,31),'Stock Price'!$A39,""),"") ->  | AC39: =IF('Stock Price'!$A39>=DATE($AB$1-1,4,1),IF('Stock Price'!$A39<=DATE($AB$1,3,31),'Stock Price'!$E39,""),"") -> 
A40: =IF('Stock Price'!A40>=DATE($A$1-1,4,1),IF('Stock Price'!A40<=DATE($A$1,3,31),'Stock Price'!A40,""),"") ->  | B40: =IF('Stock Price'!A40>=DATE($A$1-1,4,1),IF('Stock Price'!A40<=DATE($A$1,3,31),'Stock Price'!E40,""),"") ->  | D40: =IF('Stock Price'!$A40>=DATE($D$1-1,4,1),IF('Stock Price'!$A40<=DATE($D$1,3,31),'Stock Price'!$A40,""),"") ->  | E40: =IF('Stock Price'!$A40>=DATE($D$1-1,4,1),IF('Stock Price'!$A40<=DATE($D$1,3,31),'Stock Price'!$E40,""),"") ->  | G40: =IF('Stock Price'!$A40>=DATE($G$1-1,4,1),IF('Stock Price'!$A40<=DATE($G$1,3,31),'Stock Price'!$A40,""),"") ->  | H40: =IF('Stock Price'!$A40>=DATE($G$1-1,4,1),IF('Stock Price'!$A40<=DATE($G$1,3,31),'Stock Price'!$E40,""),"") ->  | J40: =IF('Stock Price'!$A40>=DATE($J$1-1,4,1),IF('Stock Price'!$A40<=DATE($J$1,3,31),'Stock Price'!$A40,""),"") ->  | K40: =IF('Stock Price'!$A40>=DATE($J$1-1,4,1),IF('Stock Price'!$A40<=DATE($J$1,3,31),'Stock Price'!$E40,""),"") ->  | M40: =IF('Stock Price'!$A40>=DATE($M$1-1,4,1),IF('Stock Price'!$A40<=DATE($M$1,3,31),'Stock Price'!$A40,""),"") ->  | N40: =IF('Stock Price'!$A40>=DATE($M$1-1,4,1),IF('Stock Price'!$A40<=DATE($M$1,3,31),'Stock Price'!$E40,""),"") ->  | P40: =IF('Stock Price'!$A40>=DATE($P$1-1,4,1),IF('Stock Price'!$A40<=DATE($P$1,3,31),'Stock Price'!$A40,""),"") ->  | Q40: =IF('Stock Price'!$A40>=DATE($P$1-1,4,1),IF('Stock Price'!$A40<=DATE($P$1,3,31),'Stock Price'!$E40,""),"") ->  | S40: =IF('Stock Price'!$A40>=DATE($S$1-1,4,1),IF('Stock Price'!$A40<=DATE($S$1,3,31),'Stock Price'!$A40,""),"") ->  | T40: =IF('Stock Price'!$A40>=DATE($S$1-1,4,1),IF('Stock Price'!$A40<=DATE($S$1,3,31),'Stock Price'!$E40,""),"") ->  | V40: =IF('Stock Price'!$A40>=DATE($V$1-1,4,1),IF('Stock Price'!$A40<=DATE($V$1,3,31),'Stock Price'!$A40,""),"") ->  | W40: =IF('Stock Price'!$A40>=DATE($V$1-1,4,1),IF('Stock Price'!$A40<=DATE($V$1,3,31),'Stock Price'!$E40,""),"") ->  | Y40: =IF('Stock Price'!$A40>=DATE($Y$1-1,4,1),IF('Stock Price'!$A40<=DATE($Y$1,3,31),'Stock Price'!$A40,""),"") ->  | Z40: =IF('Stock Price'!$A40>=DATE($Y$1-1,4,1),IF('Stock Price'!$A40<=DATE($Y$1,3,31),'Stock Price'!$E40,""),"") ->  | AB40: =IF('Stock Price'!$A40>=DATE($AB$1-1,4,1),IF('Stock Price'!$A40<=DATE($AB$1,3,31),'Stock Price'!$A40,""),"") ->  | AC40: =IF('Stock Price'!$A40>=DATE($AB$1-1,4,1),IF('Stock Price'!$A40<=DATE($AB$1,3,31),'Stock Price'!$E40,""),"") -> 
A41: =IF('Stock Price'!A41>=DATE($A$1-1,4,1),IF('Stock Price'!A41<=DATE($A$1,3,31),'Stock Price'!A41,""),"") ->  | B41: =IF('Stock Price'!A41>=DATE($A$1-1,4,1),IF('Stock Price'!A41<=DATE($A$1,3,31),'Stock Price'!E41,""),"") ->  | D41: =IF('Stock Price'!$A41>=DATE($D$1-1,4,1),IF('Stock Price'!$A41<=DATE($D$1,3,31),'Stock Price'!$A41,""),"") ->  | E41: =IF('Stock Price'!$A41>=DATE($D$1-1,4,1),IF('Stock Price'!$A41<=DATE($D$1,3,31),'Stock Price'!$E41,""),"") ->  | G41: =IF('Stock Price'!$A41>=DATE($G$1-1,4,1),IF('Stock Price'!$A41<=DATE($G$1,3,31),'Stock Price'!$A41,""),"") ->  | H41: =IF('Stock Price'!$A41>=DATE($G$1-1,4,1),IF('Stock Price'!$A41<=DATE($G$1,3,31),'Stock Price'!$E41,""),"") ->  | J41: =IF('Stock Price'!$A41>=DATE($J$1-1,4,1),IF('Stock Price'!$A41<=DATE($J$1,3,31),'Stock Price'!$A41,""),"") ->  | K41: =IF('Stock Price'!$A41>=DATE($J$1-1,4,1),IF('Stock Price'!$A41<=DATE($J$1,3,31),'Stock Price'!$E41,""),"") ->  | M41: =IF('Stock Price'!$A41>=DATE($M$1-1,4,1),IF('Stock Price'!$A41<=DATE($M$1,3,31),'Stock Price'!$A41,""),"") ->  | N41: =IF('Stock Price'!$A41>=DATE($M$1-1,4,1),IF('Stock Price'!$A41<=DATE($M$1,3,31),'Stock Price'!$E41,""),"") ->  | P41: =IF('Stock Price'!$A41>=DATE($P$1-1,4,1),IF('Stock Price'!$A41<=DATE($P$1,3,31),'Stock Price'!$A41,""),"") ->  | Q41: =IF('Stock Price'!$A41>=DATE($P$1-1,4,1),IF('Stock Price'!$A41<=DATE($P$1,3,31),'Stock Price'!$E41,""),"") ->  | S41: =IF('Stock Price'!$A41>=DATE($S$1-1,4,1),IF('Stock Price'!$A41<=DATE($S$1,3,31),'Stock Price'!$A41,""),"") ->  | T41: =IF('Stock Price'!$A41>=DATE($S$1-1,4,1),IF('Stock Price'!$A41<=DATE($S$1,3,31),'Stock Price'!$E41,""),"") ->  | V41: =IF('Stock Price'!$A41>=DATE($V$1-1,4,1),IF('Stock Price'!$A41<=DATE($V$1,3,31),'Stock Price'!$A41,""),"") ->  | W41: =IF('Stock Price'!$A41>=DATE($V$1-1,4,1),IF('Stock Price'!$A41<=DATE($V$1,3,31),'Stock Price'!$E41,""),"") ->  | Y41: =IF('Stock Price'!$A41>=DATE($Y$1-1,4,1),IF('Stock Price'!$A41<=DATE($Y$1,3,31),'Stock Price'!$A41,""),"") ->  | Z41: =IF('Stock Price'!$A41>=DATE($Y$1-1,4,1),IF('Stock Price'!$A41<=DATE($Y$1,3,31),'Stock Price'!$E41,""),"") ->  | AB41: =IF('Stock Price'!$A41>=DATE($AB$1-1,4,1),IF('Stock Price'!$A41<=DATE($AB$1,3,31),'Stock Price'!$A41,""),"") ->  | AC41: =IF('Stock Price'!$A41>=DATE($AB$1-1,4,1),IF('Stock Price'!$A41<=DATE($AB$1,3,31),'Stock Price'!$E41,""),"") -> 
A42: =IF('Stock Price'!A42>=DATE($A$1-1,4,1),IF('Stock Price'!A42<=DATE($A$1,3,31),'Stock Price'!A42,""),"") ->  | B42: =IF('Stock Price'!A42>=DATE($A$1-1,4,1),IF('Stock Price'!A42<=DATE($A$1,3,31),'Stock Price'!E42,""),"") ->  | D42: =IF('Stock Price'!$A42>=DATE($D$1-1,4,1),IF('Stock Price'!$A42<=DATE($D$1,3,31),'Stock Price'!$A42,""),"") ->  | E42: =IF('Stock Price'!$A42>=DATE($D$1-1,4,1),IF('Stock Price'!$A42<=DATE($D$1,3,31),'Stock Price'!$E42,""),"") ->  | G42: =IF('Stock Price'!$A42>=DATE($G$1-1,4,1),IF('Stock Price'!$A42<=DATE($G$1,3,31),'Stock Price'!$A42,""),"") ->  | H42: =IF('Stock Price'!$A42>=DATE($G$1-1,4,1),IF('Stock Price'!$A42<=DATE($G$1,3,31),'Stock Price'!$E42,""),"") ->  | J42: =IF('Stock Price'!$A42>=DATE($J$1-1,4,1),IF('Stock Price'!$A42<=DATE($J$1,3,31),'Stock Price'!$A42,""),"") ->  | K42: =IF('Stock Price'!$A42>=DATE($J$1-1,4,1),IF('Stock Price'!$A42<=DATE($J$1,3,31),'Stock Price'!$E42,""),"") ->  | M42: =IF('Stock Price'!$A42>=DATE($M$1-1,4,1),IF('Stock Price'!$A42<=DATE($M$1,3,31),'Stock Price'!$A42,""),"") ->  | N42: =IF('Stock Price'!$A42>=DATE($M$1-1,4,1),IF('Stock Price'!$A42<=DATE($M$1,3,31),'Stock Price'!$E42,""),"") ->  | P42: =IF('Stock Price'!$A42>=DATE($P$1-1,4,1),IF('Stock Price'!$A42<=DATE($P$1,3,31),'Stock Price'!$A42,""),"") ->  | Q42: =IF('Stock Price'!$A42>=DATE($P$1-1,4,1),IF('Stock Price'!$A42<=DATE($P$1,3,31),'Stock Price'!$E42,""),"") ->  | S42: =IF('Stock Price'!$A42>=DATE($S$1-1,4,1),IF('Stock Price'!$A42<=DATE($S$1,3,31),'Stock Price'!$A42,""),"") ->  | T42: =IF('Stock Price'!$A42>=DATE($S$1-1,4,1),IF('Stock Price'!$A42<=DATE($S$1,3,31),'Stock Price'!$E42,""),"") ->  | V42: =IF('Stock Price'!$A42>=DATE($V$1-1,4,1),IF('Stock Price'!$A42<=DATE($V$1,3,31),'Stock Price'!$A42,""),"") ->  | W42: =IF('Stock Price'!$A42>=DATE($V$1-1,4,1),IF('Stock Price'!$A42<=DATE($V$1,3,31),'Stock Price'!$E42,""),"") ->  | Y42: =IF('Stock Price'!$A42>=DATE($Y$1-1,4,1),IF('Stock Price'!$A42<=DATE($Y$1,3,31),'Stock Price'!$A42,""),"") ->  | Z42: =IF('Stock Price'!$A42>=DATE($Y$1-1,4,1),IF('Stock Price'!$A42<=DATE($Y$1,3,31),'Stock Price'!$E42,""),"") ->  | AB42: =IF('Stock Price'!$A42>=DATE($AB$1-1,4,1),IF('Stock Price'!$A42<=DATE($AB$1,3,31),'Stock Price'!$A42,""),"") ->  | AC42: =IF('Stock Price'!$A42>=DATE($AB$1-1,4,1),IF('Stock Price'!$A42<=DATE($AB$1,3,31),'Stock Price'!$E42,""),"") -> 
